{"text_format":"1","workbook":"xlsx","n_sheets":7,"sheets":["Constraints","NT5 Billing Schedule","FacilityData","GS facility","FeeOptions","copyFeeOptions","SmokeSchool"],"not_rendered":{"charts":0,"images":4,"macros":1,"external_links":0,"defined_names":6,"comments":3,"pivot_tables":0},"unopened":[],"bounds":{"document_bytes":16777216,"sheet_cells":100000,"rows_first":2000,"rows_last":500,"rows_between":2000,"halvings":0,"cell_chars":16384,"cell_head_chars":4096},"cells_cut":0,"cells_raw":0,"read":"whole","date_system":"1900"}

{"sheet":"Constraints","index":0,"n_rows":118,"n_cols":19,"rows_kept":118,"cut":false,"hidden":true,"merged":[]}
[null,null,0,0,1,"from #CPs",null,"Currrent","Explore",null,null,"Totals for ALL TM & CM",null,null,null,null,null,"Default Fee Options","Tab #"]
["Construction Permit Emission Rate Fee","Emission Rate ","tons ","$ rate ","$ rate ","AVG#/Yr ",null,"Fees ","Fees ",null,null,"Total_CO",{"$f":"SUM(FacilityData!$D$2:$D$1178)","v":13767.376500000009},null,null,null,null,"Construction Permit Fees",0]
[null,"0 <= tons < 10",10,100,1000,172,null,{"$f":"IF(F3<>\"\",D3*F3,\"\")","v":17200},{"$f":"IF(F3<>\"\",E3*F3,\"\")","v":172000},null,null,"Facility_Tons",{"$f":"SUM(FacilityData!$E$2:$E$1178)","v":88756.255140600057},null,null,null,null,"Annual Emissions Fees",0]
[null,"10 <= tons < 100",100,500,1500,97,null,{"$f":"IF(F4<>\"\",D4*F4,\"\")","v":48500},{"$f":"IF(F4<>\"\",E4*F4,\"\")","v":145500},null,null,null,null,null,null,null,null,"Annual TM Base Fees",0]
[null,"100 <= tons < 250",250,1000,2000,10,null,10000,20000,null,null,"Non-Title V Fees & Other Non-Permitting Funding Totals",null,null,null,null,null,"Annual CM Review Fees",0]
[null,"250 <= tons < 500",500,2000,2500,1,null,2000,2500,null,null,"Fee Types ","Current ","Exploring ","Increase"]
[null,"500 <= tons < 1000",1000,3000,3000,0,null,0,0,null,null,"Annual Emissions Fees",{"$f":"SUM(FacilityData!$G$2:$G$1178)","v":1664179.8099999994},{"$f":"SUM(FacilityData!$G$2:$G$1178)","v":1664179.8099999994},{"$f":"N7-M7","v":0}]
[null,"1000 <= tons < 5000",5000,4000,4000,0,null,0,0,null,null,"Annual TM Base Fees",{"$f":"SUM(FacilityData!$H$2:$H$1178)","v":0},{"$f":"SUM(FacilityData!$J$2:$J$1178)","v":508350},{"$f":"N8-M8","v":508350}]
[null,"tons >= 5000",null,5000,5000,0,null,0,0,null,null,"Annual CM Review Fees",{"$f":"SUM(FacilityData!$F$2:$F$1178)","v":296000},{"$f":"SUM(FacilityData!$I$2:$I$1178)","v":708000},412000]
[null,null,null,null,null,null,null,"","",null,null,"Average Construction Permit Fees",{"$f":"FeeOptions!H28","v":77700},{"$f":"FeeOptions!I28","v":340000},262300]
[null,null,null,null,null,null,null,"","",null,null,"Vehicle I&M Fees",2458715,2458715,0]
[null,null,null,null,null,null,null,"","",null,null,"Average Visible Em. Sch. Fees",15150,23400,8250]
[null,null,null,null,null,null,null,"","",null,null,"Other Non-Permitting Funds",{"$f":"SUM(M18:M20)","v":2761210},{"$f":"SUM(N18:N20)","v":2761210},0]
[null,null,null,null,null,null,null,"",""]
[null,null,null,null,null,null,null,"","",null,null,"Non-Title V Grand Total ",{"$f":"SUM(M7:M13)","v":7272954.8099999996},{"$f":"SUM(N7:N13)","v":8463854.8099999987},{"$f":"N15-M15","v":1190899.9999999991}]
[null,null,null,null,null,null,null,"",""]
[null,null,null,null,null,null,null,"","",null,null,"Other Source Funds","Current","Exploratory","Change"]
[null,null,null,null,null,null,null,"","",null,null,"Civil Penalties",194532,194532,{"$f":"N18-M18","v":0}]
[null,null,null,null,null,null,null,"","",null,null,"105 Grant",1421478,1421478,{"$f":"N19-M19","v":0}]
[null,null,null,null,null,null,null,"","",null,null,"State Funds",1145200,1145200,0]
[null,null,null,null,null,null,null,"",""]
[null,null,null,null,null,null,null,"",""]
[null,null,null,null,null,null,null,"","",null,null,"Fee Types from tables"]
[null,null,null,null,null,null,null,"","",null,null,"Fee Types","Current","Exploratory","Change"]
[null,null,null,null,null,null,null,"","",null,null,"Annual Emission Fees",{"$f":"FeeOptions!H58","v":1664179.8122406006},{"$f":"FeeOptions!I58","v":1664179.8122406006},{"$f":"N25-M25","v":0}]
[null,null,null,null,null,null,null,"","",null,null,"Annual TM Base Fees",{"$f":"FeeOptions!H88","v":0},{"$f":"FeeOptions!I88","v":508350},{"$f":"N26-M26","v":508350}]
[null,null,null,null,null,null,null,"","",null,null,"Annual CM Review Fees",{"$f":"FeeOptions!H118","v":286250},{"$f":"FeeOptions!I118","v":708000},421750]
[null,"Totals-->",null,null,null,{"$f":"SUM(F3:F27)","v":280},null,{"$f":"SUM(H3:H27)","v":77700},{"$f":"SUM(I3:I27)","v":340000}]
[null,null,null,null,null,null,null,null,null,null,null,"Fee Types Table Locations"]
[null,null,null,null,null,null,null,null,null,null,"Prgm Btn","Fee Types","FirstRow","numRows","LastRow","numLimits"]
[null,null,null,"Current","Exploratory",null,null,"Currrent","Explore",null,"N/A","Construction Permit Fees",3,7,9,{"$f":"N31-1","v":6}]
["Annual Emission Fees $/ton rates","Emission Rate ","tons","$/Ton ","$/Ton ","#Fac's ","Total Tons ","Fees ","Fees ",null,"#1 Get","Emission Fees",33,6,38,{"$f":"N32-1","v":5}]
[null,"0 <= tons < 25",25,18.75,18.75,278,4626.63671875,{"$f":"IF(G33<>\"\",D33*G33,\"\")","v":86749.4384765625},{"$f":"IF(G33<>\"\",E33*G33,\"\")","v":86749.4384765625},null,"#3 Get","TM Base Fees",63,15,77,14]
[null,"25 <= tons < 50",50,18.75,18.75,263,9813.62890625,184005.5419921875,184005.5419921875,null,"#2 Get","CM Review Fees",93,15,107,14]
[null,"50 <= tons < 75",75,18.75,18.75,187,11388.4296875,213533.056640625,213533.056640625]
[null,"75 <= tons < 100",100,18.75,18.75,154,13467.328125,252512.40234375,252512.40234375]
[null,"100 <= tons < 125",125,18.75,18.75,102,11411.1875,213959.765625,213959.765625]
[null,"125 <= tons < 150",150,18.75,18.75,59,8022.47314453125,150421.37145996094,150421.37145996094]
[null,"150 <= tons < 175",175,18.75,18.75,48,7757.62939453125,145455.55114746094,145455.55114746094]
[null,"175 <= tons < 200",200,18.75,18.75,21,3938.074462890625,73838.896179199219,73838.896179199219]
[null,"200 <= tons < 225",225,18.75,18.75,24,5062.60400390625,94923.825073242188,94923.825073242188]
[null,"225 <= tons < 250",250,18.75,18.75,9,2161.27294921875,40523.867797851563,40523.867797851563]
[null,"250 <= tons < 500",500,18.75,18.75,30,9413.591796875,176504.84619140625,176504.84619140625]
[null,"500 <= tons < 1000",1000,18.75,18.75,1,511.54998779296875,9591.5622711181641,9591.5622711181641]
[null,"1000 <= tons < 2500",2500,18.75,18.75,1,1181.8499755859375,22159.687042236328,22159.687042236328]
[null,"2500 <= tons < 5000",5000,18.75,18.75,0,0,0,0]
[null,"tons >= 5000",null,18.75,18.75,0,0,0,0]
[null,null,null,null,null,null,null,"",""]
[null,null,null,null,null,null,null,"",""]
[null,null,null,null,null,null,null,"",""]
[null,null,null,null,null,null,null,"",""]
[null,null,null,null,null,null,null,"",""]
[null,null,null,null,null,null,null,"",""]
[null,null,null,null,null,null,null,"",""]
[null,null,null,null,null,null,null,"",""]
[null,null,null,null,null,null,null,"",""]
[null,null,null,null,null,null,null,"",""]
[null,"Totals-->",null,null,null,{"$f":"SUM(F33:F57)","v":1177},{"$f":"SUM(G33:G57)","v":88756.256652832031},{"$f":"SUM(H33:H57)","v":1664179.8122406006},{"$f":"SUM(I33:I57)","v":1664179.8122406006}]
[]
[]
[null,null,null,"Current","Exploratory",null,null,"Current","Exploratory"]
["Annual True Minor (TM) Base Fee","Emission Rate ","tons","$ rate ","$ rate ","#Fac's ",null,"Fees ","Fees "]
[null,"0 <= tons < 25",25,0,500,256,null,{"$f":"IF(F63<>\"\",D63*F63,\"\")","v":0},{"$f":"IF(F63<>\"\",E63*F63,\"\")","v":128000}]
[null,"25 <= tons < 50",50,0,550,224,null,0,123200]
[null,"50 <= tons < 75",75,0,600,148,null,0,88800]
[null,"75 <= tons < 100",100,0,650,105,null,0,68250]
[null,"100 <= tons < 125",125,0,700,57,null,0,39900]
[null,"125 <= tons < 150",150,0,750,26,null,0,19500]
[null,"150 <= tons < 175",175,0,800,20,null,0,16000]
[null,"175 <= tons < 200",200,0,850,9,null,0,7650]
[null,"200 <= tons < 225",225,0,900,8,null,0,7200]
[null,"225 <= tons < 250",250,0,950,3,null,0,2850]
[null,"250 <= tons < 500",500,0,1000,5,null,0,5000]
[null,"500 <= tons < 1000",1000,0,1500,0,null,0,0]
[null,"1000 <= tons < 2500",2500,0,2000,1,null,0,2000]
[null,"2500 <= tons < 5000",5000,0,2500,0,null,0,0]
[null,"tons >= 5000",null,0,3000,0,null,0,0]
[null,null,null,null,null,null,null,"",""]
[null,null,null,null,null,null,null,"",""]
[null,null,null,null,null,null,null,"",""]
[null,null,null,null,null,null,null,"",""]
[null,null,null,null,null,null,null,"",""]
[null,null,null,null,null,null,null,"",""]
[null,null,null,null,null,null,null,"",""]
[null,null,null,null,null,null,null,"",""]
[null,null,null,null,null,null,null,"",""]
[null,null,null,null,null,null,null,"",""]
[null,"Totals-->",null,null,null,{"$f":"SUM(F63:F87)","v":862},null,{"$f":"SUM(H63:H87)","v":0},{"$f":"SUM(I63:I87)","v":508350}]
[]
[]
[null,null,null,"Current","Exploratory",null,null,"Currrent","Explore"]
["Annual Conditional Major (CM) Review Fee","Emission Rate","tons","$/Ton","$/Ton","#Fac's ",null,"Fees","Fees"]
[null,"0 <= tons < 25",25,250,1000,10,null,{"$f":"IF(F93<>\"\",D93*F93,\"\")","v":2500},{"$f":"IF(F93<>\"\",E93*F93,\"\")","v":10000}]
[null,"25 <= tons < 50",50,250,1250,27,null,6750,33750]
[null,"50 <= tons < 75",75,500,1500,35,null,17500,52500]
[null,"75 <= tons < 100",100,500,1750,43,null,21500,75250]
[null,"100 <= tons < 125",125,500,2000,47,null,23500,94000]
[null,"125 <= tons < 150",150,500,2250,34,null,17000,76500]
[null,"150 <= tons < 175",175,500,2500,27,null,13500,67500]
[null,"175 <= tons < 200",200,2000,2750,17,null,34000,46750]
[null,"200 <= tons < 225",225,2000,3000,19,null,38000,57000]
[null,"225 <= tons < 250",250,2000,3250,8,null,16000,26000]
[null,"250 <= tons < 500",500,2000,3500,45,null,90000,157500]
[null,"500 <= tons < 1000",1000,2000,3750,3,null,6000,11250]
[null,"1000 <= tons < 2500",2500,2000,4000,0,null,0,0]
[null,"2500 <= tons < 5000",5000,2000,4500,0,null,0,0]
[null,"tons >= 5000",null,2000,5000,0,null,0,0]
[null,null,null,null,null,null,null,"",""]
[null,null,null,null,null,null,null,"",""]
[null,null,null,null,null,null,null,"",""]
[null,null,null,null,null,null,null,"",""]
[null,null,null,null,null,null,null,"",""]
[null,null,null,null,null,null,null,"",""]
[null,null,null,null,null,null,null,"",""]
[null,null,null,null,null,null,null,"",""]
[null,null,null,null,null,null,null,"",""]
[null,null,null,null,null,null,null,"",""]
[null,"Totals-->",null,null,null,{"$f":"SUM(F93:F117)","v":315},null,{"$f":"SUM(H93:H117)","v":286250},{"$f":"SUM(I93:I117)","v":708000}]

{"sheet":"NT5 Billing Schedule","index":1,"n_rows":96,"n_cols":15,"rows_kept":96,"cut":false,"hidden":true,"merged":[]}
["January","February","March","April","May","June","July","August","September","October","November","December",null,"County","TN County #"]
["01","08","16","25","32","40","52","58","66","73","80","88",null,"Anderson County","01"]
["02","09","17","26","33","41","53","59","67","74","81","89",null,"Bedford County","02"]
["03","10","18","27","34","42","54","60","68","75","82","90",null,"Benton County","03"]
["04","11","19","28","35","43","55","61","69","76","83","91",null,"Bledsoe County","04"]
["05","12","20","29","36","44","56","62","70","77","84","92",null,"Blount County","05"]
["06","13","21","30","37","45","57","63","71","78","85","93",null,"Bradley County","06"]
["07","14","22","31","38","46",null,"64","72","79","86","94",null,"Campbell County","07"]
[null,"15","23",null,"39","47",null,"65",null,null,"87","95",null,"Cannon County","08"]
[null,null,"24",null,null,"48",null,null,null,null,null,null,null,"Carroll County","09"]
[null,null,null,null,null,"49",null,null,null,null,null,null,null,"Carter County","10"]
[null,null,null,null,null,"50",null,null,null,null,null,null,null,"Cheatham County","11"]
[null,null,null,null,null,"51",null,null,null,null,null,null,null,"Chester County","12"]
[null,null,null,null,null,null,null,null,null,null,null,null,null,"Claiborne County","13"]
[null,null,null,null,null,null,null,null,null,null,null,null,null,"Clay County","14"]
[null,null,null,null,null,null,null,null,null,null,null,null,null,"Cocke County","15"]
[null,null,null,null,null,null,null,null,null,null,null,null,null,"Coffee County","16"]
[null,null,null,null,null,null,null,null,null,null,null,null,null,"Crockett County","17"]
[null,null,null,null,null,null,null,null,null,null,null,null,null,"Cumberland County","18"]
[null,null,null,null,null,null,null,null,null,null,null,null,null,"Davidson County","19"]
[null,null,null,null,null,null,null,null,null,null,null,null,null,"Decatur County","20"]
[null,null,null,null,null,null,null,null,null,null,null,null,null,"DeKalb County","21"]
[null,null,null,null,null,null,null,null,null,null,null,null,null,"Dickson County","22"]
[null,null,null,null,null,null,null,null,null,null,null,null,null,"Dyer County","23"]
[null,null,null,null,null,null,null,null,null,null,null,null,null,"Fayette County","24"]
[null,null,null,null,null,null,null,null,null,null,null,null,null,"Fentress County","25"]
[null,null,null,null,null,null,null,null,null,null,null,null,null,"Franklin County","26"]
[null,null,null,null,null,null,null,null,null,null,null,null,null,"Gibson County","27"]
[null,null,null,null,null,null,null,null,null,null,null,null,null,"Giles County","28"]
[null,null,null,null,null,null,null,null,null,null,null,null,null,"Grainger County","29"]
[null,null,null,null,null,null,null,null,null,null,null,null,null,"Greene County","30"]
[null,null,null,null,null,null,null,null,null,null,null,null,null,"Grundy County","31"]
[null,null,null,null,null,null,null,null,null,null,null,null,null,"Hamblen County","32"]
[null,null,null,null,null,null,null,null,null,null,null,null,null,"Hamilton County","33"]
[null,null,null,null,null,null,null,null,null,null,null,null,null,"Hancock County","34"]
[null,null,null,null,null,null,null,null,null,null,null,null,null,"Hardeman County","35"]
[null,null,null,null,null,null,null,null,null,null,null,null,null,"Hardin County","36"]
[null,null,null,null,null,null,null,null,null,null,null,null,null,"Hawkins County","37"]
[null,null,null,null,null,null,null,null,null,null,null,null,null,"Haywood County","38"]
[null,null,null,null,null,null,null,null,null,null,null,null,null,"Henderson County","39"]
[null,null,null,null,null,null,null,null,null,null,null,null,null,"Henry County","40"]
[null,null,null,null,null,null,null,null,null,null,null,null,null,"Hickman County","41"]
[null,null,null,null,null,null,null,null,null,null,null,null,null,"Houston County","42"]
[null,null,null,null,null,null,null,null,null,null,null,null,null,"Humphreys County","43"]
[null,null,null,null,null,null,null,null,null,null,null,null,null,"Jackson County","44"]
[null,null,null,null,null,null,null,null,null,null,null,null,null,"Jefferson County","45"]
[null,null,null,null,null,null,null,null,null,null,null,null,null,"Johnson County","46"]
[null,null,null,null,null,null,null,null,null,null,null,null,null,"Knox County","47"]
[null,null,null,null,null,null,null,null,null,null,null,null,null,"Lake County","48"]
[null,null,null,null,null,null,null,null,null,null,null,null,null,"Lauderdale County","49"]
[null,null,null,null,null,null,null,null,null,null,null,null,null,"Lawrence County","50"]
[null,null,null,null,null,null,null,null,null,null,null,null,null,"Lewis County","51"]
[null,null,null,null,null,null,null,null,null,null,null,null,null,"Lincoln County","52"]
[null,null,null,null,null,null,null,null,null,null,null,null,null,"Loudon County","53"]
[null,null,null,null,null,null,null,null,null,null,null,null,null,"Mc Minn County","54"]
[null,null,null,null,null,null,null,null,null,null,null,null,null,"Mc Nairy County","55"]
[null,null,null,null,null,null,null,null,null,null,null,null,null,"Macon County","56"]
[null,null,null,null,null,null,null,null,null,null,null,null,null,"Madison County","57"]
[null,null,null,null,null,null,null,null,null,null,null,null,null,"Marion County","58"]
[null,null,null,null,null,null,null,null,null,null,null,null,null,"Marshall County","59"]
[null,null,null,null,null,null,null,null,null,null,null,null,null,"Maury County","60"]
[null,null,null,null,null,null,null,null,null,null,null,null,null,"Meigs County","61"]
[null,null,null,null,null,null,null,null,null,null,null,null,null,"Monroe County","62"]
[null,null,null,null,null,null,null,null,null,null,null,null,null,"Montgomery County","63"]
[null,null,null,null,null,null,null,null,null,null,null,null,null,"Moore County","64"]
[null,null,null,null,null,null,null,null,null,null,null,null,null,"Morgan County","65"]
[null,null,null,null,null,null,null,null,null,null,null,null,null,"Obion County","66"]
[null,null,null,null,null,null,null,null,null,null,null,null,null,"Overton County","67"]
[null,null,null,null,null,null,null,null,null,null,null,null,null,"Perry County","68"]
[null,null,null,null,null,null,null,null,null,null,null,null,null,"Pickett County","69"]
[null,null,null,null,null,null,null,null,null,null,null,null,null,"Polk County","70"]
[null,null,null,null,null,null,null,null,null,null,null,null,null,"Putnam County","71"]
[null,null,null,null,null,null,null,null,null,null,null,null,null,"Rhea County","72"]
[null,null,null,null,null,null,null,null,null,null,null,null,null,"Roane County","73"]
[null,null,null,null,null,null,null,null,null,null,null,null,null,"Robertson County","74"]
[null,null,null,null,null,null,null,null,null,null,null,null,null,"Rutherford County","75"]
[null,null,null,null,null,null,null,null,null,null,null,null,null,"Scott County","76"]
[null,null,null,null,null,null,null,null,null,null,null,null,null,"Sequatchie County","77"]
[null,null,null,null,null,null,null,null,null,null,null,null,null,"Sevier County","78"]
[null,null,null,null,null,null,null,null,null,null,null,null,null,"Shelby County","79"]
[null,null,null,null,null,null,null,null,null,null,null,null,null,"Smith County","80"]
[null,null,null,null,null,null,null,null,null,null,null,null,null,"Stewart County","81"]
[null,null,null,null,null,null,null,null,null,null,null,null,null,"Sullivan County","82"]
[null,null,null,null,null,null,null,null,null,null,null,null,null,"Sumner County","83"]
[null,null,null,null,null,null,null,null,null,null,null,null,null,"Tipton County","84"]
[null,null,null,null,null,null,null,null,null,null,null,null,null,"Trousdale County","85"]
[null,null,null,null,null,null,null,null,null,null,null,null,null,"Unicoi County","86"]
[null,null,null,null,null,null,null,null,null,null,null,null,null,"Union County","87"]
[null,null,null,null,null,null,null,null,null,null,null,null,null,"Van Buren County","88"]
[null,null,null,null,null,null,null,null,null,null,null,null,null,"Warren County","89"]
[null,null,null,null,null,null,null,null,null,null,null,null,null,"Washington County","90"]
[null,null,null,null,null,null,null,null,null,null,null,null,null,"Wayne County","91"]
[null,null,null,null,null,null,null,null,null,null,null,null,null,"Weakley County","92"]
[null,null,null,null,null,null,null,null,null,null,null,null,null,"White County","93"]
[null,null,null,null,null,null,null,null,null,null,null,null,null,"Williamson County","94"]
[null,null,null,null,null,null,null,null,null,null,null,null,null,"Wilson County","95"]

{"sheet":"FacilityData","index":2,"n_rows":1178,"n_cols":48,"rows_kept":1178,"cut":false,"hidden":false,"merged":[]}
["Facility Id","Category","Primary Name","Total_CO","Facility_Tons","Current_CM_Review_Fee","Current_Annual_Fee","Current_TM_Review_Fee","Exploratory_CM_Review_Fee","Exploratory_TM_Review_Fee",null,null,null,null,null,null,null,null,null,null,null,null,null,null,null,null,null,null,null,null,null,null,null,null,null,null,null,null,null,null,null,null,null,null,null,null,null,"Explore_Annual_Fee"]
["01-0006","TM","AMETEK, Inc. dba Advanced Measurement Technology, Inc.",0,24.9,null,466.88,0,null,500,null,null,null,null,null,null,null,null,null,null,null,null,null,null,null,null,null,null,null,null,null,null,null,null,null,null,null,null,null,null,null,null,null,null,null,null,null,466.87499284744263]
["01-0010","TM","Rogers Group, Inc.",0,61.7,null,1156.8800000000001,0,null,600,null,null,null,null,null,null,null,null,null,null,null,null,null,null,null,null,null,null,null,null,null,null,null,null,null,null,null,null,null,null,null,null,null,null,null,null,null,1156.8750143051147]
["01-0030","TM","Methodist Medical Center of Oak Ridge",12.87,89.83,null,1684.31,0,null,650,null,null,null,null,null,null,null,null,null,null,null,null,null,null,null,null,null,null,null,null,null,null,null,null,null,null,null,null,null,null,null,null,null,null,null,null,null,1684.3125343322754]
["01-0054","TM","APAC Atlantic, Inc./dba Harrison Construction Oak Ridge Concrete Portable",1.8,34.86,null,653.62,0,null,550,null,null,null,null,null,null,null,null,null,null,null,null,null,null,null,null,null,null,null,null,null,null,null,null,null,null,null,null,null,null,null,null,null,null,null,null,null,653.6250114440918]
["01-0061","CM","Rogers Group, Inc. dba Oak Ridge Asphalt",30.9,115.3,1000,2161.88,0,2250,null,null,null,null,null,null,null,null,null,null,null,null,null,null,null,null,null,null,null,null,null,null,null,null,null,null,null,null,null,null,null,null,null,null,null,null,null,null,2161.875057220459]
["01-0140","TM","Manufacturing Sciences Corporation",7.28,35.057099999999991,null,657.32,0,null,550,null,null,null,null,null,null,null,null,null,null,null,null,null,null,null,null,null,null,null,null,null,null,null,null,null,null,null,null,null,null,null,null,null,null,null,null,null,657.32059478759766]
["01-0142","TM","Sivad Inc, dba Hustler Boat Trailers",0,14.363,null,269.31,0,null,500,null,null,null,null,null,null,null,null,null,null,null,null,null,null,null,null,null,null,null,null,null,null,null,null,null,null,null,null,null,null,null,null,null,null,null,null,null,269.30624842643738]
["01-0148","TM","Clinton Pallet Company",0,16.899999999999999,null,316.88,0,null,500,null,null,null,null,null,null,null,null,null,null,null,null,null,null,null,null,null,null,null,null,null,null,null,null,null,null,null,null,null,null,null,null,null,null,null,null,null,316.87499284744263]
["01-0154","TM","Polyone Corporation",1.7,142.1,null,2664.38,0,null,750,null,null,null,null,null,null,null,null,null,null,null,null,null,null,null,null,null,null,null,null,null,null,null,null,null,null,null,null,null,null,null,null,null,null,null,null,null,2664.375114440918]
["01-0162","TM","Nuclear Lead Co.  Inc.",0,27.5,null,515.62,0,null,550,null,null,null,null,null,null,null,null,null,null,null,null,null,null,null,null,null,null,null,null,null,null,null,null,null,null,null,null,null,null,null,null,null,null,null,null,null,515.625]
["01-0163","TM","CMH Manufacturing, Inc dba Clayton Homes - Appalachia",0,73.319999999999993,null,1374.75,0,null,600,null,null,null,null,null,null,null,null,null,null,null,null,null,null,null,null,null,null,null,null,null,null,null,null,null,null,null,null,null,null,null,null,null,null,null,null,null,1374.7499942779541]
["01-0177","TM","Powder Cote II",0.2,44.900000000000006,null,841.88,0,null,550,null,null,null,null,null,null,null,null,null,null,null,null,null,null,null,null,null,null,null,null,null,null,null,null,null,null,null,null,null,null,null,null,null,null,null,null,null,841.87502861022949]
["01-0178","CM","Mirion Technologies (Canberra), Inc.",2.89,26.53,250,497.44,0,1250,null,null,null,null,null,null,null,null,null,null,null,null,null,null,null,null,null,null,null,null,null,null,null,null,null,null,null,null,null,null,null,null,null,null,null,null,null,null,497.43751287460327]
["01-0185","TM","Aisin Automotive Casting Tennessee, Inc.",10.18,80.900000000000006,null,1516.88,0,null,650,null,null,null,null,null,null,null,null,null,null,null,null,null,null,null,null,null,null,null,null,null,null,null,null,null,null,null,null,null,null,null,null,null,null,null,null,null,1516.8750286102295]
["01-0188","TM","Premium Coal Company, Incorporated",0,53.8,null,1008.75,0,null,600,null,null,null,null,null,null,null,null,null,null,null,null,null,null,null,null,null,null,null,null,null,null,null,null,null,null,null,null,null,null,null,null,null,null,null,null,null,1008.7499856948853]
["01-0234","CM","Shawmut Advanced Material Solutions",0,93.2,500,1747.5,0,1750,null,null,null,null,null,null,null,null,null,null,null,null,null,null,null,null,null,null,null,null,null,null,null,null,null,null,null,null,null,null,null,null,null,null,null,null,null,null,1747.499942779541]
["01-0236","TM","American Centrifuge Manufacturing",3.9,31.7,null,594.38,0,null,550,null,null,null,null,null,null,null,null,null,null,null,null,null,null,null,null,null,null,null,null,null,null,null,null,null,null,null,null,null,null,null,null,null,null,null,null,null,594.37501430511475]
["01-0242","TM","Rocket Oil Company dba Weigel's 64",0,22.32,null,418.5,0,null,500,null,null,null,null,null,null,null,null,null,null,null,null,null,null,null,null,null,null,null,null,null,null,null,null,null,null,null,null,null,null,null,null,null,null,null,null,null,418.4999942779541]
["01-0244","TM","Atlas Pipeline Tennessee",23.200000000000003,64.899999999999991,null,1216.8800000000001,0,null,600,null,null,null,null,null,null,null,null,null,null,null,null,null,null,null,null,null,null,null,null,null,null,null,null,null,null,null,null,null,null,null,null,null,null,null,null,null,1216.8750286102295]
["01-0245","TM","Rogers Group, Inc. - Clinton Quarry",0,48.8,null,915,0,null,550,null,null,null,null,null,null,null,null,null,null,null,null,null,null,null,null,null,null,null,null,null,null,null,null,null,null,null,null,null,null,null,null,null,null,null,null,null,914.99998569488525]
["01-0247","TM","SL Tennessee LLC",0,164.32999999999998,null,3081.19,0,null,800,null,null,null,null,null,null,null,null,null,null,null,null,null,null,null,null,null,null,null,null,null,null,null,null,null,null,null,null,null,null,null,null,null,null,null,null,null,3081.1875343322754]
["01-0270","TM","Rocket Oil Company dba Weigel's 82",0,30.87,null,578.80999999999995,0,null,550,null,null,null,null,null,null,null,null,null,null,null,null,null,null,null,null,null,null,null,null,null,null,null,null,null,null,null,null,null,null,null,null,null,null,null,null,null,578.81251573562622]
["01-0275","TM","3M Company dba 3M Clinton",19.5,61.76,null,1158,0,null,600,null,null,null,null,null,null,null,null,null,null,null,null,null,null,null,null,null,null,null,null,null,null,null,null,null,null,null,null,null,null,null,null,null,null,null,null,null,1157.9999685287476]
["01-0276","TM","MHF Packaging Solutions, LLC",0,10.959999999999999,null,205.5,0,null,500,null,null,null,null,null,null,null,null,null,null,null,null,null,null,null,null,null,null,null,null,null,null,null,null,null,null,null,null,null,null,null,null,null,null,null,null,null,205.50000071525574]
["01-0279","TM","APAC Atlantic dba Harrison Construction Company UPF Concrete Batch Plant",5.69,88.1,null,1651.88,0,null,650,null,null,null,null,null,null,null,null,null,null,null,null,null,null,null,null,null,null,null,null,null,null,null,null,null,null,null,null,null,null,null,null,null,null,null,null,null,1651.8749713897705]
["01-0300","TM","Concrete Concepts of Tennessee",0,42.24,null,792,0,null,550,null,null,null,null,null,null,null,null,null,null,null,null,null,null,null,null,null,null,null,null,null,null,null,null,null,null,null,null,null,null,null,null,null,null,null,null,null,792.00003147125244]
["02-0003","TM","Jensen's Incorporated",0,25.689999999999998,null,481.69,0,null,550,null,null,null,null,null,null,null,null,null,null,null,null,null,null,null,null,null,null,null,null,null,null,null,null,null,null,null,null,null,null,null,null,null,null,null,null,null,481.68751001358032]
["02-0007","TM","Twist Beauty Packaging US Inc. dba Albea",0,67.400000000000006,null,1263.75,0,null,600,null,null,null,null,null,null,null,null,null,null,null,null,null,null,null,null,null,null,null,null,null,null,null,null,null,null,null,null,null,null,null,null,null,null,null,null,null,1263.7500286102295]
["02-0011","TM","Tyson Farms, Inc.",17.93,108.00999999999999,null,2025.19,0,null,700,null,null,null,null,null,null,null,null,null,null,null,null,null,null,null,null,null,null,null,null,null,null,null,null,null,null,null,null,null,null,null,null,null,null,null,null,null,2025.1875400543213]
["02-0013","TM","Rogers Group, Inc. - Shelbyville Quarry",0,94.39,null,1769.81,0,null,650,null,null,null,null,null,null,null,null,null,null,null,null,null,null,null,null,null,null,null,null,null,null,null,null,null,null,null,null,null,null,null,null,null,null,null,null,null,1769.8124885559082]
["02-0028","TM","Smyrna Ready Mix Concrete LLC dba Shelbyville Plant",0,10.3,null,193.12,0,null,500,null,null,null,null,null,null,null,null,null,null,null,null,null,null,null,null,null,null,null,null,null,null,null,null,null,null,null,null,null,null,null,null,null,null,null,null,null,193.12500357627869]
["02-0031","TM","Musgrave Pencil Company, Inc.",0,69.099999999999994,null,1295.6199999999999,0,null,600,null,null,null,null,null,null,null,null,null,null,null,null,null,null,null,null,null,null,null,null,null,null,null,null,null,null,null,null,null,null,null,null,null,null,null,null,null,1295.6249713897705]
["02-0053","CM","National Pen Tennessee",0,47.120000000000005,250,883.5,0,1250,null,null,null,null,null,null,null,null,null,null,null,null,null,null,null,null,null,null,null,null,null,null,null,null,null,null,null,null,null,null,null,null,null,null,null,null,null,null,883.49997997283936]
["02-0059","TM","Jostens Inc.",0,66,null,1237.5,0,null,600,null,null,null,null,null,null,null,null,null,null,null,null,null,null,null,null,null,null,null,null,null,null,null,null,null,null,null,null,null,null,null,null,null,null,null,null,null,1237.5]
["02-0080","TM","Vulcan Construction Materials, LLC dba Shelbyville Quarry",0,134.30000000000001,null,2518.12,0,null,750,null,null,null,null,null,null,null,null,null,null,null,null,null,null,null,null,null,null,null,null,null,null,null,null,null,null,null,null,null,null,null,null,null,null,null,null,null,2518.125057220459]
["02-0084","TM","Henry's Cabinets",0,27.59,null,517.30999999999995,0,null,550,null,null,null,null,null,null,null,null,null,null,null,null,null,null,null,null,null,null,null,null,null,null,null,null,null,null,null,null,null,null,null,null,null,null,null,null,null,517.31250286102295]
["02-0089","TM","Shelbyville Pencil Company",0,22,null,412.5,0,null,500,null,null,null,null,null,null,null,null,null,null,null,null,null,null,null,null,null,null,null,null,null,null,null,null,null,null,null,null,null,null,null,null,null,null,null,null,null,412.5]
["02-0093","TM","Rogers Group, Inc. - Deason Quarry",0,41.9,null,785.62,0,null,550,null,null,null,null,null,null,null,null,null,null,null,null,null,null,null,null,null,null,null,null,null,null,null,null,null,null,null,null,null,null,null,null,null,null,null,null,null,785.62502861022949]
["02-0106","CM","Bedford County Asphalt",21.34,38.78,500,727.12,0,1500,null,null,null,null,null,null,null,null,null,null,null,null,null,null,null,null,null,null,null,null,null,null,null,null,null,null,null,null,null,null,null,null,null,null,null,null,null,null,727.12497711181641]
["02-0109","CM","Hawkins Asphalt Paving, LLC",30,52.04,500,975.75,0,1750,null,null,null,null,null,null,null,null,null,null,null,null,null,null,null,null,null,null,null,null,null,null,null,null,null,null,null,null,null,null,null,null,null,null,null,null,null,null,975.7500171661377]
["02-0110","CM","Wright Paving Contractors, Inc.",9.8000000000000007,12.8,250,240,0,1000,null,null,null,null,null,null,null,null,null,null,null,null,null,null,null,null,null,null,null,null,null,null,null,null,null,null,null,null,null,null,null,null,null,null,null,null,null,null,240.00000357627869]
["02-0112","TM","Cooper's Steel Fabricators, Inc. dba Cooper Steel",0,58.32,null,1093.5,0,null,600,null,null,null,null,null,null,null,null,null,null,null,null,null,null,null,null,null,null,null,null,null,null,null,null,null,null,null,null,null,null,null,null,null,null,null,null,null,1093.4999942779541]
["02-0134","TM","Earth Solutions, Inc.",0,45,null,843.75,0,null,550,null,null,null,null,null,null,null,null,null,null,null,null,null,null,null,null,null,null,null,null,null,null,null,null,null,null,null,null,null,null,null,null,null,null,null,null,null,843.75]
["02-0150","TM","Henry's Cabinets",0,24.54,null,460.12,0,null,500,null,null,null,null,null,null,null,null,null,null,null,null,null,null,null,null,null,null,null,null,null,null,null,null,null,null,null,null,null,null,null,null,null,null,null,null,null,460.1250171661377]
["03-0003","CM","Unimin Tennessee Company L.P.",12.2,139.5,1000,2615.62,0,2500,null,null,null,null,null,null,null,null,null,null,null,null,null,null,null,null,null,null,null,null,null,null,null,null,null,null,null,null,null,null,null,null,null,null,null,null,null,null,2615.625]
["03-0006","TM","Vulcan Materials Company LLC",0,94.7,null,1775.62,0,null,650,null,null,null,null,null,null,null,null,null,null,null,null,null,null,null,null,null,null,null,null,null,null,null,null,null,null,null,null,null,null,null,null,null,null,null,null,null,1775.624942779541]
["03-0032","TM","Palmer Tool Company, Inc.",0,10.199999999999999,null,191.25,0,null,500,null,null,null,null,null,null,null,null,null,null,null,null,null,null,null,null,null,null,null,null,null,null,null,null,null,null,null,null,null,null,null,null,null,null,null,null,null,191.24999642372131]
["03-0040","TM","S & W Pallet Company, Inc.",0,55.260000000000005,null,1036.1199999999999,0,null,600,null,null,null,null,null,null,null,null,null,null,null,null,null,null,null,null,null,null,null,null,null,null,null,null,null,null,null,null,null,null,null,null,null,null,null,null,null,1036.1249685287476]
["03-0047","CM","Delta Contracting Company,  L.L.C.",26,35.159999999999997,500,659.25,0,1500,null,null,null,null,null,null,null,null,null,null,null,null,null,null,null,null,null,null,null,null,null,null,null,null,null,null,null,null,null,null,null,null,null,null,null,null,null,null,659.24999713897705]
["03-0049","TM","Camden Hardwood Prod",0,39.4,null,738.75,0,null,550,null,null,null,null,null,null,null,null,null,null,null,null,null,null,null,null,null,null,null,null,null,null,null,null,null,null,null,null,null,null,null,null,null,null,null,null,null,738.75002861022949]
["03-0055","TM","MagPro, LLC",10.1,77.099999999999994,null,1445.62,0,null,650,null,null,null,null,null,null,null,null,null,null,null,null,null,null,null,null,null,null,null,null,null,null,null,null,null,null,null,null,null,null,null,null,null,null,null,null,null,1445.6249713897705]
["04-0007","TM","TDOC (Formerly Taft Youth Development Center)",9.3600000000000012,89.27,null,1673.81,0,null,650,null,null,null,null,null,null,null,null,null,null,null,null,null,null,null,null,null,null,null,null,null,null,null,null,null,null,null,null,null,null,null,null,null,null,null,null,null,1673.8124370574951]
["04-0009","TM","Bledsoe County Highway Department",0,94,null,1762.5,0,null,650,null,null,null,null,null,null,null,null,null,null,null,null,null,null,null,null,null,null,null,null,null,null,null,null,null,null,null,null,null,null,null,null,null,null,null,null,null,1762.5]
["04-0032","TM","Dunlap Stone  Inc.",0,40.409999999999997,null,757.69,0,null,550,null,null,null,null,null,null,null,null,null,null,null,null,null,null,null,null,null,null,null,null,null,null,null,null,null,null,null,null,null,null,null,null,null,null,null,null,null,757.68749713897705]
["04-0034","CM","Dunlap Stone,  Inc. Quarry 3",80,55.19,1000,1034.81,0,2250,null,null,null,null,null,null,null,null,null,null,null,null,null,null,null,null,null,null,null,null,null,null,null,null,null,null,null,null,null,null,null,null,null,null,null,null,null,null,1034.8124742507935]
["04-0043","TM","Tennessee Department of Corrections, Bledsoe County Correctional Complex(BCCX)",19.23,44.125000000000007,null,827.34,0,null,550,null,null,null,null,null,null,null,null,null,null,null,null,null,null,null,null,null,null,null,null,null,null,null,null,null,null,null,null,null,null,null,null,null,null,null,null,null,827.34375]
["05-0007","TM","Vulcan Construction Materials, LLC dba Maryville Quarry",0,111.6,null,2092.5,0,null,700,null,null,null,null,null,null,null,null,null,null,null,null,null,null,null,null,null,null,null,null,null,null,null,null,null,null,null,null,null,null,null,null,null,null,null,null,null,2092.4999713897705]
["05-0021","CM","APAC Atlantic, Inc./Harrison Division dba Maryville Concrete",45.5,127.07,1000,2382.56,0,2500,null,null,null,null,null,null,null,null,null,null,null,null,null,null,null,null,null,null,null,null,null,null,null,null,null,null,null,null,null,null,null,null,null,null,null,null,null,null,2382.5624942779541]
["05-0030","CM","Tennessee Farmers Co-Op Feed Mill",0,55.35,500,1037.81,0,1500,null,null,null,null,null,null,null,null,null,null,null,null,null,null,null,null,null,null,null,null,null,null,null,null,null,null,null,null,null,null,null,null,null,null,null,null,null,null,1037.8124713897705]
["05-0036","CM","Blount Memorial Hospital",0.01,59.480000000000004,500,1115.25,0,1500,null,null,null,null,null,null,null,null,null,null,null,null,null,null,null,null,null,null,null,null,null,null,null,null,null,null,null,null,null,null,null,null,null,null,null,null,null,null,1115.2499914169312]
["05-0051","TM","The Independent Funeral Group, Inc.",6,13.8,null,258.75,0,null,500,null,null,null,null,null,null,null,null,null,null,null,null,null,null,null,null,null,null,null,null,null,null,null,null,null,null,null,null,null,null,null,null,null,null,null,null,null,258.75000357627869]
["05-0094","CM","Gilded Mirrors Inc.",0,24.9,250,466.88,0,1000,null,null,null,null,null,null,null,null,null,null,null,null,null,null,null,null,null,null,null,null,null,null,null,null,null,null,null,null,null,null,null,null,null,null,null,null,null,null,466.87499284744263]
["05-0117","TM","Maryville College",78.400000000000006,206.1,null,3864.38,0,null,900,null,null,null,null,null,null,null,null,null,null,null,null,null,null,null,null,null,null,null,null,null,null,null,null,null,null,null,null,null,null,null,null,null,null,null,null,null,3864.375114440918]
["05-0130","TM","Apac Atlantic, Inc. / dba Harrison Construction Topside Concrete",0,12.2,null,228.75,0,null,500,null,null,null,null,null,null,null,null,null,null,null,null,null,null,null,null,null,null,null,null,null,null,null,null,null,null,null,null,null,null,null,null,null,null,null,null,null,228.74999642372131]
["05-0132","TM","East Tennessee Natural Gas Company Compr",59.1,176.1,null,3301.88,0,null,850,null,null,null,null,null,null,null,null,null,null,null,null,null,null,null,null,null,null,null,null,null,null,null,null,null,null,null,null,null,null,null,null,null,null,null,null,null,3301.875114440918]
["05-0138","CM","Denso Manufacturing Tennessee Inc.",0,155.13999999999999,1000,2908.88,0,2500,null,null,null,null,null,null,null,null,null,null,null,null,null,null,null,null,null,null,null,null,null,null,null,null,null,null,null,null,null,null,null,null,null,null,null,null,null,null,2908.8749885559082]
["05-0143","TM","Royal Metal Powders, Inc.",0,22.63,null,424.31,0,null,500,null,null,null,null,null,null,null,null,null,null,null,null,null,null,null,null,null,null,null,null,null,null,null,null,null,null,null,null,null,null,null,null,null,null,null,null,null,424.31248426437378]
["05-0164","TM","Arconic Inc (formerly Alcoa Recycling Company)",0,54.9,null,1029.3800000000001,0,null,600,null,null,null,null,null,null,null,null,null,null,null,null,null,null,null,null,null,null,null,null,null,null,null,null,null,null,null,null,null,null,null,null,null,null,null,null,null,1029.3750286102295]
["05-0171","TM","Tennessee Farmers Co-Op Fertilization",0,15.7,null,294.38,0,null,500,null,null,null,null,null,null,null,null,null,null,null,null,null,null,null,null,null,null,null,null,null,null,null,null,null,null,null,null,null,null,null,null,null,null,null,null,null,294.37499642372131]
["05-0172","TM","Standard Aero (Alliance) Inc",38.200000000000003,88,null,1650,0,null,650,null,null,null,null,null,null,null,null,null,null,null,null,null,null,null,null,null,null,null,null,null,null,null,null,null,null,null,null,null,null,null,null,null,null,null,null,null,1650]
["05-0176","CM","Flex-N-Gate Rockford, Inc.",0,111.33,1000,2087.44,0,2000,null,null,null,null,null,null,null,null,null,null,null,null,null,null,null,null,null,null,null,null,null,null,null,null,null,null,null,null,null,null,null,null,null,null,null,null,null,null,2087.4375343322754]
["05-0179","CM","Custom Quarry",0,79.960000000000008,500,1499.25,0,1750,null,null,null,null,null,null,null,null,null,null,null,null,null,null,null,null,null,null,null,null,null,null,null,null,null,null,null,null,null,null,null,null,null,null,null,null,null,null,1499.2499828338623]
["05-0182","CM","Denso Manufacturing Tennessee Inc.",0,223.2,1000,4185,0,3000,null,null,null,null,null,null,null,null,null,null,null,null,null,null,null,null,null,null,null,null,null,null,null,null,null,null,null,null,null,null,null,null,null,null,null,null,null,null,4184.999942779541]
["05-0195","TM","Vulcan Construction Materials,LLC dba Rockford Quarry",0,98.4,null,1845,0,null,650,null,null,null,null,null,null,null,null,null,null,null,null,null,null,null,null,null,null,null,null,null,null,null,null,null,null,null,null,null,null,null,null,null,null,null,null,null,1845.0000286102295]
["05-0200","TM","Boatmate Trailers, Llc",0,140.6,null,2636.25,0,null,750,null,null,null,null,null,null,null,null,null,null,null,null,null,null,null,null,null,null,null,null,null,null,null,null,null,null,null,null,null,null,null,null,null,null,null,null,null,2636.250114440918]
["05-0201","TM","Jim L. Bivens dba Bivens Log Homes",0,20.239999999999998,null,379.5,0,null,500,null,null,null,null,null,null,null,null,null,null,null,null,null,null,null,null,null,null,null,null,null,null,null,null,null,null,null,null,null,null,null,null,null,null,null,null,null,379.49999570846558]
["05-0204","CM","Kellems Recycling Systems, Inc.",3.3,41.8,250,783.75,0,1250,null,null,null,null,null,null,null,null,null,null,null,null,null,null,null,null,null,null,null,null,null,null,null,null,null,null,null,null,null,null,null,null,null,null,null,null,null,null,783.74998569488525]
["05-0284","TM","Aircel LLC C/O Mecca Resources Inc",0,33.799999999999997,null,633.75,0,null,550,null,null,null,null,null,null,null,null,null,null,null,null,null,null,null,null,null,null,null,null,null,null,null,null,null,null,null,null,null,null,null,null,null,null,null,null,null,633.74998569488525]
["05-0303","TM","ALCOA Gas Producers, LLC",51.2,44.2,null,828.75,0,null,550,null,null,null,null,null,null,null,null,null,null,null,null,null,null,null,null,null,null,null,null,null,null,null,null,null,null,null,null,null,null,null,null,null,null,null,null,null,828.75001430511475]
["05-0305","TM","Smoky Mountain Metals",0,54.8,null,1027.5,0,null,600,null,null,null,null,null,null,null,null,null,null,null,null,null,null,null,null,null,null,null,null,null,null,null,null,null,null,null,null,null,null,null,null,null,null,null,null,null,1027.4999856948853]
["05-0312","CM","Cintas Corporation dba Cintas Knoxville",5.04,129.11000000000001,1000,2420.81,0,2250,null,null,null,null,null,null,null,null,null,null,null,null,null,null,null,null,null,null,null,null,null,null,null,null,null,null,null,null,null,null,null,null,null,null,null,null,null,null,2420.8125114440918]
["05-0329","TM","McGhee Tyson Airport",18.47,57.921999999999997,null,1086.04,0,null,600,null,null,null,null,null,null,null,null,null,null,null,null,null,null,null,null,null,null,null,null,null,null,null,null,null,null,null,null,null,null,null,null,null,null,null,null,null,1086.0375165939331]
["05-0336","TM","Kroger Fuel Center #U-683",0,20.93,null,392.44,0,null,500,null,null,null,null,null,null,null,null,null,null,null,null,null,null,null,null,null,null,null,null,null,null,null,null,null,null,null,null,null,null,null,null,null,null,null,null,null,392.4375057220459]
["05-0345","TM","Cirrus Design Corporation aka Cirrus Aircraft",0,79.099999999999994,null,1483.12,0,null,650,null,null,null,null,null,null,null,null,null,null,null,null,null,null,null,null,null,null,null,null,null,null,null,null,null,null,null,null,null,null,null,null,null,null,null,null,null,1483.1249713897705]
["05-0372","TM","Law & Hicks Millwork, Inc.",0,24.2,null,453.75,0,null,500,null,null,null,null,null,null,null,null,null,null,null,null,null,null,null,null,null,null,null,null,null,null,null,null,null,null,null,null,null,null,null,null,null,null,null,null,null,453.75001430511475]
["06-0008","TM","Archer Daniels Midland Milling Company",0,98.8,null,1852.5,0,null,650,null,null,null,null,null,null,null,null,null,null,null,null,null,null,null,null,null,null,null,null,null,null,null,null,null,null,null,null,null,null,null,null,null,null,null,null,null,1852.500057220459]
["06-0021","TM","Vulcan Construction Materials, LLC dba Cleveland Quarry",0,87.800000000000011,null,1646.25,0,null,650,null,null,null,null,null,null,null,null,null,null,null,null,null,null,null,null,null,null,null,null,null,null,null,null,null,null,null,null,null,null,null,null,null,null,null,null,null,1646.250057220459]
["06-0022","TM","Manufacturers Chemical",11.18,54.9,null,1029.3800000000001,0,null,600,null,null,null,null,null,null,null,null,null,null,null,null,null,null,null,null,null,null,null,null,null,null,null,null,null,null,null,null,null,null,null,null,null,null,null,null,null,1029.3750286102295]
["06-0056","TM","Cleveland TN Hospital Co., Inc. dba Skyridge Medical Center",13.030000000000001,126.86999999999998,null,2378.81,0,null,750,null,null,null,null,null,null,null,null,null,null,null,null,null,null,null,null,null,null,null,null,null,null,null,null,null,null,null,null,null,null,null,null,null,null,null,null,null,2378.8125514984131]
["06-0075","TM","Georgia-Pacific Corrugated, LLC",9.8000000000000007,139.89999999999998,null,2623.12,0,null,750,null,null,null,null,null,null,null,null,null,null,null,null,null,null,null,null,null,null,null,null,null,null,null,null,null,null,null,null,null,null,null,null,null,null,null,null,null,2623.124885559082]
["06-0108","CM","Southeastern Materials, Inc.",25.3,45.8,500,858.75,0,1500,null,null,null,null,null,null,null,null,null,null,null,null,null,null,null,null,null,null,null,null,null,null,null,null,null,null,null,null,null,null,null,null,null,null,null,null,null,null,858.74998569488525]
["06-0157","CM","Eaton Corporation",0,50.06,250,938.62,0,1500,null,null,null,null,null,null,null,null,null,null,null,null,null,null,null,null,null,null,null,null,null,null,null,null,null,null,null,null,null,null,null,null,null,null,null,null,null,null,938.62502574920654]
["06-0160","CM","Mars Wrigley Confectionery US, LLC",81.210000000000008,244.32000000000002,2000,4581,0,3500,null,null,null,null,null,null,null,null,null,null,null,null,null,null,null,null,null,null,null,null,null,null,null,null,null,null,null,null,null,null,null,null,null,null,null,null,null,null,4581.0001373291016]
["06-0167","TM","Bayer Healthcare LLC",10.77,50.989999999999995,null,956.06,0,null,600,null,null,null,null,null,null,null,null,null,null,null,null,null,null,null,null,null,null,null,null,null,null,null,null,null,null,null,null,null,null,null,null,null,null,null,null,null,956.06253147125244]
["06-0176","CM","International Paper Company",9.0500000000000007,162.30000000000001,1000,3043.12,0,2500,null,null,null,null,null,null,null,null,null,null,null,null,null,null,null,null,null,null,null,null,null,null,null,null,null,null,null,null,null,null,null,null,null,null,null,null,null,null,3043.125057220459]
["06-0179","CM","Mueller Co.",0.6,103.19999999999999,1000,1935,0,2000,null,null,null,null,null,null,null,null,null,null,null,null,null,null,null,null,null,null,null,null,null,null,null,null,null,null,null,null,null,null,null,null,null,null,null,null,null,null,1934.999942779541]
["06-0180","CM","Polartec Tennessee Manufacturing, LLC",39.17,413.21000000000004,2000,7747.69,0,3500,null,null,null,null,null,null,null,null,null,null,null,null,null,null,null,null,null,null,null,null,null,null,null,null,null,null,null,null,null,null,null,null,null,null,null,null,null,null,7747.6873397827148]
["06-0189","TM","Hickory Springs Manufacturing Co",0,119.2,null,2235,0,null,700,null,null,null,null,null,null,null,null,null,null,null,null,null,null,null,null,null,null,null,null,null,null,null,null,null,null,null,null,null,null,null,null,null,null,null,null,null,2234.999942779541]
["06-0200","CM","Central Asphalt, Inc.",40,38.900000000000006,500,729.38,0,1750,null,null,null,null,null,null,null,null,null,null,null,null,null,null,null,null,null,null,null,null,null,null,null,null,null,null,null,null,null,null,null,null,null,null,null,null,null,null,729.37502861022949]
["06-0211","CM","Impreglon Tennessee Inc.",0,132.76,1000,2489.25,0,2250,null,null,null,null,null,null,null,null,null,null,null,null,null,null,null,null,null,null,null,null,null,null,null,null,null,null,null,null,null,null,null,null,null,null,null,null,null,null,2489.2498970031738]
["06-0218","TM","Cormetech Inc. dba Cleveland TN Plant",11.04,191.57999999999998,null,3592.12,0,null,850,null,null,null,null,null,null,null,null,null,null,null,null,null,null,null,null,null,null,null,null,null,null,null,null,null,null,null,null,null,null,null,null,null,null,null,null,null,3592.1250343322754]
["06-0221","TM","Sequatchie Concrete Service, Inc.",0,25.4,null,476.25,0,null,550,null,null,null,null,null,null,null,null,null,null,null,null,null,null,null,null,null,null,null,null,null,null,null,null,null,null,null,null,null,null,null,null,null,null,null,null,null,476.24999284744263]
["06-0231","TM","Renfro Charleston LLC",3.6,29.4,null,551.25,0,null,550,null,null,null,null,null,null,null,null,null,null,null,null,null,null,null,null,null,null,null,null,null,null,null,null,null,null,null,null,null,null,null,null,null,null,null,null,null,551.24999284744263]
["06-0279","TM","United Packers, LLC",10.82,84.54,null,1585.12,0,null,650,null,null,null,null,null,null,null,null,null,null,null,null,null,null,null,null,null,null,null,null,null,null,null,null,null,null,null,null,null,null,null,null,null,null,null,null,null,1585.1250171661377]
["06-0282","CM","Wacker Polysilicon North America, LLC",89.509999999999991,141.78,1000,2658.38,0,3250,null,null,null,null,null,null,null,null,null,null,null,null,null,null,null,null,null,null,null,null,null,null,null,null,null,null,null,null,null,null,null,null,null,null,null,null,null,null,2658.3749771118164]
["06-0283","TM","Whirlpool Cleveland Division",10.1,100.53,null,1884.94,0,null,700,null,null,null,null,null,null,null,null,null,null,null,null,null,null,null,null,null,null,null,null,null,null,null,null,null,null,null,null,null,null,null,null,null,null,null,null,null,1884.9374771118164]
["06-0284","TM","Linde Gas North America, LLC",0,10.180000000000001,null,190.88,0,null,500,null,null,null,null,null,null,null,null,null,null,null,null,null,null,null,null,null,null,null,null,null,null,null,null,null,null,null,null,null,null,null,null,null,null,null,null,null,190.8750057220459]
["06-0286","TM","Jackson Furniture Industries dba Jackson Cushion Plant",0,106.1,null,1989.38,0,null,700,null,null,null,null,null,null,null,null,null,null,null,null,null,null,null,null,null,null,null,null,null,null,null,null,null,null,null,null,null,null,null,null,null,null,null,null,null,1989.3749713897705]
["06-0299","TM","Kroger LLP I dba Peyton's Southeastern",5.79,16.650000000000002,null,312.19,0,null,500,null,null,null,null,null,null,null,null,null,null,null,null,null,null,null,null,null,null,null,null,null,null,null,null,null,null,null,null,null,null,null,null,null,null,null,null,null,312.18749284744263]
["07-0002","TM","Hinkle Contracting Company, LLC",0,34.5,null,646.88,0,null,550,null,null,null,null,null,null,null,null,null,null,null,null,null,null,null,null,null,null,null,null,null,null,null,null,null,null,null,null,null,null,null,null,null,null,null,null,null,646.875]
["07-0018","CM","Rogers Group, Inc. -  LaFollette Asphalt",76.8,119.5,1000,2240.62,0,2750,null,null,null,null,null,null,null,null,null,null,null,null,null,null,null,null,null,null,null,null,null,null,null,null,null,null,null,null,null,null,null,null,null,null,null,null,null,null,2240.625]
["07-0027","TM","LaFollette COM HSP dba Campbell County HMA, LLC",1.88,10.17,null,190.69,0,null,500,null,null,null,null,null,null,null,null,null,null,null,null,null,null,null,null,null,null,null,null,null,null,null,null,null,null,null,null,null,null,null,null,null,null,null,null,null,190.68750143051147]
["07-0081","TM","C & C Concrete Products  Inc.",0,42.5,null,796.88,0,null,550,null,null,null,null,null,null,null,null,null,null,null,null,null,null,null,null,null,null,null,null,null,null,null,null,null,null,null,null,null,null,null,null,null,null,null,null,null,796.875]
["07-0086","TM","Rogers Group, Inc. - Caryville Quarry",0,52.27,null,980.06,0,null,600,null,null,null,null,null,null,null,null,null,null,null,null,null,null,null,null,null,null,null,null,null,null,null,null,null,null,null,null,null,null,null,null,null,null,null,null,null,980.06250858306885]
["07-0101","TM","Clinch River Casting Inc.",0,111.17999999999999,null,2084.62,0,null,700,null,null,null,null,null,null,null,null,null,null,null,null,null,null,null,null,null,null,null,null,null,null,null,null,null,null,null,null,null,null,null,null,null,null,null,null,null,2084.6250057220459]
["07-0132","TM","Campbell County Environmental Services",36.6,157.4,null,2951.25,0,null,800,null,null,null,null,null,null,null,null,null,null,null,null,null,null,null,null,null,null,null,null,null,null,null,null,null,null,null,null,null,null,null,null,null,null,null,null,null,2951.249885559082]
["07-0134","TM","Xtreme Tops, LLC",0,20.100000000000001,null,376.88,0,null,500,null,null,null,null,null,null,null,null,null,null,null,null,null,null,null,null,null,null,null,null,null,null,null,null,null,null,null,null,null,null,null,null,null,null,null,null,null,376.87500715255737]
["07-0136","TM","Creekmore Lumber Company, Inc.",0,54.5,null,1021.88,0,null,600,null,null,null,null,null,null,null,null,null,null,null,null,null,null,null,null,null,null,null,null,null,null,null,null,null,null,null,null,null,null,null,null,null,null,null,null,null,1021.875]
["07-0141","TM","Triple H Coal, LLC dba Rosevelt Tipple",0,47.2,null,885,0,null,550,null,null,null,null,null,null,null,null,null,null,null,null,null,null,null,null,null,null,null,null,null,null,null,null,null,null,null,null,null,null,null,null,null,null,null,null,null,885.00001430511475]
["07-0161","TM","Cedar Hill Construction Supply Co., Inc.",2.5,30.340000000000003,null,568.88,0,null,550,null,null,null,null,null,null,null,null,null,null,null,null,null,null,null,null,null,null,null,null,null,null,null,null,null,null,null,null,null,null,null,null,null,null,null,null,null,568.87500286102295]
["07-0162","TM","CNX Gas (Bluegrass)",1.5,26.62,null,499.12,0,null,550,null,null,null,null,null,null,null,null,null,null,null,null,null,null,null,null,null,null,null,null,null,null,null,null,null,null,null,null,null,null,null,null,null,null,null,null,null,499.12501573562622]
["07-0180","TM","Potter South East LLC",5.04,15.09,null,282.94,0,null,500,null,null,null,null,null,null,null,null,null,null,null,null,null,null,null,null,null,null,null,null,null,null,null,null,null,null,null,null,null,null,null,null,null,null,null,null,null,282.93750286102295]
["07-0181","CM","Potter South East LLC",37.54,85.929999999999993,1000,1611.19,0,2000,null,null,null,null,null,null,null,null,null,null,null,null,null,null,null,null,null,null,null,null,null,null,null,null,null,null,null,null,null,null,null,null,null,null,null,null,null,null,1611.1875057220459]
["08-0034","TM","Vulcan Construction Materials, LLC dba Readyville Quarry",0,96.3,null,1805.62,0,null,650,null,null,null,null,null,null,null,null,null,null,null,null,null,null,null,null,null,null,null,null,null,null,null,null,null,null,null,null,null,null,null,null,null,null,null,null,null,1805.625057220459]
["08-0040","CM","Composite Solutions LLC",0,42.800000000000004,250,802.5,0,1250,null,null,null,null,null,null,null,null,null,null,null,null,null,null,null,null,null,null,null,null,null,null,null,null,null,null,null,null,null,null,null,null,null,null,null,null,null,null,802.49998569488525]
["08-0049","TM","Stones River Quarry",0,61.4,null,1151.25,0,null,600,null,null,null,null,null,null,null,null,null,null,null,null,null,null,null,null,null,null,null,null,null,null,null,null,null,null,null,null,null,null,null,null,null,null,null,null,null,1151.2500286102295]
["09-0015","TM","Espey Gin Company, Inc.",0,48.6,null,911.25,0,null,550,null,null,null,null,null,null,null,null,null,null,null,null,null,null,null,null,null,null,null,null,null,null,null,null,null,null,null,null,null,null,null,null,null,null,null,null,null,911.24997138977051]
["09-0079","TM","Preferred Rubber Compounding Corporation",0,44.900000000000006,null,841.88,0,null,550,null,null,null,null,null,null,null,null,null,null,null,null,null,null,null,null,null,null,null,null,null,null,null,null,null,null,null,null,null,null,null,null,null,null,null,null,null,841.87502861022949]
["09-0119","TM","Shomaker Lumber Company",22,67.3,null,1261.8800000000001,0,null,600,null,null,null,null,null,null,null,null,null,null,null,null,null,null,null,null,null,null,null,null,null,null,null,null,null,null,null,null,null,null,null,null,null,null,null,null,null,1261.875057220459]
["10-0011","CM","Summers Taylor Matierals",19.489999999999998,45.64,500,855.75,0,1500,null,null,null,null,null,null,null,null,null,null,null,null,null,null,null,null,null,null,null,null,null,null,null,null,null,null,null,null,null,null,null,null,null,null,null,null,null,null,855.7499885559082]
["10-0012","TM","BWI ETN LLC dba Blue Water Industries BWI Watauga Quarry",0,98.1,null,1839.38,0,null,650,null,null,null,null,null,null,null,null,null,null,null,null,null,null,null,null,null,null,null,null,null,null,null,null,null,null,null,null,null,null,null,null,null,null,null,null,null,1839.3749713897705]
["10-0046","CM","Colorworks, Inc.",20.02,176.33,1000,3306.19,0,2750,null,null,null,null,null,null,null,null,null,null,null,null,null,null,null,null,null,null,null,null,null,null,null,null,null,null,null,null,null,null,null,null,null,null,null,null,null,null,3306.1875343322754]
["10-0071","TM","Lewis Wood Products Inc",0,31.1,null,583.12,0,null,550,null,null,null,null,null,null,null,null,null,null,null,null,null,null,null,null,null,null,null,null,null,null,null,null,null,null,null,null,null,null,null,null,null,null,null,null,null,583.12500715255737]
["10-0075","TM","Snap On Tools",0,89.677300000000017,null,1681.45,0,null,650,null,null,null,null,null,null,null,null,null,null,null,null,null,null,null,null,null,null,null,null,null,null,null,null,null,null,null,null,null,null,null,null,null,null,null,null,null,1681.4493656158447]
["10-0086","TM","BWI ETN LLC dba Blue Water Industries BWI Elizabethton LLC Quarry",0,56.43,null,1058.06,0,null,600,null,null,null,null,null,null,null,null,null,null,null,null,null,null,null,null,null,null,null,null,null,null,null,null,null,null,null,null,null,null,null,null,null,null,null,null,null,1058.0625057220459]
["10-0090","TM","Robertson-Ceco II Corporation - NCI Building Systems dba Star Building Systems",0,100.15,null,1877.81,0,null,700,null,null,null,null,null,null,null,null,null,null,null,null,null,null,null,null,null,null,null,null,null,null,null,null,null,null,null,null,null,null,null,null,null,null,null,null,null,1877.8125286102295]
["10-0130","TM","Borla Performance Industries",5.0600000000000005,109.00999999999999,null,2043.94,0,null,700,null,null,null,null,null,null,null,null,null,null,null,null,null,null,null,null,null,null,null,null,null,null,null,null,null,null,null,null,null,null,null,null,null,null,null,null,null,2043.9375400543213]
["10-0148","TM","GP Harmon Recycling Plant Operations LLC",0,27.6,null,517.5,0,null,550,null,null,null,null,null,null,null,null,null,null,null,null,null,null,null,null,null,null,null,null,null,null,null,null,null,null,null,null,null,null,null,null,null,null,null,null,null,517.50000715255737]
["10-0153","TM","International Paper",0,37.5,null,703.12,0,null,550,null,null,null,null,null,null,null,null,null,null,null,null,null,null,null,null,null,null,null,null,null,null,null,null,null,null,null,null,null,null,null,null,null,null,null,null,null,703.125]
["10-0154","CM","Royal Pest Solutions dba McCloud Lumber Co.",0,9.9,250,185.62,0,1000,null,null,null,null,null,null,null,null,null,null,null,null,null,null,null,null,null,null,null,null,null,null,null,null,null,null,null,null,null,null,null,null,null,null,null,null,null,null,185.62499284744263]
["10-0165","TM","Carter County Solid Waste Landfill",79.72,69.139999999999986,null,1296.3800000000001,0,null,600,null,null,null,null,null,null,null,null,null,null,null,null,null,null,null,null,null,null,null,null,null,null,null,null,null,null,null,null,null,null,null,null,null,null,null,null,null,1296.3749885559082]
["11-0042","TM","Gate Precast Company",0,31.8,null,596.25,0,null,550,null,null,null,null,null,null,null,null,null,null,null,null,null,null,null,null,null,null,null,null,null,null,null,null,null,null,null,null,null,null,null,null,null,null,null,null,null,596.24998569488525]
["11-0048","TM","C and W Pools, Inc.",0,17.850000000000001,null,334.69,0,null,500,null,null,null,null,null,null,null,null,null,null,null,null,null,null,null,null,null,null,null,null,null,null,null,null,null,null,null,null,null,null,null,null,null,null,null,null,null,334.68750715255737]
["11-0053","TM","Caraustar Industries, Inc.",0,161,null,3018.75,0,null,800,null,null,null,null,null,null,null,null,null,null,null,null,null,null,null,null,null,null,null,null,null,null,null,null,null,null,null,null,null,null,null,null,null,null,null,null,null,3018.75]
["11-0085","TM","Rogers Manufacturing Corporation",0,42.7,null,800.62,0,null,550,null,null,null,null,null,null,null,null,null,null,null,null,null,null,null,null,null,null,null,null,null,null,null,null,null,null,null,null,null,null,null,null,null,null,null,null,null,800.62501430511475]
["11-0097","TM","Madison Mill, Inc.",0,49.6,null,930,0,null,550,null,null,null,null,null,null,null,null,null,null,null,null,null,null,null,null,null,null,null,null,null,null,null,null,null,null,null,null,null,null,null,null,null,null,null,null,null,929.99997138977051]
["12-0023","TM","Anvil International, Inc",0,15.4,null,288.75,0,null,500,null,null,null,null,null,null,null,null,null,null,null,null,null,null,null,null,null,null,null,null,null,null,null,null,null,null,null,null,null,null,null,null,null,null,null,null,null,288.74999284744263]
["12-0036","TM","Premier Manufacturing Corporation",5.66,69.009999999999991,null,1293.94,0,null,600,null,null,null,null,null,null,null,null,null,null,null,null,null,null,null,null,null,null,null,null,null,null,null,null,null,null,null,null,null,null,null,null,null,null,null,null,null,1293.9375400543213]
["13-0004","TM","England Inc",0,76.5,null,1434.38,0,null,650,null,null,null,null,null,null,null,null,null,null,null,null,null,null,null,null,null,null,null,null,null,null,null,null,null,null,null,null,null,null,null,null,null,null,null,null,null,1434.375]
["13-0006","TM","Vulcan Materials Company, LLC dba Tazewell Quarry",0,115.19999999999999,null,2160,0,null,700,null,null,null,null,null,null,null,null,null,null,null,null,null,null,null,null,null,null,null,null,null,null,null,null,null,null,null,null,null,null,null,null,null,null,null,null,null,2159.999942779541]
["13-0009","CM","Brooks Furniture Manufacturing  Inc.",7.9,73.899999999999991,500,1385.62,0,1750,null,null,null,null,null,null,null,null,null,null,null,null,null,null,null,null,null,null,null,null,null,null,null,null,null,null,null,null,null,null,null,null,null,null,null,null,null,null,1385.6250286102295]
["13-0013","CM","Rogers Group, Inc.-Tazewell Asphalt",60,143.78,1000,2695.88,0,3000,null,null,null,null,null,null,null,null,null,null,null,null,null,null,null,null,null,null,null,null,null,null,null,null,null,null,null,null,null,null,null,null,null,null,null,null,null,null,2695.8749771118164]
["13-0019","TM","Southern Energy Homes, Inc. dba Giles",0,57.150000000000006,null,1071.56,0,null,600,null,null,null,null,null,null,null,null,null,null,null,null,null,null,null,null,null,null,null,null,null,null,null,null,null,null,null,null,null,null,null,null,null,null,null,null,null,1071.5625286102295]
["13-0049","CM","Kopper Glo Mining, LLC dba Marion Tipple",0,142.11000000000001,1000,2664.56,0,2250,null,null,null,null,null,null,null,null,null,null,null,null,null,null,null,null,null,null,null,null,null,null,null,null,null,null,null,null,null,null,null,null,null,null,null,null,null,null,2664.5625114440918]
["13-0069","TM","B & F Hot Mix Asphalt, Inc.",85.4,77.400000000000006,null,1451.25,0,null,650,null,null,null,null,null,null,null,null,null,null,null,null,null,null,null,null,null,null,null,null,null,null,null,null,null,null,null,null,null,null,null,null,null,null,null,null,null,1451.2500286102295]
["13-0073","TM","Homesteader",0,62.7,null,1175.6199999999999,0,null,600,null,null,null,null,null,null,null,null,null,null,null,null,null,null,null,null,null,null,null,null,null,null,null,null,null,null,null,null,null,null,null,null,null,null,null,null,null,1175.6250143051147]
["13-0085","TM","Continuum Midstream, LLC.",16.2,40.700000000000003,null,763.12,0,null,550,null,null,null,null,null,null,null,null,null,null,null,null,null,null,null,null,null,null,null,null,null,null,null,null,null,null,null,null,null,null,null,null,null,null,null,null,null,763.12501430511475]
["13-0102","TM","Duracap Materials, LLC dba Goins Hollow Quarry",0,19,null,356.25,0,null,500,null,null,null,null,null,null,null,null,null,null,null,null,null,null,null,null,null,null,null,null,null,null,null,null,null,null,null,null,null,null,null,null,null,null,null,null,null,356.25]
["14-0001","TM","Rogers Group, Inc.",0,28.07,null,526.30999999999995,0,null,550,null,null,null,null,null,null,null,null,null,null,null,null,null,null,null,null,null,null,null,null,null,null,null,null,null,null,null,null,null,null,null,null,null,null,null,null,null,526.3124942779541]
["14-0018","TM","Ritter Pallet, Llc",0,50.7,null,950.62,0,null,600,null,null,null,null,null,null,null,null,null,null,null,null,null,null,null,null,null,null,null,null,null,null,null,null,null,null,null,null,null,null,null,null,null,null,null,null,null,950.62501430511475]
["15-0001","CM","ConAgra Foods",47.91,86.11999999999999,1000,1614.75,0,2250,null,null,null,null,null,null,null,null,null,null,null,null,null,null,null,null,null,null,null,null,null,null,null,null,null,null,null,null,null,null,null,null,null,null,null,null,null,null,1614.7500514984131]
["15-0032","TM","Cocke County Highway Department",0,69.599999999999994,null,1305,0,null,600,null,null,null,null,null,null,null,null,null,null,null,null,null,null,null,null,null,null,null,null,null,null,null,null,null,null,null,null,null,null,null,null,null,null,null,null,null,1304.9999713897705]
["15-0071","TM","Hommel Concrete Company",20.3,20.34,null,381.38,0,null,500,null,null,null,null,null,null,null,null,null,null,null,null,null,null,null,null,null,null,null,null,null,null,null,null,null,null,null,null,null,null,null,null,null,null,null,null,null,381.37500286102295]
["15-0075","CM","Eastern Plating LLC",0.31,14.33,250,268.69,0,1000,null,null,null,null,null,null,null,null,null,null,null,null,null,null,null,null,null,null,null,null,null,null,null,null,null,null,null,null,null,null,null,null,null,null,null,null,null,null,268.68749856948853]
["15-0077","TM","American Appliance Products, Inc.",3.77,67.56,null,1266.75,0,null,600,null,null,null,null,null,null,null,null,null,null,null,null,null,null,null,null,null,null,null,null,null,null,null,null,null,null,null,null,null,null,null,null,null,null,null,null,null,1266.7499542236328]
["15-0085","TM","Vulcan Construction Materials, LLC dba Newport Quarry",0,111.9,null,2098.12,0,null,700,null,null,null,null,null,null,null,null,null,null,null,null,null,null,null,null,null,null,null,null,null,null,null,null,null,null,null,null,null,null,null,null,null,null,null,null,null,2098.1250286102295]
["15-0088","TM","Newport Paving and Ready Mix dba Concrete Plant 8",0,40.36,null,756.75,0,null,550,null,null,null,null,null,null,null,null,null,null,null,null,null,null,null,null,null,null,null,null,null,null,null,null,null,null,null,null,null,null,null,null,null,null,null,null,null,756.7500114440918]
["15-0090","CM","Charles Blalock and Sons, Inc. dba Asphalt Plant 4",20.37,75.61,500,1417.69,0,1750,null,null,null,null,null,null,null,null,null,null,null,null,null,null,null,null,null,null,null,null,null,null,null,null,null,null,null,null,null,null,null,null,null,null,null,null,null,null,1417.6875114440918]
["15-0091","CM","Valore Furniture, LLC",0,104.8,1000,1965,0,2000,null,null,null,null,null,null,null,null,null,null,null,null,null,null,null,null,null,null,null,null,null,null,null,null,null,null,null,null,null,null,null,null,null,null,null,null,null,null,1965.000057220459]
["15-0092","CM","Lisega  Inc.",0,86.5,500,1621.88,0,1750,null,null,null,null,null,null,null,null,null,null,null,null,null,null,null,null,null,null,null,null,null,null,null,null,null,null,null,null,null,null,null,null,null,null,null,null,null,null,1621.875]
["15-0095","TM","Hommel Concrete Company",0.56000000000000005,15.48,null,290.25,0,null,500,null,null,null,null,null,null,null,null,null,null,null,null,null,null,null,null,null,null,null,null,null,null,null,null,null,null,null,null,null,null,null,null,null,null,null,null,null,290.24999141693115]
["15-0119","TM","Charles Blalock & Sons, Inc.",1.18,56.45,null,1058.44,0,null,600,null,null,null,null,null,null,null,null,null,null,null,null,null,null,null,null,null,null,null,null,null,null,null,null,null,null,null,null,null,null,null,null,null,null,null,null,null,1058.4375143051147]
["15-0125","TM","Hommel Rock and Quarry",0,14.5,null,271.88,0,null,500,null,null,null,null,null,null,null,null,null,null,null,null,null,null,null,null,null,null,null,null,null,null,null,null,null,null,null,null,null,null,null,null,null,null,null,null,null,271.875]
["15-0139","CM","Oakcrest Lumber, Inc.",62.77,86.09,1000,1614.19,0,2250,null,null,null,null,null,null,null,null,null,null,null,null,null,null,null,null,null,null,null,null,null,null,null,null,null,null,null,null,null,null,null,null,null,null,null,null,null,null,1614.1874313354492]
["15-0141","TM","Hommel Concrete Company - Clear Creek Quarry and Crushing Facility",0,14.5,null,271.88,0,null,500,null,null,null,null,null,null,null,null,null,null,null,null,null,null,null,null,null,null,null,null,null,null,null,null,null,null,null,null,null,null,null,null,null,null,null,null,null,271.875]
["16-0003","TM","MCA Fabrication, Inc.",0,21,null,393.75,0,null,500,null,null,null,null,null,null,null,null,null,null,null,null,null,null,null,null,null,null,null,null,null,null,null,null,null,null,null,null,null,null,null,null,null,null,null,null,null,393.75]
["16-0009","TM","George A. Dickel & Company",21.8,1181.8500000000004,null,22159.69,0,null,2000,null,null,null,null,null,null,null,null,null,null,null,null,null,null,null,null,null,null,null,null,null,null,null,null,null,null,null,null,null,null,null,null,null,null,null,null,null,22159.687042236328]
["16-0017","TM","Rogers Group, Inc. dba Hillsboro Quarry",0,50.4,null,945,0,null,600,null,null,null,null,null,null,null,null,null,null,null,null,null,null,null,null,null,null,null,null,null,null,null,null,null,null,null,null,null,null,null,null,null,null,null,null,null,945.00002861022949]
["16-0039","CM","Rogers Group, Inc. dba Hillsboro Asphalt",110,156.29999999999998,2000,2930.62,0,3500,null,null,null,null,null,null,null,null,null,null,null,null,null,null,null,null,null,null,null,null,null,null,null,null,null,null,null,null,null,null,null,null,null,null,null,null,null,null,2930.625057220459]
["16-0087","TM","Schmiede Corporation",0,40.270000000000003,null,755.06,0,null,550,null,null,null,null,null,null,null,null,null,null,null,null,null,null,null,null,null,null,null,null,null,null,null,null,null,null,null,null,null,null,null,null,null,null,null,null,null,755.06250858306885]
["16-0096","TM","Goodrich Landing Gear Division",0,52.719999999999992,null,988.5,0,null,600,null,null,null,null,null,null,null,null,null,null,null,null,null,null,null,null,null,null,null,null,null,null,null,null,null,null,null,null,null,null,null,null,null,null,null,null,null,988.50002288818359]
["16-0106","TM","Kokomo Grain Company, Inc.",0,10.3,null,193.12,0,null,500,null,null,null,null,null,null,null,null,null,null,null,null,null,null,null,null,null,null,null,null,null,null,null,null,null,null,null,null,null,null,null,null,null,null,null,null,null,193.12500357627869]
["16-0128","CM","Acme Mechanical Contractors  Inc.",0,144.57299999999998,1000,2710.74,0,2250,null,null,null,null,null,null,null,null,null,null,null,null,null,null,null,null,null,null,null,null,null,null,null,null,null,null,null,null,null,null,null,null,null,null,null,null,null,null,2710.7437133789062]
["16-0133","TM","U.S. Display Group, Inc.",0,40.450000000000003,null,758.44,0,null,550,null,null,null,null,null,null,null,null,null,null,null,null,null,null,null,null,null,null,null,null,null,null,null,null,null,null,null,null,null,null,null,null,null,null,null,null,null,758.43751430511475]
["16-0143","TM","K & S Steel Fabrication  Inc.",0,35.1,null,658.12,0,null,550,null,null,null,null,null,null,null,null,null,null,null,null,null,null,null,null,null,null,null,null,null,null,null,null,null,null,null,null,null,null,null,null,null,null,null,null,null,658.12497138977051]
["16-0149","TM","Marine Master Trailers",0,80.42,null,1507.88,0,null,650,null,null,null,null,null,null,null,null,null,null,null,null,null,null,null,null,null,null,null,null,null,null,null,null,null,null,null,null,null,null,null,null,null,null,null,null,null,1507.8749656677246]
["16-0155","TM","Kokomo Grain Company",0,14.9,null,279.38,0,null,500,null,null,null,null,null,null,null,null,null,null,null,null,null,null,null,null,null,null,null,null,null,null,null,null,null,null,null,null,null,null,null,null,null,null,null,null,null,279.37499284744263]
["16-0184","TM","Sanford L. P.",0,35.799999999999997,null,671.25,0,null,550,null,null,null,null,null,null,null,null,null,null,null,null,null,null,null,null,null,null,null,null,null,null,null,null,null,null,null,null,null,null,null,null,null,null,null,null,null,671.24998569488525]
["16-0213","TM","Aspen Technologies, Inc.",0,47.2,null,885,0,null,550,null,null,null,null,null,null,null,null,null,null,null,null,null,null,null,null,null,null,null,null,null,null,null,null,null,null,null,null,null,null,null,null,null,null,null,null,null,885.00001430511475]
["17-0005","TM","L & H Gin Company, Inc.",0,45.5,null,853.12,0,null,550,null,null,null,null,null,null,null,null,null,null,null,null,null,null,null,null,null,null,null,null,null,null,null,null,null,null,null,null,null,null,null,null,null,null,null,null,null,853.125]
["17-0006","TM","Crockett Gin Company",0,48,null,900,0,null,550,null,null,null,null,null,null,null,null,null,null,null,null,null,null,null,null,null,null,null,null,null,null,null,null,null,null,null,null,null,null,null,null,null,null,null,null,null,900]
["17-0013","TM","Farmers Friendship Gin, Inc.",0,21.4,null,401.25,0,null,500,null,null,null,null,null,null,null,null,null,null,null,null,null,null,null,null,null,null,null,null,null,null,null,null,null,null,null,null,null,null,null,null,null,null,null,null,null,401.24999284744263]
["17-0014","TM","Crockett Mills Gin, LLC",0,38,null,712.5,0,null,550,null,null,null,null,null,null,null,null,null,null,null,null,null,null,null,null,null,null,null,null,null,null,null,null,null,null,null,null,null,null,null,null,null,null,null,null,null,712.5]
["17-0036","TM","The Pictsweet Company dba Bells, TN Plant",12.95,17.47,null,327.56,0,null,500,null,null,null,null,null,null,null,null,null,null,null,null,null,null,null,null,null,null,null,null,null,null,null,null,null,null,null,null,null,null,null,null,null,null,null,null,null,327.56248712539673]
["17-0043","TM","Cairo Farmers Gin LLC",0,56.3,null,1055.6199999999999,0,null,600,null,null,null,null,null,null,null,null,null,null,null,null,null,null,null,null,null,null,null,null,null,null,null,null,null,null,null,null,null,null,null,null,null,null,null,null,null,1055.6249856948853]
["17-0051","TM","Hughes Trailers Of Jackson, Llc",0,64.400000000000006,null,1207.5,0,null,600,null,null,null,null,null,null,null,null,null,null,null,null,null,null,null,null,null,null,null,null,null,null,null,null,null,null,null,null,null,null,null,null,null,null,null,null,null,1207.5000286102295]
["17-0053","TM","G & G Trailers",0,54.7,null,1025.6199999999999,0,null,600,null,null,null,null,null,null,null,null,null,null,null,null,null,null,null,null,null,null,null,null,null,null,null,null,null,null,null,null,null,null,null,null,null,null,null,null,null,1025.6250143051147]
["17-0068","TM","O'Neal Trailers, LLC",0,36,null,675,0,null,550,null,null,null,null,null,null,null,null,null,null,null,null,null,null,null,null,null,null,null,null,null,null,null,null,null,null,null,null,null,null,null,null,null,null,null,null,null,675]
["18-0002","TM","Manchester Tank and Equipment",4.3,81.95,null,1536.56,0,null,650,null,null,null,null,null,null,null,null,null,null,null,null,null,null,null,null,null,null,null,null,null,null,null,null,null,null,null,null,null,null,null,null,null,null,null,null,null,1536.562442779541]
["18-0007","CM","Lhoist North America Crab Orchard Plant",7.4,134.4,1000,2520,0,2250,null,null,null,null,null,null,null,null,null,null,null,null,null,null,null,null,null,null,null,null,null,null,null,null,null,null,null,null,null,null,null,null,null,null,null,null,null,null,2519.999885559082]
["18-0028","CM","Hickory Specialties dba Kerry Ingredients and Flavours",99.9,238.79,2000,4477.3100000000004,0,3500,null,null,null,null,null,null,null,null,null,null,null,null,null,null,null,null,null,null,null,null,null,null,null,null,null,null,null,null,null,null,null,null,null,null,null,null,null,null,4477.3123741149902]
["18-0043","TM","Crab Orchard Stone Company, Inc. dba Rock Quarry Road Facility",3.25,46.870000000000005,null,878.81,0,null,550,null,null,null,null,null,null,null,null,null,null,null,null,null,null,null,null,null,null,null,null,null,null,null,null,null,null,null,null,null,null,null,null,null,null,null,null,null,878.81247997283936]
["18-0062","TM","Imi Tennessee, Inc.",0,18.2,null,341.25,0,null,500,null,null,null,null,null,null,null,null,null,null,null,null,null,null,null,null,null,null,null,null,null,null,null,null,null,null,null,null,null,null,null,null,null,null,null,null,null,341.25001430511475]
["18-0066","CM","Royal Oak Enterprises, LLC",68.3,230.68000000000004,2000,4325.25,0,3500,null,null,null,null,null,null,null,null,null,null,null,null,null,null,null,null,null,null,null,null,null,null,null,null,null,null,null,null,null,null,null,null,null,null,null,null,null,null,4325.2498626708984]
["18-0083","CM","Flowers Bakery Of Crossville, LLC",2.2800000000000002,113.26,1000,2123.62,0,2000,null,null,null,null,null,null,null,null,null,null,null,null,null,null,null,null,null,null,null,null,null,null,null,null,null,null,null,null,null,null,null,null,null,null,null,null,null,null,2123.6250400543213]
["18-0086","TM","Crossville, Inc.",67.635999999999996,160.86199999999999,null,3016.16,0,null,800,null,null,null,null,null,null,null,null,null,null,null,null,null,null,null,null,null,null,null,null,null,null,null,null,null,null,null,null,null,null,null,null,null,null,null,null,null,3016.1624908447266]
["18-0091","CM","Rogers Group, Inc. - Crab Orchard Asphalt",99.4,151.6,2000,2842.5,0,3500,null,null,null,null,null,null,null,null,null,null,null,null,null,null,null,null,null,null,null,null,null,null,null,null,null,null,null,null,null,null,null,null,null,null,null,null,null,null,2842.500114440918]
["18-0093","TM","Tap Publishing Company",0,40,null,750,0,null,550,null,null,null,null,null,null,null,null,null,null,null,null,null,null,null,null,null,null,null,null,null,null,null,null,null,null,null,null,null,null,null,null,null,null,null,null,null,750]
["18-0095","CM","Benco Sales, Inc.",0,24.9,250,466.88,0,1000,null,null,null,null,null,null,null,null,null,null,null,null,null,null,null,null,null,null,null,null,null,null,null,null,null,null,null,null,null,null,null,null,null,null,null,null,null,null,466.87499284744263]
["18-0114","TM","Mizkan America, Inc.",0.15,92.36999999999999,null,1731.94,0,null,650,null,null,null,null,null,null,null,null,null,null,null,null,null,null,null,null,null,null,null,null,null,null,null,null,null,null,null,null,null,null,null,null,null,null,null,null,null,1731.9375514984131]
["18-0115","TM","City Of Crossville (Waste Water Treatment Plant)",0,23.5,null,440.62,0,null,500,null,null,null,null,null,null,null,null,null,null,null,null,null,null,null,null,null,null,null,null,null,null,null,null,null,null,null,null,null,null,null,null,null,null,null,null,null,440.625]
["18-0118","TM","Crossville, Inc. Plant 4",73.400000000000006,215.89999999999998,null,4048.12,0,null,900,null,null,null,null,null,null,null,null,null,null,null,null,null,null,null,null,null,null,null,null,null,null,null,null,null,null,null,null,null,null,null,null,null,null,null,null,null,4048.124885559082]
["18-0125","TM","Durable Products, Inc.",0,10.77,null,201.94,0,null,500,null,null,null,null,null,null,null,null,null,null,null,null,null,null,null,null,null,null,null,null,null,null,null,null,null,null,null,null,null,null,null,null,null,null,null,null,null,201.93750858306885]
["18-0126","TM","SCP, LLC",0.47,25.08,null,470.25,0,null,550,null,null,null,null,null,null,null,null,null,null,null,null,null,null,null,null,null,null,null,null,null,null,null,null,null,null,null,null,null,null,null,null,null,null,null,null,null,470.24999856948853]
["18-0167","TM","Rocky Ridge Stone Company",1.94,64.33,null,1206.19,0,null,600,null,null,null,null,null,null,null,null,null,null,null,null,null,null,null,null,null,null,null,null,null,null,null,null,null,null,null,null,null,null,null,null,null,null,null,null,null,1206.1875343322754]
["19-0002","TM","TN Department of Correction Charles Bass Correctional Complex Site 1",1.84,9.9200000000000017,null,186,0,null,500,null,null,null,null,null,null,null,null,null,null,null,null,null,null,null,null,null,null,null,null,null,null,null,null,null,null,null,null,null,null,null,null,null,null,null,null,null,186.00000143051147]
["19-0007","TM","Tennessee Department of Correction dba Lois M. DeBerry Special Needs Facility",14.83,31.99,null,599.80999999999995,0,null,550,null,null,null,null,null,null,null,null,null,null,null,null,null,null,null,null,null,null,null,null,null,null,null,null,null,null,null,null,null,null,null,null,null,null,null,null,null,599.81249570846558]
["19-0008","TM","TDOC Riverbend Maximum Security Institution",2.31,10.865,null,203.72,0,null,500,null,null,null,null,null,null,null,null,null,null,null,null,null,null,null,null,null,null,null,null,null,null,null,null,null,null,null,null,null,null,null,null,null,null,null,null,null,203.71874570846558]
["19-0011","TM","Department of Intellectual Developmental Disabilities ΓÇô Middle Tennessee Regional Office",27.59,81.27,null,1523.81,0,null,650,null,null,null,null,null,null,null,null,null,null,null,null,null,null,null,null,null,null,null,null,null,null,null,null,null,null,null,null,null,null,null,null,null,null,null,null,null,1523.8124370574951]
["19-0093","CM","Tennessee State University",28.35,63.56,500,1191.75,0,1750,null,null,null,null,null,null,null,null,null,null,null,null,null,null,null,null,null,null,null,null,null,null,null,null,null,null,null,null,null,null,null,null,null,null,null,null,null,null,1191.7500257492065]
["19-0094","TM","Tennessee Department of Agriculture",2.19,11.59,null,217.31,0,null,500,null,null,null,null,null,null,null,null,null,null,null,null,null,null,null,null,null,null,null,null,null,null,null,null,null,null,null,null,null,null,null,null,null,null,null,null,null,217.31250286102295]
["19-0106","TM","TDOGS dba James K Polk Building",2.5,14.899999999999999,null,279.38,0,null,500,null,null,null,null,null,null,null,null,null,null,null,null,null,null,null,null,null,null,null,null,null,null,null,null,null,null,null,null,null,null,null,null,null,null,null,null,null,279.37499284744263]
["19-0124","TM","TDOGS dba Tennessee Bureau of Investigation Headquarters/Forensics",3.32,17.14,null,321.38,0,null,500,null,null,null,null,null,null,null,null,null,null,null,null,null,null,null,null,null,null,null,null,null,null,null,null,null,null,null,null,null,null,null,null,null,null,null,null,null,321.3749885559082]
["20-0006","TM","Vulcan Construction Materials, LLC",0,98.7,null,1850.62,0,null,650,null,null,null,null,null,null,null,null,null,null,null,null,null,null,null,null,null,null,null,null,null,null,null,null,null,null,null,null,null,null,null,null,null,null,null,null,null,1850.624942779541]
["20-0014","TM","Ergon Asphalt and Emulsions, Inc.",7.73,115.9,null,2173.12,0,null,700,null,null,null,null,null,null,null,null,null,null,null,null,null,null,null,null,null,null,null,null,null,null,null,null,null,null,null,null,null,null,null,null,null,null,null,null,null,2173.1250286102295]
["20-0051","TM","Wallymo Trailers, Inc.",0,39.5,null,740.62,0,null,550,null,null,null,null,null,null,null,null,null,null,null,null,null,null,null,null,null,null,null,null,null,null,null,null,null,null,null,null,null,null,null,null,null,null,null,null,null,740.625]
["20-0053","CM","Delta Contracting Company LLC",16.399999999999999,21.2,250,397.5,0,1250,null,null,null,null,null,null,null,null,null,null,null,null,null,null,null,null,null,null,null,null,null,null,null,null,null,null,null,null,null,null,null,null,null,null,null,null,null,null,397.50001430511475]
["20-0076","TM","Southern Concrete Products, Inc.",0,15.49,null,290.44,0,null,500,null,null,null,null,null,null,null,null,null,null,null,null,null,null,null,null,null,null,null,null,null,null,null,null,null,null,null,null,null,null,null,null,null,null,null,null,null,290.43749570846558]
["21-0014","TM","Imi Tennessee, Inc.",0,14.1,null,264.38,0,null,500,null,null,null,null,null,null,null,null,null,null,null,null,null,null,null,null,null,null,null,null,null,null,null,null,null,null,null,null,null,null,null,null,null,null,null,null,null,264.37500715255737]
["21-0045","CM","Smithport Cabinetry Partners",0,163.72,1000,3069.75,0,2500,null,null,null,null,null,null,null,null,null,null,null,null,null,null,null,null,null,null,null,null,null,null,null,null,null,null,null,null,null,null,null,null,null,null,null,null,null,null,3069.7500228881836]
["21-0054","CM","Foutch Industries, Llc",0,188.71,1000,3538.31,0,2750,null,null,null,null,null,null,null,null,null,null,null,null,null,null,null,null,null,null,null,null,null,null,null,null,null,null,null,null,null,null,null,null,null,null,null,null,null,null,3538.3126258850098]
["21-0156","TM","Thalle Construction Company dba Centerhill Stabilization Project",0,22.53,null,422.44,0,null,500,null,null,null,null,null,null,null,null,null,null,null,null,null,null,null,null,null,null,null,null,null,null,null,null,null,null,null,null,null,null,null,null,null,null,null,null,null,422.43751287460327]
["22-0004","TM","Vulcan Construction Materials, LLC dba Dickson Quarry",0,94.2,null,1766.25,0,null,650,null,null,null,null,null,null,null,null,null,null,null,null,null,null,null,null,null,null,null,null,null,null,null,null,null,null,null,null,null,null,null,null,null,null,null,null,null,1766.249942779541]
["22-0021","TM","Block Works, LLC",0,46.9,null,879.38,0,null,550,null,null,null,null,null,null,null,null,null,null,null,null,null,null,null,null,null,null,null,null,null,null,null,null,null,null,null,null,null,null,null,null,null,null,null,null,null,879.37502861022949]
["22-0026","TM","Tennsco Corp. Plant No. 1",9.02,26.82,null,502.88,0,null,550,null,null,null,null,null,null,null,null,null,null,null,null,null,null,null,null,null,null,null,null,null,null,null,null,null,null,null,null,null,null,null,null,null,null,null,null,null,502.8749942779541]
["22-0044","CM","Interstate Packaging",1.32,118.82000000000001,1000,2227.88,0,2000,null,null,null,null,null,null,null,null,null,null,null,null,null,null,null,null,null,null,null,null,null,null,null,null,null,null,null,null,null,null,null,null,null,null,null,null,null,null,2227.8749942779541]
["22-0063","CM","Tennsco Corporation Plant #2/3",11.08,90.11,1000,1689.56,0,2000,null,null,null,null,null,null,null,null,null,null,null,null,null,null,null,null,null,null,null,null,null,null,null,null,null,null,null,null,null,null,null,null,null,null,null,null,null,null,1689.5625114440918]
["22-0066","CM","Eubank Asphalt Paving & Sealing dba Dickson New Astec",120.3,159.35999999999999,2000,2988,0,3500,null,null,null,null,null,null,null,null,null,null,null,null,null,null,null,null,null,null,null,null,null,null,null,null,null,null,null,null,null,null,null,null,null,null,null,null,null,null,2988.0000114440918]
["22-0073","TM","Tennsco Corp",5.0999999999999996,24.200000000000003,null,453.75,0,null,500,null,null,null,null,null,null,null,null,null,null,null,null,null,null,null,null,null,null,null,null,null,null,null,null,null,null,null,null,null,null,null,null,null,null,null,null,null,453.75001430511475]
["22-0076","TM","Sumiden Wire Products Corporation",0,26.300000000000004,null,493.12,0,null,550,null,null,null,null,null,null,null,null,null,null,null,null,null,null,null,null,null,null,null,null,null,null,null,null,null,null,null,null,null,null,null,null,null,null,null,null,null,493.12498569488525]
["22-0078","TM","Middle Tennessee Lumber Company",16.43,78.89,null,1479.19,0,null,650,null,null,null,null,null,null,null,null,null,null,null,null,null,null,null,null,null,null,null,null,null,null,null,null,null,null,null,null,null,null,null,null,null,null,null,null,null,1479.1874885559082]
["22-0079","TM","Masonite Corporation",0,129.06,null,2419.88,0,null,750,null,null,null,null,null,null,null,null,null,null,null,null,null,null,null,null,null,null,null,null,null,null,null,null,null,null,null,null,null,null,null,null,null,null,null,null,null,2419.8749542236328]
["22-0080","TM","A.L.P. Lighting Components, Inc.",0,48.940000000000005,null,917.62,0,null,550,null,null,null,null,null,null,null,null,null,null,null,null,null,null,null,null,null,null,null,null,null,null,null,null,null,null,null,null,null,null,null,null,null,null,null,null,null,917.62497425079346]
["22-0085","TM","Onward Manufacturing Company, Inc.",1.3399999999999999,106.02399999999999,null,1987.95,0,null,700,null,null,null,null,null,null,null,null,null,null,null,null,null,null,null,null,null,null,null,null,null,null,null,null,null,null,null,null,null,null,null,null,null,null,null,null,null,1987.9500389099121]
["22-0094","TM","Tennessee Bun Company, Llc",0,113.52,null,2128.5,0,null,700,null,null,null,null,null,null,null,null,null,null,null,null,null,null,null,null,null,null,null,null,null,null,null,null,null,null,null,null,null,null,null,null,null,null,null,null,null,2128.4999370574951]
["22-0104","TM","Nashville Ready Mix Of Dickson, Llc",0,10.3,null,193.12,0,null,500,null,null,null,null,null,null,null,null,null,null,null,null,null,null,null,null,null,null,null,null,null,null,null,null,null,null,null,null,null,null,null,null,null,null,null,null,null,193.12500357627869]
["22-0166","TM","K. W. Lankford Excavating",2.15,80.55,null,1510.31,0,null,650,null,null,null,null,null,null,null,null,null,null,null,null,null,null,null,null,null,null,null,null,null,null,null,null,null,null,null,null,null,null,null,null,null,null,null,null,null,1510.312557220459]
["22-0176","CM","JET Printing, LLC",2.8,58.699999999999996,500,1100.6199999999999,0,1500,null,null,null,null,null,null,null,null,null,null,null,null,null,null,null,null,null,null,null,null,null,null,null,null,null,null,null,null,null,null,null,null,null,null,null,null,null,null,1100.6250143051147]
["22-0178","TM","Zochem LLC",30.200000000000003,144,null,2700,0,null,750,null,null,null,null,null,null,null,null,null,null,null,null,null,null,null,null,null,null,null,null,null,null,null,null,null,null,null,null,null,null,null,null,null,null,null,null,null,2700]
["22-0184","TM","Lewis Lumber and Milling, Inc.",25.3,31.9,null,598.12,0,null,550,null,null,null,null,null,null,null,null,null,null,null,null,null,null,null,null,null,null,null,null,null,null,null,null,null,null,null,null,null,null,null,null,null,null,null,null,null,598.12499284744263]
["22-0207","TM","Jones Bros Contractors LLC Dickson Plant",32.5,57.21,null,1072.69,0,null,600,null,null,null,null,null,null,null,null,null,null,null,null,null,null,null,null,null,null,null,null,null,null,null,null,null,null,null,null,null,null,null,null,null,null,null,null,null,1072.6874828338623]
["22-0210","CM","Dal-Tile Tennessee LLC dba Dal-Tile Tennessee Old Columbia Road Plant",0.34,109.24200060000001,1000,2048.29,0,2000,null,null,null,null,null,null,null,null,null,null,null,null,null,null,null,null,null,null,null,null,null,null,null,null,null,null,null,null,null,null,null,null,null,null,null,null,null,null,2048.2875823974609]
["23-0005","CM","HEXPOL Compounding Colonial Rubber Works",0,198.55,1000,3722.81,0,2750,null,null,null,null,null,null,null,null,null,null,null,null,null,null,null,null,null,null,null,null,null,null,null,null,null,null,null,null,null,null,null,null,null,null,null,null,null,null,3722.812557220459]
["23-0014","CM","Ford Construction Company",41.6,55.500000000000007,500,1040.6199999999999,0,1750,null,null,null,null,null,null,null,null,null,null,null,null,null,null,null,null,null,null,null,null,null,null,null,null,null,null,null,null,null,null,null,null,null,null,null,null,null,null,1040.625]
["23-0048","TM","Bunge North America, Inc.",1.3009999999999999,121.43800000000002,null,2276.96,0,null,700,null,null,null,null,null,null,null,null,null,null,null,null,null,null,null,null,null,null,null,null,null,null,null,null,null,null,null,null,null,null,null,null,null,null,null,null,null,2276.9625663757324]
["23-0051","TM","Dyersburg Elevator Company",2.8,47.720000000000006,null,894.75,0,null,550,null,null,null,null,null,null,null,null,null,null,null,null,null,null,null,null,null,null,null,null,null,null,null,null,null,null,null,null,null,null,null,null,null,null,null,null,null,894.75002288818359]
["23-0090","CM","Eaton Corporation",25.7,79.300000000000011,1000,1486.88,0,2000,null,null,null,null,null,null,null,null,null,null,null,null,null,null,null,null,null,null,null,null,null,null,null,null,null,null,null,null,null,null,null,null,null,null,null,null,null,null,1486.875057220459]
["23-0101","TM","The Hillshire Brands Company",4.33,76.510000000000005,null,1434.56,0,null,650,null,null,null,null,null,null,null,null,null,null,null,null,null,null,null,null,null,null,null,null,null,null,null,null,null,null,null,null,null,null,null,null,null,null,null,null,null,1434.5625400543213]
["23-0109","TM","Caterpillar Inc. dba Caterpillar Dyersburg",0,132.51,null,2484.56,0,null,750,null,null,null,null,null,null,null,null,null,null,null,null,null,null,null,null,null,null,null,null,null,null,null,null,null,null,null,null,null,null,null,null,null,null,null,null,null,2484.5623970031738]
["23-0118","TM","Northdown Industries, Inc.",0,61.6,null,1155,0,null,600,null,null,null,null,null,null,null,null,null,null,null,null,null,null,null,null,null,null,null,null,null,null,null,null,null,null,null,null,null,null,null,null,null,null,null,null,null,1154.9999713897705]
["23-0119","TM","Excalibar Minerals Inc.",1.8,69.299999999999983,null,1299.3800000000001,0,null,600,null,null,null,null,null,null,null,null,null,null,null,null,null,null,null,null,null,null,null,null,null,null,null,null,null,null,null,null,null,null,null,null,null,null,null,null,null,1299.375057220459]
["23-0123","TM","Nordyne  Inc.",0,80,null,1500,0,null,650,null,null,null,null,null,null,null,null,null,null,null,null,null,null,null,null,null,null,null,null,null,null,null,null,null,null,null,null,null,null,null,null,null,null,null,null,null,1500]
["23-0124","CM","PolyOne Corporation",0,172.07999999999998,1000,3226.5,0,2500,null,null,null,null,null,null,null,null,null,null,null,null,null,null,null,null,null,null,null,null,null,null,null,null,null,null,null,null,null,null,null,null,null,null,null,null,null,null,3226.5000343322754]
["23-0164","TM","Dyersburg Regional Medical Center",8.69,15.020000000000001,null,281.62,0,null,500,null,null,null,null,null,null,null,null,null,null,null,null,null,null,null,null,null,null,null,null,null,null,null,null,null,null,null,null,null,null,null,null,null,null,null,null,null,281.62500858306885]
["23-0165","TM","Heckethorn Products Inc",0,15.14,null,283.88,0,null,500,null,null,null,null,null,null,null,null,null,null,null,null,null,null,null,null,null,null,null,null,null,null,null,null,null,null,null,null,null,null,null,null,null,null,null,null,null,283.87500643730164]
["23-0173","TM","Love's Travel Stops an Country Stores, Inc. dba Love's Travel Stop No. 641",0,24.65,null,462.19,0,null,500,null,null,null,null,null,null,null,null,null,null,null,null,null,null,null,null,null,null,null,null,null,null,null,null,null,null,null,null,null,null,null,null,null,null,null,null,null,462.18749284744263]
["24-0010","TM","Oak Grove Gin LLC",0,38,null,712.5,0,null,550,null,null,null,null,null,null,null,null,null,null,null,null,null,null,null,null,null,null,null,null,null,null,null,null,null,null,null,null,null,null,null,null,null,null,null,null,null,712.5]
["24-0015","TM","Longtown Supply Co. Inc.",0,63.8,null,1196.25,0,null,600,null,null,null,null,null,null,null,null,null,null,null,null,null,null,null,null,null,null,null,null,null,null,null,null,null,null,null,null,null,null,null,null,null,null,null,null,null,1196.2499856948853]
["24-0024","CM","AOC, LLC dba AOC Tennessee Resins Plant",84.5,174.57000000000002,2000,3273.19,0,3500,null,null,null,null,null,null,null,null,null,null,null,null,null,null,null,null,null,null,null,null,null,null,null,null,null,null,null,null,null,null,null,null,null,null,null,null,null,null,3273.1876373291016]
["24-0063","CM","The Eggo Company",5.36,153.048,1000,2869.65,0,2500,null,null,null,null,null,null,null,null,null,null,null,null,null,null,null,null,null,null,null,null,null,null,null,null,null,null,null,null,null,null,null,null,null,null,null,null,null,null,2869.6500778198242]
["24-0074","TM","Buzzi Unicem Ready Mix Llc Dba  Memphis Ready Mix",0,18.8,null,352.5,0,null,500,null,null,null,null,null,null,null,null,null,null,null,null,null,null,null,null,null,null,null,null,null,null,null,null,null,null,null,null,null,null,null,null,null,null,null,null,null,352.49998569488525]
["24-0075","TM","Buzzi Unicem Ready Llc Dba Memphis Ready Mix",0,18.8,null,352.5,0,null,500,null,null,null,null,null,null,null,null,null,null,null,null,null,null,null,null,null,null,null,null,null,null,null,null,null,null,null,null,null,null,null,null,null,null,null,null,null,352.49998569488525]
["24-0077","TM","Rapac, LP",0,83.1,null,1558.12,0,null,650,null,null,null,null,null,null,null,null,null,null,null,null,null,null,null,null,null,null,null,null,null,null,null,null,null,null,null,null,null,null,null,null,null,null,null,null,null,1558.1249713897705]
["24-0084","CM","Memphis Shades  Inc.",1.6505000000000001,64.291700000000006,500,1205.47,0,1500,null,null,null,null,null,null,null,null,null,null,null,null,null,null,null,null,null,null,null,null,null,null,null,null,null,null,null,null,null,null,null,null,null,null,null,null,null,null,1205.4694175720215]
["24-0100","TM","Peebles Fayette County Funeral Home",0.46,10.7,null,200.62,0,null,500,null,null,null,null,null,null,null,null,null,null,null,null,null,null,null,null,null,null,null,null,null,null,null,null,null,null,null,null,null,null,null,null,null,null,null,null,null,200.62499642372131]
["24-0112","TM","D&T Sawmill, LLC",0,147.1,null,2758.12,0,null,750,null,null,null,null,null,null,null,null,null,null,null,null,null,null,null,null,null,null,null,null,null,null,null,null,null,null,null,null,null,null,null,null,null,null,null,null,null,2758.125114440918]
["24-0114","TM","Murphy Oil USA, Inc. dba Murphy Express 8756",0,16.739999999999998,null,313.88,0,null,500,null,null,null,null,null,null,null,null,null,null,null,null,null,null,null,null,null,null,null,null,null,null,null,null,null,null,null,null,null,null,null,null,null,null,null,null,null,313.87499570846558]
["24-0123","TM","West Tennessee Ready Mix, LLC",0,10.32,null,193.5,0,null,500,null,null,null,null,null,null,null,null,null,null,null,null,null,null,null,null,null,null,null,null,null,null,null,null,null,null,null,null,null,null,null,null,null,null,null,null,null,193.4999942779541]
["25-0008","TM","Rogers Group, Inc.  Fentress County Quarry",0,57.5,null,1078.1199999999999,0,null,600,null,null,null,null,null,null,null,null,null,null,null,null,null,null,null,null,null,null,null,null,null,null,null,null,null,null,null,null,null,null,null,null,null,null,null,null,null,1078.125]
["25-0014","CM","Rogers Group, Inc. - Fentress County Asphalt",41,92.3,1000,1730.62,0,2250,null,null,null,null,null,null,null,null,null,null,null,null,null,null,null,null,null,null,null,null,null,null,null,null,null,null,null,null,null,null,null,null,null,null,null,null,null,null,1730.625057220459]
["25-0046","CM","Parker Charcoal",19.2,82.440000000000012,1000,1545.75,0,2000,null,null,null,null,null,null,null,null,null,null,null,null,null,null,null,null,null,null,null,null,null,null,null,null,null,null,null,null,null,null,null,null,null,null,null,null,null,null,1545.7500457763672]
["25-0058","TM","imi -TN, Inc.",0,14.24,null,267,0,null,500,null,null,null,null,null,null,null,null,null,null,null,null,null,null,null,null,null,null,null,null,null,null,null,null,null,null,null,null,null,null,null,null,null,null,null,null,null,266.99999570846558]
["25-0062","TM","East Tennessee Natural Gas, LLC dba Compressor Station 3108-Clarkrange",45.88,44.31,null,830.81,0,null,550,null,null,null,null,null,null,null,null,null,null,null,null,null,null,null,null,null,null,null,null,null,null,null,null,null,null,null,null,null,null,null,null,null,null,null,null,null,830.81252574920654]
["25-0063","TM","Plateau Pallet, Llc",0.4,16.100000000000001,null,301.88,0,null,500,null,null,null,null,null,null,null,null,null,null,null,null,null,null,null,null,null,null,null,null,null,null,null,null,null,null,null,null,null,null,null,null,null,null,null,null,null,301.87500715255737]
["26-0012","TM","Rogers Group  Inc.",0,48.2,null,903.75,0,null,550,null,null,null,null,null,null,null,null,null,null,null,null,null,null,null,null,null,null,null,null,null,null,null,null,null,null,null,null,null,null,null,null,null,null,null,null,null,903.75001430511475]
["26-0019","TM","Franklin County Highway Department",0,38.6,null,723.75,0,null,550,null,null,null,null,null,null,null,null,null,null,null,null,null,null,null,null,null,null,null,null,null,null,null,null,null,null,null,null,null,null,null,null,null,null,null,null,null,723.74997138977051]
["26-0026","CM","Lhoist North America dba Anderson Plant",30,195.8,1000,3671.25,0,3250,null,null,null,null,null,null,null,null,null,null,null,null,null,null,null,null,null,null,null,null,null,null,null,null,null,null,null,null,null,null,null,null,null,null,null,null,null,null,3671.250057220459]
["26-0062","TM","imi-TN Inc - Winchester",0,15,null,281.25,0,null,500,null,null,null,null,null,null,null,null,null,null,null,null,null,null,null,null,null,null,null,null,null,null,null,null,null,null,null,null,null,null,null,null,null,null,null,null,null,281.25]
["26-0068","TM","University Of Tn Space Institute (The)",25.9,25.9,null,485.62,0,null,550,null,null,null,null,null,null,null,null,null,null,null,null,null,null,null,null,null,null,null,null,null,null,null,null,null,null,null,null,null,null,null,null,null,null,null,null,null,485.62499284744263]
["26-0075","CM","CST Industries, Inc.",0,126.9,1000,2379.38,0,2250,null,null,null,null,null,null,null,null,null,null,null,null,null,null,null,null,null,null,null,null,null,null,null,null,null,null,null,null,null,null,null,null,null,null,null,null,null,null,2379.3750286102295]
["26-0078","CM","Rogers Group, Inc. - Cowan Asphalt",80,131.69999999999999,1000,2469.38,0,3000,null,null,null,null,null,null,null,null,null,null,null,null,null,null,null,null,null,null,null,null,null,null,null,null,null,null,null,null,null,null,null,null,null,null,null,null,null,null,2469.374942779541]
["26-0080","CM","East Tennessee Natural Gas Company",99,97.5,1000,1828.12,0,2750,null,null,null,null,null,null,null,null,null,null,null,null,null,null,null,null,null,null,null,null,null,null,null,null,null,null,null,null,null,null,null,null,null,null,null,null,null,null,1828.125]
["26-0081","TM","Sequatchie Concrete Service, Inc. dba Sand Switch Mine",0,53.9,null,1010.62,0,null,600,null,null,null,null,null,null,null,null,null,null,null,null,null,null,null,null,null,null,null,null,null,null,null,null,null,null,null,null,null,null,null,null,null,null,null,null,null,1010.6250286102295]
["26-0085","CM","Thompson Appalachian Hardwoods, Inc.",19.71,100.08000000000001,1000,1876.5,0,2000,null,null,null,null,null,null,null,null,null,null,null,null,null,null,null,null,null,null,null,null,null,null,null,null,null,null,null,null,null,null,null,null,null,null,null,null,null,null,1876.5000343322754]
["26-0088","CM","Tyson Farms, Inc.",7.73,108.30000000000001,1000,2030.62,0,2000,null,null,null,null,null,null,null,null,null,null,null,null,null,null,null,null,null,null,null,null,null,null,null,null,null,null,null,null,null,null,null,null,null,null,null,null,null,null,2030.625057220459]
["26-0090","TM","Metal Fabrication Inc",0,108.89999999999999,null,2041.88,0,null,700,null,null,null,null,null,null,null,null,null,null,null,null,null,null,null,null,null,null,null,null,null,null,null,null,null,null,null,null,null,null,null,null,null,null,null,null,null,2041.8750286102295]
["26-0091","CM","Nissan North America, Inc. - Dechard Powertrain Assembly Plant",121.75,396.28199999999998,2000,7430.29,0,3750,null,null,null,null,null,null,null,null,null,null,null,null,null,null,null,null,null,null,null,null,null,null,null,null,null,null,null,null,null,null,null,null,null,null,null,null,null,null,7430.2877426147461]
["26-0097","TM","Kokomo Grain Company, Inc.",0,10,null,187.5,0,null,500,null,null,null,null,null,null,null,null,null,null,null,null,null,null,null,null,null,null,null,null,null,null,null,null,null,null,null,null,null,null,null,null,null,null,null,null,null,187.5]
["26-0100","TM","Smyrna Ready Mix, LLC",0,78.8,null,1477.5,0,null,650,null,null,null,null,null,null,null,null,null,null,null,null,null,null,null,null,null,null,null,null,null,null,null,null,null,null,null,null,null,null,null,null,null,null,null,null,null,1477.500057220459]
["26-0106","TM","Sherwood Mining Company, LLC",4.5999999999999996,96,null,1800,0,null,650,null,null,null,null,null,null,null,null,null,null,null,null,null,null,null,null,null,null,null,null,null,null,null,null,null,null,null,null,null,null,null,null,null,null,null,null,null,1800]
["26-0107","CM","Tinsley Asphalt, LLC",40.4,30.5,500,571.88,0,1500,null,null,null,null,null,null,null,null,null,null,null,null,null,null,null,null,null,null,null,null,null,null,null,null,null,null,null,null,null,null,null,null,null,null,null,null,null,null,571.875]
["26-0127","TM","Restorable Solutions, LLC",0,19.95,null,374.06,0,null,500,null,null,null,null,null,null,null,null,null,null,null,null,null,null,null,null,null,null,null,null,null,null,null,null,null,null,null,null,null,null,null,null,null,null,null,null,null,374.06251430511475]
["26-0136","TM","Tyson Farms, Inc. Decherd Hatchery",4.34,17.22,null,322.88,0,null,500,null,null,null,null,null,null,null,null,null,null,null,null,null,null,null,null,null,null,null,null,null,null,null,null,null,null,null,null,null,null,null,null,null,null,null,null,null,322.87498712539673]
["26-0190","TM","JSP International LLC dba JSP Tullahoma 2",12.1,17,null,318.75,0,null,500,null,null,null,null,null,null,null,null,null,null,null,null,null,null,null,null,null,null,null,null,null,null,null,null,null,null,null,null,null,null,null,null,null,null,null,null,null,318.75]
["27-0005","TM","Milan Box Corporation",17.600000000000001,27.4,null,513.75,0,null,550,null,null,null,null,null,null,null,null,null,null,null,null,null,null,null,null,null,null,null,null,null,null,null,null,null,null,null,null,null,null,null,null,null,null,null,null,null,513.74999284744263]
["27-0007","CM","Delta Contracting Company LLC",99.1,68.400000000000006,1000,1282.5,0,2500,null,null,null,null,null,null,null,null,null,null,null,null,null,null,null,null,null,null,null,null,null,null,null,null,null,null,null,null,null,null,null,null,null,null,null,null,null,null,1282.5000286102295]
["27-0009","TM","ConAgra Foods Packaged Foods LLC dba ConAgra Foods-Humboldt",15.11,25.400000000000002,null,476.25,0,null,550,null,null,null,null,null,null,null,null,null,null,null,null,null,null,null,null,null,null,null,null,null,null,null,null,null,null,null,null,null,null,null,null,null,null,null,null,null,476.24999284744263]
["27-0010","CM","U.S. Army Milan Army Ammunition Plant American Ordnance LLC",22,347.9,2000,6523.12,0,3500,null,null,null,null,null,null,null,null,null,null,null,null,null,null,null,null,null,null,null,null,null,null,null,null,null,null,null,null,null,null,null,null,null,null,null,null,null,null,6523.124885559082]
["27-0019","CM","Wisconsin Box",22.8,46.95,500,880.31,0,1500,null,null,null,null,null,null,null,null,null,null,null,null,null,null,null,null,null,null,null,null,null,null,null,null,null,null,null,null,null,null,null,null,null,null,null,null,null,null,880.31251430511475]
["27-0028","TM","Humboldt Cotton, LLC dba Farmers Gin of Humboldt",0,44.5,null,834.38,0,null,550,null,null,null,null,null,null,null,null,null,null,null,null,null,null,null,null,null,null,null,null,null,null,null,null,null,null,null,null,null,null,null,null,null,null,null,null,null,834.375]
["27-0072","TM","Dyer Fiberglass, Inc.",0,31.93,null,598.69000000000005,0,null,550,null,null,null,null,null,null,null,null,null,null,null,null,null,null,null,null,null,null,null,null,null,null,null,null,null,null,null,null,null,null,null,null,null,null,null,null,null,598.6875057220459]
["27-0087","TM","The Andersons Inc.",3.13,77.899999999999991,null,1460.62,0,null,650,null,null,null,null,null,null,null,null,null,null,null,null,null,null,null,null,null,null,null,null,null,null,null,null,null,null,null,null,null,null,null,null,null,null,null,null,null,1460.6250286102295]
["27-0092","TM","WestRock CP, LLC",7.7,94.8,null,1777.5,0,null,650,null,null,null,null,null,null,null,null,null,null,null,null,null,null,null,null,null,null,null,null,null,null,null,null,null,null,null,null,null,null,null,null,null,null,null,null,null,1777.500057220459]
["27-0119","CM","Futuris/CNI",0,105.6,1000,1980,0,2000,null,null,null,null,null,null,null,null,null,null,null,null,null,null,null,null,null,null,null,null,null,null,null,null,null,null,null,null,null,null,null,null,null,null,null,null,null,null,1979.9999713897705]
["27-0129","CM","Dana Commercial Vehicle Products, LLC",0,127.2,1000,2385,0,2250,null,null,null,null,null,null,null,null,null,null,null,null,null,null,null,null,null,null,null,null,null,null,null,null,null,null,null,null,null,null,null,null,null,null,null,null,null,null,2384.999942779541]
["27-0149","TM","Wisconsin Motors Llc",95,67.900000000000006,null,1273.1199999999999,0,null,600,null,null,null,null,null,null,null,null,null,null,null,null,null,null,null,null,null,null,null,null,null,null,null,null,null,null,null,null,null,null,null,null,null,null,null,null,null,1273.1250286102295]
["27-0150","CM","Martin Paving Company Inc.",84,53,1000,993.75,0,2250,null,null,null,null,null,null,null,null,null,null,null,null,null,null,null,null,null,null,null,null,null,null,null,null,null,null,null,null,null,null,null,null,null,null,null,null,null,null,993.75]
["27-0151","TM","The Andersons Inc",0.504,13.436999999999999,null,251.94,0,null,500,null,null,null,null,null,null,null,null,null,null,null,null,null,null,null,null,null,null,null,null,null,null,null,null,null,null,null,null,null,null,null,null,null,null,null,null,null,251.94375514984131]
["27-0154","CM","Chicago Metallic Bundy Bakeware, LLC",0,125.10000000000001,1000,2345.62,0,2250,null,null,null,null,null,null,null,null,null,null,null,null,null,null,null,null,null,null,null,null,null,null,null,null,null,null,null,null,null,null,null,null,null,null,null,null,null,null,2345.6249713897705]
["27-0155","TM","Yorkville Gin Company",0,50,null,937.5,0,null,600,null,null,null,null,null,null,null,null,null,null,null,null,null,null,null,null,null,null,null,null,null,null,null,null,null,null,null,null,null,null,null,null,null,null,null,null,null,937.5]
["27-0173","TM","Jones Company  Limited",2.2000000000000002,28.000000000000004,null,525,0,null,550,null,null,null,null,null,null,null,null,null,null,null,null,null,null,null,null,null,null,null,null,null,null,null,null,null,null,null,null,null,null,null,null,null,null,null,null,null,525]
["27-0174","CM","American Woodmark",0,181.53,1000,3403.69,0,2750,null,null,null,null,null,null,null,null,null,null,null,null,null,null,null,null,null,null,null,null,null,null,null,null,null,null,null,null,null,null,null,null,null,null,null,null,null,null,3403.6874771118164]
["27-0178","TM","The Andersons Inc",0,20.399999999999999,null,382.5,0,null,500,null,null,null,null,null,null,null,null,null,null,null,null,null,null,null,null,null,null,null,null,null,null,null,null,null,null,null,null,null,null,null,null,null,null,null,null,null,382.49999284744263]
["27-0185","TM","Milan Public Works & Landfill",5.0999999999999996,21.9,null,410.62,0,null,500,null,null,null,null,null,null,null,null,null,null,null,null,null,null,null,null,null,null,null,null,null,null,null,null,null,null,null,null,null,null,null,null,null,null,null,null,null,410.62499284744263]
["27-0187","TM","Dura Automotive Systems, Inc.",0,32.9,null,616.88,0,null,550,null,null,null,null,null,null,null,null,null,null,null,null,null,null,null,null,null,null,null,null,null,null,null,null,null,null,null,null,null,null,null,null,null,null,null,null,null,616.87502861022949]
["27-0218","TM","Milan General Hospital, Inc",12.500000000000002,92.9,null,1741.88,0,null,650,null,null,null,null,null,null,null,null,null,null,null,null,null,null,null,null,null,null,null,null,null,null,null,null,null,null,null,null,null,null,null,null,null,null,null,null,null,1741.8750286102295]
["27-0221","CM","Silgan Containers Manufacturing Corporation",5.77,88.87,500,1666.31,0,1750,null,null,null,null,null,null,null,null,null,null,null,null,null,null,null,null,null,null,null,null,null,null,null,null,null,null,null,null,null,null,null,null,null,null,null,null,null,null,1666.3125514984131]
["27-0241","TM","Big Bend Galvanizing, LLC",0,45.480000000000004,null,852.75,0,null,550,null,null,null,null,null,null,null,null,null,null,null,null,null,null,null,null,null,null,null,null,null,null,null,null,null,null,null,null,null,null,null,null,null,null,null,null,null,852.74999141693115]
["27-0254","TM","The Andersons, Inc. - Humboldt Grain",4.2699999999999996,92.77000000000001,null,1739.44,0,null,650,null,null,null,null,null,null,null,null,null,null,null,null,null,null,null,null,null,null,null,null,null,null,null,null,null,null,null,null,null,null,null,null,null,null,null,null,null,1739.4374370574951]
["28-0009","CM","Rogers Group  Inc.",13,206.2,1000,3866.25,0,3000,null,null,null,null,null,null,null,null,null,null,null,null,null,null,null,null,null,null,null,null,null,null,null,null,null,null,null,null,null,null,null,null,null,null,null,null,null,null,3866.249942779541]
["28-0010","CM","Magneti Marelli of Tennessee dba Automotive Lighting North America, LLC",2.9200000000000004,219.41,1000,4113.9399999999996,0,3000,null,null,null,null,null,null,null,null,null,null,null,null,null,null,null,null,null,null,null,null,null,null,null,null,null,null,null,null,null,null,null,null,null,null,null,null,null,null,4113.9375686645508]
["28-0011","CM","Rogers Group  Inc.",60,56.6,1000,1061.25,0,2000,null,null,null,null,null,null,null,null,null,null,null,null,null,null,null,null,null,null,null,null,null,null,null,null,null,null,null,null,null,null,null,null,null,null,null,null,null,null,1061.2499713897705]
["28-0022","TM","Frito Lay, Incorporated",21.200000000000003,91.6,null,1717.5,0,null,650,null,null,null,null,null,null,null,null,null,null,null,null,null,null,null,null,null,null,null,null,null,null,null,null,null,null,null,null,null,null,null,null,null,null,null,null,null,1717.4999713897705]
["28-0048","TM","Tennessee Valley Recycling, LLC",0,17.5,null,328.12,0,null,500,null,null,null,null,null,null,null,null,null,null,null,null,null,null,null,null,null,null,null,null,null,null,null,null,null,null,null,null,null,null,null,null,null,null,null,null,null,328.125]
["28-0067","TM","Pro Rac Company, Inc.",0,17.39,null,326.06,0,null,500,null,null,null,null,null,null,null,null,null,null,null,null,null,null,null,null,null,null,null,null,null,null,null,null,null,null,null,null,null,null,null,null,null,null,null,null,null,326.0624885559082]
["28-0069","TM","National Copper LLC",44.02,57.86,null,1084.8800000000001,0,null,600,null,null,null,null,null,null,null,null,null,null,null,null,null,null,null,null,null,null,null,null,null,null,null,null,null,null,null,null,null,null,null,null,null,null,null,null,null,1084.8750114440918]
["28-0081","TM","Pulaski Web, Inc.",0,16.3,null,305.62,0,null,500,null,null,null,null,null,null,null,null,null,null,null,null,null,null,null,null,null,null,null,null,null,null,null,null,null,null,null,null,null,null,null,null,null,null,null,null,null,305.62498569488525]
["28-0090","TM","Valley Packaging Corporation",0,47.400000000000006,null,888.75,0,null,550,null,null,null,null,null,null,null,null,null,null,null,null,null,null,null,null,null,null,null,null,null,null,null,null,null,null,null,null,null,null,null,null,null,null,null,null,null,888.75002861022949]
["28-0092","CM","Rogers Group, - Highway 11 Quarry",13.4,81.8,500,1533.75,0,1750,null,null,null,null,null,null,null,null,null,null,null,null,null,null,null,null,null,null,null,null,null,null,null,null,null,null,null,null,null,null,null,null,null,null,null,null,null,null,1533.750057220459]
["28-0096","TM","Bert-Co Industries dba Bert-Co Graphics",0,40,null,750,0,null,550,null,null,null,null,null,null,null,null,null,null,null,null,null,null,null,null,null,null,null,null,null,null,null,null,null,null,null,null,null,null,null,null,null,null,null,null,null,750]
["28-0097","TM","City Of Pulaski",4.4000000000000004,19,null,356.25,0,null,500,null,null,null,null,null,null,null,null,null,null,null,null,null,null,null,null,null,null,null,null,null,null,null,null,null,null,null,null,null,null,null,null,null,null,null,null,null,356.25]
["28-0098","TM","Twin City Clarage, Inc.",0,106.9,null,2004.38,0,null,700,null,null,null,null,null,null,null,null,null,null,null,null,null,null,null,null,null,null,null,null,null,null,null,null,null,null,null,null,null,null,null,null,null,null,null,null,null,2004.3750286102295]
["28-0123","TM","G4 2010, LLC",0,55.2,null,1035,0,null,600,null,null,null,null,null,null,null,null,null,null,null,null,null,null,null,null,null,null,null,null,null,null,null,null,null,null,null,null,null,null,null,null,null,null,null,null,null,1035.0000143051147]
["28-0131","TM","G4 2010, LLC",0,55.5,null,1040.6199999999999,0,null,600,null,null,null,null,null,null,null,null,null,null,null,null,null,null,null,null,null,null,null,null,null,null,null,null,null,null,null,null,null,null,null,null,null,null,null,null,null,1040.625]
["28-0132","TM","Valley Packaging Corporation",0,58.300000000000004,null,1093.1199999999999,0,null,600,null,null,null,null,null,null,null,null,null,null,null,null,null,null,null,null,null,null,null,null,null,null,null,null,null,null,null,null,null,null,null,null,null,null,null,null,null,1093.1249856948853]
["28-0147","TM","Proper Polymers-Pulaski LLC dba Proper Polymers",0,18.68,null,350.25,0,null,500,null,null,null,null,null,null,null,null,null,null,null,null,null,null,null,null,null,null,null,null,null,null,null,null,null,null,null,null,null,null,null,null,null,null,null,null,null,350.2500057220459]
["29-0001","TM","Sexton Furniture Manufacturing, LLC",0,26.7,null,500.62,0,null,550,null,null,null,null,null,null,null,null,null,null,null,null,null,null,null,null,null,null,null,null,null,null,null,null,null,null,null,null,null,null,null,null,null,null,null,null,null,500.62501430511475]
["29-0004","CM","Norris Homes",0,167.05,1000,3132.19,0,2500,null,null,null,null,null,null,null,null,null,null,null,null,null,null,null,null,null,null,null,null,null,null,null,null,null,null,null,null,null,null,null,null,null,null,null,null,null,null,3132.187557220459]
["29-0026","CM","CMH Manufacturing, Inc. dba Clayton Homes - Rutledge",0,141,1000,2643.75,0,2250,null,null,null,null,null,null,null,null,null,null,null,null,null,null,null,null,null,null,null,null,null,null,null,null,null,null,null,null,null,null,null,null,null,null,null,null,null,null,2643.75]
["29-0032","TM","Highland Furniture",0,44.2,null,828.75,0,null,550,null,null,null,null,null,null,null,null,null,null,null,null,null,null,null,null,null,null,null,null,null,null,null,null,null,null,null,null,null,null,null,null,null,null,null,null,null,828.75001430511475]
["29-0035","TM","T & D Furniture Co",0,11.8,null,221.25,0,null,500,null,null,null,null,null,null,null,null,null,null,null,null,null,null,null,null,null,null,null,null,null,null,null,null,null,null,null,null,null,null,null,null,null,null,null,null,null,221.25000357627869]
["29-0038","TM","Hurst Trailers",0,47.6,null,892.5,0,null,550,null,null,null,null,null,null,null,null,null,null,null,null,null,null,null,null,null,null,null,null,null,null,null,null,null,null,null,null,null,null,null,null,null,null,null,null,null,892.49997138977051]
["29-0039","TM","BWI ETN LLC dba Blue Water Industries BWI Riverbend LLC Quarry",0,55.1,null,1033.1199999999999,0,null,600,null,null,null,null,null,null,null,null,null,null,null,null,null,null,null,null,null,null,null,null,null,null,null,null,null,null,null,null,null,null,null,null,null,null,null,null,null,1033.1249713897705]
["29-0041","TM","Ridgeline, Inc.",0,23.41,null,438.94,0,null,500,null,null,null,null,null,null,null,null,null,null,null,null,null,null,null,null,null,null,null,null,null,null,null,null,null,null,null,null,null,null,null,null,null,null,null,null,null,438.93749713897705]
["29-0061","TM","Vulcan Construction Materials, LLC dba Grainger County Quarry",0,54,null,1012.5,0,null,600,null,null,null,null,null,null,null,null,null,null,null,null,null,null,null,null,null,null,null,null,null,null,null,null,null,null,null,null,null,null,null,null,null,null,null,null,null,1012.5]
["30-0009","CM","Jarden Zinc Products, LLC",3.02,204.81399999999999,1000,3840.26,0,3000,null,null,null,null,null,null,null,null,null,null,null,null,null,null,null,null,null,null,null,null,null,null,null,null,null,null,null,null,null,null,null,null,null,null,null,null,null,null,3840.2624130249023]
["30-0021","TM","Vulcan Construction Materials, LLC dba Greeneville Quarry",0,109.9,null,2060.62,0,null,700,null,null,null,null,null,null,null,null,null,null,null,null,null,null,null,null,null,null,null,null,null,null,null,null,null,null,null,null,null,null,null,null,null,null,null,null,null,2060.6250286102295]
["30-0032","TM","Vulcan Construction Materials, LLC dba Greystone Sand & Gravel",0,130.9,null,2454.38,0,null,750,null,null,null,null,null,null,null,null,null,null,null,null,null,null,null,null,null,null,null,null,null,null,null,null,null,null,null,null,null,null,null,null,null,null,null,null,null,2454.374885559082]
["30-0048","TM","Takoma Regional  Hospital",7.4,62.3,null,1168.1199999999999,0,null,600,null,null,null,null,null,null,null,null,null,null,null,null,null,null,null,null,null,null,null,null,null,null,null,null,null,null,null,null,null,null,null,null,null,null,null,null,null,1168.1249856948853]
["30-0055","TM","Laughlin Memorial Hospital",9.6499999999999986,139.87,null,2622.56,0,null,750,null,null,null,null,null,null,null,null,null,null,null,null,null,null,null,null,null,null,null,null,null,null,null,null,null,null,null,null,null,null,null,null,null,null,null,null,null,2622.5624084472656]
["30-0074","CM","Summers Taylor Materials",33.299999999999997,85.22,1000,1597.88,0,2000,null,null,null,null,null,null,null,null,null,null,null,null,null,null,null,null,null,null,null,null,null,null,null,null,null,null,null,null,null,null,null,null,null,null,null,null,null,null,1597.8750228881836]
["30-0085","CM","Parker Hannifin",2,119.8,1000,2246.25,0,2000,null,null,null,null,null,null,null,null,null,null,null,null,null,null,null,null,null,null,null,null,null,null,null,null,null,null,null,null,null,null,null,null,null,null,null,null,null,null,2246.250057220459]
["30-0091","TM","Ready Mix USA LLC dba Greeneville Concrete Plant",0,56.5,null,1059.3800000000001,0,null,600,null,null,null,null,null,null,null,null,null,null,null,null,null,null,null,null,null,null,null,null,null,null,null,null,null,null,null,null,null,null,null,null,null,null,null,null,null,1059.375]
["30-0128","TM","Terra-Mulch Products LLC",0,22.439999999999998,null,420.75,0,null,500,null,null,null,null,null,null,null,null,null,null,null,null,null,null,null,null,null,null,null,null,null,null,null,null,null,null,null,null,null,null,null,null,null,null,null,null,null,420.75001001358032]
["30-0129","CM","Ceradyne, Inc.",0,71.900000000000006,500,1348.12,0,1500,null,null,null,null,null,null,null,null,null,null,null,null,null,null,null,null,null,null,null,null,null,null,null,null,null,null,null,null,null,null,null,null,null,null,null,null,null,null,1348.1250286102295]
["30-0139","TM","Meco Corporation",14.690000000000001,72.5,null,1359.38,0,null,600,null,null,null,null,null,null,null,null,null,null,null,null,null,null,null,null,null,null,null,null,null,null,null,null,null,null,null,null,null,null,null,null,null,null,null,null,null,1359.375]
["30-0144","CM","Cutshaw Industries LLC dba Monk Industries",0,42.9,250,804.38,0,1250,null,null,null,null,null,null,null,null,null,null,null,null,null,null,null,null,null,null,null,null,null,null,null,null,null,null,null,null,null,null,null,null,null,null,null,null,null,null,804.37502861022949]
["30-0147","CM","Imerys Fused Minerals Greeneville, Inc.",0,118.47,1000,2221.31,0,2000,null,null,null,null,null,null,null,null,null,null,null,null,null,null,null,null,null,null,null,null,null,null,null,null,null,null,null,null,null,null,null,null,null,null,null,null,null,null,2221.3125228881836]
["30-0167","TM","Summers Taylor Materials",0,12.29,null,230.44,0,null,500,null,null,null,null,null,null,null,null,null,null,null,null,null,null,null,null,null,null,null,null,null,null,null,null,null,null,null,null,null,null,null,null,null,null,null,null,null,230.43749928474426]
["30-0169","CM","Miller/Greeneville Inc.",0,116.50000000000001,1000,2184.38,0,2000,null,null,null,null,null,null,null,null,null,null,null,null,null,null,null,null,null,null,null,null,null,null,null,null,null,null,null,null,null,null,null,null,null,null,null,null,null,null,2184.375]
["30-0176","CM","Scepter, Inc.",30.53,143.31,1000,2687.06,0,2500,null,null,null,null,null,null,null,null,null,null,null,null,null,null,null,null,null,null,null,null,null,null,null,null,null,null,null,null,null,null,null,null,null,null,null,null,null,null,2687.0624542236328]
["30-0177","CM","Oldcastle Building Envelope",0,185.82000000000002,1000,3484.12,0,2750,null,null,null,null,null,null,null,null,null,null,null,null,null,null,null,null,null,null,null,null,null,null,null,null,null,null,null,null,null,null,null,null,null,null,null,null,null,null,3484.1251373291016]
["30-0181","TM","East Tennessee Forest Products, Inc.",0,50.2,null,941.25,0,null,600,null,null,null,null,null,null,null,null,null,null,null,null,null,null,null,null,null,null,null,null,null,null,null,null,null,null,null,null,null,null,null,null,null,null,null,null,null,941.25001430511475]
["30-0183","TM","E.T.N.G.  Flatwoods Station 3306",29.849999999999998,29.930800000000001,null,561.20000000000005,0,null,550,null,null,null,null,null,null,null,null,null,null,null,null,null,null,null,null,null,null,null,null,null,null,null,null,null,null,null,null,null,null,null,null,null,null,null,null,null,561.20249032974243]
["30-0185","CM","John Deere Power Products",98.628,198.42300000000003,2000,3720.43,0,3500,null,null,null,null,null,null,null,null,null,null,null,null,null,null,null,null,null,null,null,null,null,null,null,null,null,null,null,null,null,null,null,null,null,null,null,null,null,null,3720.4313278198242]
["30-0248","CM","US Nitrogen LLC",95.529999999999987,117.52999999999999,1000,2203.69,0,3000,null,null,null,null,null,null,null,null,null,null,null,null,null,null,null,null,null,null,null,null,null,null,null,null,null,null,null,null,null,null,null,null,null,null,null,null,null,null,2203.6874771118164]
["30-0251","TM","TEG Enterprises, Inc.",0,28.47,null,533.80999999999995,0,null,550,null,null,null,null,null,null,null,null,null,null,null,null,null,null,null,null,null,null,null,null,null,null,null,null,null,null,null,null,null,null,null,null,null,null,null,null,null,533.81248712539673]
["30-0261","TM","Food City Gas N Go 663",0,11.2,null,210,0,null,500,null,null,null,null,null,null,null,null,null,null,null,null,null,null,null,null,null,null,null,null,null,null,null,null,null,null,null,null,null,null,null,null,null,null,null,null,null,209.99999642372131]
["30-0262","CM","Huf-North America",3,70.94,500,1330.12,0,1500,null,null,null,null,null,null,null,null,null,null,null,null,null,null,null,null,null,null,null,null,null,null,null,null,null,null,null,null,null,null,null,null,null,null,null,null,null,null,1330.1250457763672]
["30-0268","TM","Dakota Packaging Solutions, LLC",0,18,null,337.5,0,null,500,null,null,null,null,null,null,null,null,null,null,null,null,null,null,null,null,null,null,null,null,null,null,null,null,null,null,null,null,null,null,null,null,null,null,null,null,null,337.5]
["31-0013","TM","Tri-County Stone Company, Inc.",0,20.95,null,392.81,0,null,500,null,null,null,null,null,null,null,null,null,null,null,null,null,null,null,null,null,null,null,null,null,null,null,null,null,null,null,null,null,null,null,null,null,null,null,null,null,392.81251430511475]
["31-0032","TM","Seymour Manufacturing Company",0,28.6,null,536.25,0,null,550,null,null,null,null,null,null,null,null,null,null,null,null,null,null,null,null,null,null,null,null,null,null,null,null,null,null,null,null,null,null,null,null,null,null,null,null,null,536.25000715255737]
["32-0018","CM","Iconex, LLC",0,115,1000,2156.25,0,2000,null,null,null,null,null,null,null,null,null,null,null,null,null,null,null,null,null,null,null,null,null,null,null,null,null,null,null,null,null,null,null,null,null,null,null,null,null,null,2156.25]
["32-0028","CM","International Paper Company",14.3,318.2,2000,5966.25,0,3500,null,null,null,null,null,null,null,null,null,null,null,null,null,null,null,null,null,null,null,null,null,null,null,null,null,null,null,null,null,null,null,null,null,null,null,null,null,null,5966.2502288818359]
["32-0029","CM","Hardwoods Of Morristown  Inc.",65.959999999999994,158.64000000000001,1000,2974.5,0,3000,null,null,null,null,null,null,null,null,null,null,null,null,null,null,null,null,null,null,null,null,null,null,null,null,null,null,null,null,null,null,null,null,null,null,null,null,null,null,2974.4999885559082]
["32-0048","TM","Besturnings Inc",0,42.6,null,798.75,0,null,550,null,null,null,null,null,null,null,null,null,null,null,null,null,null,null,null,null,null,null,null,null,null,null,null,null,null,null,null,null,null,null,null,null,null,null,null,null,798.74997138977051]
["32-0076","TM","Morristown Hamblen Hospital",0,59.019999999999996,null,1106.6199999999999,0,null,600,null,null,null,null,null,null,null,null,null,null,null,null,null,null,null,null,null,null,null,null,null,null,null,null,null,null,null,null,null,null,null,null,null,null,null,null,null,1106.6250085830688]
["32-0078","TM","Forenta, L.P.",0,96,null,1800,0,null,650,null,null,null,null,null,null,null,null,null,null,null,null,null,null,null,null,null,null,null,null,null,null,null,null,null,null,null,null,null,null,null,null,null,null,null,null,null,1800]
["32-0087","TM","Summers Taylor Materials\t",0,78.84,null,1478.25,0,null,650,null,null,null,null,null,null,null,null,null,null,null,null,null,null,null,null,null,null,null,null,null,null,null,null,null,null,null,null,null,null,null,null,null,null,null,null,null,1478.2499313354492]
["32-0088","TM","Vulcan Construction Materials, LLC dba Morristown Quarry",0,108.30000000000001,null,2030.62,0,null,700,null,null,null,null,null,null,null,null,null,null,null,null,null,null,null,null,null,null,null,null,null,null,null,null,null,null,null,null,null,null,null,null,null,null,null,null,null,2030.625057220459]
["32-0091","TM","APAC - Atlantic, Inc./Harrison Division dba CMI Morristown Concrete",0,116.4,null,2182.5,0,null,700,null,null,null,null,null,null,null,null,null,null,null,null,null,null,null,null,null,null,null,null,null,null,null,null,null,null,null,null,null,null,null,null,null,null,null,null,null,2182.5000286102295]
["32-0096","CM","Pioneer Plastics Corp. (Panolam Industries)",14.3,174.60999999999999,1000,3273.94,0,2750,null,null,null,null,null,null,null,null,null,null,null,null,null,null,null,null,null,null,null,null,null,null,null,null,null,null,null,null,null,null,null,null,null,null,null,null,null,null,3273.9375114440918]
["32-0115","TM","Jeffrey Chain LP dba Renold Jeffrey",0,100.04,null,1875.75,0,null,700,null,null,null,null,null,null,null,null,null,null,null,null,null,null,null,null,null,null,null,null,null,null,null,null,null,null,null,null,null,null,null,null,null,null,null,null,null,1875.7500171661377]
["32-0141","TM","Morristown Concrete Products",0,19,null,356.25,0,null,500,null,null,null,null,null,null,null,null,null,null,null,null,null,null,null,null,null,null,null,null,null,null,null,null,null,null,null,null,null,null,null,null,null,null,null,null,null,356.25]
["32-0142","TM","Woodcraft Inc",30.75,85.53,null,1603.69,0,null,650,null,null,null,null,null,null,null,null,null,null,null,null,null,null,null,null,null,null,null,null,null,null,null,null,null,null,null,null,null,null,null,null,null,null,null,null,null,1603.6874771118164]
["32-0145","CM","MAHLE Engine Components USA, Inc.",11.950000000000001,58.82,500,1102.8800000000001,0,1500,null,null,null,null,null,null,null,null,null,null,null,null,null,null,null,null,null,null,null,null,null,null,null,null,null,null,null,null,null,null,null,null,null,null,null,null,null,null,1102.8749942779541]
["32-0156","TM","Morristown Shredder  Inc.",0,133,null,2493.75,0,null,750,null,null,null,null,null,null,null,null,null,null,null,null,null,null,null,null,null,null,null,null,null,null,null,null,null,null,null,null,null,null,null,null,null,null,null,null,null,2493.75]
["32-0168","TM","Carpenter Company",0,73.900000000000006,null,1385.62,0,null,600,null,null,null,null,null,null,null,null,null,null,null,null,null,null,null,null,null,null,null,null,null,null,null,null,null,null,null,null,null,null,null,null,null,null,null,null,null,1385.6250286102295]
["32-0172","CM","APAC - Atlantic, Inc./Harrison Division dba Morristown Asphalt Plant",39,68.7,1000,1288.1199999999999,0,2000,null,null,null,null,null,null,null,null,null,null,null,null,null,null,null,null,null,null,null,null,null,null,null,null,null,null,null,null,null,null,null,null,null,null,null,null,null,null,1288.124942779541]
["32-0189","TM","Hamblen County - Morristown Solid Waste System dba Hamblen County Landfill",8.6999999999999993,37.400000000000006,null,701.25,0,null,550,null,null,null,null,null,null,null,null,null,null,null,null,null,null,null,null,null,null,null,null,null,null,null,null,null,null,null,null,null,null,null,null,null,null,null,null,null,701.25002861022949]
["32-0195","TM","Stewart Lumber Company,  Inc.",5.41,40.06,null,751.12,0,null,550,null,null,null,null,null,null,null,null,null,null,null,null,null,null,null,null,null,null,null,null,null,null,null,null,null,null,null,null,null,null,null,null,null,null,null,null,null,751.12502574920654]
["32-0202","TM","UFP Morristown, LLC",0,49.3,null,924.38,0,null,550,null,null,null,null,null,null,null,null,null,null,null,null,null,null,null,null,null,null,null,null,null,null,null,null,null,null,null,null,null,null,null,null,null,null,null,null,null,924.37498569488525]
["32-0207","TM","Inteplast Bags and Films Corporation (IBFC)",12.629999999999999,37.769999999999996,null,708.19,0,null,550,null,null,null,null,null,null,null,null,null,null,null,null,null,null,null,null,null,null,null,null,null,null,null,null,null,null,null,null,null,null,null,null,null,null,null,null,null,708.18750858306885]
["32-0213","TM","Jones Fiber Products, Inc.",2.2000000000000002,88.36,null,1656.75,0,null,650,null,null,null,null,null,null,null,null,null,null,null,null,null,null,null,null,null,null,null,null,null,null,null,null,null,null,null,null,null,null,null,null,null,null,null,null,null,1656.7500114440918]
["32-0215","TM","Koch Foods of Morristown, LLC",11.58,92.408999999999992,null,1732.67,0,null,650,null,null,null,null,null,null,null,null,null,null,null,null,null,null,null,null,null,null,null,null,null,null,null,null,null,null,null,null,null,null,null,null,null,null,null,null,null,1732.6686859130859]
["32-0238","TM","Colgate-Palmolive Company",22.058,98.080999999999989,null,1839.02,0,null,650,null,null,null,null,null,null,null,null,null,null,null,null,null,null,null,null,null,null,null,null,null,null,null,null,null,null,null,null,null,null,null,null,null,null,null,null,null,1839.0187740325928]
["32-0239","TM","Precision Flooring Products, Inc.",0,38.6,null,723.75,0,null,550,null,null,null,null,null,null,null,null,null,null,null,null,null,null,null,null,null,null,null,null,null,null,null,null,null,null,null,null,null,null,null,null,null,null,null,null,null,723.74997138977051]
["32-0280","TM","Daniel Paul Chairs LLC",0,53.2,null,997.5,0,null,600,null,null,null,null,null,null,null,null,null,null,null,null,null,null,null,null,null,null,null,null,null,null,null,null,null,null,null,null,null,null,null,null,null,null,null,null,null,997.50001430511475]
["32-0282","TM","Wellco Enterprises, Inc.",0,117.5,null,2203.12,0,null,700,null,null,null,null,null,null,null,null,null,null,null,null,null,null,null,null,null,null,null,null,null,null,null,null,null,null,null,null,null,null,null,null,null,null,null,null,null,2203.125]
["32-0309","CM","Koch Tenn. Inc",16.559999999999999,177.82999999999998,1000,3334.31,0,2750,null,null,null,null,null,null,null,null,null,null,null,null,null,null,null,null,null,null,null,null,null,null,null,null,null,null,null,null,null,null,null,null,null,null,null,null,null,null,3334.3125343322754]
["32-0311","TM","Oddello Industries, LLC",0,88.15,null,1652.81,0,null,650,null,null,null,null,null,null,null,null,null,null,null,null,null,null,null,null,null,null,null,null,null,null,null,null,null,null,null,null,null,null,null,null,null,null,null,null,null,1652.8125286102295]
["32-0315","TM","Weigel's  81",0,27.9,null,523.12,0,null,550,null,null,null,null,null,null,null,null,null,null,null,null,null,null,null,null,null,null,null,null,null,null,null,null,null,null,null,null,null,null,null,null,null,null,null,null,null,523.12499284744263]
["33-0478","TM","TDOGS dba Moccasin Bend Mental Health Facility, Project SBC 344/009-01-2012",4.8600000000000003,94.149999999999991,null,1765.31,0,null,650,null,null,null,null,null,null,null,null,null,null,null,null,null,null,null,null,null,null,null,null,null,null,null,null,null,null,null,null,null,null,null,null,null,null,null,null,null,1765.3125286102295]
["34-0011","CM","Hackney Contract Furniture",0,153.30000000000001,1000,2874.38,0,2500,null,null,null,null,null,null,null,null,null,null,null,null,null,null,null,null,null,null,null,null,null,null,null,null,null,null,null,null,null,null,null,null,null,null,null,null,null,null,2874.375057220459]
["34-0133","TM","Kiefer Mfg and Sales, LLC",0,52.29,null,980.44,0,null,600,null,null,null,null,null,null,null,null,null,null,null,null,null,null,null,null,null,null,null,null,null,null,null,null,null,null,null,null,null,null,null,null,null,null,null,null,null,980.4375171661377]
["35-0053","CM","EP Minerals, LLC",99,358.9,2000,6729.38,0,3500,null,null,null,null,null,null,null,null,null,null,null,null,null,null,null,null,null,null,null,null,null,null,null,null,null,null,null,null,null,null,null,null,null,null,null,null,null,null,6729.374885559082]
["35-0054","CM","A. Schulman, Inc.",0,44.3,250,830.62,0,1250,null,null,null,null,null,null,null,null,null,null,null,null,null,null,null,null,null,null,null,null,null,null,null,null,null,null,null,null,null,null,null,null,null,null,null,null,null,null,830.62498569488525]
["35-0065","CM","Standard Construction Company, Inc. dba Whiteville Asphalt Plant",48.8,62.2,1000,1166.25,0,2000,null,null,null,null,null,null,null,null,null,null,null,null,null,null,null,null,null,null,null,null,null,null,null,null,null,null,null,null,null,null,null,null,null,null,null,null,null,null,1166.2500143051147]
["35-0072","TM","C & M Sawmill",0,91,null,1706.25,0,null,650,null,null,null,null,null,null,null,null,null,null,null,null,null,null,null,null,null,null,null,null,null,null,null,null,null,null,null,null,null,null,null,null,null,null,null,null,null,1706.25]
["35-0076","TM","Greg'S Sawmill",7,83.2,null,1560,0,null,650,null,null,null,null,null,null,null,null,null,null,null,null,null,null,null,null,null,null,null,null,null,null,null,null,null,null,null,null,null,null,null,null,null,null,null,null,null,1559.999942779541]
["35-0079","TM","Hardeman County Highway Department",34.1,23.500000000000004,null,440.62,0,null,500,null,null,null,null,null,null,null,null,null,null,null,null,null,null,null,null,null,null,null,null,null,null,null,null,null,null,null,null,null,null,null,null,null,null,null,null,null,440.625]
["35-0111","TM","B&J Sawmill and Lumber Company",3.06,65.19,null,1222.31,0,null,600,null,null,null,null,null,null,null,null,null,null,null,null,null,null,null,null,null,null,null,null,null,null,null,null,null,null,null,null,null,null,null,null,null,null,null,null,null,1222.3125457763672]
["36-0010","TM","Parris Manufacturing Co. Inc.",0,19.399999999999999,null,363.75,0,null,500,null,null,null,null,null,null,null,null,null,null,null,null,null,null,null,null,null,null,null,null,null,null,null,null,null,null,null,null,null,null,null,null,null,null,null,null,null,363.74999284744263]
["36-0013","TM","Vulcan Construction Materials, LLC dba Savanah Quarry",0,96.7,null,1813.12,0,null,650,null,null,null,null,null,null,null,null,null,null,null,null,null,null,null,null,null,null,null,null,null,null,null,null,null,null,null,null,null,null,null,null,null,null,null,null,null,1813.124942779541]
["36-0067","CM","Clayton Homes - Savannah",0,324,2000,6075,0,3500,null,null,null,null,null,null,null,null,null,null,null,null,null,null,null,null,null,null,null,null,null,null,null,null,null,null,null,null,null,null,null,null,null,null,null,null,null,null,6075]
["36-0079","CM","Delta Contracting Company  LLC",34.4,40.6,500,761.25,0,1750,null,null,null,null,null,null,null,null,null,null,null,null,null,null,null,null,null,null,null,null,null,null,null,null,null,null,null,null,null,null,null,null,null,null,null,null,null,null,761.24997138977051]
["36-0090","TM","River City Concrete, Inc.",0,11.13,null,208.69,0,null,500,null,null,null,null,null,null,null,null,null,null,null,null,null,null,null,null,null,null,null,null,null,null,null,null,null,null,null,null,null,null,null,null,null,null,null,null,null,208.68750214576721]
["36-0091","CM","J Hamm Company",45.5,69.48,1000,1302.75,0,2000,null,null,null,null,null,null,null,null,null,null,null,null,null,null,null,null,null,null,null,null,null,null,null,null,null,null,null,null,null,null,null,null,null,null,null,null,null,null,1302.7500629425049]
["36-0108","TM","Southern Plating, Inc.",0,46.400000000000006,null,870,0,null,550,null,null,null,null,null,null,null,null,null,null,null,null,null,null,null,null,null,null,null,null,null,null,null,null,null,null,null,null,null,null,null,null,null,null,null,null,null,870.00002861022949]
["36-0132","TM","Design Team Sign Company, LLC",0,106.75999999999999,null,2001.75,0,null,700,null,null,null,null,null,null,null,null,null,null,null,null,null,null,null,null,null,null,null,null,null,null,null,null,null,null,null,null,null,null,null,null,null,null,null,null,null,2001.7500400543213]
["37-0010","TM","Vulcan Construction Materials, LLC dba Rogersville Quarry",0,127.46000000000001,null,2389.88,0,null,750,null,null,null,null,null,null,null,null,null,null,null,null,null,null,null,null,null,null,null,null,null,null,null,null,null,null,null,null,null,null,null,null,null,null,null,null,null,2389.8749828338623]
["37-0043","TM","Summers Taylor Materials",0,17.27,null,323.81,0,null,500,null,null,null,null,null,null,null,null,null,null,null,null,null,null,null,null,null,null,null,null,null,null,null,null,null,null,null,null,null,null,null,null,null,null,null,null,null,323.81250858306885]
["37-0044","CM","APAC Atlantic Inc. / Harrison Construction dba Rogersville",20,15.4,250,288.75,0,1250,null,null,null,null,null,null,null,null,null,null,null,null,null,null,null,null,null,null,null,null,null,null,null,null,null,null,null,null,null,null,null,null,null,null,null,null,null,null,288.74999284744263]
["37-0062","CM","Barrette Outdoor Living, Inc.",0,91.315850000000012,500,1712.17,0,1750,null,null,null,null,null,null,null,null,null,null,null,null,null,null,null,null,null,null,null,null,null,null,null,null,null,null,null,null,null,null,null,null,null,null,null,null,null,null,1712.1721744537354]
["37-0064","CM","Short Mountan Silica",2,75.900000000000006,500,1423.12,0,1750,null,null,null,null,null,null,null,null,null,null,null,null,null,null,null,null,null,null,null,null,null,null,null,null,null,null,null,null,null,null,null,null,null,null,null,null,null,null,1423.1250286102295]
["37-0069","CM","Cooper Standard Automotive",0,125.2,1000,2347.5,0,2250,null,null,null,null,null,null,null,null,null,null,null,null,null,null,null,null,null,null,null,null,null,null,null,null,null,null,null,null,null,null,null,null,null,null,null,null,null,null,2347.499942779541]
["37-0079","TM","STA, LLC",6.8,148.39999999999998,null,2782.5,0,null,750,null,null,null,null,null,null,null,null,null,null,null,null,null,null,null,null,null,null,null,null,null,null,null,null,null,null,null,null,null,null,null,null,null,null,null,null,null,2782.499885559082]
["37-0088","TM","Continuum Midstream, LLC.",55.9,86.1,null,1614.38,0,null,650,null,null,null,null,null,null,null,null,null,null,null,null,null,null,null,null,null,null,null,null,null,null,null,null,null,null,null,null,null,null,null,null,null,null,null,null,null,1614.3749713897705]
["37-0122","TM","Frost Concrete, LLC",0,15.46,null,289.88,0,null,500,null,null,null,null,null,null,null,null,null,null,null,null,null,null,null,null,null,null,null,null,null,null,null,null,null,null,null,null,null,null,null,null,null,null,null,null,null,289.87500071525574]
["37-0123","TM","Continuum Midstream, LLC dba Rogersville Cryogenic Plant",51.7,70.599999999999994,null,1323.75,0,null,600,null,null,null,null,null,null,null,null,null,null,null,null,null,null,null,null,null,null,null,null,null,null,null,null,null,null,null,null,null,null,null,null,null,null,null,null,null,1323.7499713897705]
["37-0125","CM","Sam Dong Inc.",11.700000000000001,134.57999999999998,1000,2523.38,0,2250,null,null,null,null,null,null,null,null,null,null,null,null,null,null,null,null,null,null,null,null,null,null,null,null,null,null,null,null,null,null,null,null,null,null,null,null,null,null,2523.3750343322754]
["37-0127","TM","Feodore Industries, Inc",0,59.2,null,1110,0,null,600,null,null,null,null,null,null,null,null,null,null,null,null,null,null,null,null,null,null,null,null,null,null,null,null,null,null,null,null,null,null,null,null,null,null,null,null,null,1110.0000143051147]
["37-0128","TM","Appalachian Tank Car Services, Inc.",0,51.4,null,963.75,0,null,600,null,null,null,null,null,null,null,null,null,null,null,null,null,null,null,null,null,null,null,null,null,null,null,null,null,null,null,null,null,null,null,null,null,null,null,null,null,963.75002861022949]
["37-0134","TM","Tennessee Renewable Group LLC",69.239999999999995,90.39,null,1694.81,0,null,650,null,null,null,null,null,null,null,null,null,null,null,null,null,null,null,null,null,null,null,null,null,null,null,null,null,null,null,null,null,null,null,null,null,null,null,null,null,1694.8124885559082]
["37-0136","TM","Kingsport Book, LLC",0,12.3,null,230.62,0,null,500,null,null,null,null,null,null,null,null,null,null,null,null,null,null,null,null,null,null,null,null,null,null,null,null,null,null,null,null,null,null,null,null,null,null,null,null,null,230.62500357627869]
["37-0144","TM","Mooresburg Forest Products",2.65,28.82,null,540.38,0,null,550,null,null,null,null,null,null,null,null,null,null,null,null,null,null,null,null,null,null,null,null,null,null,null,null,null,null,null,null,null,null,null,null,null,null,null,null,null,540.3749942779541]
["37-0189","TM","Transformer Maintenance and Service",0,26.18,null,490.88,0,null,550,null,null,null,null,null,null,null,null,null,null,null,null,null,null,null,null,null,null,null,null,null,null,null,null,null,null,null,null,null,null,null,null,null,null,null,null,null,490.8750057220459]
["37-0190","TM","Homeland Vinyl Products, Inc.",1.3,13.2,null,247.5,0,null,500,null,null,null,null,null,null,null,null,null,null,null,null,null,null,null,null,null,null,null,null,null,null,null,null,null,null,null,null,null,null,null,null,null,null,null,null,null,247.49999642372131]
["37-0191","TM","Brandenburg Industrial Service Company dba TVA John Sevier Fossil Plant",0,21.8,null,408.75,0,null,500,null,null,null,null,null,null,null,null,null,null,null,null,null,null,null,null,null,null,null,null,null,null,null,null,null,null,null,null,null,null,null,null,null,null,null,null,null,408.74998569488525]
["38-0005","TM","Union Gin Company, Inc.",0,23.6,null,442.5,0,null,500,null,null,null,null,null,null,null,null,null,null,null,null,null,null,null,null,null,null,null,null,null,null,null,null,null,null,null,null,null,null,null,null,null,null,null,null,null,442.50000715255737]
["38-0009","TM","Nut Bush Gin Company Inc.",0,50.4,null,945,0,null,600,null,null,null,null,null,null,null,null,null,null,null,null,null,null,null,null,null,null,null,null,null,null,null,null,null,null,null,null,null,null,null,null,null,null,null,null,null,945.00002861022949]
["38-0016","TM","Tibbs Gin Company",0,48.8,null,915,0,null,550,null,null,null,null,null,null,null,null,null,null,null,null,null,null,null,null,null,null,null,null,null,null,null,null,null,null,null,null,null,null,null,null,null,null,null,null,null,914.99998569488525]
["38-0020","TM","Turnpike Gin LLC",0,48.8,null,915,0,null,550,null,null,null,null,null,null,null,null,null,null,null,null,null,null,null,null,null,null,null,null,null,null,null,null,null,null,null,null,null,null,null,null,null,null,null,null,null,914.99998569488525]
["38-0032","TM","Two Way Gin Company LLC",0,56,null,1050,0,null,600,null,null,null,null,null,null,null,null,null,null,null,null,null,null,null,null,null,null,null,null,null,null,null,null,null,null,null,null,null,null,null,null,null,null,null,null,null,1050]
["38-0065","TM","Cotton Unlimited, Tibbs Gin #2, LLC",0,39.4,null,738.75,0,null,550,null,null,null,null,null,null,null,null,null,null,null,null,null,null,null,null,null,null,null,null,null,null,null,null,null,null,null,null,null,null,null,null,null,null,null,null,null,738.75002861022949]
["38-0075","TM","B.T. Redi Mix Brownsville Plant",0,16.899999999999999,null,316.88,0,null,500,null,null,null,null,null,null,null,null,null,null,null,null,null,null,null,null,null,null,null,null,null,null,null,null,null,null,null,null,null,null,null,null,null,null,null,null,null,316.87499284744263]
["39-0057","CM","Fluid Routing Solutions, Inc.",36.200000000000003,169.1,1000,3170.62,0,3000,null,null,null,null,null,null,null,null,null,null,null,null,null,null,null,null,null,null,null,null,null,null,null,null,null,null,null,null,null,null,null,null,null,null,null,null,null,null,3170.625114440918]
["39-0060","CM","Volvo Penta Marine Products LLC",46.96,209.45000000000002,2000,3927.19,0,3500,null,null,null,null,null,null,null,null,null,null,null,null,null,null,null,null,null,null,null,null,null,null,null,null,null,null,null,null,null,null,null,null,null,null,null,null,null,null,3927.187442779541]
["39-0062","CM","Young Touchstone",0,64.72,500,1213.5,0,1500,null,null,null,null,null,null,null,null,null,null,null,null,null,null,null,null,null,null,null,null,null,null,null,null,null,null,null,null,null,null,null,null,null,null,null,null,null,null,1213.5000228881836]
["39-0064","CM","Arrow Paving Company  Inc.",17,20.100000000000001,250,376.88,0,1250,null,null,null,null,null,null,null,null,null,null,null,null,null,null,null,null,null,null,null,null,null,null,null,null,null,null,null,null,null,null,null,null,null,null,null,null,null,null,376.87500715255737]
["39-0074","TM","Nci Building Systems, L.P.",0,37,null,693.75,0,null,550,null,null,null,null,null,null,null,null,null,null,null,null,null,null,null,null,null,null,null,null,null,null,null,null,null,null,null,null,null,null,null,null,null,null,null,null,null,693.75]
["40-0010","CM","Spinks Clay Company Paris Plant",7.17,75.86999999999999,500,1422.56,0,1750,null,null,null,null,null,null,null,null,null,null,null,null,null,null,null,null,null,null,null,null,null,null,null,null,null,null,null,null,null,null,null,null,null,null,null,null,null,null,1422.5625514984131]
["40-0016","CM","Delta Contracting Company LLC",34.1,47.5,500,890.62,0,1750,null,null,null,null,null,null,null,null,null,null,null,null,null,null,null,null,null,null,null,null,null,null,null,null,null,null,null,null,null,null,null,null,null,null,null,null,null,null,890.625]
["40-0070","TM","Setco Automotive, NA, Inc.",0,14.1,null,264.38,0,null,500,null,null,null,null,null,null,null,null,null,null,null,null,null,null,null,null,null,null,null,null,null,null,null,null,null,null,null,null,null,null,null,null,null,null,null,null,null,264.37500715255737]
["40-0099","TM","Nobel Automotive Tennessee, LLC",0,99.5,null,1865.62,0,null,650,null,null,null,null,null,null,null,null,null,null,null,null,null,null,null,null,null,null,null,null,null,null,null,null,null,null,null,null,null,null,null,null,null,null,null,null,null,1865.625]
["40-0106","TM","Universal Coatings Corporation",0,46.4,null,870,0,null,550,null,null,null,null,null,null,null,null,null,null,null,null,null,null,null,null,null,null,null,null,null,null,null,null,null,null,null,null,null,null,null,null,null,null,null,null,null,870.00002861022949]
["40-0144","TM","Eurotranciatura USA",0,10,null,187.5,0,null,500,null,null,null,null,null,null,null,null,null,null,null,null,null,null,null,null,null,null,null,null,null,null,null,null,null,null,null,null,null,null,null,null,null,null,null,null,null,187.5]
["40-0146","TM","Kroger Limited Partnership I dba Kroger Fuel Center V-391",0,17.63,null,330.56,0,null,500,null,null,null,null,null,null,null,null,null,null,null,null,null,null,null,null,null,null,null,null,null,null,null,null,null,null,null,null,null,null,null,null,null,null,null,null,null,330.56248426437378]
["41-0009","TM","Freeman Lumber Company",0,45.32,null,849.75,0,null,550,null,null,null,null,null,null,null,null,null,null,null,null,null,null,null,null,null,null,null,null,null,null,null,null,null,null,null,null,null,null,null,null,null,null,null,null,null,849.7499942779541]
["41-0023","TM","Fabrication Specialties Corporation",0,50.54,null,947.62,0,null,600,null,null,null,null,null,null,null,null,null,null,null,null,null,null,null,null,null,null,null,null,null,null,null,null,null,null,null,null,null,null,null,null,null,null,null,null,null,947.6250171661377]
["41-0041","CM","Clark Container  Inc.",1.1299999999999999,49.61,500,930.19,0,1500,null,null,null,null,null,null,null,null,null,null,null,null,null,null,null,null,null,null,null,null,null,null,null,null,null,null,null,null,null,null,null,null,null,null,null,null,null,null,930.1875114440918]
["41-0055","TM","Smyrna Ready Mix LLC",0,10.83,null,203.06,0,null,500,null,null,null,null,null,null,null,null,null,null,null,null,null,null,null,null,null,null,null,null,null,null,null,null,null,null,null,null,null,null,null,null,null,null,null,null,null,203.06249856948853]
["41-0057","TM","Rogers Group, Inc. dba Hickman County Quarry",0,71.599999999999994,null,1342.5,0,null,600,null,null,null,null,null,null,null,null,null,null,null,null,null,null,null,null,null,null,null,null,null,null,null,null,null,null,null,null,null,null,null,null,null,null,null,null,null,1342.4999713897705]
["41-0062","TM","Stud Welding",0,32.700000000000003,null,613.12,0,null,550,null,null,null,null,null,null,null,null,null,null,null,null,null,null,null,null,null,null,null,null,null,null,null,null,null,null,null,null,null,null,null,null,null,null,null,null,null,613.12501430511475]
["41-0063","TM","Freeman Wood Products  Inc.",0,49.1,null,920.62,0,null,550,null,null,null,null,null,null,null,null,null,null,null,null,null,null,null,null,null,null,null,null,null,null,null,null,null,null,null,null,null,null,null,null,null,null,null,null,null,920.62497138977051]
["41-0084","TM","Tennessee Department of Correction Turney Center Industrial Complex",27.9,71.3,null,1336.88,0,null,600,null,null,null,null,null,null,null,null,null,null,null,null,null,null,null,null,null,null,null,null,null,null,null,null,null,null,null,null,null,null,null,null,null,null,null,null,null,1336.875057220459]
["41-0090","CM","Cumberland Products Group, LLC dba Turney Center Industrial Prison - Wood Product Plant",0,111.66999999999999,1000,2093.81,0,2000,null,null,null,null,null,null,null,null,null,null,null,null,null,null,null,null,null,null,null,null,null,null,null,null,null,null,null,null,null,null,null,null,null,null,null,null,null,null,2093.8124656677246]
["43-0006","CM","Scepter, Inc.",60,258.91000000000003,2000,4854.5600000000004,0,3500,null,null,null,null,null,null,null,null,null,null,null,null,null,null,null,null,null,null,null,null,null,null,null,null,null,null,null,null,null,null,null,null,null,null,null,null,null,null,4854.5625686645508]
["43-0037","TM","Matheson Tri-Gas Inc",3.9,58.470000000000006,null,1096.31,0,null,600,null,null,null,null,null,null,null,null,null,null,null,null,null,null,null,null,null,null,null,null,null,null,null,null,null,null,null,null,null,null,null,null,null,null,null,null,null,1096.3125228881836]
["43-0046","TM","Gavilon Grain, LLC dba New Johnsonville Elevator",3.6,38.5,null,721.88,0,null,550,null,null,null,null,null,null,null,null,null,null,null,null,null,null,null,null,null,null,null,null,null,null,null,null,null,null,null,null,null,null,null,null,null,null,null,null,null,721.875]
["43-0047","TM","Richardson Lumber Company, Inc. dba Waverly Wood",0,46.95,null,880.31,0,null,550,null,null,null,null,null,null,null,null,null,null,null,null,null,null,null,null,null,null,null,null,null,null,null,null,null,null,null,null,null,null,null,null,null,null,null,null,null,880.31251430511475]
["43-0058","TM","Watco Transloading, LLC dba WTPS New Johnsonville Terminal",0,12.3,null,230.62,0,null,500,null,null,null,null,null,null,null,null,null,null,null,null,null,null,null,null,null,null,null,null,null,null,null,null,null,null,null,null,null,null,null,null,null,null,null,null,null,230.62500357627869]
["43-0061","TM","Airgas USA, LLC dba Airgas - New Johnsonville",18.564,32.396999999999998,null,607.44000000000005,0,null,550,null,null,null,null,null,null,null,null,null,null,null,null,null,null,null,null,null,null,null,null,null,null,null,null,null,null,null,null,null,null,null,null,null,null,null,null,null,607.44373798370361]
["43-0084","TM","Occidental Chemical Corporation",49.710000000000008,85.100999999999999,null,1595.64,0,null,650,null,null,null,null,null,null,null,null,null,null,null,null,null,null,null,null,null,null,null,null,null,null,null,null,null,null,null,null,null,null,null,null,null,null,null,null,null,1595.6437110900879]
["43-0096","TM","Tennessee Stave, LLC",0,17.13,null,321.19,0,null,500,null,null,null,null,null,null,null,null,null,null,null,null,null,null,null,null,null,null,null,null,null,null,null,null,null,null,null,null,null,null,null,null,null,null,null,null,null,321.18748426437378]
["43-0103","TM","Air Products and Chemicals, Inc. - New Johnsonville Facility",11.879999999999999,17.690000000000001,null,331.69,0,null,500,null,null,null,null,null,null,null,null,null,null,null,null,null,null,null,null,null,null,null,null,null,null,null,null,null,null,null,null,null,null,null,null,null,null,null,null,null,331.68751001358032]
["44-0026","CM","Nielsen Bainbridge, LLC",4.47,269.7,2000,5056.88,0,3500,null,null,null,null,null,null,null,null,null,null,null,null,null,null,null,null,null,null,null,null,null,null,null,null,null,null,null,null,null,null,null,null,null,null,null,null,null,null,5056.8752288818359]
["44-0032","TM","Harold Smith Log Lumber Co. Inc. dba Smith Lumber Co.",0,26,null,487.5,0,null,550,null,null,null,null,null,null,null,null,null,null,null,null,null,null,null,null,null,null,null,null,null,null,null,null,null,null,null,null,null,null,null,null,null,null,null,null,null,487.5]
["44-0033","TM","Rogers Group, Inc. - Gainesboro Quarry",0,40.630000000000003,null,761.81,0,null,550,null,null,null,null,null,null,null,null,null,null,null,null,null,null,null,null,null,null,null,null,null,null,null,null,null,null,null,null,null,null,null,null,null,null,null,null,null,761.81252002716064]
["44-0037","TM","East Tennessee Natural Gas, LLC dba Compressor Station 3105 - Gainesboro",48.82,48.384999999999998,null,907.22,0,null,550,null,null,null,null,null,null,null,null,null,null,null,null,null,null,null,null,null,null,null,null,null,null,null,null,null,null,null,null,null,null,null,null,null,null,null,null,null,907.21871852874756]
["45-0011","TM","Bush Brothers & Company, Inc.",106.08000000000001,193.4905,null,3627.95,0,null,850,null,null,null,null,null,null,null,null,null,null,null,null,null,null,null,null,null,null,null,null,null,null,null,null,null,null,null,null,null,null,null,null,null,null,null,null,null,3627.9467582702637]
["45-0022","TM","Quikrete-Tennessee",2.2000000000000002,53.17,null,996.94,0,null,600,null,null,null,null,null,null,null,null,null,null,null,null,null,null,null,null,null,null,null,null,null,null,null,null,null,null,null,null,null,null,null,null,null,null,null,null,null,996.93746566772461]
["45-0023","TM","Jefferson County Highway Department",87.6,43.310000000000009,null,812.06,0,null,550,null,null,null,null,null,null,null,null,null,null,null,null,null,null,null,null,null,null,null,null,null,null,null,null,null,null,null,null,null,null,null,null,null,null,null,null,null,812.06252574920654]
["45-0024","TM","Rugel Woodworking Company, Inc.",0,100.42999999999999,null,1883.06,0,null,700,null,null,null,null,null,null,null,null,null,null,null,null,null,null,null,null,null,null,null,null,null,null,null,null,null,null,null,null,null,null,null,null,null,null,null,null,null,1883.0625057220459]
["45-0048","CM","Nyrstar Tennessee Mines - Strawberry Plains, LLC dba Young Zinc Ore Processing Plant",0,10,250,187.5,0,1000,null,null,null,null,null,null,null,null,null,null,null,null,null,null,null,null,null,null,null,null,null,null,null,null,null,null,null,null,null,null,null,null,null,null,null,null,null,null,187.5]
["45-0053","TM","Carson-Newman College",10.87,18.05,null,338.44,0,null,500,null,null,null,null,null,null,null,null,null,null,null,null,null,null,null,null,null,null,null,null,null,null,null,null,null,null,null,null,null,null,null,null,null,null,null,null,null,338.43748569488525]
["45-0065","CM","APAC Atlantic, Inc. Harrison Division dba Jefferson City Asphalt Plant",60.55,43.37,1000,813.19,0,2000,null,null,null,null,null,null,null,null,null,null,null,null,null,null,null,null,null,null,null,null,null,null,null,null,null,null,null,null,null,null,null,null,null,null,null,null,null,null,813.18747997283936]
["45-0069","TM","BWI ETN LLC dba Blue Water Industries BWI Coy Stone LLC Plant",0,70.2,null,1316.25,0,null,600,null,null,null,null,null,null,null,null,null,null,null,null,null,null,null,null,null,null,null,null,null,null,null,null,null,null,null,null,null,null,null,null,null,null,null,null,null,1316.249942779541]
["45-0079","CM","Tel-Trax Company",0,116.8,1000,2190,0,2000,null,null,null,null,null,null,null,null,null,null,null,null,null,null,null,null,null,null,null,null,null,null,null,null,null,null,null,null,null,null,null,null,null,null,null,null,null,null,2190.000057220459]
["45-0082","TM","United DMS of Tennessee, LLC",9.42,51.11,null,958.31,0,null,600,null,null,null,null,null,null,null,null,null,null,null,null,null,null,null,null,null,null,null,null,null,null,null,null,null,null,null,null,null,null,null,null,null,null,null,null,null,958.3125114440918]
["45-0087","TM","Dyer Royce Manufacturing LLC",0,83.5,null,1565.62,0,null,650,null,null,null,null,null,null,null,null,null,null,null,null,null,null,null,null,null,null,null,null,null,null,null,null,null,null,null,null,null,null,null,null,null,null,null,null,null,1565.625]
["45-0093","TM","Clayton Homes - White Pine Cmh Manufacturing",0,199,null,3731.25,0,null,850,null,null,null,null,null,null,null,null,null,null,null,null,null,null,null,null,null,null,null,null,null,null,null,null,null,null,null,null,null,null,null,null,null,null,null,null,null,3731.25]
["45-0099","TM","Masonite Corporation",0,232.71,null,4363.3100000000004,0,null,950,null,null,null,null,null,null,null,null,null,null,null,null,null,null,null,null,null,null,null,null,null,null,null,null,null,null,null,null,null,null,null,null,null,null,null,null,null,4363.3126258850098]
["45-0132","TM","APAC Atlantic, Inc./Harrison Division dba Dandridge Concrete",0,72.3,null,1355.62,0,null,600,null,null,null,null,null,null,null,null,null,null,null,null,null,null,null,null,null,null,null,null,null,null,null,null,null,null,null,null,null,null,null,null,null,null,null,null,null,1355.625057220459]
["45-0137","TM","Walker'S Truck Contractors, Inc.",0,163,null,3056.25,0,null,800,null,null,null,null,null,null,null,null,null,null,null,null,null,null,null,null,null,null,null,null,null,null,null,null,null,null,null,null,null,null,null,null,null,null,null,null,null,3056.25]
["45-0158","TM","Weigel's 77",0,22.3,null,418.12,0,null,500,null,null,null,null,null,null,null,null,null,null,null,null,null,null,null,null,null,null,null,null,null,null,null,null,null,null,null,null,null,null,null,null,null,null,null,null,null,418.12498569488525]
["46-0001","CM","Maymead Materials, Inc.",92.6,301.04999999999995,2000,5644.69,0,3500,null,null,null,null,null,null,null,null,null,null,null,null,null,null,null,null,null,null,null,null,null,null,null,null,null,null,null,null,null,null,null,null,null,null,null,null,null,null,5644.6872711181641]
["46-0030","TM","Chandler Concrete Company Inc.",0,13.1,null,245.62,0,null,500,null,null,null,null,null,null,null,null,null,null,null,null,null,null,null,null,null,null,null,null,null,null,null,null,null,null,null,null,null,null,null,null,null,null,null,null,null,245.62500715255737]
["46-0034","TM","New River Hardwoods LLC",0,92.759999999999991,null,1739.25,0,null,650,null,null,null,null,null,null,null,null,null,null,null,null,null,null,null,null,null,null,null,null,null,null,null,null,null,null,null,null,null,null,null,null,null,null,null,null,null,1739.2500400543213]
["46-0039","TM","Radford Quarries, Inc. dba Doe Creek Quarry",0,104.83,null,1965.56,0,null,700,null,null,null,null,null,null,null,null,null,null,null,null,null,null,null,null,null,null,null,null,null,null,null,null,null,null,null,null,null,null,null,null,null,null,null,null,null,1965.5625343322754]
["46-0059","TM","Tenn Dept of Correction Northeast Correctional Complex",12.059999999999999,37.630000000000003,null,705.56,0,null,550,null,null,null,null,null,null,null,null,null,null,null,null,null,null,null,null,null,null,null,null,null,null,null,null,null,null,null,null,null,null,null,null,null,null,null,null,null,705.56252002716064]
["47-0662","TM","University Health Systems, Inc. dba University of Tennessee Medical Center",71.39,138.226,null,2591.7399999999998,0,null,750,null,null,null,null,null,null,null,null,null,null,null,null,null,null,null,null,null,null,null,null,null,null,null,null,null,null,null,null,null,null,null,null,null,null,null,null,null,2591.7374610900879]
["48-0008","TM","Phoenix Gin Company",0,40.4,null,757.5,0,null,550,null,null,null,null,null,null,null,null,null,null,null,null,null,null,null,null,null,null,null,null,null,null,null,null,null,null,null,null,null,null,null,null,null,null,null,null,null,757.50002861022949]
["48-0031","TM","Cargill, Incorporated",0,19,null,356.25,0,null,500,null,null,null,null,null,null,null,null,null,null,null,null,null,null,null,null,null,null,null,null,null,null,null,null,null,null,null,null,null,null,null,null,null,null,null,null,null,356.25]
["48-0034","TM","Lake County Government",5.5,27.2,null,510,0,null,550,null,null,null,null,null,null,null,null,null,null,null,null,null,null,null,null,null,null,null,null,null,null,null,null,null,null,null,null,null,null,null,null,null,null,null,null,null,510.00001430511475]
["48-0037","TM","Forcum Lannon, Inc.",0,61,null,1143.75,0,null,600,null,null,null,null,null,null,null,null,null,null,null,null,null,null,null,null,null,null,null,null,null,null,null,null,null,null,null,null,null,null,null,null,null,null,null,null,null,1143.75]
["49-0031","TM","Hutcherson Metals  Inc.",0,165.5,null,3103.12,0,null,800,null,null,null,null,null,null,null,null,null,null,null,null,null,null,null,null,null,null,null,null,null,null,null,null,null,null,null,null,null,null,null,null,null,null,null,null,null,3103.125]
["49-0042","TM","Tennessee Farmers Cooperative dba Halls Seed Cleaning and Bagging Facility",0,58.67,null,1100.06,0,null,600,null,null,null,null,null,null,null,null,null,null,null,null,null,null,null,null,null,null,null,null,null,null,null,null,null,null,null,null,null,null,null,null,null,null,null,null,null,1100.0624656677246]
["49-0044","TM","Cargill Incorporated - Hales Point Elevator",3.7,74.69,null,1400.44,0,null,600,null,null,null,null,null,null,null,null,null,null,null,null,null,null,null,null,null,null,null,null,null,null,null,null,null,null,null,null,null,null,null,null,null,null,null,null,null,1400.4375457763672]
["49-0051","CM","American Greetings Corporation",0.28000000000000003,96.59,500,1811.06,0,1750,null,null,null,null,null,null,null,null,null,null,null,null,null,null,null,null,null,null,null,null,null,null,null,null,null,null,null,null,null,null,null,null,null,null,null,null,null,null,1811.0624313354492]
["49-0074","TM","Halls Gin Company",0,64.5,null,1209.3800000000001,0,null,600,null,null,null,null,null,null,null,null,null,null,null,null,null,null,null,null,null,null,null,null,null,null,null,null,null,null,null,null,null,null,null,null,null,null,null,null,null,1209.375]
["49-0077","TM","Arp Companies, Inc.",0,39.4,null,738.75,0,null,550,null,null,null,null,null,null,null,null,null,null,null,null,null,null,null,null,null,null,null,null,null,null,null,null,null,null,null,null,null,null,null,null,null,null,null,null,null,738.75002861022949]
["49-0086","CM","Ripley Power & Light",25.4,99.5,1000,1865.62,0,2000,null,null,null,null,null,null,null,null,null,null,null,null,null,null,null,null,null,null,null,null,null,null,null,null,null,null,null,null,null,null,null,null,null,null,null,null,null,null,1865.625]
["49-0114","TM","Pierce Distribution Services Company",0,17.259999999999998,null,323.62,0,null,500,null,null,null,null,null,null,null,null,null,null,null,null,null,null,null,null,null,null,null,null,null,null,null,null,null,null,null,null,null,null,null,null,null,null,null,null,null,323.62500429153442]
["49-0115","TM","Tennessee Department of Correction - West Tennessee State Penitentiary",65.19,90.15,null,1690.31,0,null,650,null,null,null,null,null,null,null,null,null,null,null,null,null,null,null,null,null,null,null,null,null,null,null,null,null,null,null,null,null,null,null,null,null,null,null,null,null,1690.3125286102295]
["50-0005","TM","Insyte Solutions, Inc.",3.7,13.200000000000001,null,247.5,0,null,500,null,null,null,null,null,null,null,null,null,null,null,null,null,null,null,null,null,null,null,null,null,null,null,null,null,null,null,null,null,null,null,null,null,null,null,null,null,247.49999642372131]
["50-0029","TM","Loretto Milling Company, LLC",0,33.200000000000003,null,622.5,0,null,550,null,null,null,null,null,null,null,null,null,null,null,null,null,null,null,null,null,null,null,null,null,null,null,null,null,null,null,null,null,null,null,null,null,null,null,null,null,622.50001430511475]
["50-0035","CM","Rogers Group Inc. Lawrenceburg Asphalt",83.6,142.69,1000,2675.44,0,3250,null,null,null,null,null,null,null,null,null,null,null,null,null,null,null,null,null,null,null,null,null,null,null,null,null,null,null,null,null,null,null,null,null,null,null,null,null,null,2675.4375457763672]
["50-0055","CM","S. T. Casket, Inc.",0,152.9,1000,2866.88,0,2500,null,null,null,null,null,null,null,null,null,null,null,null,null,null,null,null,null,null,null,null,null,null,null,null,null,null,null,null,null,null,null,null,null,null,null,null,null,null,2866.874885559082]
["50-0056","CM","Modine Manufacturing Company",0,99,500,1856.25,0,1750,null,null,null,null,null,null,null,null,null,null,null,null,null,null,null,null,null,null,null,null,null,null,null,null,null,null,null,null,null,null,null,null,null,null,null,null,null,null,1856.25]
["50-0057","TM","North American Container Corporation",6.8,58.519999999999996,null,1097.25,0,null,600,null,null,null,null,null,null,null,null,null,null,null,null,null,null,null,null,null,null,null,null,null,null,null,null,null,null,null,null,null,null,null,null,null,null,null,null,null,1097.2500085830688]
["50-0061","CM","Dura Automotive Systems, Inc.",0,208.58,1000,3910.88,0,3000,null,null,null,null,null,null,null,null,null,null,null,null,null,null,null,null,null,null,null,null,null,null,null,null,null,null,null,null,null,null,null,null,null,null,null,null,null,null,3910.8750343322754]
["50-0069","TM","Lawrenceburg Monument Company",0,14.8,null,277.5,0,null,500,null,null,null,null,null,null,null,null,null,null,null,null,null,null,null,null,null,null,null,null,null,null,null,null,null,null,null,null,null,null,null,null,null,null,null,null,null,277.50000357627869]
["50-0071","CM","VerPlank Enterprises, Inc.",0,128.4,1000,2407.5,0,2250,null,null,null,null,null,null,null,null,null,null,null,null,null,null,null,null,null,null,null,null,null,null,null,null,null,null,null,null,null,null,null,null,null,null,null,null,null,null,2407.499885559082]
["50-0076","CM","Southern Craft Manufacturing, Inc.",0,162.43,1000,3045.56,0,2500,null,null,null,null,null,null,null,null,null,null,null,null,null,null,null,null,null,null,null,null,null,null,null,null,null,null,null,null,null,null,null,null,null,null,null,null,null,null,3045.5623626708984]
["50-0080","TM","Surface Elements Inc.",0,9.9,null,185.62,0,null,500,null,null,null,null,null,null,null,null,null,null,null,null,null,null,null,null,null,null,null,null,null,null,null,null,null,null,null,null,null,null,null,null,null,null,null,null,null,185.62499284744263]
["50-0085","TM","Cornerstone Rack and Tooling, LLC",0,12.18,null,228.38,0,null,500,null,null,null,null,null,null,null,null,null,null,null,null,null,null,null,null,null,null,null,null,null,null,null,null,null,null,null,null,null,null,null,null,null,null,null,null,null,228.3750057220459]
["50-0130","TM","Lawrenceburg Utility Systems",3.5,17.599999999999998,null,330,0,null,500,null,null,null,null,null,null,null,null,null,null,null,null,null,null,null,null,null,null,null,null,null,null,null,null,null,null,null,null,null,null,null,null,null,null,null,null,null,330.00000715255737]
["50-0143","CM","TFT, Inc",0.56000000000000005,122.81000000000002,1000,2302.69,0,2000,null,null,null,null,null,null,null,null,null,null,null,null,null,null,null,null,null,null,null,null,null,null,null,null,null,null,null,null,null,null,null,null,null,null,null,null,null,null,2302.6874542236328]
["50-0144","TM","Vacuum Technologies, Inc.",0,14.4,null,270,0,null,500,null,null,null,null,null,null,null,null,null,null,null,null,null,null,null,null,null,null,null,null,null,null,null,null,null,null,null,null,null,null,null,null,null,null,null,null,null,269.99999284744263]
["50-0157","TM","Murphy Oil USA, Inc. dba Murphy USA 7583",0,16.739999999999998,null,313.88,0,null,500,null,null,null,null,null,null,null,null,null,null,null,null,null,null,null,null,null,null,null,null,null,null,null,null,null,null,null,null,null,null,null,null,null,null,null,null,null,313.87499570846558]
["50-0159","TM","Prime Hospitality Group",0,67.59,null,1267.31,0,null,600,null,null,null,null,null,null,null,null,null,null,null,null,null,null,null,null,null,null,null,null,null,null,null,null,null,null,null,null,null,null,null,null,null,null,null,null,null,1267.3124313354492]
["50-0176","TM","Cabinets To Go dba Robusto Flooring",0,54,null,1012.5,0,null,600,null,null,null,null,null,null,null,null,null,null,null,null,null,null,null,null,null,null,null,null,null,null,null,null,null,null,null,null,null,null,null,null,null,null,null,null,null,1012.5]
["51-0010","TM","Smyrna Ready Mix LLC",0,10.83,null,203.06,0,null,500,null,null,null,null,null,null,null,null,null,null,null,null,null,null,null,null,null,null,null,null,null,null,null,null,null,null,null,null,null,null,null,null,null,null,null,null,null,203.06249856948853]
["51-0029","TM","The Sawmill Inc.",0,24.7,null,463.12,0,null,500,null,null,null,null,null,null,null,null,null,null,null,null,null,null,null,null,null,null,null,null,null,null,null,null,null,null,null,null,null,null,null,null,null,null,null,null,null,463.12501430511475]
["52-0005","TM","Elora Gin Warehouse",0,42.5,null,796.88,0,null,550,null,null,null,null,null,null,null,null,null,null,null,null,null,null,null,null,null,null,null,null,null,null,null,null,null,null,null,null,null,null,null,null,null,null,null,null,null,796.875]
["52-0014","TM","Lincoln County Highway Department",0,31,null,581.25,0,null,550,null,null,null,null,null,null,null,null,null,null,null,null,null,null,null,null,null,null,null,null,null,null,null,null,null,null,null,null,null,null,null,null,null,null,null,null,null,581.25]
["52-0022","CM","Lincoln Road Builders, Inc. dba Fayetteville Facility",16.3,16.600000000000001,250,311.25,0,1250,null,null,null,null,null,null,null,null,null,null,null,null,null,null,null,null,null,null,null,null,null,null,null,null,null,null,null,null,null,null,null,null,null,null,null,null,null,null,311.25000715255737]
["52-0027","TM","Caldwell Chemical Coatings Corp",0,70.599999999999994,null,1323.75,0,null,600,null,null,null,null,null,null,null,null,null,null,null,null,null,null,null,null,null,null,null,null,null,null,null,null,null,null,null,null,null,null,null,null,null,null,null,null,null,1323.7499713897705]
["52-0055","TM","Rogers Groups  Inc. - Fayetteville Quarry",0,49.4,null,926.25,0,null,550,null,null,null,null,null,null,null,null,null,null,null,null,null,null,null,null,null,null,null,null,null,null,null,null,null,null,null,null,null,null,null,null,null,null,null,null,null,926.25002861022949]
["52-0059","TM","Frito-Lay",37.97,156.98000000000002,null,2943.38,0,null,800,null,null,null,null,null,null,null,null,null,null,null,null,null,null,null,null,null,null,null,null,null,null,null,null,null,null,null,null,null,null,null,null,null,null,null,null,null,2943.3749198913574]
["52-0073","TM","Deche, Inc.",0,39.549999999999997,null,741.56,0,null,550,null,null,null,null,null,null,null,null,null,null,null,null,null,null,null,null,null,null,null,null,null,null,null,null,null,null,null,null,null,null,null,null,null,null,null,null,null,741.56248569488525]
["52-0083","TM","Imi-TN, Inc.",0,14.1,null,264.38,0,null,500,null,null,null,null,null,null,null,null,null,null,null,null,null,null,null,null,null,null,null,null,null,null,null,null,null,null,null,null,null,null,null,null,null,null,null,null,null,264.37500715255737]
["53-0001","TM","THP, LLC",0,15.35,null,287.81,0,null,500,null,null,null,null,null,null,null,null,null,null,null,null,null,null,null,null,null,null,null,null,null,null,null,null,null,null,null,null,null,null,null,null,null,null,null,null,null,287.81250715255737]
["53-0072","CM","Monterey Mushrooms, Inc.",7.7,89.7,500,1681.88,0,1750,null,null,null,null,null,null,null,null,null,null,null,null,null,null,null,null,null,null,null,null,null,null,null,null,null,null,null,null,null,null,null,null,null,null,null,null,null,null,1681.874942779541]
["53-0074","TM","BWI ETN LLC dba Blue Water Industries BWI Greenback LLC Quarry",0,74.5,null,1396.88,0,null,600,null,null,null,null,null,null,null,null,null,null,null,null,null,null,null,null,null,null,null,null,null,null,null,null,null,null,null,null,null,null,null,null,null,null,null,null,null,1396.875]
["53-0079","CM","Real Alloying Recycling, Inc.",32.400000000000006,157.39999999999998,1000,2951.25,0,2750,null,null,null,null,null,null,null,null,null,null,null,null,null,null,null,null,null,null,null,null,null,null,null,null,null,null,null,null,null,null,null,null,null,null,null,null,null,null,2951.249885559082]
["53-0103","TM","APAC Atlantic, Inc. Harrison Division/Loudon Concrete Plant",0,11.38,null,213.38,0,null,500,null,null,null,null,null,null,null,null,null,null,null,null,null,null,null,null,null,null,null,null,null,null,null,null,null,null,null,null,null,null,null,null,null,null,null,null,null,213.37500214576721]
["53-0106","TM","Ft. Loudon Terminal Co., Inc.(Tn Farmers Coop",0,86.9,null,1629.38,0,null,650,null,null,null,null,null,null,null,null,null,null,null,null,null,null,null,null,null,null,null,null,null,null,null,null,null,null,null,null,null,null,null,null,null,null,null,null,null,1629.3750286102295]
["53-0112","CM","Greenback Asphalt Co., Inc.",30,32.01,500,600.19000000000005,0,1500,null,null,null,null,null,null,null,null,null,null,null,null,null,null,null,null,null,null,null,null,null,null,null,null,null,null,null,null,null,null,null,null,null,null,null,null,null,null,600.18746852874756]
["53-0159","TM","Foley Products Company",0,40.6,null,761.25,0,null,550,null,null,null,null,null,null,null,null,null,null,null,null,null,null,null,null,null,null,null,null,null,null,null,null,null,null,null,null,null,null,null,null,null,null,null,null,null,761.24997138977051]
["53-0167","TM","VanHooseco Precast, LLC",0,36.46,null,683.62,0,null,550,null,null,null,null,null,null,null,null,null,null,null,null,null,null,null,null,null,null,null,null,null,null,null,null,null,null,null,null,null,null,null,null,null,null,null,null,null,683.6249828338623]
["53-0169","TM","Ready Mix USA",0,10.4,null,195,0,null,500,null,null,null,null,null,null,null,null,null,null,null,null,null,null,null,null,null,null,null,null,null,null,null,null,null,null,null,null,null,null,null,null,null,null,null,null,null,194.99999284744263]
["53-0175","TM","Popes Plant Farm, Inc.",17.5,34.4,null,645,0,null,550,null,null,null,null,null,null,null,null,null,null,null,null,null,null,null,null,null,null,null,null,null,null,null,null,null,null,null,null,null,null,null,null,null,null,null,null,null,645.00002861022949]
["53-0178","TM","Vulcan Construction Materials, LLC dba Loudon County Quarry\t",8.49,85.54,null,1603.88,0,null,650,null,null,null,null,null,null,null,null,null,null,null,null,null,null,null,null,null,null,null,null,null,null,null,null,null,null,null,null,null,null,null,null,null,null,null,null,null,1603.8750171661377]
["53-0187","TM","Wamplers Farm Sausage Company",17.7,90.59,null,1698.56,0,null,650,null,null,null,null,null,null,null,null,null,null,null,null,null,null,null,null,null,null,null,null,null,null,null,null,null,null,null,null,null,null,null,null,null,null,null,null,null,1698.5624313354492]
["53-0188","CM","Del Conca USA, Inc.",101.09,314.27100000000002,2000,5892.58,0,3500,null,null,null,null,null,null,null,null,null,null,null,null,null,null,null,null,null,null,null,null,null,null,null,null,null,null,null,null,null,null,null,null,null,null,null,null,null,null,5892.5811767578125]
["53-0199","CM","Morgan Olson, LLC",4.4399999999999995,140.43,1000,2633.06,0,2250,null,null,null,null,null,null,null,null,null,null,null,null,null,null,null,null,null,null,null,null,null,null,null,null,null,null,null,null,null,null,null,null,null,null,null,null,null,null,2633.0623626708984]
["53-0201","TM","Goodson Bros Coffee Company, Inc.",1.58,22.8,null,427.5,0,null,500,null,null,null,null,null,null,null,null,null,null,null,null,null,null,null,null,null,null,null,null,null,null,null,null,null,null,null,null,null,null,null,null,null,null,null,null,null,427.49998569488525]
["54-0018","TM","Athens Plow Company",0,73.12,null,1371,0,null,600,null,null,null,null,null,null,null,null,null,null,null,null,null,null,null,null,null,null,null,null,null,null,null,null,null,null,null,null,null,null,null,null,null,null,null,null,null,1371.0000514984131]
["54-0027","TM","Vulcan Construction Materials, LLC dba Athens Quarry",0,210.9,null,3954.38,0,null,900,null,null,null,null,null,null,null,null,null,null,null,null,null,null,null,null,null,null,null,null,null,null,null,null,null,null,null,null,null,null,null,null,null,null,null,null,null,3954.374885559082]
["54-0047","TM","Thomas & Betts Corporation",0,41.65,null,780.94,0,null,550,null,null,null,null,null,null,null,null,null,null,null,null,null,null,null,null,null,null,null,null,null,null,null,null,null,null,null,null,null,null,null,null,null,null,null,null,null,780.93752861022949]
["54-0114","TM","Mayfield Dairy Farms Llc",4,70.72999999999999,null,1326.19,0,null,600,null,null,null,null,null,null,null,null,null,null,null,null,null,null,null,null,null,null,null,null,null,null,null,null,null,null,null,null,null,null,null,null,null,null,null,null,null,1326.1875629425049]
["54-0150","CM","Heil Trailer International, Co.",0,158.5,1000,2971.88,0,2500,null,null,null,null,null,null,null,null,null,null,null,null,null,null,null,null,null,null,null,null,null,null,null,null,null,null,null,null,null,null,null,null,null,null,null,null,null,null,2971.875]
["54-0151","TM","Southern Ionics, Inc.",0,76,null,1425,0,null,650,null,null,null,null,null,null,null,null,null,null,null,null,null,null,null,null,null,null,null,null,null,null,null,null,null,null,null,null,null,null,null,null,null,null,null,null,null,1425]
["54-0158","CM","Denso Manufacturing Athens Tennessee, Inc.",37.5,223.00000000000003,2000,4181.25,0,3500,null,null,null,null,null,null,null,null,null,null,null,null,null,null,null,null,null,null,null,null,null,null,null,null,null,null,null,null,null,null,null,null,null,null,null,null,null,null,4181.25]
["54-0160","TM","Taylor Pittsburgh Manufacturing  Inc.",0,50.5,null,946.88,0,null,600,null,null,null,null,null,null,null,null,null,null,null,null,null,null,null,null,null,null,null,null,null,null,null,null,null,null,null,null,null,null,null,null,null,null,null,null,null,946.875]
["54-0170","CM","Rogers Group, Inc. - Athens Asphalt",29.25,40.07,500,751.31,0,1500,null,null,null,null,null,null,null,null,null,null,null,null,null,null,null,null,null,null,null,null,null,null,null,null,null,null,null,null,null,null,null,null,null,null,null,null,null,null,751.3124942779541]
["54-0173","TM","A and B Equipment Inc.",0,52.8,null,990,0,null,600,null,null,null,null,null,null,null,null,null,null,null,null,null,null,null,null,null,null,null,null,null,null,null,null,null,null,null,null,null,null,null,null,null,null,null,null,null,989.99998569488525]
["54-0178","TM","Consolidated Metco  Inc.",0,46.15,null,865.31,0,null,550,null,null,null,null,null,null,null,null,null,null,null,null,null,null,null,null,null,null,null,null,null,null,null,null,null,null,null,null,null,null,null,null,null,null,null,null,null,865.31252861022949]
["54-0181","TM","East Tennessee Natural Gas, LLC",38.6,36.099999999999994,null,676.88,0,null,550,null,null,null,null,null,null,null,null,null,null,null,null,null,null,null,null,null,null,null,null,null,null,null,null,null,null,null,null,null,null,null,null,null,null,null,null,null,676.87497138977051]
["54-0183","TM","Sequatchie Concrete Service, Inc.",0,25.3,null,474.38,0,null,550,null,null,null,null,null,null,null,null,null,null,null,null,null,null,null,null,null,null,null,null,null,null,null,null,null,null,null,null,null,null,null,null,null,null,null,null,null,474.37498569488525]
["54-0226","TM","Bluegrass Materials Company LLC (\"Bluegrass\")",0,86.42,null,1620.38,0,null,650,null,null,null,null,null,null,null,null,null,null,null,null,null,null,null,null,null,null,null,null,null,null,null,null,null,null,null,null,null,null,null,null,null,null,null,null,null,1620.3749656677246]
["54-0227","TM","Renewco-Meadow Branch, LLC",1,54.300000000000004,null,1018.12,0,null,600,null,null,null,null,null,null,null,null,null,null,null,null,null,null,null,null,null,null,null,null,null,null,null,null,null,null,null,null,null,null,null,null,null,null,null,null,null,1018.1249856948853]
["54-0228","TM","Selective Structures, LLC",0,99.86,null,1872.38,0,null,650,null,null,null,null,null,null,null,null,null,null,null,null,null,null,null,null,null,null,null,null,null,null,null,null,null,null,null,null,null,null,null,null,null,null,null,null,null,1872.3750114440918]
["54-0230","TM","Midlab Inc",0,33.090000000000003,null,620.44000000000005,0,null,550,null,null,null,null,null,null,null,null,null,null,null,null,null,null,null,null,null,null,null,null,null,null,null,null,null,null,null,null,null,null,null,null,null,null,null,null,null,620.43750286102295]
["54-0231","CM","Hiwassee Paving, LLC",97,158.79000000000002,2000,2977.31,0,3500,null,null,null,null,null,null,null,null,null,null,null,null,null,null,null,null,null,null,null,null,null,null,null,null,null,null,null,null,null,null,null,null,null,null,null,null,null,null,2977.3123741149902]
["55-0023","CM","Industrial Connections & Solutions, LLC",5.41,148.30000000000001,1000,2780.62,0,2500,null,null,null,null,null,null,null,null,null,null,null,null,null,null,null,null,null,null,null,null,null,null,null,null,null,null,null,null,null,null,null,null,null,null,null,null,null,null,2780.625057220459]
["55-0079","TM","Connector Castings, Inc.",0,12,null,225,0,null,500,null,null,null,null,null,null,null,null,null,null,null,null,null,null,null,null,null,null,null,null,null,null,null,null,null,null,null,null,null,null,null,null,null,null,null,null,null,225]
["55-0080","TM","Graham Lumber Company",0,22,null,412.5,0,null,500,null,null,null,null,null,null,null,null,null,null,null,null,null,null,null,null,null,null,null,null,null,null,null,null,null,null,null,null,null,null,null,null,null,null,null,null,null,412.5]
["55-0102","CM","Standard Construction Company, Inc.",58.5,92.5,1000,1734.38,0,2500,null,null,null,null,null,null,null,null,null,null,null,null,null,null,null,null,null,null,null,null,null,null,null,null,null,null,null,null,null,null,null,null,null,null,null,null,null,null,1734.375]
["55-0110","TM","Midwest Woodworking & Fixture, Corp.",0,48.099999999999994,null,901.88,0,null,550,null,null,null,null,null,null,null,null,null,null,null,null,null,null,null,null,null,null,null,null,null,null,null,null,null,null,null,null,null,null,null,null,null,null,null,null,null,901.87497138977051]
["56-0026","TM","Garrott Brothers Continuous Mix, Inc.",0,16.899999999999999,null,316.88,0,null,500,null,null,null,null,null,null,null,null,null,null,null,null,null,null,null,null,null,null,null,null,null,null,null,null,null,null,null,null,null,null,null,null,null,null,null,null,null,316.87499284744263]
["56-0048","CM","Tennplasco, LLC",0,118.1,1000,2214.38,0,2000,null,null,null,null,null,null,null,null,null,null,null,null,null,null,null,null,null,null,null,null,null,null,null,null,null,null,null,null,null,null,null,null,null,null,null,null,null,null,2214.3749713897705]
["56-0052","TM","Nestle Waters North America, Inc.",10.64,17.37,null,325.69,0,null,500,null,null,null,null,null,null,null,null,null,null,null,null,null,null,null,null,null,null,null,null,null,null,null,null,null,null,null,null,null,null,null,null,null,null,null,null,null,325.68751573562622]
["56-0055","TM","Clark Lumber Company, Inc.",4.9000000000000004,31.8,null,596.25,0,null,550,null,null,null,null,null,null,null,null,null,null,null,null,null,null,null,null,null,null,null,null,null,null,null,null,null,null,null,null,null,null,null,null,null,null,null,null,null,596.24998569488525]
["56-0057","TM","Fleetwood Homes, Inc.",0,51.5,null,965.62,0,null,600,null,null,null,null,null,null,null,null,null,null,null,null,null,null,null,null,null,null,null,null,null,null,null,null,null,null,null,null,null,null,null,null,null,null,null,null,null,965.625]
["56-0066","CM","Volunteer Adhesive, Corporation",0,48.6,250,911.25,0,1250,null,null,null,null,null,null,null,null,null,null,null,null,null,null,null,null,null,null,null,null,null,null,null,null,null,null,null,null,null,null,null,null,null,null,null,null,null,null,911.24997138977051]
["57-0028","TM","Mercer Gin, Inc.",0,45,null,843.75,0,null,550,null,null,null,null,null,null,null,null,null,null,null,null,null,null,null,null,null,null,null,null,null,null,null,null,null,null,null,null,null,null,null,null,null,null,null,null,null,843.75]
["57-0046","TM","Stanley Black & Decker, Inc.",0.68399999999999994,57.368999999999993,null,1075.67,0,null,600,null,null,null,null,null,null,null,null,null,null,null,null,null,null,null,null,null,null,null,null,null,null,null,null,null,null,null,null,null,null,null,null,null,null,null,null,null,1075.668740272522]
["57-0048","TM","Bemis Gin and Warehouse Company",0,30.9,null,579.38,0,null,550,null,null,null,null,null,null,null,null,null,null,null,null,null,null,null,null,null,null,null,null,null,null,null,null,null,null,null,null,null,null,null,null,null,null,null,null,null,579.37499284744263]
["57-0052","CM","West Tennessee Healthcare, Jackson Madison County General Hospital",23.470000000000002,216.63,1000,4061.81,0,3250,null,null,null,null,null,null,null,null,null,null,null,null,null,null,null,null,null,null,null,null,null,null,null,null,null,null,null,null,null,null,null,null,null,null,null,null,null,null,4061.8125915527344]
["57-0078","TM","Pinnacle Foods Group LLC",7.71,83.77000000000001,null,1570.69,0,null,650,null,null,null,null,null,null,null,null,null,null,null,null,null,null,null,null,null,null,null,null,null,null,null,null,null,null,null,null,null,null,null,null,null,null,null,null,null,1570.6874370574951]
["57-0082","TM","Construction Products, Inc. Of Tennessee",0,123,null,2306.25,0,null,700,null,null,null,null,null,null,null,null,null,null,null,null,null,null,null,null,null,null,null,null,null,null,null,null,null,null,null,null,null,null,null,null,null,null,null,null,null,2306.25]
["57-0105","CM","Jackson Feed Mill",4.5,95.48,500,1790.25,0,1750,null,null,null,null,null,null,null,null,null,null,null,null,null,null,null,null,null,null,null,null,null,null,null,null,null,null,null,null,null,null,null,null,null,null,null,null,null,null,1790.2500629425049]
["57-0106","CM","ADM Milling Company",0,76.2,500,1428.75,0,1750,null,null,null,null,null,null,null,null,null,null,null,null,null,null,null,null,null,null,null,null,null,null,null,null,null,null,null,null,null,null,null,null,null,null,null,null,null,null,1428.749942779541]
["57-0133","TM","Packaging Corporation of America",6.2,63.629999999999995,null,1193.06,0,null,600,null,null,null,null,null,null,null,null,null,null,null,null,null,null,null,null,null,null,null,null,null,null,null,null,null,null,null,null,null,null,null,null,null,null,null,null,null,1193.0625200271606]
["57-0186","TM","Dyer Foods Inc",8,10,null,187.5,0,null,500,null,null,null,null,null,null,null,null,null,null,null,null,null,null,null,null,null,null,null,null,null,null,null,null,null,null,null,null,null,null,null,null,null,null,null,null,null,187.5]
["57-0194","TM","Tennessee Farmers Cooperative",0,27,null,506.25,0,null,550,null,null,null,null,null,null,null,null,null,null,null,null,null,null,null,null,null,null,null,null,null,null,null,null,null,null,null,null,null,null,null,null,null,null,null,null,null,506.25]
["57-0195","CM","Printpak, Inc.",0,63.7,500,1194.3800000000001,0,1500,null,null,null,null,null,null,null,null,null,null,null,null,null,null,null,null,null,null,null,null,null,null,null,null,null,null,null,null,null,null,null,null,null,null,null,null,null,null,1194.3750143051147]
["57-0201","TM","Duro Hilex Poly, LLC",0,55.190000000000005,null,1034.81,0,null,600,null,null,null,null,null,null,null,null,null,null,null,null,null,null,null,null,null,null,null,null,null,null,null,null,null,null,null,null,null,null,null,null,null,null,null,null,null,1034.8124742507935]
["57-0207","TM","U.S. Silica Company",14.7,251.9,null,4723.12,0,null,1000,null,null,null,null,null,null,null,null,null,null,null,null,null,null,null,null,null,null,null,null,null,null,null,null,null,null,null,null,null,null,null,null,null,null,null,null,null,4723.124885559082]
["57-0213","TM","Equistar Chemicals, LP",0,110.98,null,2080.88,0,null,700,null,null,null,null,null,null,null,null,null,null,null,null,null,null,null,null,null,null,null,null,null,null,null,null,null,null,null,null,null,null,null,null,null,null,null,null,null,2080.8750629425049]
["57-0217","TM","Kaiser Aluminum Fabricated Products, LLC",35.299999999999997,28.700000000000003,null,538.12,0,null,550,null,null,null,null,null,null,null,null,null,null,null,null,null,null,null,null,null,null,null,null,null,null,null,null,null,null,null,null,null,null,null,null,null,null,null,null,null,538.12501430511475]
["57-0219","TM","MAT Industries, LLC",7.2,121,null,2268.75,0,null,700,null,null,null,null,null,null,null,null,null,null,null,null,null,null,null,null,null,null,null,null,null,null,null,null,null,null,null,null,null,null,null,null,null,null,null,null,null,2268.75]
["57-0223","CM","TBDN Tennessee Company",16.690000000000001,28.68,250,537.75,0,1250,null,null,null,null,null,null,null,null,null,null,null,null,null,null,null,null,null,null,null,null,null,null,null,null,null,null,null,null,null,null,null,null,null,null,null,null,null,null,537.7500057220459]
["57-0224","TM","Hutcherson Metals, Inc.",0,30.7,null,575.62,0,null,550,null,null,null,null,null,null,null,null,null,null,null,null,null,null,null,null,null,null,null,null,null,null,null,null,null,null,null,null,null,null,null,null,null,null,null,null,null,575.62501430511475]
["57-0225","TM","ITW Finishing, LLC",0,11.3,null,211.88,0,null,500,null,null,null,null,null,null,null,null,null,null,null,null,null,null,null,null,null,null,null,null,null,null,null,null,null,null,null,null,null,null,null,null,null,null,null,null,null,211.87500357627869]
["57-0227","TM","General Cable Industries Incorporated",0,34.11,null,639.55999999999995,0,null,550,null,null,null,null,null,null,null,null,null,null,null,null,null,null,null,null,null,null,null,null,null,null,null,null,null,null,null,null,null,null,null,null,null,null,null,null,null,639.5625114440918]
["57-0243","TM","Delta Faucet Company Of Tennessee",1.77,109.18999999999998,null,2047.31,0,null,700,null,null,null,null,null,null,null,null,null,null,null,null,null,null,null,null,null,null,null,null,null,null,null,null,null,null,null,null,null,null,null,null,null,null,null,null,null,2047.3125457763672]
["57-0252","CM","Delta Contracting Company  LLC",19.5,23.7,250,444.38,0,1250,null,null,null,null,null,null,null,null,null,null,null,null,null,null,null,null,null,null,null,null,null,null,null,null,null,null,null,null,null,null,null,null,null,null,null,null,null,null,444.37501430511475]
["57-0267","TM","Young Touchstone",10.9,141.93,null,2661.19,0,null,750,null,null,null,null,null,null,null,null,null,null,null,null,null,null,null,null,null,null,null,null,null,null,null,null,null,null,null,null,null,null,null,null,null,null,null,null,null,2661.1873626708984]
["57-0272","TM","Jackson Die Casting, LLC",0.9,12.8,null,240,0,null,500,null,null,null,null,null,null,null,null,null,null,null,null,null,null,null,null,null,null,null,null,null,null,null,null,null,null,null,null,null,null,null,null,null,null,null,null,null,240.00000357627869]
["57-0275","CM","Ford Construction Company dba Jackson Asphalt Plant",16.3,18.3,250,343.12,0,1250,null,null,null,null,null,null,null,null,null,null,null,null,null,null,null,null,null,null,null,null,null,null,null,null,null,null,null,null,null,null,null,null,null,null,null,null,null,null,343.12498569488525]
["57-0276","TM","Bt Redi-Mix  Inc.",0,12,null,225,0,null,500,null,null,null,null,null,null,null,null,null,null,null,null,null,null,null,null,null,null,null,null,null,null,null,null,null,null,null,null,null,null,null,null,null,null,null,null,null,225]
["57-0278","TM","UGN, Inc.",11.5,46.900000000000006,null,879.38,0,null,550,null,null,null,null,null,null,null,null,null,null,null,null,null,null,null,null,null,null,null,null,null,null,null,null,null,null,null,null,null,null,null,null,null,null,null,null,null,879.37502861022949]
["57-0279","TM","White Oak Stave, Inc.",0,80.12,null,1502.25,0,null,650,null,null,null,null,null,null,null,null,null,null,null,null,null,null,null,null,null,null,null,null,null,null,null,null,null,null,null,null,null,null,null,null,null,null,null,null,null,1502.2500514984131]
["57-0284","CM","Bodine Aluminum",3.08,511.54999999999995,2000,9591.56,0,3750,null,null,null,null,null,null,null,null,null,null,null,null,null,null,null,null,null,null,null,null,null,null,null,null,null,null,null,null,null,null,null,null,null,null,null,null,null,null,9591.5622711181641]
["57-0297","TM","Pratt Industries, dba Georgia Box",7.7,98.600000000000009,null,1848.75,0,null,650,null,null,null,null,null,null,null,null,null,null,null,null,null,null,null,null,null,null,null,null,null,null,null,null,null,null,null,null,null,null,null,null,null,null,null,null,null,1848.7499713897705]
["57-0342","TM","Midwest Block and Brick Inc.",0,16.899999999999999,null,316.88,0,null,500,null,null,null,null,null,null,null,null,null,null,null,null,null,null,null,null,null,null,null,null,null,null,null,null,null,null,null,null,null,null,null,null,null,null,null,null,null,316.87499284744263]
["57-0345","TM","The Carlstar Group",29.44,72.95,null,1367.81,0,null,600,null,null,null,null,null,null,null,null,null,null,null,null,null,null,null,null,null,null,null,null,null,null,null,null,null,null,null,null,null,null,null,null,null,null,null,null,null,1367.812442779541]
["57-0354","CM","Vorteq Coil Finishers",16.34,67.739999999999995,500,1270.1199999999999,0,1750,null,null,null,null,null,null,null,null,null,null,null,null,null,null,null,null,null,null,null,null,null,null,null,null,null,null,null,null,null,null,null,null,null,null,null,null,null,null,1270.1249599456787]
["57-0376","TM","Regional Hospital of Jackson",4.4400000000000004,34.159999999999997,null,640.5,0,null,550,null,null,null,null,null,null,null,null,null,null,null,null,null,null,null,null,null,null,null,null,null,null,null,null,null,null,null,null,null,null,null,null,null,null,null,null,null,640.49999713897705]
["57-0377","TM","Williams Steel  Company",0,64.760000000000005,null,1214.25,0,null,600,null,null,null,null,null,null,null,null,null,null,null,null,null,null,null,null,null,null,null,null,null,null,null,null,null,null,null,null,null,null,null,null,null,null,null,null,null,1214.2500400543213]
["57-0382","TM","Jackson Shop Radio Site, TDOS HLS",21.45,10.47,null,196.31,0,null,500,null,null,null,null,null,null,null,null,null,null,null,null,null,null,null,null,null,null,null,null,null,null,null,null,null,null,null,null,null,null,null,null,null,null,null,null,null,196.31250500679016]
["58-0004","TM","Signal Mountain Cement Company",0,48.96,null,918,0,null,550,null,null,null,null,null,null,null,null,null,null,null,null,null,null,null,null,null,null,null,null,null,null,null,null,null,null,null,null,null,null,null,null,null,null,null,null,null,917.9999828338623]
["58-0009","CM","Seymour Manufacturing Company",9.1,119.3,1000,2236.88,0,2250,null,null,null,null,null,null,null,null,null,null,null,null,null,null,null,null,null,null,null,null,null,null,null,null,null,null,null,null,null,null,null,null,null,null,null,null,null,null,2236.875057220459]
["58-0011","CM","Lodge Manufacturing Company",186,405.93,2000,7611.19,0,3750,null,null,null,null,null,null,null,null,null,null,null,null,null,null,null,null,null,null,null,null,null,null,null,null,null,null,null,null,null,null,null,null,null,null,null,null,null,null,7611.1873626708984]
["58-0043","TM","Sequatchie Concrete Services dba South Pittsburg Concret Batch Plant",0,23.7,null,444.38,0,null,500,null,null,null,null,null,null,null,null,null,null,null,null,null,null,null,null,null,null,null,null,null,null,null,null,null,null,null,null,null,null,null,null,null,null,null,null,null,444.37501430511475]
["58-0073","TM","Vulcan Construction Materials, LLC dba Richard City Quarry",0,114.44,null,2145.75,0,null,700,null,null,null,null,null,null,null,null,null,null,null,null,null,null,null,null,null,null,null,null,null,null,null,null,null,null,null,null,null,null,null,null,null,null,null,null,null,2145.7500457763672]
["58-0078","TM","East Tennessee Natural Gas, LLC dba Compressor Station 3210 - Tracy City",32.39,30.517700000000001,null,572.21,0,null,550,null,null,null,null,null,null,null,null,null,null,null,null,null,null,null,null,null,null,null,null,null,null,null,null,null,null,null,null,null,null,null,null,null,null,null,null,null,572.20687866210937]
["58-0079","TM","Dunlap Stone  Inc. #2",0,80.8,null,1515,0,null,650,null,null,null,null,null,null,null,null,null,null,null,null,null,null,null,null,null,null,null,null,null,null,null,null,null,null,null,null,null,null,null,null,null,null,null,null,null,1515.000057220459]
["58-0081","TM","Tinsley Bros. Paving & Construction  Inc",3.4,17.8,null,333.75,0,null,500,null,null,null,null,null,null,null,null,null,null,null,null,null,null,null,null,null,null,null,null,null,null,null,null,null,null,null,null,null,null,null,null,null,null,null,null,null,333.74998569488525]
["58-0083","TM","Tennessee Galvanizing, Inc.",10.46,45.38,null,850.88,0,null,550,null,null,null,null,null,null,null,null,null,null,null,null,null,null,null,null,null,null,null,null,null,null,null,null,null,null,null,null,null,null,null,null,null,null,null,null,null,850.87502002716064]
["58-0084","CM","Primex Color, Compounding & Additives Corporation",0,112.37,1000,2106.94,0,2000,null,null,null,null,null,null,null,null,null,null,null,null,null,null,null,null,null,null,null,null,null,null,null,null,null,null,null,null,null,null,null,null,null,null,null,null,null,null,2106.9375514984131]
["58-0085","TM","Variform, Inc.",0,79.330000000000013,null,1487.44,0,null,650,null,null,null,null,null,null,null,null,null,null,null,null,null,null,null,null,null,null,null,null,null,null,null,null,null,null,null,null,null,null,null,null,null,null,null,null,null,1487.4375343322754]
["58-0086","TM","WestRock Converting Company",0,132.93,null,2492.44,0,null,750,null,null,null,null,null,null,null,null,null,null,null,null,null,null,null,null,null,null,null,null,null,null,null,null,null,null,null,null,null,null,null,null,null,null,null,null,null,2492.4373626708984]
["58-0090","TM","Valmont Industries, Inc.",0,166.64,null,3124.5,0,null,800,null,null,null,null,null,null,null,null,null,null,null,null,null,null,null,null,null,null,null,null,null,null,null,null,null,null,null,null,null,null,null,null,null,null,null,null,null,3124.4999885559082]
["58-0091","TM","Jasper Materials Company, Inc.- Surebuilt Galvanizing",2.4,47.5,null,890.62,0,null,550,null,null,null,null,null,null,null,null,null,null,null,null,null,null,null,null,null,null,null,null,null,null,null,null,null,null,null,null,null,null,null,null,null,null,null,null,null,890.625]
["58-0092","CM","Shaw Industries Group Inc., Plant HW",0,92.679999999999993,500,1737.75,0,1750,null,null,null,null,null,null,null,null,null,null,null,null,null,null,null,null,null,null,null,null,null,null,null,null,null,null,null,null,null,null,null,null,null,null,null,null,null,null,1737.7500057220459]
["58-0120","TM","Jasper Industrial Park",0,161.80000000000001,null,3033.75,0,null,800,null,null,null,null,null,null,null,null,null,null,null,null,null,null,null,null,null,null,null,null,null,null,null,null,null,null,null,null,null,null,null,null,null,null,null,null,null,3033.750057220459]
["58-0134","TM","Cardin Forest Products, LLC",92,283.35000000000002,null,5312.81,0,null,1000,null,null,null,null,null,null,null,null,null,null,null,null,null,null,null,null,null,null,null,null,null,null,null,null,null,null,null,null,null,null,null,null,null,null,null,null,null,5312.812614440918]
["58-0135","TM","NWP Jasper LLC",0,33.200000000000003,null,622.5,0,null,550,null,null,null,null,null,null,null,null,null,null,null,null,null,null,null,null,null,null,null,null,null,null,null,null,null,null,null,null,null,null,null,null,null,null,null,null,null,622.50001430511475]
["59-0001","CM","Walker Die Casting, Incorporated",30.729999999999997,303.3,2000,5686.88,0,3500,null,null,null,null,null,null,null,null,null,null,null,null,null,null,null,null,null,null,null,null,null,null,null,null,null,null,null,null,null,null,null,null,null,null,null,null,null,null,5686.8747711181641]
["59-0013","CM","Rogers Group  Inc Lewisburg Quarry",11.7,70.7,500,1325.62,0,1750,null,null,null,null,null,null,null,null,null,null,null,null,null,null,null,null,null,null,null,null,null,null,null,null,null,null,null,null,null,null,null,null,null,null,null,null,null,null,1325.624942779541]
["59-0014","CM","Lincoln Road Builders, Inc",19.52,26.17,250,490.69,0,1250,null,null,null,null,null,null,null,null,null,null,null,null,null,null,null,null,null,null,null,null,null,null,null,null,null,null,null,null,null,null,null,null,null,null,null,null,null,null,490.68750143051147]
["59-0046","CM","Rose Art Moon Products, Inc.",0,65.3,500,1224.3800000000001,0,1500,null,null,null,null,null,null,null,null,null,null,null,null,null,null,null,null,null,null,null,null,null,null,null,null,null,null,null,null,null,null,null,null,null,null,null,null,null,null,1224.375057220459]
["59-0052","TM","Teledyne Technologies dba Teledyne EMS",0,83.35,null,1562.81,0,null,650,null,null,null,null,null,null,null,null,null,null,null,null,null,null,null,null,null,null,null,null,null,null,null,null,null,null,null,null,null,null,null,null,null,null,null,null,null,1562.8124713897705]
["59-0056","TM","WestRock CP, LLC",0,46.9,null,879.38,0,null,550,null,null,null,null,null,null,null,null,null,null,null,null,null,null,null,null,null,null,null,null,null,null,null,null,null,null,null,null,null,null,null,null,null,null,null,null,null,879.37502861022949]
["59-0065","CM","Rogers Group, Inc. - Pottsville dba Pottsville Quarry",52,197.04,1000,3694.5,0,3250,null,null,null,null,null,null,null,null,null,null,null,null,null,null,null,null,null,null,null,null,null,null,null,null,null,null,null,null,null,null,null,null,null,null,null,null,null,null,3694.4998741149902]
["59-0084","TM","Radiation Protection Products Incorporated",0,31.1,null,583.12,0,null,550,null,null,null,null,null,null,null,null,null,null,null,null,null,null,null,null,null,null,null,null,null,null,null,null,null,null,null,null,null,null,null,null,null,null,null,null,null,583.12500715255737]
["59-0088","TM","Tankersley Concrete Company Inc.",0,17.71,null,332.06,0,null,500,null,null,null,null,null,null,null,null,null,null,null,null,null,null,null,null,null,null,null,null,null,null,null,null,null,null,null,null,null,null,null,null,null,null,null,null,null,332.0624828338623]
["59-0091","TM","Southern Carton Co.  Inc.",0,15.7,null,294.38,0,null,500,null,null,null,null,null,null,null,null,null,null,null,null,null,null,null,null,null,null,null,null,null,null,null,null,null,null,null,null,null,null,null,null,null,null,null,null,null,294.37499642372131]
["59-0093","CM","Dole Refrigerating Company, Inc. dba Kenco Plastics, Inc.",0,41,250,768.75,0,1250,null,null,null,null,null,null,null,null,null,null,null,null,null,null,null,null,null,null,null,null,null,null,null,null,null,null,null,null,null,null,null,null,null,null,null,null,null,null,768.75]
["59-0097","CM","Marshall County Stone, LLC - Asphalt Plant No. 1",44.4,109.81,1000,2058.94,0,2500,null,null,null,null,null,null,null,null,null,null,null,null,null,null,null,null,null,null,null,null,null,null,null,null,null,null,null,null,null,null,null,null,null,null,null,null,null,null,2058.9374542236328]
["59-0099","CM","Wright Paving Contractors, Inc.",9.8000000000000007,12.7,250,238.12,0,1000,null,null,null,null,null,null,null,null,null,null,null,null,null,null,null,null,null,null,null,null,null,null,null,null,null,null,null,null,null,null,null,null,null,null,null,null,null,null,238.12499642372131]
["59-0131","CM","Ace Bayou Corp.",0,99,500,1856.25,0,1750,null,null,null,null,null,null,null,null,null,null,null,null,null,null,null,null,null,null,null,null,null,null,null,null,null,null,null,null,null,null,null,null,null,null,null,null,null,null,1856.25]
["59-0135","TM","Meiwa Industry North America, Inc.",0,26.2,null,491.25,0,null,550,null,null,null,null,null,null,null,null,null,null,null,null,null,null,null,null,null,null,null,null,null,null,null,null,null,null,null,null,null,null,null,null,null,null,null,null,null,491.25001430511475]
["59-0149","TM","Volunteer Concrete LLC dba Volunteer Concrete LLC Plant 1",0,28.16,null,528,0,null,550,null,null,null,null,null,null,null,null,null,null,null,null,null,null,null,null,null,null,null,null,null,null,null,null,null,null,null,null,null,null,null,null,null,null,null,null,null,527.99999713897705]
["60-0017","TM","Vulcan Construction Materials, LLC dba Columbia Quarry",0,89.24,null,1673.25,0,null,650,null,null,null,null,null,null,null,null,null,null,null,null,null,null,null,null,null,null,null,null,null,null,null,null,null,null,null,null,null,null,null,null,null,null,null,null,null,1673.2499599456787]
["60-0019","CM","Vulcan Construction Materials LLC dba Columbia Asphalt Plant",93.6,84.24,1000,1579.5,0,2750,null,null,null,null,null,null,null,null,null,null,null,null,null,null,null,null,null,null,null,null,null,null,null,null,null,null,null,null,null,null,null,null,null,null,null,null,null,null,1579.4999599456787]
["60-0039","TM","Maury Regional Medical Center",12.31,24.270000000000003,null,455.06,0,null,500,null,null,null,null,null,null,null,null,null,null,null,null,null,null,null,null,null,null,null,null,null,null,null,null,null,null,null,null,null,null,null,null,null,null,null,null,null,455.06250858306885]
["60-0041","CM","Cytec Industries, Inc.",95,404.9,2000,7591.88,0,3500,null,null,null,null,null,null,null,null,null,null,null,null,null,null,null,null,null,null,null,null,null,null,null,null,null,null,null,null,null,null,null,null,null,null,null,null,null,null,7591.874885559082]
["60-0088","TM","Swarco Industries",13.26,31.4,null,588.75,0,null,550,null,null,null,null,null,null,null,null,null,null,null,null,null,null,null,null,null,null,null,null,null,null,null,null,null,null,null,null,null,null,null,null,null,null,null,null,null,588.74999284744263]
["60-0094","TM","Rogers Group, Inc. - Columbia Quarry",0,72.3,null,1355.62,0,null,600,null,null,null,null,null,null,null,null,null,null,null,null,null,null,null,null,null,null,null,null,null,null,null,null,null,null,null,null,null,null,null,null,null,null,null,null,null,1355.625057220459]
["60-0110","CM","Smelter Service Corporation",25.8,310.92999999999995,2000,5829.94,0,3500,null,null,null,null,null,null,null,null,null,null,null,null,null,null,null,null,null,null,null,null,null,null,null,null,null,null,null,null,null,null,null,null,null,null,null,null,null,null,5829.9373626708984]
["60-0123","CM","Tennessee Aluminum Processors, Inc.",13.71,216.13200000000001,1000,4052.48,0,3250,null,null,null,null,null,null,null,null,null,null,null,null,null,null,null,null,null,null,null,null,null,null,null,null,null,null,null,null,null,null,null,null,null,null,null,null,null,null,4052.4750709533691]
["60-0137","TM","Calcium Silicates Corporation",0,58.5,null,1096.8800000000001,0,null,600,null,null,null,null,null,null,null,null,null,null,null,null,null,null,null,null,null,null,null,null,null,null,null,null,null,null,null,null,null,null,null,null,null,null,null,null,null,1096.875]
["60-0165","TM","Nashville Ready Mix",0,11.9,null,223.12,0,null,500,null,null,null,null,null,null,null,null,null,null,null,null,null,null,null,null,null,null,null,null,null,null,null,null,null,null,null,null,null,null,null,null,null,null,null,null,null,223.12499284744263]
["60-0171","TM","Custom Steel Fabricators, Inc",0,36.256999999999998,null,679.82,0,null,550,null,null,null,null,null,null,null,null,null,null,null,null,null,null,null,null,null,null,null,null,null,null,null,null,null,null,null,null,null,null,null,null,null,null,null,null,null,679.81874942779541]
["60-0192","TM","Industrial Door Contractors, Inc.",0,39.129999999999995,null,733.69,0,null,550,null,null,null,null,null,null,null,null,null,null,null,null,null,null,null,null,null,null,null,null,null,null,null,null,null,null,null,null,null,null,null,null,null,null,null,null,null,733.68752002716064]
["60-0194","CM","Maury County Asphalt, Inc.",160,107.26,2000,2011.12,0,3500,null,null,null,null,null,null,null,null,null,null,null,null,null,null,null,null,null,null,null,null,null,null,null,null,null,null,null,null,null,null,null,null,null,null,null,null,null,null,2011.1250400543213]
["60-0198","TM","Ferche Millwork, Inc.",35.200000000000003,46,null,862.5,0,null,550,null,null,null,null,null,null,null,null,null,null,null,null,null,null,null,null,null,null,null,null,null,null,null,null,null,null,null,null,null,null,null,null,null,null,null,null,null,862.5]
["60-0251","TM","United Rentals (North America), Inc.",0,22.8,null,427.5,0,null,500,null,null,null,null,null,null,null,null,null,null,null,null,null,null,null,null,null,null,null,null,null,null,null,null,null,null,null,null,null,null,null,null,null,null,null,null,null,427.49998569488525]
["60-0266","TM","Smyrna Ready Mix Concrete LLC dba Spring Hill Plant",0,16.82,null,315.38,0,null,500,null,null,null,null,null,null,null,null,null,null,null,null,null,null,null,null,null,null,null,null,null,null,null,null,null,null,null,null,null,null,null,null,null,null,null,null,null,315.3749942779541]
["60-0273","TM","DO NOT ADD ANY MORE PERMITS TO THIS FACILITY ID PER JEF (see 60-0013)",5.0999999999999996,26.9,null,504.38,0,null,550,null,null,null,null,null,null,null,null,null,null,null,null,null,null,null,null,null,null,null,null,null,null,null,null,null,null,null,null,null,null,null,null,null,null,null,null,null,504.37499284744263]
["60-0279","TM","Magna Seating of America, Inc. dba Spring Hill Seating Systems",3.86,103.92999999999999,null,1948.69,0,null,700,null,null,null,null,null,null,null,null,null,null,null,null,null,null,null,null,null,null,null,null,null,null,null,null,null,null,null,null,null,null,null,null,null,null,null,null,null,1948.6875057220459]
["60-0280","CM","CLARCOR, Inc. dba CLARCOR Innovation Center",18.869999999999997,114.13999999999999,1000,2140.12,0,2250,null,null,null,null,null,null,null,null,null,null,null,null,null,null,null,null,null,null,null,null,null,null,null,null,null,null,null,null,null,null,null,null,null,null,null,null,null,null,2140.1249885559082]
["60-0286","TM","Columbia Machine Works, Inc.",0,33.4,null,626.25,0,null,550,null,null,null,null,null,null,null,null,null,null,null,null,null,null,null,null,null,null,null,null,null,null,null,null,null,null,null,null,null,null,null,null,null,null,null,null,null,626.25002861022949]
["60-0295","TM","Tenneco, Inc.",0,11.39,null,213.56,0,null,500,null,null,null,null,null,null,null,null,null,null,null,null,null,null,null,null,null,null,null,null,null,null,null,null,null,null,null,null,null,null,null,null,null,null,null,null,null,213.56250643730164]
["61-0031","TM","Shaw Industries",10.82,87.1,null,1633.12,0,null,650,null,null,null,null,null,null,null,null,null,null,null,null,null,null,null,null,null,null,null,null,null,null,null,null,null,null,null,null,null,null,null,null,null,null,null,null,null,1633.1249713897705]
["61-0033","CM","Cymer LLC",0,100.7,1000,1888.12,0,2000,null,null,null,null,null,null,null,null,null,null,null,null,null,null,null,null,null,null,null,null,null,null,null,null,null,null,null,null,null,null,null,null,null,null,null,null,null,null,1888.124942779541]
["61-0035","TM","Polyform  Inc.",0,80.2,null,1503.75,0,null,650,null,null,null,null,null,null,null,null,null,null,null,null,null,null,null,null,null,null,null,null,null,null,null,null,null,null,null,null,null,null,null,null,null,null,null,null,null,1503.749942779541]
["61-0036","TM","The Wood Gallery",0,32.04,null,600.75,0,null,550,null,null,null,null,null,null,null,null,null,null,null,null,null,null,null,null,null,null,null,null,null,null,null,null,null,null,null,null,null,null,null,null,null,null,null,null,null,600.7500171661377]
["61-0045","TM","Solomon Corporation",0,45.93,null,861.19,0,null,550,null,null,null,null,null,null,null,null,null,null,null,null,null,null,null,null,null,null,null,null,null,null,null,null,null,null,null,null,null,null,null,null,null,null,null,null,null,861.1875057220459]
["61-0046","TM","H & H Rock, Inc.",0,21.9,null,410.62,0,null,500,null,null,null,null,null,null,null,null,null,null,null,null,null,null,null,null,null,null,null,null,null,null,null,null,null,null,null,null,null,null,null,null,null,null,null,null,null,410.62499284744263]
["62-0010","TM","Vulcan Construction Materials, LLC dba Sweetwater Quarry",0,117.8,null,2208.75,0,null,700,null,null,null,null,null,null,null,null,null,null,null,null,null,null,null,null,null,null,null,null,null,null,null,null,null,null,null,null,null,null,null,null,null,null,null,null,null,2208.750057220459]
["62-0016","CM","Vestal Manufacturing Enterprises, Inc.",0,211.9,1000,3973.12,0,3000,null,null,null,null,null,null,null,null,null,null,null,null,null,null,null,null,null,null,null,null,null,null,null,null,null,null,null,null,null,null,null,null,null,null,null,null,null,null,3973.124885559082]
["62-0053","TM","R & S Concrete Products Co. Inc.",0,16.89,null,316.69,0,null,500,null,null,null,null,null,null,null,null,null,null,null,null,null,null,null,null,null,null,null,null,null,null,null,null,null,null,null,null,null,null,null,null,null,null,null,null,null,316.6874885559082]
["62-0054","TM","Seiler Block Co.  Inc.",0,167,null,3131.25,0,null,800,null,null,null,null,null,null,null,null,null,null,null,null,null,null,null,null,null,null,null,null,null,null,null,null,null,null,null,null,null,null,null,null,null,null,null,null,null,3131.25]
["62-0057","TM","NGK Metals Corporation",0,62.900000000000006,null,1179.3800000000001,0,null,600,null,null,null,null,null,null,null,null,null,null,null,null,null,null,null,null,null,null,null,null,null,null,null,null,null,null,null,null,null,null,null,null,null,null,null,null,null,1179.3750286102295]
["62-0081","CM","SCHOTT Gemtron Corporation",0,273.70000000000005,2000,5131.88,0,3500,null,null,null,null,null,null,null,null,null,null,null,null,null,null,null,null,null,null,null,null,null,null,null,null,null,null,null,null,null,null,null,null,null,null,null,null,null,null,5131.8752288818359]
["62-0094","TM","East Tennessee Natural Gas Co.",60.81,187.43629999999999,null,3514.43,0,null,850,null,null,null,null,null,null,null,null,null,null,null,null,null,null,null,null,null,null,null,null,null,null,null,null,null,null,null,null,null,null,null,null,null,null,null,null,null,3514.4305229187012]
["62-0097","TM","Tarasport Trailers, Inc.",0,19.63,null,368.06,0,null,500,null,null,null,null,null,null,null,null,null,null,null,null,null,null,null,null,null,null,null,null,null,null,null,null,null,null,null,null,null,null,null,null,null,null,null,null,null,368.06248426437378]
["62-0100","TM","Carlex Glass America, LLC",75.14,154.78,null,2902.12,0,null,800,null,null,null,null,null,null,null,null,null,null,null,null,null,null,null,null,null,null,null,null,null,null,null,null,null,null,null,null,null,null,null,null,null,null,null,null,null,2902.1249771118164]
["62-0105","CM","PolyOne Corporation",0,62.4,500,1170,0,1500,null,null,null,null,null,null,null,null,null,null,null,null,null,null,null,null,null,null,null,null,null,null,null,null,null,null,null,null,null,null,null,null,null,null,null,null,null,null,1170.0000286102295]
["62-0109","CM","Rogers Group, Inc. dba Monroe County Asphalt",25,121.22,1000,2272.88,0,2250,null,null,null,null,null,null,null,null,null,null,null,null,null,null,null,null,null,null,null,null,null,null,null,null,null,null,null,null,null,null,null,null,null,null,null,null,null,null,2272.8750228881836]
["62-0119","TM","Protech Metal Finishing, LLC",0,32.6,null,611.25,0,null,550,null,null,null,null,null,null,null,null,null,null,null,null,null,null,null,null,null,null,null,null,null,null,null,null,null,null,null,null,null,null,null,null,null,null,null,null,null,611.24997138977051]
["62-0121","TM","Aeroflex U.S.A.  Inc.",0,30.3,null,568.12,0,null,550,null,null,null,null,null,null,null,null,null,null,null,null,null,null,null,null,null,null,null,null,null,null,null,null,null,null,null,null,null,null,null,null,null,null,null,null,null,568.12498569488525]
["62-0123","TM","Valley Recycling, LLC",1.7,23.2,null,435,0,null,500,null,null,null,null,null,null,null,null,null,null,null,null,null,null,null,null,null,null,null,null,null,null,null,null,null,null,null,null,null,null,null,null,null,null,null,null,null,435.00001430511475]
["62-0172","TM","Genera Biomass, LLC",0,136.80000000000001,null,2565,0,null,750,null,null,null,null,null,null,null,null,null,null,null,null,null,null,null,null,null,null,null,null,null,null,null,null,null,null,null,null,null,null,null,null,null,null,null,null,null,2565.000057220459]
["62-0184","CM","Rogers Group, Inc. dba Sweetwater Asphalt",80,204.48000000000002,2000,3834,0,3500,null,null,null,null,null,null,null,null,null,null,null,null,null,null,null,null,null,null,null,null,null,null,null,null,null,null,null,null,null,null,null,null,null,null,null,null,null,null,3833.9999198913574]
["63-0008","CM","Trane U.S. Inc.",21.169999999999998,153.86000000000001,1000,2884.88,0,2750,null,null,null,null,null,null,null,null,null,null,null,null,null,null,null,null,null,null,null,null,null,null,null,null,null,null,null,null,null,null,null,null,null,null,null,null,null,null,2884.8750114440918]
["63-0019","TM","Vulcan Construction Materials, LLC dba Clarksville Quarry",0,173,null,3243.75,0,null,800,null,null,null,null,null,null,null,null,null,null,null,null,null,null,null,null,null,null,null,null,null,null,null,null,null,null,null,null,null,null,null,null,null,null,null,null,null,3243.75]
["63-0031","CM","American Snuff Company, LLC",10.6,173.6,1000,3255,0,2750,null,null,null,null,null,null,null,null,null,null,null,null,null,null,null,null,null,null,null,null,null,null,null,null,null,null,null,null,null,null,null,null,null,null,null,null,null,null,3255.000114440918]
["63-0050","TM","Vulcan Corporation",10.8,82.1,null,1539.38,0,null,650,null,null,null,null,null,null,null,null,null,null,null,null,null,null,null,null,null,null,null,null,null,null,null,null,null,null,null,null,null,null,null,null,null,null,null,null,null,1539.3749713897705]
["63-0074","TM","AHC Clarksville",0,107.6,null,2017.5,0,null,700,null,null,null,null,null,null,null,null,null,null,null,null,null,null,null,null,null,null,null,null,null,null,null,null,null,null,null,null,null,null,null,null,null,null,null,null,null,2017.4999713897705]
["63-0081","TM","Orgain Ready Mix Concrete Co., Inc.",0,11.54,null,216.38,0,null,500,null,null,null,null,null,null,null,null,null,null,null,null,null,null,null,null,null,null,null,null,null,null,null,null,null,null,null,null,null,null,null,null,null,null,null,null,null,216.37499928474426]
["63-0112","TM","Jackson Parman Corporation",0,23,null,431.25,0,null,500,null,null,null,null,null,null,null,null,null,null,null,null,null,null,null,null,null,null,null,null,null,null,null,null,null,null,null,null,null,null,null,null,null,null,null,null,null,431.25]
["63-0126","CM","McAsphalt, LLC",46.3,20.7,500,388.12,0,1500,null,null,null,null,null,null,null,null,null,null,null,null,null,null,null,null,null,null,null,null,null,null,null,null,null,null,null,null,null,null,null,null,null,null,null,null,null,null,388.12501430511475]
["63-0131","TM","Midwest Zinc, Inc. dba US Zinc - Clarksville",29.98,133.94999999999999,null,2511.56,0,null,750,null,null,null,null,null,null,null,null,null,null,null,null,null,null,null,null,null,null,null,null,null,null,null,null,null,null,null,null,null,null,null,null,null,null,null,null,null,2511.562442779541]
["63-0138","TM","Winn Materials, Llc",0,49.2,null,922.5,0,null,550,null,null,null,null,null,null,null,null,null,null,null,null,null,null,null,null,null,null,null,null,null,null,null,null,null,null,null,null,null,null,null,null,null,null,null,null,null,922.50001430511475]
["63-0139","CM","Jones Bros. Contractors, LLC",90,79.3,1000,1486.88,0,2500,null,null,null,null,null,null,null,null,null,null,null,null,null,null,null,null,null,null,null,null,null,null,null,null,null,null,null,null,null,null,null,null,null,null,null,null,null,null,1486.875057220459]
["63-0142","CM","Bridgestone Metalpha USA, Incorporated",0,62,500,1162.5,0,1500,null,null,null,null,null,null,null,null,null,null,null,null,null,null,null,null,null,null,null,null,null,null,null,null,null,null,null,null,null,null,null,null,null,null,null,null,null,null,1162.5]
["63-0144","CM","Letica Corporation",5.44,100.94999999999999,1000,1892.81,0,2000,null,null,null,null,null,null,null,null,null,null,null,null,null,null,null,null,null,null,null,null,null,null,null,null,null,null,null,null,null,null,null,null,null,null,null,null,null,null,1892.812442779541]
["63-0145","CM","Austin Peay State University",23.22,194.97470000000001,1000,3655.78,0,3000,null,null,null,null,null,null,null,null,null,null,null,null,null,null,null,null,null,null,null,null,null,null,null,null,null,null,null,null,null,null,null,null,null,null,null,null,null,null,3655.7756423950195]
["63-0149","TM","Akebono Brake Corporation",3.13,123.42240000000001,null,2314.17,0,null,700,null,null,null,null,null,null,null,null,null,null,null,null,null,null,null,null,null,null,null,null,null,null,null,null,null,null,null,null,null,null,null,null,null,null,null,null,null,2314.1700267791748]
["63-0159","TM","Hendrickson Trailer Commercial Vehicle Systems",0,118,null,2212.5,0,null,700,null,null,null,null,null,null,null,null,null,null,null,null,null,null,null,null,null,null,null,null,null,null,null,null,null,null,null,null,null,null,null,null,null,null,null,null,null,2212.5]
["63-0177","CM","MW/MB, LLC",31.25,305.89300000000003,2000,5735.49,0,3500,null,null,null,null,null,null,null,null,null,null,null,null,null,null,null,null,null,null,null,null,null,null,null,null,null,null,null,null,null,null,null,null,null,null,null,null,null,null,5735.4938507080078]
["63-0179","CM","Eubank Asphalt Paving & Sealing",80,55.62,1000,1042.8800000000001,0,2250,null,null,null,null,null,null,null,null,null,null,null,null,null,null,null,null,null,null,null,null,null,null,null,null,null,null,null,null,null,null,null,null,null,null,null,null,null,null,1042.8749799728394]
["63-0257","TM","Tennova Healthcare - Clarksville",14.379999999999999,146.83999999999997,null,2753.25,0,null,750,null,null,null,null,null,null,null,null,null,null,null,null,null,null,null,null,null,null,null,null,null,null,null,null,null,null,null,null,null,null,null,null,null,null,null,null,null,2753.2499313354492]
["63-0259","TM","Sanderson Pipe Corp North, Clarksville Div",0,92,null,1725,0,null,650,null,null,null,null,null,null,null,null,null,null,null,null,null,null,null,null,null,null,null,null,null,null,null,null,null,null,null,null,null,null,null,null,null,null,null,null,null,1725]
["63-0272","CM","American Snuff Company, LLC",93.77000000000001,205.38,2000,3850.88,0,3500,null,null,null,null,null,null,null,null,null,null,null,null,null,null,null,null,null,null,null,null,null,null,null,null,null,null,null,null,null,null,null,null,null,null,null,null,null,null,3850.8750915527344]
["63-0279","TM","Jostens, Inc.",1.0900000000000001,213.07,null,3995.06,0,null,900,null,null,null,null,null,null,null,null,null,null,null,null,null,null,null,null,null,null,null,null,null,null,null,null,null,null,null,null,null,null,null,null,null,null,null,null,null,3995.0626373291016]
["63-0280","TM","Purity Zinc Metals, LLC",0,33.39,null,626.05999999999995,0,null,550,null,null,null,null,null,null,null,null,null,null,null,null,null,null,null,null,null,null,null,null,null,null,null,null,null,null,null,null,null,null,null,null,null,null,null,null,null,626.0624885559082]
["63-0301","TM","Mapco Express",0,20.93,null,392.44,0,null,500,null,null,null,null,null,null,null,null,null,null,null,null,null,null,null,null,null,null,null,null,null,null,null,null,null,null,null,null,null,null,null,null,null,null,null,null,null,392.4375057220459]
["63-0309","TM","Mapco Express #7509",0,20.93,null,392.44,0,null,500,null,null,null,null,null,null,null,null,null,null,null,null,null,null,null,null,null,null,null,null,null,null,null,null,null,null,null,null,null,null,null,null,null,null,null,null,null,392.4375057220459]
["63-0328","TM","Wal-Mart Stores East LP dba Fueling Station 4589",0,20.46,null,383.62,0,null,500,null,null,null,null,null,null,null,null,null,null,null,null,null,null,null,null,null,null,null,null,null,null,null,null,null,null,null,null,null,null,null,null,null,null,null,null,null,383.6249828338623]
["63-0329","TM","Wal-Mart Stores East LP dba Walmart Neighborhood Market 4469",0,14.5,null,271.88,0,null,500,null,null,null,null,null,null,null,null,null,null,null,null,null,null,null,null,null,null,null,null,null,null,null,null,null,null,null,null,null,null,null,null,null,null,null,null,null,271.875]
["63-0338","TM","Smyrna Ready Mix, LLC",0,14.62,null,274.12,0,null,500,null,null,null,null,null,null,null,null,null,null,null,null,null,null,null,null,null,null,null,null,null,null,null,null,null,null,null,null,null,null,null,null,null,null,null,null,null,274.12499785423279]
["63-0339","TM","Foxman LLC dba Foxman - Clarksville Data Center",19.399999999999999,247.49,null,4640.4399999999996,0,null,950,null,null,null,null,null,null,null,null,null,null,null,null,null,null,null,null,null,null,null,null,null,null,null,null,null,null,null,null,null,null,null,null,null,null,null,null,null,4640.4376029968262]
["63-0340","CM","EnviroPower Cumberland LLC dba Bi-County Renewable Energy Facility",99.9,290.64999999999998,2000,5449.69,0,3500,null,null,null,null,null,null,null,null,null,null,null,null,null,null,null,null,null,null,null,null,null,null,null,null,null,null,null,null,null,null,null,null,null,null,null,null,null,null,5449.687385559082]
["64-0010","TM","Rogers Group  Inc. - Lynchburg Quarry",0,110.9,null,2079.38,0,null,700,null,null,null,null,null,null,null,null,null,null,null,null,null,null,null,null,null,null,null,null,null,null,null,null,null,null,null,null,null,null,null,null,null,null,null,null,null,2079.3750286102295]
["65-0028","TM","East Tennessee Natural Gas-Station 3110",48.31,71.936300000000003,null,1348.81,0,null,600,null,null,null,null,null,null,null,null,null,null,null,null,null,null,null,null,null,null,null,null,null,null,null,null,null,null,null,null,null,null,null,null,null,null,null,null,null,1348.8056659698486]
["65-0047","TM","Knox Energy  LLC",100.8,170.8,null,3202.5,0,null,800,null,null,null,null,null,null,null,null,null,null,null,null,null,null,null,null,null,null,null,null,null,null,null,null,null,null,null,null,null,null,null,null,null,null,null,null,null,3202.500057220459]
["65-0050","CM","Citizen's Gas Utility District Deer Lodge Facility",35,374.97,2000,7030.69,0,3500,null,null,null,null,null,null,null,null,null,null,null,null,null,null,null,null,null,null,null,null,null,null,null,null,null,null,null,null,null,null,null,null,null,null,null,null,null,null,7030.6875228881836]
["65-0052","CM","Pentacles II, LLC dba Indian Creek Facility",89.32,215.83800000000002,2000,4046.96,0,3500,null,null,null,null,null,null,null,null,null,null,null,null,null,null,null,null,null,null,null,null,null,null,null,null,null,null,null,null,null,null,null,null,null,null,null,null,null,null,4046.9624519348145]
["65-0061","TM","Atlas Energy Tennessee, LLC dba Big Mountain",1,71.899999999999991,null,1348.12,0,null,600,null,null,null,null,null,null,null,null,null,null,null,null,null,null,null,null,null,null,null,null,null,null,null,null,null,null,null,null,null,null,null,null,null,null,null,null,null,1348.1250286102295]
["65-0064","TM","Pentacles Corporation",13.06,116.818,null,2190.34,0,null,700,null,null,null,null,null,null,null,null,null,null,null,null,null,null,null,null,null,null,null,null,null,null,null,null,null,null,null,null,null,null,null,null,null,null,null,null,null,2190.3375148773193]
["65-0079","TM","Tennessee Gas Processing, LLC dba Burrville Site (Unmanned)",0.7,12.01,null,225.19,0,null,500,null,null,null,null,null,null,null,null,null,null,null,null,null,null,null,null,null,null,null,null,null,null,null,null,null,null,null,null,null,null,null,null,null,null,null,null,null,225.18750429153442]
["65-0090","TM","Tennessee Gas Processing, LLC dba Brewstertown Road Location",0.69,12.65,null,237.19,0,null,500,null,null,null,null,null,null,null,null,null,null,null,null,null,null,null,null,null,null,null,null,null,null,null,null,null,null,null,null,null,null,null,null,null,null,null,null,null,237.18749284744263]
["66-0008","TM","Obion Grain Company LLC",0.3,31.200000000000003,null,585,0,null,550,null,null,null,null,null,null,null,null,null,null,null,null,null,null,null,null,null,null,null,null,null,null,null,null,null,null,null,null,null,null,null,null,null,null,null,null,null,585.00001430511475]
["66-0010","CM","Kohler Company",0,56.9,500,1066.8800000000001,0,1500,null,null,null,null,null,null,null,null,null,null,null,null,null,null,null,null,null,null,null,null,null,null,null,null,null,null,null,null,null,null,null,null,null,null,null,null,null,null,1066.8750286102295]
["66-0012","CM","Titan Tire Corporation Of Union City",58.629999999999995,249.93299999999999,2000,4686.24,0,3500,null,null,null,null,null,null,null,null,null,null,null,null,null,null,null,null,null,null,null,null,null,null,null,null,null,null,null,null,null,null,null,null,null,null,null,null,null,null,4686.243724822998]
["66-0014","TM","Storey Sawmill & Lumber Company, Inc.",37.6,83.9,null,1573.12,0,null,650,null,null,null,null,null,null,null,null,null,null,null,null,null,null,null,null,null,null,null,null,null,null,null,null,null,null,null,null,null,null,null,null,null,null,null,null,null,1573.1250286102295]
["66-0043","TM","Baptist Memorial Hospital-Union City",2,72.5,null,1359.38,0,null,600,null,null,null,null,null,null,null,null,null,null,null,null,null,null,null,null,null,null,null,null,null,null,null,null,null,null,null,null,null,null,null,null,null,null,null,null,null,1359.375]
["66-0059","TM","The Andersons Inc",0.67,28.048999999999999,null,525.91999999999996,0,null,550,null,null,null,null,null,null,null,null,null,null,null,null,null,null,null,null,null,null,null,null,null,null,null,null,null,null,null,null,null,null,null,null,null,null,null,null,null,525.91874599456787]
["66-0074","CM","Waymatic Inc",0,62,500,1162.5,0,1500,null,null,null,null,null,null,null,null,null,null,null,null,null,null,null,null,null,null,null,null,null,null,null,null,null,null,null,null,null,null,null,null,null,null,null,null,null,null,1162.5]
["66-0094","CM","Darling Ingredients, Inc.",63.48,226.64,2000,4249.5,0,3500,null,null,null,null,null,null,null,null,null,null,null,null,null,null,null,null,null,null,null,null,null,null,null,null,null,null,null,null,null,null,null,null,null,null,null,null,null,null,4249.4999885559082]
["66-0097","CM","Ford Construction Company dba Troy Asphalt Plant",35.1,44.199999999999996,500,828.75,0,1750,null,null,null,null,null,null,null,null,null,null,null,null,null,null,null,null,null,null,null,null,null,null,null,null,null,null,null,null,null,null,null,null,null,null,null,null,null,null,828.75001430511475]
["66-0109","CM","Tyson Farms, Inc. dba South Fulton Feed Mill",7.73,105.15,1000,1971.56,0,2000,null,null,null,null,null,null,null,null,null,null,null,null,null,null,null,null,null,null,null,null,null,null,null,null,null,null,null,null,null,null,null,null,null,null,null,null,null,null,1971.5625286102295]
["66-0112","CM","Tyson Farms, Inc. dba Obion County Processing",99.9,263.10000000000002,2000,4933.12,0,3500,null,null,null,null,null,null,null,null,null,null,null,null,null,null,null,null,null,null,null,null,null,null,null,null,null,null,null,null,null,null,null,null,null,null,null,null,null,null,4933.125114440918]
["66-0118","TM","Obion Grain Co. Inc. Dba Mason Hall Grain Co",0,18.239999999999998,null,342,0,null,500,null,null,null,null,null,null,null,null,null,null,null,null,null,null,null,null,null,null,null,null,null,null,null,null,null,null,null,null,null,null,null,null,null,null,null,null,null,341.99999570846558]
["66-0166","TM","Greenfield Products, LLC",0,33.9,null,635.62,0,null,550,null,null,null,null,null,null,null,null,null,null,null,null,null,null,null,null,null,null,null,null,null,null,null,null,null,null,null,null,null,null,null,null,null,null,null,null,null,635.62502861022949]
["66-0175","TM","Murphy Oil USA, Inc. dba Murphy USA 7591",0,16.739999999999998,null,313.88,0,null,500,null,null,null,null,null,null,null,null,null,null,null,null,null,null,null,null,null,null,null,null,null,null,null,null,null,null,null,null,null,null,null,null,null,null,null,null,null,313.87499570846558]
["67-0013","TM","Rogers Group, Inc. dba Livingston Quarry",0,79.400000000000006,null,1488.75,0,null,650,null,null,null,null,null,null,null,null,null,null,null,null,null,null,null,null,null,null,null,null,null,null,null,null,null,null,null,null,null,null,null,null,null,null,null,null,null,1488.7500286102295]
["67-0016","TM","Overton County Highway Department",0,38.6,null,723.75,0,null,550,null,null,null,null,null,null,null,null,null,null,null,null,null,null,null,null,null,null,null,null,null,null,null,null,null,null,null,null,null,null,null,null,null,null,null,null,null,723.74997138977051]
["67-0035","CM","Rogers Group Inc dba Livingston Asphalt",20,13.5,250,253.12,0,1250,null,null,null,null,null,null,null,null,null,null,null,null,null,null,null,null,null,null,null,null,null,null,null,null,null,null,null,null,null,null,null,null,null,null,null,null,null,null,253.125]
["67-0046","TM","Allons Sawmills, Inc.",0,25,null,468.75,0,null,550,null,null,null,null,null,null,null,null,null,null,null,null,null,null,null,null,null,null,null,null,null,null,null,null,null,null,null,null,null,null,null,null,null,null,null,null,null,468.75]
["67-0051","TM","Cooper Recycling, Llc Dba Cooper Recycling Shredding Facility",0,93.3,null,1749.38,0,null,650,null,null,null,null,null,null,null,null,null,null,null,null,null,null,null,null,null,null,null,null,null,null,null,null,null,null,null,null,null,null,null,null,null,null,null,null,null,1749.375057220459]
["67-0053","TM","QST Smoke products, LLC dba QST Packaging and Ingredients",48.18,71.509999999999991,null,1340.81,0,null,600,null,null,null,null,null,null,null,null,null,null,null,null,null,null,null,null,null,null,null,null,null,null,null,null,null,null,null,null,null,null,null,null,null,null,null,null,null,1340.8125400543213]
["67-0056","TM","Parker Hannifin Corporation",0,34.700000000000003,null,650.62,0,null,550,null,null,null,null,null,null,null,null,null,null,null,null,null,null,null,null,null,null,null,null,null,null,null,null,null,null,null,null,null,null,null,null,null,null,null,null,null,650.62501430511475]
["67-0079","TM","Bartlett Sawmills, LLC",35,64.599999999999994,null,1211.25,0,null,600,null,null,null,null,null,null,null,null,null,null,null,null,null,null,null,null,null,null,null,null,null,null,null,null,null,null,null,null,null,null,null,null,null,null,null,null,null,1211.2499713897705]
["67-0092","TM","Cowboy Charcoal, LLC",4.4000000000000004,58.319999999999993,null,1093.5,0,null,600,null,null,null,null,null,null,null,null,null,null,null,null,null,null,null,null,null,null,null,null,null,null,null,null,null,null,null,null,null,null,null,null,null,null,null,null,null,1093.4999942779541]
["68-0035","CM","American Hardwood Industries LLC dba Graham Lumber Company  Inc.",26.3,121.34,1000,2275.12,0,2250,null,null,null,null,null,null,null,null,null,null,null,null,null,null,null,null,null,null,null,null,null,null,null,null,null,null,null,null,null,null,null,null,null,null,null,null,null,null,2275.1249313354492]
["68-0039","TM","Bates Rubber, Inc.",0,23.5,null,440.62,0,null,500,null,null,null,null,null,null,null,null,null,null,null,null,null,null,null,null,null,null,null,null,null,null,null,null,null,null,null,null,null,null,null,null,null,null,null,null,null,440.625]
["68-0046","TM","Teague Brothers Sand And Gravel",0,135.6,null,2542.5,0,null,750,null,null,null,null,null,null,null,null,null,null,null,null,null,null,null,null,null,null,null,null,null,null,null,null,null,null,null,null,null,null,null,null,null,null,null,null,null,2542.500114440918]
["68-0053","CM","Bates Rubber Inc",0,38.5,250,721.88,0,1250,null,null,null,null,null,null,null,null,null,null,null,null,null,null,null,null,null,null,null,null,null,null,null,null,null,null,null,null,null,null,null,null,null,null,null,null,null,null,721.875]
["68-0054","TM","NYX Linden, LLC",0,68,null,1275,0,null,600,null,null,null,null,null,null,null,null,null,null,null,null,null,null,null,null,null,null,null,null,null,null,null,null,null,null,null,null,null,null,null,null,null,null,null,null,null,1275]
["68-0062","TM","Buffalo River Truss LLC",0,33.29,null,624.19000000000005,0,null,550,null,null,null,null,null,null,null,null,null,null,null,null,null,null,null,null,null,null,null,null,null,null,null,null,null,null,null,null,null,null,null,null,null,null,null,null,null,624.1875171661377]
["68-0063","TM","Buffalo River Truss LLC",0,33.29,null,624.19000000000005,0,null,550,null,null,null,null,null,null,null,null,null,null,null,null,null,null,null,null,null,null,null,null,null,null,null,null,null,null,null,null,null,null,null,null,null,null,null,null,null,624.1875171661377]
["69-0019","TM","Specialty Woodworking Inc.",0,45.1,null,845.62,0,null,550,null,null,null,null,null,null,null,null,null,null,null,null,null,null,null,null,null,null,null,null,null,null,null,null,null,null,null,null,null,null,null,null,null,null,null,null,null,845.62497138977051]
["69-0021","CM","Cowboy Charcoal, LLC",190,81.06,2000,1519.88,0,3500,null,null,null,null,null,null,null,null,null,null,null,null,null,null,null,null,null,null,null,null,null,null,null,null,null,null,null,null,null,null,null,null,null,null,null,null,null,null,1519.8749542236328]
["69-0025","TM","James Ritter Lumber Company Inc.",0,25.8,null,483.75,0,null,550,null,null,null,null,null,null,null,null,null,null,null,null,null,null,null,null,null,null,null,null,null,null,null,null,null,null,null,null,null,null,null,null,null,null,null,null,null,483.74998569488525]
["69-0030","TM","Fitzgerald Truck Parts and Sales LLC Byrdstown Plant",0,30.6,null,573.75,0,null,550,null,null,null,null,null,null,null,null,null,null,null,null,null,null,null,null,null,null,null,null,null,null,null,null,null,null,null,null,null,null,null,null,null,null,null,null,null,573.75000715255737]
["70-0003","TM","Conasauga River Lumber Company",0,54.55,null,1022.81,0,null,600,null,null,null,null,null,null,null,null,null,null,null,null,null,null,null,null,null,null,null,null,null,null,null,null,null,null,null,null,null,null,null,null,null,null,null,null,null,1022.8124856948853]
["70-0041","TM","S&S Rock, Inc. dba Old Fort Quarry",0,36.119999999999997,null,677.25,0,null,550,null,null,null,null,null,null,null,null,null,null,null,null,null,null,null,null,null,null,null,null,null,null,null,null,null,null,null,null,null,null,null,null,null,null,null,null,null,677.24997997283936]
["70-0043","TM","Vulcan Construction Materials, LLC dba Polk County Quarry",0,90.4,null,1695,0,null,650,null,null,null,null,null,null,null,null,null,null,null,null,null,null,null,null,null,null,null,null,null,null,null,null,null,null,null,null,null,null,null,null,null,null,null,null,null,1695.0000286102295]
["70-0050","TM","Tennessee Iron Products, Llc",0,160,null,3000,0,null,800,null,null,null,null,null,null,null,null,null,null,null,null,null,null,null,null,null,null,null,null,null,null,null,null,null,null,null,null,null,null,null,null,null,null,null,null,null,3000]
["70-0059","TM","Intertrade Holdings",0,74.7,null,1400.62,0,null,600,null,null,null,null,null,null,null,null,null,null,null,null,null,null,null,null,null,null,null,null,null,null,null,null,null,null,null,null,null,null,null,null,null,null,null,null,null,1400.624942779541]
["71-0027","TM","Rogers Group, Inc.",0,85.48,null,1602.75,0,null,650,null,null,null,null,null,null,null,null,null,null,null,null,null,null,null,null,null,null,null,null,null,null,null,null,null,null,null,null,null,null,null,null,null,null,null,null,null,1602.7500629425049]
["71-0039","CM","Rogers Group Inc-Algood Asphalt",19.5,27,250,506.25,0,1250,null,null,null,null,null,null,null,null,null,null,null,null,null,null,null,null,null,null,null,null,null,null,null,null,null,null,null,null,null,null,null,null,null,null,null,null,null,null,506.25]
["71-0052","TM","Rogers Group, Inc.",0,15,null,281.25,0,null,500,null,null,null,null,null,null,null,null,null,null,null,null,null,null,null,null,null,null,null,null,null,null,null,null,null,null,null,null,null,null,null,null,null,null,null,null,null,281.25]
["71-0067","TM","Hermitage Hardwood Lumber Sales,  Inc.",60,94.03,null,1763.06,0,null,650,null,null,null,null,null,null,null,null,null,null,null,null,null,null,null,null,null,null,null,null,null,null,null,null,null,null,null,null,null,null,null,null,null,null,null,null,null,1763.0624771118164]
["71-0106","TM","Builders Supply Company",0,16.45,null,308.44,0,null,500,null,null,null,null,null,null,null,null,null,null,null,null,null,null,null,null,null,null,null,null,null,null,null,null,null,null,null,null,null,null,null,null,null,null,null,null,null,308.43751430511475]
["71-0145","CM","Identity Group Holding Corporation dba Identity Group",0.93,76.167540000000002,500,1428.14,0,1750,null,null,null,null,null,null,null,null,null,null,null,null,null,null,null,null,null,null,null,null,null,null,null,null,null,null,null,null,null,null,null,null,null,null,null,null,null,null,1428.1414031982422]
["71-0146","TM","Flowserve Corporation",0,13,null,243.75,0,null,500,null,null,null,null,null,null,null,null,null,null,null,null,null,null,null,null,null,null,null,null,null,null,null,null,null,null,null,null,null,null,null,null,null,null,null,null,null,243.75]
["71-0150","TM","Fixtur-World, Inc.",0,20.100000000000001,null,376.88,0,null,500,null,null,null,null,null,null,null,null,null,null,null,null,null,null,null,null,null,null,null,null,null,null,null,null,null,null,null,null,null,null,null,null,null,null,null,null,null,376.87500715255737]
["71-0153","TM","Dacco, Inc.",2.6,57.699999999999996,null,1081.8800000000001,0,null,600,null,null,null,null,null,null,null,null,null,null,null,null,null,null,null,null,null,null,null,null,null,null,null,null,null,null,null,null,null,null,null,null,null,null,null,null,null,1081.8750143051147]
["71-0163","TM","Rogers Group Inc-Monterey Quarry",0,21.56,null,404.25,0,null,500,null,null,null,null,null,null,null,null,null,null,null,null,null,null,null,null,null,null,null,null,null,null,null,null,null,null,null,null,null,null,null,null,null,null,null,null,null,404.24998998641968]
["71-0180","TM","Vulcan Construction Materials, LLC dba Cookeville Quarry",0,179.7,null,3369.38,0,null,850,null,null,null,null,null,null,null,null,null,null,null,null,null,null,null,null,null,null,null,null,null,null,null,null,null,null,null,null,null,null,null,null,null,null,null,null,null,3369.374942779541]
["71-0181","TM","Hermitage Hardwood Lumber Sales, Inc.",1.73,37.25,null,698.44,0,null,550,null,null,null,null,null,null,null,null,null,null,null,null,null,null,null,null,null,null,null,null,null,null,null,null,null,null,null,null,null,null,null,null,null,null,null,null,null,698.4375]
["71-0186","TM","Wood-Tech Corporation",0,40.28,null,755.25,0,null,550,null,null,null,null,null,null,null,null,null,null,null,null,null,null,null,null,null,null,null,null,null,null,null,null,null,null,null,null,null,null,null,null,null,null,null,null,null,755.24997711181641]
["71-0190","TM","Tutco, Inc.",0,24,null,450,0,null,500,null,null,null,null,null,null,null,null,null,null,null,null,null,null,null,null,null,null,null,null,null,null,null,null,null,null,null,null,null,null,null,null,null,null,null,null,null,450]
["71-0193","TM","Bradmark Industrial Coatings",0,17.899999999999999,null,335.62,0,null,500,null,null,null,null,null,null,null,null,null,null,null,null,null,null,null,null,null,null,null,null,null,null,null,null,null,null,null,null,null,null,null,null,null,null,null,null,null,335.62499284744263]
["71-0207","TM","Builders Supply Company",0,14.01,null,262.69,0,null,500,null,null,null,null,null,null,null,null,null,null,null,null,null,null,null,null,null,null,null,null,null,null,null,null,null,null,null,null,null,null,null,null,null,null,null,null,null,262.68750429153442]
["71-0208","TM","Perdue Foods,  LLC",20.51,41.68,null,781.5,0,null,550,null,null,null,null,null,null,null,null,null,null,null,null,null,null,null,null,null,null,null,null,null,null,null,null,null,null,null,null,null,null,null,null,null,null,null,null,null,781.5000057220459]
["71-0212","TM","Cumberland Container Corporation",0,60.300000000000004,null,1130.6199999999999,0,null,600,null,null,null,null,null,null,null,null,null,null,null,null,null,null,null,null,null,null,null,null,null,null,null,null,null,null,null,null,null,null,null,null,null,null,null,null,null,1130.6249856948853]
["71-0217","CM","Vulcan Construction Materials LLC dba Cookeville Asphalt Plant",96,60.400000000000006,1000,1132.5,0,2500,null,null,null,null,null,null,null,null,null,null,null,null,null,null,null,null,null,null,null,null,null,null,null,null,null,null,null,null,null,null,null,null,null,null,null,null,null,null,1132.5000286102295]
["71-0223","TM","Mill Creek Limestone, LLC",0,11.6,null,217.5,0,null,500,null,null,null,null,null,null,null,null,null,null,null,null,null,null,null,null,null,null,null,null,null,null,null,null,null,null,null,null,null,null,null,null,null,null,null,null,null,217.50000715255737]
["71-0329","CM","Copeland DRP LLC",57.7,38.04,500,713.25,0,1750,null,null,null,null,null,null,null,null,null,null,null,null,null,null,null,null,null,null,null,null,null,null,null,null,null,null,null,null,null,null,null,null,null,null,null,null,null,null,713.2500171661377]
["71-0361","CM","Ficosa North America",1,19.91,250,373.31,0,1000,null,null,null,null,null,null,null,null,null,null,null,null,null,null,null,null,null,null,null,null,null,null,null,null,null,null,null,null,null,null,null,null,null,null,null,null,null,null,373.31249713897705]
["72-0016","TM","Rogers Group Inc",0,36.1,null,676.88,0,null,550,null,null,null,null,null,null,null,null,null,null,null,null,null,null,null,null,null,null,null,null,null,null,null,null,null,null,null,null,null,null,null,null,null,null,null,null,null,676.87497138977051]
["72-0029","CM","Tennessee Valley Authority (TVA) - Watts Bar Nuclear Plant (WBN)",81.44,345.9,2000,6485.62,0,3500,null,null,null,null,null,null,null,null,null,null,null,null,null,null,null,null,null,null,null,null,null,null,null,null,null,null,null,null,null,null,null,null,null,null,null,null,null,null,6485.624885559082]
["72-0035","TM","Kayser-Roth Corporation",33,150.88,null,2829,0,null,800,null,null,null,null,null,null,null,null,null,null,null,null,null,null,null,null,null,null,null,null,null,null,null,null,null,null,null,null,null,null,null,null,null,null,null,null,null,2829.0000915527344]
["72-0038","CM","Suburban Manufacturing Company",0,145.4,1000,2726.25,0,2250,null,null,null,null,null,null,null,null,null,null,null,null,null,null,null,null,null,null,null,null,null,null,null,null,null,null,null,null,null,null,null,null,null,null,null,null,null,null,2726.249885559082]
["72-0082","TM","Tennessee Valley Authority Watts Bar Maintenance Facility",0,20,null,375,0,null,500,null,null,null,null,null,null,null,null,null,null,null,null,null,null,null,null,null,null,null,null,null,null,null,null,null,null,null,null,null,null,null,null,null,null,null,null,null,375]
["72-0092","CM","Cymer-Dayton LLC",44.480000000000004,325.75,2000,6107.81,0,3500,null,null,null,null,null,null,null,null,null,null,null,null,null,null,null,null,null,null,null,null,null,null,null,null,null,null,null,null,null,null,null,null,null,null,null,null,null,null,6107.8125]
["72-0096","TM","Vulcan Construction Materials, LLC dba Dayton Quarry",0,116.66999999999999,null,2187.56,0,null,700,null,null,null,null,null,null,null,null,null,null,null,null,null,null,null,null,null,null,null,null,null,null,null,null,null,null,null,null,null,null,null,null,null,null,null,null,null,2187.5624656677246]
["72-0105","CM","Rogers Group, Inc. dba Rhea County Asphalt",19.5,91.399999999999991,1000,1713.75,0,2000,null,null,null,null,null,null,null,null,null,null,null,null,null,null,null,null,null,null,null,null,null,null,null,null,null,null,null,null,null,null,null,null,null,null,null,null,null,null,1713.7500286102295]
["72-0137","CM","Mountain Wood Products LLC",48,57.96,1000,1086.75,0,2000,null,null,null,null,null,null,null,null,null,null,null,null,null,null,null,null,null,null,null,null,null,null,null,null,null,null,null,null,null,null,null,null,null,null,null,null,null,null,1086.7499828338623]
["72-0143","TM","Iron Properties, LLC, Liberty Mine",0,97.32,null,1824.75,0,null,650,null,null,null,null,null,null,null,null,null,null,null,null,null,null,null,null,null,null,null,null,null,null,null,null,null,null,null,null,null,null,null,null,null,null,null,null,null,1824.7499942779541]
["72-0163","TM","Nokian Tyres US Operations",33.9,200.3,null,3755.62,0,null,900,null,null,null,null,null,null,null,null,null,null,null,null,null,null,null,null,null,null,null,null,null,null,null,null,null,null,null,null,null,null,null,null,null,null,null,null,null,3755.625057220459]
["73-0002","TM","Rogers Group, Inc",0,52.3,null,980.62,0,null,600,null,null,null,null,null,null,null,null,null,null,null,null,null,null,null,null,null,null,null,null,null,null,null,null,null,null,null,null,null,null,null,null,null,null,null,null,null,980.62498569488525]
["73-0006","TM","Albahealth LLC",9.1999999999999993,46.5,null,871.88,0,null,550,null,null,null,null,null,null,null,null,null,null,null,null,null,null,null,null,null,null,null,null,null,null,null,null,null,null,null,null,null,null,null,null,null,null,null,null,null,871.875]
["73-0101","TM","APAC Atlantic, Inc./Harrison Division dba Gallaher Concrete",0,61.96,null,1161.75,0,null,600,null,null,null,null,null,null,null,null,null,null,null,null,null,null,null,null,null,null,null,null,null,null,null,null,null,null,null,null,null,null,null,null,null,null,null,null,null,1161.7499828338623]
["73-0110","CM","Rogers Group, Inc. dba Roane County Asphalt",103.93,248.51000000000002,2000,4659.5600000000004,0,3500,null,null,null,null,null,null,null,null,null,null,null,null,null,null,null,null,null,null,null,null,null,null,null,null,null,null,null,null,null,null,null,null,null,null,null,null,null,null,4659.5623970031738]
["73-0121","TM","C & C Ready Mix Inc.",0,10.7,null,200.62,0,null,500,null,null,null,null,null,null,null,null,null,null,null,null,null,null,null,null,null,null,null,null,null,null,null,null,null,null,null,null,null,null,null,null,null,null,null,null,null,200.62499642372131]
["73-0130","CM","EnergySolutions - Bear Creek Facility",93.7,128.69999999999999,1000,2413.12,0,3000,null,null,null,null,null,null,null,null,null,null,null,null,null,null,null,null,null,null,null,null,null,null,null,null,null,null,null,null,null,null,null,null,null,null,null,null,null,null,2413.124942779541]
["73-0146","TM","APAC Atlantic, Inc. Harrison Division/Harriman Concrete Plant",0,13.4,null,251.25,0,null,500,null,null,null,null,null,null,null,null,null,null,null,null,null,null,null,null,null,null,null,null,null,null,null,null,null,null,null,null,null,null,null,null,null,null,null,null,null,251.24999284744263]
["73-0149","CM","PSC Metals  Inc.",99,111.69,1000,2094.19,0,3000,null,null,null,null,null,null,null,null,null,null,null,null,null,null,null,null,null,null,null,null,null,null,null,null,null,null,null,null,null,null,null,null,null,null,null,null,null,null,2094.1875457763672]
["73-0150","TM","NST Rockwood, Inc.",1.0900000000000001,45.432000000000002,null,851.85,0,null,550,null,null,null,null,null,null,null,null,null,null,null,null,null,null,null,null,null,null,null,null,null,null,null,null,null,null,null,null,null,null,null,null,null,null,null,null,null,851.84998512268066]
["73-0153","TM","BD LaPlace, LLC dba BD Bayou Steel - Harriman",20.3,109.1,null,2045.62,0,null,700,null,null,null,null,null,null,null,null,null,null,null,null,null,null,null,null,null,null,null,null,null,null,null,null,null,null,null,null,null,null,null,null,null,null,null,null,null,2045.6249713897705]
["73-0165","TM","North Winds Solutions, LLC dba Transuranic (TRU)/Alpha Low-level Radioactive Waste Remediation Operation",1.49,10.389999999999999,null,194.81,0,null,500,null,null,null,null,null,null,null,null,null,null,null,null,null,null,null,null,null,null,null,null,null,null,null,null,null,null,null,null,null,null,null,null,null,null,null,null,null,194.81250643730164]
["73-0236","CM","Daycab Company Inc.",0,52.199999999999996,500,978.75,0,1500,null,null,null,null,null,null,null,null,null,null,null,null,null,null,null,null,null,null,null,null,null,null,null,null,null,null,null,null,null,null,null,null,null,null,null,null,null,null,978.75001430511475]
["73-0237","TM","Roane Medical Center Drive",0,60.21,null,1128.94,0,null,600,null,null,null,null,null,null,null,null,null,null,null,null,null,null,null,null,null,null,null,null,null,null,null,null,null,null,null,null,null,null,null,null,null,null,null,null,null,1128.9374828338623]
["73-0238","TM","Centrus Energy Corp.",0,26.509999999999998,null,497.06,0,null,550,null,null,null,null,null,null,null,null,null,null,null,null,null,null,null,null,null,null,null,null,null,null,null,null,null,null,null,null,null,null,null,null,null,null,null,null,null,497.06250429153442]
["73-0241","TM","Proton Power, Inc. dba Synthetic Fuel Demonstration Pilot Plant",38.529999999999994,261.86000000000007,null,4909.88,0,null,1000,null,null,null,null,null,null,null,null,null,null,null,null,null,null,null,null,null,null,null,null,null,null,null,null,null,null,null,null,null,null,null,null,null,null,null,null,null,4909.8747253417969]
["73-0247","TM","Rocket Oil Co dba Weigels 85",0,27.9,null,523.12,0,null,550,null,null,null,null,null,null,null,null,null,null,null,null,null,null,null,null,null,null,null,null,null,null,null,null,null,null,null,null,null,null,null,null,null,null,null,null,null,523.12499284744263]
["73-0254","TM","Kroger Limited Partnership I dba Kroger Fuel Center #U-628",0,26.78,null,502.12,0,null,550,null,null,null,null,null,null,null,null,null,null,null,null,null,null,null,null,null,null,null,null,null,null,null,null,null,null,null,null,null,null,null,null,null,null,null,null,null,502.12501287460327]
["73-0265","CM","Duracap Asphalt Paving Company, Inc. dba Duracap Asphalt I-40 Plant",40,89.699999999999989,1000,1681.88,0,2250,null,null,null,null,null,null,null,null,null,null,null,null,null,null,null,null,null,null,null,null,null,null,null,null,null,null,null,null,null,null,null,null,null,null,null,null,null,null,1681.874942779541]
["73-1114","TM","Proton Power Inc",3.4,24.7,null,463.12,0,null,500,null,null,null,null,null,null,null,null,null,null,null,null,null,null,null,null,null,null,null,null,null,null,null,null,null,null,null,null,null,null,null,null,null,null,null,null,null,463.12501430511475]
["73-1117","TM","Proton Power, Inc.",6.3599999999999994,21.810000000000002,null,408.94,0,null,500,null,null,null,null,null,null,null,null,null,null,null,null,null,null,null,null,null,null,null,null,null,null,null,null,null,null,null,null,null,null,null,null,null,null,null,null,null,408.93748998641968]
["74-0009","TM","Vulcan Construction Materials, LLC dba Springfield Quarry",0,116.89999999999999,null,2191.88,0,null,700,null,null,null,null,null,null,null,null,null,null,null,null,null,null,null,null,null,null,null,null,null,null,null,null,null,null,null,null,null,null,null,null,null,null,null,null,null,2191.8750286102295]
["74-0035","TM","Vulcan Construction Materials, LLC dba Pleasant View Quarry",0,52.9,null,991.88,0,null,600,null,null,null,null,null,null,null,null,null,null,null,null,null,null,null,null,null,null,null,null,null,null,null,null,null,null,null,null,null,null,null,null,null,null,null,null,null,991.87502861022949]
["74-0040","TM","Delight Products Company",18.21,133.42000000000002,null,2501.62,0,null,750,null,null,null,null,null,null,null,null,null,null,null,null,null,null,null,null,null,null,null,null,null,null,null,null,null,null,null,null,null,null,null,null,null,null,null,null,null,2501.6249656677246]
["74-0049","TM","Chemtrade Chemicals, LLC",0,33.700000000000003,null,631.88,0,null,550,null,null,null,null,null,null,null,null,null,null,null,null,null,null,null,null,null,null,null,null,null,null,null,null,null,null,null,null,null,null,null,null,null,null,null,null,null,631.87501430511475]
["74-0055","CM","Electrolux Homes Products, Inc.",45.410000000000004,184.10999999999999,1000,3452.06,0,3250,null,null,null,null,null,null,null,null,null,null,null,null,null,null,null,null,null,null,null,null,null,null,null,null,null,null,null,null,null,null,null,null,null,null,null,null,null,null,3452.0625114440918]
["74-0064","CM","East Tennessee Natural Gas Company",90.28,52.670299999999997,1000,987.57,0,2250,null,null,null,null,null,null,null,null,null,null,null,null,null,null,null,null,null,null,null,null,null,null,null,null,null,null,null,null,null,null,null,null,null,null,null,null,null,null,987.56811618804932]
["74-0075","CM","IAC Springfield, LLC",0,93.5,500,1753.12,0,1750,null,null,null,null,null,null,null,null,null,null,null,null,null,null,null,null,null,null,null,null,null,null,null,null,null,null,null,null,null,null,null,null,null,null,null,null,null,null,1753.125]
["74-0082","CM","Vulcan Construction Materials LLC dba Springfield Asphalt Plant",50,42.099999999999994,500,789.38,0,1750,null,null,null,null,null,null,null,null,null,null,null,null,null,null,null,null,null,null,null,null,null,null,null,null,null,null,null,null,null,null,null,null,null,null,null,null,null,null,789.37497138977051]
["74-0105","CM","Rogers Group  Inc.",52.01,119.53999999999999,1000,2241.38,0,2500,null,null,null,null,null,null,null,null,null,null,null,null,null,null,null,null,null,null,null,null,null,null,null,null,null,null,null,null,null,null,null,null,null,null,null,null,null,null,2241.3750171661377]
["74-0109","TM","S and R Inc.",0,23.7,null,444.38,0,null,500,null,null,null,null,null,null,null,null,null,null,null,null,null,null,null,null,null,null,null,null,null,null,null,null,null,null,null,null,null,null,null,null,null,null,null,null,null,444.37501430511475]
["74-0113","TM","Hail & Cotton International Group",12.35,36.370000000000005,null,681.94,0,null,550,null,null,null,null,null,null,null,null,null,null,null,null,null,null,null,null,null,null,null,null,null,null,null,null,null,null,null,null,null,null,null,null,null,null,null,null,null,681.93747997283936]
["74-0116","TM","Garrott Brothers Continuous Mix Inc.",0,75.099999999999994,null,1408.12,0,null,650,null,null,null,null,null,null,null,null,null,null,null,null,null,null,null,null,null,null,null,null,null,null,null,null,null,null,null,null,null,null,null,null,null,null,null,null,null,1408.1249713897705]
["74-0122","TM","Hail and Cotton International Group",10.82,75.53,null,1416.19,0,null,650,null,null,null,null,null,null,null,null,null,null,null,null,null,null,null,null,null,null,null,null,null,null,null,null,null,null,null,null,null,null,null,null,null,null,null,null,null,1416.1874771118164]
["74-0123","TM","Baggett Grain  Inc.",0,106.4,null,1995,0,null,700,null,null,null,null,null,null,null,null,null,null,null,null,null,null,null,null,null,null,null,null,null,null,null,null,null,null,null,null,null,null,null,null,null,null,null,null,null,1995.0000286102295]
["74-0134","TM","Olhausen Billiards Manufacturing, Inc.",7.3,176.6,null,3311.25,0,null,850,null,null,null,null,null,null,null,null,null,null,null,null,null,null,null,null,null,null,null,null,null,null,null,null,null,null,null,null,null,null,null,null,null,null,null,null,null,3311.250114440918]
["74-0180","TM","Aluminum Racing Products",0,26.8,null,502.5,0,null,550,null,null,null,null,null,null,null,null,null,null,null,null,null,null,null,null,null,null,null,null,null,null,null,null,null,null,null,null,null,null,null,null,null,null,null,null,null,502.49998569488525]
["74-0181","CM","Depor Industries, Inc.",0,99,500,1856.25,0,1750,null,null,null,null,null,null,null,null,null,null,null,null,null,null,null,null,null,null,null,null,null,null,null,null,null,null,null,null,null,null,null,null,null,null,null,null,null,null,1856.25]
["74-0184","TM","Lowe's Home Centers, LLC dba Lowe's Millwork #972",0,81.400000000000006,null,1526.25,0,null,650,null,null,null,null,null,null,null,null,null,null,null,null,null,null,null,null,null,null,null,null,null,null,null,null,null,null,null,null,null,null,null,null,null,null,null,null,null,1526.2500286102295]
["74-0193","CM","Gateway Packaging Company LLC",0,98.1,500,1839.38,0,1750,null,null,null,null,null,null,null,null,null,null,null,null,null,null,null,null,null,null,null,null,null,null,null,null,null,null,null,null,null,null,null,null,null,null,null,null,null,null,1839.3749713897705]
["74-0454","CM","Kyowa America Corporation",0,179.98000000000002,1000,3374.62,0,2750,null,null,null,null,null,null,null,null,null,null,null,null,null,null,null,null,null,null,null,null,null,null,null,null,null,null,null,null,null,null,null,null,null,null,null,null,null,null,3374.6249198913574]
["75-0009","TM","BlockWork LLC",1.3,24.500000000000004,null,459.38,0,null,500,null,null,null,null,null,null,null,null,null,null,null,null,null,null,null,null,null,null,null,null,null,null,null,null,null,null,null,null,null,null,null,null,null,null,null,null,null,459.375]
["75-0013","CM","International Paper Company",0,152.38999999999999,1000,2857.31,0,2500,null,null,null,null,null,null,null,null,null,null,null,null,null,null,null,null,null,null,null,null,null,null,null,null,null,null,null,null,null,null,null,null,null,null,null,null,null,null,2857.3124885559082]
["75-0014","CM","Tennessee Farmers Cooperative dba LaVergne Feed Mill",8.1,106.50000000000003,1000,1996.88,0,2000,null,null,null,null,null,null,null,null,null,null,null,null,null,null,null,null,null,null,null,null,null,null,null,null,null,null,null,null,null,null,null,null,null,null,null,null,null,null,1996.875]
["75-0022","TM","Hoover  Inc",0,60.82,null,1140.3800000000001,0,null,600,null,null,null,null,null,null,null,null,null,null,null,null,null,null,null,null,null,null,null,null,null,null,null,null,null,null,null,null,null,null,null,null,null,null,null,null,null,1140.3749942779541]
["75-0023","TM","Tennessee Valley Healthcare Systems dba VA Hospital, Alvin C York Medical Center",70.09,105.05,null,1969.69,0,null,700,null,null,null,null,null,null,null,null,null,null,null,null,null,null,null,null,null,null,null,null,null,null,null,null,null,null,null,null,null,null,null,null,null,null,null,null,null,1969.687557220459]
["75-0064","CM","Middle Tennessee State University, New Science Building",98,173,2000,3243.75,0,3500,null,null,null,null,null,null,null,null,null,null,null,null,null,null,null,null,null,null,null,null,null,null,null,null,null,null,null,null,null,null,null,null,null,null,null,null,null,null,3243.75]
["75-0094","TM","Courier Printing Company",2.75,91.33,null,1712.44,0,null,650,null,null,null,null,null,null,null,null,null,null,null,null,null,null,null,null,null,null,null,null,null,null,null,null,null,null,null,null,null,null,null,null,null,null,null,null,null,1712.4375343322754]
["75-0110","TM","Paulo Products Company",0,91.98,null,1724.62,0,null,650,null,null,null,null,null,null,null,null,null,null,null,null,null,null,null,null,null,null,null,null,null,null,null,null,null,null,null,null,null,null,null,null,null,null,null,null,null,1724.6250629425049]
["75-0139","TM","General Mills, Incorporated",27.799999999999997,260.04000000000002,null,4875.75,0,null,1000,null,null,null,null,null,null,null,null,null,null,null,null,null,null,null,null,null,null,null,null,null,null,null,null,null,null,null,null,null,null,null,null,null,null,null,null,null,4875.7501602172852]
["75-0147","CM","MI Metals, Inc.",0,109.8,1000,2058.75,0,2000,null,null,null,null,null,null,null,null,null,null,null,null,null,null,null,null,null,null,null,null,null,null,null,null,null,null,null,null,null,null,null,null,null,null,null,null,null,null,2058.750057220459]
["75-0153","TM","Square D Company",0,19.5,null,365.62,0,null,500,null,null,null,null,null,null,null,null,null,null,null,null,null,null,null,null,null,null,null,null,null,null,null,null,null,null,null,null,null,null,null,null,null,null,null,null,null,365.625]
["75-0157","TM","Rogers Group, Inc. - Rutherford dba Rutherford County Quarry",0,61.64,null,1155.75,0,null,600,null,null,null,null,null,null,null,null,null,null,null,null,null,null,null,null,null,null,null,null,null,null,null,null,null,null,null,null,null,null,null,null,null,null,null,null,null,1155.7499885559082]
["75-0162","CM","Hoover, Inc. Smyrna Quarry Asphalt Plant",16.3,83.4,500,1563.75,0,1750,null,null,null,null,null,null,null,null,null,null,null,null,null,null,null,null,null,null,null,null,null,null,null,null,null,null,null,null,null,null,null,null,null,null,null,null,null,null,1563.7500286102295]
["75-0171","TM","Quality Industries",0,83.95,null,1574.06,0,null,650,null,null,null,null,null,null,null,null,null,null,null,null,null,null,null,null,null,null,null,null,null,null,null,null,null,null,null,null,null,null,null,null,null,null,null,null,null,1574.062442779541]
["75-0173","TM","Mahle Filter Systems",0,60.099999999999994,null,1126.8800000000001,0,null,600,null,null,null,null,null,null,null,null,null,null,null,null,null,null,null,null,null,null,null,null,null,null,null,null,null,null,null,null,null,null,null,null,null,null,null,null,null,1126.8749713897705]
["75-0174","CM","Hoover  Inc.",0,110.2,1000,2066.25,0,2000,null,null,null,null,null,null,null,null,null,null,null,null,null,null,null,null,null,null,null,null,null,null,null,null,null,null,null,null,null,null,null,null,null,null,null,null,null,null,2066.249942779541]
["75-0175","CM","Wastequip Manufacturing Company LLC",0,174.8,1000,3277.5,0,2500,null,null,null,null,null,null,null,null,null,null,null,null,null,null,null,null,null,null,null,null,null,null,null,null,null,null,null,null,null,null,null,null,null,null,null,null,null,null,3277.500057220459]
["75-0176","CM","Vulcan Construction Materials LLC dba Murfreesboro Asphalt Plant",32.5,121.7,1000,2281.88,0,2500,null,null,null,null,null,null,null,null,null,null,null,null,null,null,null,null,null,null,null,null,null,null,null,null,null,null,null,null,null,null,null,null,null,null,null,null,null,null,2281.874942779541]
["75-0178","TM","Smyrna Ready Mix Concrete LLC",0,14.02,null,262.88,0,null,500,null,null,null,null,null,null,null,null,null,null,null,null,null,null,null,null,null,null,null,null,null,null,null,null,null,null,null,null,null,null,null,null,null,null,null,null,null,262.87500858306885]
["75-0179","TM","Middle Tennessee Powder Coating and Blasting",0,11.8,null,221.25,0,null,500,null,null,null,null,null,null,null,null,null,null,null,null,null,null,null,null,null,null,null,null,null,null,null,null,null,null,null,null,null,null,null,null,null,null,null,null,null,221.25000357627869]
["75-0185","CM","Hoover, Inc.",2.7,75.599999999999994,500,1417.5,0,1750,null,null,null,null,null,null,null,null,null,null,null,null,null,null,null,null,null,null,null,null,null,null,null,null,null,null,null,null,null,null,null,null,null,null,null,null,null,null,1417.4999713897705]
["75-0191","CM","Vi-Jon Inc",24.05,130.88,1000,2454,0,2500,null,null,null,null,null,null,null,null,null,null,null,null,null,null,null,null,null,null,null,null,null,null,null,null,null,null,null,null,null,null,null,null,null,null,null,null,null,null,2454.0000915527344]
["75-0200","TM","Allvan USA, LLC",0,23.79,null,446.06,0,null,500,null,null,null,null,null,null,null,null,null,null,null,null,null,null,null,null,null,null,null,null,null,null,null,null,null,null,null,null,null,null,null,null,null,null,null,null,null,446.0625171661377]
["75-0207","TM","Palm Commodities International LLC",0,24.5,null,459.38,0,null,500,null,null,null,null,null,null,null,null,null,null,null,null,null,null,null,null,null,null,null,null,null,null,null,null,null,null,null,null,null,null,null,null,null,null,null,null,null,459.375]
["75-0341","TM","Tennessee Farmers Cooperative Fertilizer Plant",0,52.92,null,992.25,0,null,600,null,null,null,null,null,null,null,null,null,null,null,null,null,null,null,null,null,null,null,null,null,null,null,null,null,null,null,null,null,null,null,null,null,null,null,null,null,992.24996566772461]
["75-0368","TM","Tennessee Farmers Cooperative Metal Fabrication",0,66.3,null,1243.1199999999999,0,null,600,null,null,null,null,null,null,null,null,null,null,null,null,null,null,null,null,null,null,null,null,null,null,null,null,null,null,null,null,null,null,null,null,null,null,null,null,null,1243.125057220459]
["75-0371","TM","Smyrna Ready Mix Concrete, LLC",0,22.2,null,416.25,0,null,500,null,null,null,null,null,null,null,null,null,null,null,null,null,null,null,null,null,null,null,null,null,null,null,null,null,null,null,null,null,null,null,null,null,null,null,null,null,416.25001430511475]
["75-0384","CM","Lewis Bros Bakeries  Inc.of Tennessee",5.15,135.04000000000002,1000,2532,0,2250,null,null,null,null,null,null,null,null,null,null,null,null,null,null,null,null,null,null,null,null,null,null,null,null,null,null,null,null,null,null,null,null,null,null,null,null,null,null,2531.9998741149902]
["75-0403","TM","Maaco Auto Painting And Body Works",0,20.100000000000001,null,376.88,0,null,500,null,null,null,null,null,null,null,null,null,null,null,null,null,null,null,null,null,null,null,null,null,null,null,null,null,null,null,null,null,null,null,null,null,null,null,null,null,376.87500715255737]
["75-0404","CM","Rogers Group, Inc. dba Rutherford County Asphalt",85,136.19999999999999,1000,2553.75,0,3000,null,null,null,null,null,null,null,null,null,null,null,null,null,null,null,null,null,null,null,null,null,null,null,null,null,null,null,null,null,null,null,null,null,null,null,null,null,null,2553.749942779541]
["75-0427","TM","Smyrna Ready Mix Concrete, LLC",0,32.4,null,607.5,0,null,550,null,null,null,null,null,null,null,null,null,null,null,null,null,null,null,null,null,null,null,null,null,null,null,null,null,null,null,null,null,null,null,null,null,null,null,null,null,607.50002861022949]
["75-0430","TM","Smyrna Ready Mix",0,15,null,281.25,0,null,500,null,null,null,null,null,null,null,null,null,null,null,null,null,null,null,null,null,null,null,null,null,null,null,null,null,null,null,null,null,null,null,null,null,null,null,null,null,281.25]
["75-0437","TM","Marketing & Sales Management Corp.",6.6,24.5,null,459.38,0,null,500,null,null,null,null,null,null,null,null,null,null,null,null,null,null,null,null,null,null,null,null,null,null,null,null,null,null,null,null,null,null,null,null,null,null,null,null,null,459.375]
["75-0440","TM","Topy America, Inc (UC Division)",0,23.5,null,440.62,0,null,500,null,null,null,null,null,null,null,null,null,null,null,null,null,null,null,null,null,null,null,null,null,null,null,null,null,null,null,null,null,null,null,null,null,null,null,null,null,440.625]
["75-0572","TM","WestRock - Southern Container, LLC dba WestRock Murfreesboro Corrugated Plant",6.55,117.28999999999999,null,2199.19,0,null,700,null,null,null,null,null,null,null,null,null,null,null,null,null,null,null,null,null,null,null,null,null,null,null,null,null,null,null,null,null,null,null,null,null,null,null,null,null,2199.1875171661377]
["75-0574","TM","Heritage Farms Dairy",13.9,18.8,null,352.5,0,null,500,null,null,null,null,null,null,null,null,null,null,null,null,null,null,null,null,null,null,null,null,null,null,null,null,null,null,null,null,null,null,null,null,null,null,null,null,null,352.49998569488525]
["75-0579","TM","Yoplait - Division Of General Mills, Inc.",78.3,161.6,null,3030,0,null,800,null,null,null,null,null,null,null,null,null,null,null,null,null,null,null,null,null,null,null,null,null,null,null,null,null,null,null,null,null,null,null,null,null,null,null,null,null,3030.000114440918]
["75-0585","TM","Ole South Excavating, Inc.",0,10.5,null,196.88,0,null,500,null,null,null,null,null,null,null,null,null,null,null,null,null,null,null,null,null,null,null,null,null,null,null,null,null,null,null,null,null,null,null,null,null,null,null,null,null,196.875]
["75-0607","CM","Wearwell, Inc.",10.5,166.74,1000,3126.38,0,2750,null,null,null,null,null,null,null,null,null,null,null,null,null,null,null,null,null,null,null,null,null,null,null,null,null,null,null,null,null,null,null,null,null,null,null,null,null,null,3126.3751029968262]
["75-0610","TM","George P. Johnson",0,62.1,null,1164.3800000000001,0,null,600,null,null,null,null,null,null,null,null,null,null,null,null,null,null,null,null,null,null,null,null,null,null,null,null,null,null,null,null,null,null,null,null,null,null,null,null,null,1164.3749713897705]
["75-0643","TM","Saint Thomas Rutherford Hospital",35,68.900000000000006,null,1291.8800000000001,0,null,600,null,null,null,null,null,null,null,null,null,null,null,null,null,null,null,null,null,null,null,null,null,null,null,null,null,null,null,null,null,null,null,null,null,null,null,null,null,1291.8750286102295]
["75-0670","TM","Franke Beverage Systems, Inc.",0,14.7,null,275.62,0,null,500,null,null,null,null,null,null,null,null,null,null,null,null,null,null,null,null,null,null,null,null,null,null,null,null,null,null,null,null,null,null,null,null,null,null,null,null,null,275.62499642372131]
["75-0693","TM","Thorntons Inc. #612",0,27.9,null,523.12,0,null,550,null,null,null,null,null,null,null,null,null,null,null,null,null,null,null,null,null,null,null,null,null,null,null,null,null,null,null,null,null,null,null,null,null,null,null,null,null,523.12499284744263]
["75-0698","TM","Adient",3.3,19.100000000000001,null,358.12,0,null,500,null,null,null,null,null,null,null,null,null,null,null,null,null,null,null,null,null,null,null,null,null,null,null,null,null,null,null,null,null,null,null,null,null,null,null,null,null,358.12500715255737]
["75-0726","TM","Vulcan Construction Materials LLC dba Murfreesboro Ground Up Recycling",0,20.260000000000002,null,379.88,0,null,500,null,null,null,null,null,null,null,null,null,null,null,null,null,null,null,null,null,null,null,null,null,null,null,null,null,null,null,null,null,null,null,null,null,null,null,null,null,379.87500429153442]
["75-0734","TM","Hood Distribution",0,52.04,null,975.75,0,null,600,null,null,null,null,null,null,null,null,null,null,null,null,null,null,null,null,null,null,null,null,null,null,null,null,null,null,null,null,null,null,null,null,null,null,null,null,null,975.7500171661377]
["75-0748","TM","Schwan Cosmetics USA",0.4,57.6,null,1080,0,null,600,null,null,null,null,null,null,null,null,null,null,null,null,null,null,null,null,null,null,null,null,null,null,null,null,null,null,null,null,null,null,null,null,null,null,null,null,null,1079.9999713897705]
["75-0749","TM","Wal-Mart Stores East, LP dba Fueling Station 5182\t",0,14.504,null,271.95,0,null,500,null,null,null,null,null,null,null,null,null,null,null,null,null,null,null,null,null,null,null,null,null,null,null,null,null,null,null,null,null,null,null,null,null,null,null,null,null,271.9499945640564]
["75-0750","TM","Wal-Mart Stores East, LP dba Fueling Station 5148",0,14.504,null,271.95,0,null,500,null,null,null,null,null,null,null,null,null,null,null,null,null,null,null,null,null,null,null,null,null,null,null,null,null,null,null,null,null,null,null,null,null,null,null,null,null,271.9499945640564]
["75-0760","TM","Cardinal Health 105, Inc. dba Specialty Pharmaceuticals",7.6199999999999992,23.68,null,444,0,null,500,null,null,null,null,null,null,null,null,null,null,null,null,null,null,null,null,null,null,null,null,null,null,null,null,null,null,null,null,null,null,null,null,null,null,null,null,null,444.0000057220459]
["75-0762","TM","Smyrna Ready Mix, LLC",0,14.62,null,274.12,0,null,500,null,null,null,null,null,null,null,null,null,null,null,null,null,null,null,null,null,null,null,null,null,null,null,null,null,null,null,null,null,null,null,null,null,null,null,null,null,274.12499785423279]
["75-0794","TM","Liddle Creative Construction Inc",0,12,null,225,0,null,500,null,null,null,null,null,null,null,null,null,null,null,null,null,null,null,null,null,null,null,null,null,null,null,null,null,null,null,null,null,null,null,null,null,null,null,null,null,225]
["75-0818","CM","Murfreesboro Water dba Stones River Water Treatment Plant",6.05,11.612,250,217.72,0,1000,null,null,null,null,null,null,null,null,null,null,null,null,null,null,null,null,null,null,null,null,null,null,null,null,null,null,null,null,null,null,null,null,null,null,null,null,null,null,217.72500872612]
["76-0002","CM","Armstrong Hardwood Flooring Company",0,128.5,1000,2409.38,0,2250,null,null,null,null,null,null,null,null,null,null,null,null,null,null,null,null,null,null,null,null,null,null,null,null,null,null,null,null,null,null,null,null,null,null,null,null,null,null,2409.375]
["76-0042","TM","HBD/Thermoid  Inc.",6.2,220.5,null,4134.38,0,null,900,null,null,null,null,null,null,null,null,null,null,null,null,null,null,null,null,null,null,null,null,null,null,null,null,null,null,null,null,null,null,null,null,null,null,null,null,null,4134.375]
["76-0079","CM","Great Dane Trailers",0,163.99,1000,3074.81,0,2500,null,null,null,null,null,null,null,null,null,null,null,null,null,null,null,null,null,null,null,null,null,null,null,null,null,null,null,null,null,null,null,null,null,null,null,null,null,null,3074.8126029968262]
["76-0081","CM","Container Technologies Industries, LLC",0,107.4,1000,2013.75,0,2000,null,null,null,null,null,null,null,null,null,null,null,null,null,null,null,null,null,null,null,null,null,null,null,null,null,null,null,null,null,null,null,null,null,null,null,null,null,null,2013.7500286102295]
["76-0083","TM","Citizens Gas Utility District of Scott and Morgan Counties",39.619999999999997,41.089999999999996,null,770.44,0,null,550,null,null,null,null,null,null,null,null,null,null,null,null,null,null,null,null,null,null,null,null,null,null,null,null,null,null,null,null,null,null,null,null,null,null,null,null,null,770.43750286102295]
["76-0093","TM","Atlas Energy Tennessee, LLC dba Fruehauf",15.1,272.09999999999997,null,5101.88,0,null,1000,null,null,null,null,null,null,null,null,null,null,null,null,null,null,null,null,null,null,null,null,null,null,null,null,null,null,null,null,null,null,null,null,null,null,null,null,null,5101.875114440918]
["76-0095","TM","Atlas Energy Tennessee LLC dba KLC",11.3,50.5,null,946.88,0,null,600,null,null,null,null,null,null,null,null,null,null,null,null,null,null,null,null,null,null,null,null,null,null,null,null,null,null,null,null,null,null,null,null,null,null,null,null,null,946.875]
["77-0006","TM","Dunlap Stone, Inc.",0,43.12,null,808.5,0,null,550,null,null,null,null,null,null,null,null,null,null,null,null,null,null,null,null,null,null,null,null,null,null,null,null,null,null,null,null,null,null,null,null,null,null,null,null,null,808.49997997283936]
["77-0020","TM","Dunlap Stone Company",2.7,15.6,null,292.5,0,null,500,null,null,null,null,null,null,null,null,null,null,null,null,null,null,null,null,null,null,null,null,null,null,null,null,null,null,null,null,null,null,null,null,null,null,null,null,null,292.50000715255737]
["77-0057","CM","Carbon Black Global LLC",100.13000000000001,208.97,2000,3918.19,0,3500,null,null,null,null,null,null,null,null,null,null,null,null,null,null,null,null,null,null,null,null,null,null,null,null,null,null,null,null,null,null,null,null,null,null,null,null,null,null,3918.1875228881836]
["78-0009","CM","Charles Blalock & Sons, Inc. - Asphalt Plant 1",68.08,150.67000000000002,1000,2825.06,0,3000,null,null,null,null,null,null,null,null,null,null,null,null,null,null,null,null,null,null,null,null,null,null,null,null,null,null,null,null,null,null,null,null,null,null,null,null,null,null,2825.0624656677246]
["78-0011","TM","Vulcan Construction Materials, LLC dba Sevierville Quarry",0,111.6,null,2092.5,0,null,700,null,null,null,null,null,null,null,null,null,null,null,null,null,null,null,null,null,null,null,null,null,null,null,null,null,null,null,null,null,null,null,null,null,null,null,null,null,2092.4999713897705]
["78-0061","TM","Blalock Lumber Company",0,16.100000000000001,null,301.88,0,null,500,null,null,null,null,null,null,null,null,null,null,null,null,null,null,null,null,null,null,null,null,null,null,null,null,null,null,null,null,null,null,null,null,null,null,null,null,null,301.87500715255737]
["78-0103","TM","Vulcan Construction Materials, LLC dba Kodak Quarry",0,115.19999999999999,null,2160,0,null,700,null,null,null,null,null,null,null,null,null,null,null,null,null,null,null,null,null,null,null,null,null,null,null,null,null,null,null,null,null,null,null,null,null,null,null,null,null,2159.999942779541]
["78-0104","TM","A & W Ready Mix LLC",0,16.899999999999999,null,316.88,0,null,500,null,null,null,null,null,null,null,null,null,null,null,null,null,null,null,null,null,null,null,null,null,null,null,null,null,null,null,null,null,null,null,null,null,null,null,null,null,316.87499284744263]
["78-0108","TM","Emco Williams, Inc.",0,15.8,null,296.25,0,null,500,null,null,null,null,null,null,null,null,null,null,null,null,null,null,null,null,null,null,null,null,null,null,null,null,null,null,null,null,null,null,null,null,null,null,null,null,null,296.25000357627869]
["78-0110","TM","Charles Blalock & Sons, Inc. dba Concrete Plant 2",3.6799999999999997,135.4,null,2538.75,0,null,750,null,null,null,null,null,null,null,null,null,null,null,null,null,null,null,null,null,null,null,null,null,null,null,null,null,null,null,null,null,null,null,null,null,null,null,null,null,2538.749885559082]
["78-0111","CM","Charles Blalock & Son  Inc.",36.51,134.07,1000,2513.81,0,2500,null,null,null,null,null,null,null,null,null,null,null,null,null,null,null,null,null,null,null,null,null,null,null,null,null,null,null,null,null,null,null,null,null,null,null,null,null,null,2513.8126373291016]
["78-0116","TM","Charles Blalock & Sons, Inc. dba B.O.C.",2.2999999999999998,95.830000000000013,null,1796.81,0,null,650,null,null,null,null,null,null,null,null,null,null,null,null,null,null,null,null,null,null,null,null,null,null,null,null,null,null,null,null,null,null,null,null,null,null,null,null,null,1796.8125343322754]
["78-0118","TM","Charles Blalock & Sons, Inc. dba B.O.C.",2.2999999999999998,56.150000000000006,null,1052.81,0,null,600,null,null,null,null,null,null,null,null,null,null,null,null,null,null,null,null,null,null,null,null,null,null,null,null,null,null,null,null,null,null,null,null,null,null,null,null,null,1052.8125286102295]
["78-0201","TM","Blalock Lumber Company",7.18,201.95,null,3786.56,0,null,900,null,null,null,null,null,null,null,null,null,null,null,null,null,null,null,null,null,null,null,null,null,null,null,null,null,null,null,null,null,null,null,null,null,null,null,null,null,3786.562442779541]
["78-0219","CM","Lisega, Inc.",0,103.44,1000,1939.5,0,2000,null,null,null,null,null,null,null,null,null,null,null,null,null,null,null,null,null,null,null,null,null,null,null,null,null,null,null,null,null,null,null,null,null,null,null,null,null,null,1939.5000457763672]
["78-0305","TM","Blalock Lumber Company",0,10,null,187.5,0,null,500,null,null,null,null,null,null,null,null,null,null,null,null,null,null,null,null,null,null,null,null,null,null,null,null,null,null,null,null,null,null,null,null,null,null,null,null,null,187.5]
["78-0313","TM","Blalock Lumber Company Concrete Plant 3",0,25.2,null,472.5,0,null,550,null,null,null,null,null,null,null,null,null,null,null,null,null,null,null,null,null,null,null,null,null,null,null,null,null,null,null,null,null,null,null,null,null,null,null,null,null,472.50001430511475]
["78-0316","TM","Parker Trutec MMi Inc.",0,15.72,null,294.75,0,null,500,null,null,null,null,null,null,null,null,null,null,null,null,null,null,null,null,null,null,null,null,null,null,null,null,null,null,null,null,null,null,null,null,null,null,null,null,null,294.75000500679016]
["78-0329","TM","Wal-mart Stores East, LP dba Fuel Station 5908",0,12.3,null,230.62,0,null,500,null,null,null,null,null,null,null,null,null,null,null,null,null,null,null,null,null,null,null,null,null,null,null,null,null,null,null,null,null,null,null,null,null,null,null,null,null,230.62500357627869]
["78-0332","TM","Kroger Limited Partnership 1 dba Kroger Fuel Center U-536",0,16.96,null,318,0,null,500,null,null,null,null,null,null,null,null,null,null,null,null,null,null,null,null,null,null,null,null,null,null,null,null,null,null,null,null,null,null,null,null,null,null,null,null,null,317.9999828338623]
["80-0038","TM","Nyrstar Gordonsville LLC",0,64.8,null,1215,0,null,600,null,null,null,null,null,null,null,null,null,null,null,null,null,null,null,null,null,null,null,null,null,null,null,null,null,null,null,null,null,null,null,null,null,null,null,null,null,1215.000057220459]
["80-0041","TM","Rogers Group, Inc.",0,39.9,null,748.12,0,null,550,null,null,null,null,null,null,null,null,null,null,null,null,null,null,null,null,null,null,null,null,null,null,null,null,null,null,null,null,null,null,null,null,null,null,null,null,null,748.12502861022949]
["80-0043","CM","Vulcan Construction Materials LLC dba Gordonsville Asphalt Plant",80,55.8,1000,1046.25,0,2250,null,null,null,null,null,null,null,null,null,null,null,null,null,null,null,null,null,null,null,null,null,null,null,null,null,null,null,null,null,null,null,null,null,null,null,null,null,null,1046.2499856948853]
["80-0049","TM","Graphic Packaging International, Inc.",0.09,95.123000000000005,null,1783.56,0,null,650,null,null,null,null,null,null,null,null,null,null,null,null,null,null,null,null,null,null,null,null,null,null,null,null,null,null,null,null,null,null,null,null,null,null,null,null,null,1783.5562705993652]
["80-0054","TM","Pelletizing Company, Inc.",0,60.35,null,1131.56,0,null,600,null,null,null,null,null,null,null,null,null,null,null,null,null,null,null,null,null,null,null,null,null,null,null,null,null,null,null,null,null,null,null,null,null,null,null,null,null,1131.5624713897705]
["80-0058","TM","Lojac Enterprises, Inc.",0,45.2,null,847.5,0,null,550,null,null,null,null,null,null,null,null,null,null,null,null,null,null,null,null,null,null,null,null,null,null,null,null,null,null,null,null,null,null,null,null,null,null,null,null,null,847.50001430511475]
["80-0059","TM","Filtra-Systems Company",0,29.8,null,558.75,0,null,550,null,null,null,null,null,null,null,null,null,null,null,null,null,null,null,null,null,null,null,null,null,null,null,null,null,null,null,null,null,null,null,null,null,null,null,null,null,558.74998569488525]
["80-0068","TM","Dana Driveshaft Products, Llc",0,35.200000000000003,null,660,0,null,550,null,null,null,null,null,null,null,null,null,null,null,null,null,null,null,null,null,null,null,null,null,null,null,null,null,null,null,null,null,null,null,null,null,null,null,null,null,660.00001430511475]
["81-0032","TM","The SEFA Group, Inc. dba SEFA Cumberland Facility",6.7,96.87,null,1816.31,0,null,650,null,null,null,null,null,null,null,null,null,null,null,null,null,null,null,null,null,null,null,null,null,null,null,null,null,null,null,null,null,null,null,null,null,null,null,null,null,1816.3125514984131]
["82-0032","TM","Bristol Metals LLC",11.36,93.66,null,1756.12,0,null,650,null,null,null,null,null,null,null,null,null,null,null,null,null,null,null,null,null,null,null,null,null,null,null,null,null,null,null,null,null,null,null,null,null,null,null,null,null,1756.1250686645508]
["82-0037","TM","CEMEX Construction Materials Atlantic, LLC",0,19.2,null,360,0,null,500,null,null,null,null,null,null,null,null,null,null,null,null,null,null,null,null,null,null,null,null,null,null,null,null,null,null,null,null,null,null,null,null,null,null,null,null,null,360.00001430511475]
["82-0046","TM","Vulcan Construction Materials, LLC dba Kingsport Quarry",0,120.9,null,2266.88,0,null,700,null,null,null,null,null,null,null,null,null,null,null,null,null,null,null,null,null,null,null,null,null,null,null,null,null,null,null,null,null,null,null,null,null,null,null,null,null,2266.8750286102295]
["82-0055","CM","Wellmont Health System dba Holston Valley Medical Center",23.4,68.7,500,1288.1199999999999,0,1750,null,null,null,null,null,null,null,null,null,null,null,null,null,null,null,null,null,null,null,null,null,null,null,null,null,null,null,null,null,null,null,null,null,null,null,null,null,null,1288.124942779541]
["82-0076","TM","Byerley Construction Co.  Inc.",0,15.9,null,298.12,0,null,500,null,null,null,null,null,null,null,null,null,null,null,null,null,null,null,null,null,null,null,null,null,null,null,null,null,null,null,null,null,null,null,null,null,null,null,null,null,298.12499284744263]
["82-0080","TM","City Of Bristol Tennessee",0,60.400000000000006,null,1132.5,0,null,600,null,null,null,null,null,null,null,null,null,null,null,null,null,null,null,null,null,null,null,null,null,null,null,null,null,null,null,null,null,null,null,null,null,null,null,null,null,1132.5000286102295]
["82-0093","TM","Ross Prestressed Concrete, Inc.",0,10.3,null,193.12,0,null,500,null,null,null,null,null,null,null,null,null,null,null,null,null,null,null,null,null,null,null,null,null,null,null,null,null,null,null,null,null,null,null,null,null,null,null,null,null,193.12500357627869]
["82-0150","TM","East Tennessee Natural Gas, LLC dba Compressor Station 3309 - Bristol",60.080000000000005,47.767649999999996,null,895.64,0,null,550,null,null,null,null,null,null,null,null,null,null,null,null,null,null,null,null,null,null,null,null,null,null,null,null,null,null,null,null,null,null,null,null,null,null,null,null,null,895.64344882965088]
["82-0165","TM","Mountain States Health Alliance dba Indian Path Medical Center",11.77,36.76,null,689.25,0,null,550,null,null,null,null,null,null,null,null,null,null,null,null,null,null,null,null,null,null,null,null,null,null,null,null,null,null,null,null,null,null,null,null,null,null,null,null,null,689.24996852874756]
["82-0166","TM","BWI ETN LLC dba Blue Water Industries BWI Tri- Cities Airport LLC Quarry",0,82,null,1537.5,0,null,650,null,null,null,null,null,null,null,null,null,null,null,null,null,null,null,null,null,null,null,null,null,null,null,null,null,null,null,null,null,null,null,null,null,null,null,null,null,1537.5]
["82-0173","TM","Sullivan County Highway Dept.",2,15,null,281.25,0,null,500,null,null,null,null,null,null,null,null,null,null,null,null,null,null,null,null,null,null,null,null,null,null,null,null,null,null,null,null,null,null,null,null,null,null,null,null,null,281.25]
["82-0174","TM","Ready Mix USA, LLC dba Kingsport Concrete Plant",0,20.8,null,390,0,null,500,null,null,null,null,null,null,null,null,null,null,null,null,null,null,null,null,null,null,null,null,null,null,null,null,null,null,null,null,null,null,null,null,null,null,null,null,null,389.99998569488525]
["82-0181","TM","Necessary Oil Company",0,66.3,null,1243.1199999999999,0,null,600,null,null,null,null,null,null,null,null,null,null,null,null,null,null,null,null,null,null,null,null,null,null,null,null,null,null,null,null,null,null,null,null,null,null,null,null,null,1243.125057220459]
["82-0184","TM","B &  P Asphalt Company",1,21,null,393.75,0,null,500,null,null,null,null,null,null,null,null,null,null,null,null,null,null,null,null,null,null,null,null,null,null,null,null,null,null,null,null,null,null,null,null,null,null,null,null,null,393.75]
["82-0185","TM","King College, Inc.",3.8,31.7,null,594.38,0,null,550,null,null,null,null,null,null,null,null,null,null,null,null,null,null,null,null,null,null,null,null,null,null,null,null,null,null,null,null,null,null,null,null,null,null,null,null,null,594.37501430511475]
["82-0206","TM","Vulcan Construction Materials LLC",0,118,null,2212.5,0,null,700,null,null,null,null,null,null,null,null,null,null,null,null,null,null,null,null,null,null,null,null,null,null,null,null,null,null,null,null,null,null,null,null,null,null,null,null,null,2212.5]
["82-0209","CM","G & K Services, Inc.",3.3,143.60000000000002,1000,2692.5,0,2250,null,null,null,null,null,null,null,null,null,null,null,null,null,null,null,null,null,null,null,null,null,null,null,null,null,null,null,null,null,null,null,null,null,null,null,null,null,null,2692.500114440918]
["82-0217","TM","Polymer Industrial Products",9.1999999999999993,43.22,null,810.38,0,null,550,null,null,null,null,null,null,null,null,null,null,null,null,null,null,null,null,null,null,null,null,null,null,null,null,null,null,null,null,null,null,null,null,null,null,null,null,null,810.37502288818359]
["82-0223","CM","The Robinette Company",4.3,104.89999999999999,1000,1966.88,0,2000,null,null,null,null,null,null,null,null,null,null,null,null,null,null,null,null,null,null,null,null,null,null,null,null,null,null,null,null,null,null,null,null,null,null,null,null,null,null,1966.8750286102295]
["82-0225","TM","Summers Taylor Materials",0,52.56,null,985.5,0,null,600,null,null,null,null,null,null,null,null,null,null,null,null,null,null,null,null,null,null,null,null,null,null,null,null,null,null,null,null,null,null,null,null,null,null,null,null,null,985.50002574920654]
["82-0237","TM","Henard Metal Fabricators, Inc.",0,32.200000000000003,null,603.75,0,null,550,null,null,null,null,null,null,null,null,null,null,null,null,null,null,null,null,null,null,null,null,null,null,null,null,null,null,null,null,null,null,null,null,null,null,null,null,null,603.75001430511475]
["82-0246","TM","Bristol Regional Medical Center",15.77,80.2,null,1503.75,0,null,650,null,null,null,null,null,null,null,null,null,null,null,null,null,null,null,null,null,null,null,null,null,null,null,null,null,null,null,null,null,null,null,null,null,null,null,null,null,1503.749942779541]
["82-0247","CM","Summers Taylor Materials",6.5,38.81,250,727.69,0,1250,null,null,null,null,null,null,null,null,null,null,null,null,null,null,null,null,null,null,null,null,null,null,null,null,null,null,null,null,null,null,null,null,null,null,null,null,null,null,727.68752574920654]
["82-0249","TM","Bell Helicopter Textron, Inc",0,51.9,null,973.12,0,null,600,null,null,null,null,null,null,null,null,null,null,null,null,null,null,null,null,null,null,null,null,null,null,null,null,null,null,null,null,null,null,null,null,null,null,null,null,null,973.12502861022949]
["82-0252","TM","Bluff City Marble",0,9.9499999999999993,null,186.56,0,null,500,null,null,null,null,null,null,null,null,null,null,null,null,null,null,null,null,null,null,null,null,null,null,null,null,null,null,null,null,null,null,null,null,null,null,null,null,null,186.56249642372131]
["82-0272","TM","Narcote",0,23,null,431.25,0,null,500,null,null,null,null,null,null,null,null,null,null,null,null,null,null,null,null,null,null,null,null,null,null,null,null,null,null,null,null,null,null,null,null,null,null,null,null,null,431.25]
["82-0280","TM","Bell Helicopter dba Aeronautical Accessories",0,74.650000000000006,null,1399.69,0,null,600,null,null,null,null,null,null,null,null,null,null,null,null,null,null,null,null,null,null,null,null,null,null,null,null,null,null,null,null,null,null,null,null,null,null,null,null,null,1399.6875286102295]
["82-0297","TM","Royal Building Products",0,242.2,null,4541.25,0,null,950,null,null,null,null,null,null,null,null,null,null,null,null,null,null,null,null,null,null,null,null,null,null,null,null,null,null,null,null,null,null,null,null,null,null,null,null,null,4541.249942779541]
["82-0299","TM","Heritage Manufacturing Company  Inc.",0,59,null,1106.25,0,null,600,null,null,null,null,null,null,null,null,null,null,null,null,null,null,null,null,null,null,null,null,null,null,null,null,null,null,null,null,null,null,null,null,null,null,null,null,null,1106.25]
["82-0302","TM","Transit Mix Concrete Co., Inc.",0,56.3,null,1055.6199999999999,0,null,600,null,null,null,null,null,null,null,null,null,null,null,null,null,null,null,null,null,null,null,null,null,null,null,null,null,null,null,null,null,null,null,null,null,null,null,null,null,1055.6249856948853]
["82-0304","TM","Electro Motor",0,12,null,225,0,null,500,null,null,null,null,null,null,null,null,null,null,null,null,null,null,null,null,null,null,null,null,null,null,null,null,null,null,null,null,null,null,null,null,null,null,null,null,null,225]
["82-0431","TM","Bell Helicopter Textron, Inc.",0,51.9,null,973.12,0,null,600,null,null,null,null,null,null,null,null,null,null,null,null,null,null,null,null,null,null,null,null,null,null,null,null,null,null,null,null,null,null,null,null,null,null,null,null,null,973.12502861022949]
["82-0450","CM","Summers Taylor Materials",32.94,87.72,1000,1644.75,0,2000,null,null,null,null,null,null,null,null,null,null,null,null,null,null,null,null,null,null,null,null,null,null,null,null,null,null,null,null,null,null,null,null,null,null,null,null,null,null,1644.7500228881836]
["82-0484","TM","Kingsport Concrete LLC",0,10,null,187.5,0,null,500,null,null,null,null,null,null,null,null,null,null,null,null,null,null,null,null,null,null,null,null,null,null,null,null,null,null,null,null,null,null,null,null,null,null,null,null,null,187.5]
["82-0496","TM","M & M Woodworking Inc",0,71.88,null,1347.75,0,null,600,null,null,null,null,null,null,null,null,null,null,null,null,null,null,null,null,null,null,null,null,null,null,null,null,null,null,null,null,null,null,null,null,null,null,null,null,null,1347.7499485015869]
["82-0503","TM","City Of Bristol Tennessee dba Bristol STP 2",13.35,16.32,null,306,0,null,500,null,null,null,null,null,null,null,null,null,null,null,null,null,null,null,null,null,null,null,null,null,null,null,null,null,null,null,null,null,null,null,null,null,null,null,null,null,305.9999942779541]
["82-0504","TM","Dr. Reddy's Laboratories",0.45,45.98,null,862.12,0,null,550,null,null,null,null,null,null,null,null,null,null,null,null,null,null,null,null,null,null,null,null,null,null,null,null,null,null,null,null,null,null,null,null,null,null,null,null,null,862.12499141693115]
["83-0021","TM","Rogers Group Inc. (Gallatin Plant)",0,61.75,null,1157.81,0,null,600,null,null,null,null,null,null,null,null,null,null,null,null,null,null,null,null,null,null,null,null,null,null,null,null,null,null,null,null,null,null,null,null,null,null,null,null,null,1157.8125]
["83-0022","TM","Crescent Manufacturing",19.100000000000001,21.1,null,395.62,0,null,500,null,null,null,null,null,null,null,null,null,null,null,null,null,null,null,null,null,null,null,null,null,null,null,null,null,null,null,null,null,null,null,null,null,null,null,null,null,395.62500715255737]
["83-0109","TM","BlockWorks LLC",1.6,122.30000000000001,null,2293.12,0,null,700,null,null,null,null,null,null,null,null,null,null,null,null,null,null,null,null,null,null,null,null,null,null,null,null,null,null,null,null,null,null,null,null,null,null,null,null,null,2293.125057220459]
["83-0116","CM","Kirby Building Systems LLC",0,77.099999999999994,500,1445.62,0,1750,null,null,null,null,null,null,null,null,null,null,null,null,null,null,null,null,null,null,null,null,null,null,null,null,null,null,null,null,null,null,null,null,null,null,null,null,null,null,1445.6249713897705]
["83-0126","CM","Rogers Group Inc. dba Gallatin Asphalt",94.5,112.57,1000,2110.69,0,3000,null,null,null,null,null,null,null,null,null,null,null,null,null,null,null,null,null,null,null,null,null,null,null,null,null,null,null,null,null,null,null,null,null,null,null,null,null,null,2110.6874942779541]
["83-0157","TM","Tsubaki Conveyor of America, Inc.",0,31.6,null,592.5,0,null,550,null,null,null,null,null,null,null,null,null,null,null,null,null,null,null,null,null,null,null,null,null,null,null,null,null,null,null,null,null,null,null,null,null,null,null,null,null,592.50000715255737]
["83-0158","TM","Wil-Ro Inc",0,44.4,null,832.5,0,null,550,null,null,null,null,null,null,null,null,null,null,null,null,null,null,null,null,null,null,null,null,null,null,null,null,null,null,null,null,null,null,null,null,null,null,null,null,null,832.50002861022949]
["83-0163","TM","The Crown Group CO Davis Street Plant",0,18.3,null,343.12,0,null,500,null,null,null,null,null,null,null,null,null,null,null,null,null,null,null,null,null,null,null,null,null,null,null,null,null,null,null,null,null,null,null,null,null,null,null,null,null,343.12498569488525]
["83-0168","TM","imi-TN, Inc. Goodlettsville",0,12.63,null,236.81,0,null,500,null,null,null,null,null,null,null,null,null,null,null,null,null,null,null,null,null,null,null,null,null,null,null,null,null,null,null,null,null,null,null,null,null,null,null,null,null,236.81250214576721]
["83-0172","TM","Thomas & Betts Corporation",0,82.8,null,1552.5,0,null,650,null,null,null,null,null,null,null,null,null,null,null,null,null,null,null,null,null,null,null,null,null,null,null,null,null,null,null,null,null,null,null,null,null,null,null,null,null,1552.500057220459]
["83-0178","TM","United Structures",0,66.260000000000005,null,1242.3800000000001,0,null,600,null,null,null,null,null,null,null,null,null,null,null,null,null,null,null,null,null,null,null,null,null,null,null,null,null,null,null,null,null,null,null,null,null,null,null,null,null,1242.3750400543213]
["83-0324","TM","Betty Machine Company Inc.",0,30,null,562.5,0,null,550,null,null,null,null,null,null,null,null,null,null,null,null,null,null,null,null,null,null,null,null,null,null,null,null,null,null,null,null,null,null,null,null,null,null,null,null,null,562.5]
["83-0336","TM","Air Products And Chemicals  Inc.",18.8,26.2,null,491.25,0,null,550,null,null,null,null,null,null,null,null,null,null,null,null,null,null,null,null,null,null,null,null,null,null,null,null,null,null,null,null,null,null,null,null,null,null,null,null,null,491.25001430511475]
["83-0342","TM","Smyrna Ready Mix Concrete LLC",0,25.3,null,474.38,0,null,550,null,null,null,null,null,null,null,null,null,null,null,null,null,null,null,null,null,null,null,null,null,null,null,null,null,null,null,null,null,null,null,null,null,null,null,null,null,474.37498569488525]
["83-0371","TM","Integrated Mfg. Systems, Llc",0,11.26,null,211.12,0,null,500,null,null,null,null,null,null,null,null,null,null,null,null,null,null,null,null,null,null,null,null,null,null,null,null,null,null,null,null,null,null,null,null,null,null,null,null,null,211.12500429153442]
["83-0387","TM","Little Guys Group, LLC",0,59.5,null,1115.6199999999999,0,null,600,null,null,null,null,null,null,null,null,null,null,null,null,null,null,null,null,null,null,null,null,null,null,null,null,null,null,null,null,null,null,null,null,null,null,null,null,null,1115.625]
["83-0391","TM","Sumner Regional Medical Center",11.6,58.949999999999996,null,1105.31,0,null,600,null,null,null,null,null,null,null,null,null,null,null,null,null,null,null,null,null,null,null,null,null,null,null,null,null,null,null,null,null,null,null,null,null,null,null,null,null,1105.3125143051147]
["83-0420","TM","Surface Koatings, Inc.",0,86.919999999999987,null,1629.75,0,null,650,null,null,null,null,null,null,null,null,null,null,null,null,null,null,null,null,null,null,null,null,null,null,null,null,null,null,null,null,null,null,null,null,null,null,null,null,null,1629.7499656677246]
["83-0445","TM","Garrott Brothers Continuous Mix Inc. Plant #2",0,15.059999999999999,null,282.38,0,null,500,null,null,null,null,null,null,null,null,null,null,null,null,null,null,null,null,null,null,null,null,null,null,null,null,null,null,null,null,null,null,null,null,null,null,null,null,null,282.37500786781311]
["83-0451","TM","Comcast Cablevision of Nashville II, LLC",8.1709999999999994,22.054000000000002,null,413.51,0,null,500,null,null,null,null,null,null,null,null,null,null,null,null,null,null,null,null,null,null,null,null,null,null,null,null,null,null,null,null,null,null,null,null,null,null,null,null,null,413.51251602172852]
["83-0466","CM","American Colors, Inc.",0,82.300000000000011,500,1543.12,0,1750,null,null,null,null,null,null,null,null,null,null,null,null,null,null,null,null,null,null,null,null,null,null,null,null,null,null,null,null,null,null,null,null,null,null,null,null,null,null,1543.125057220459]
["83-0468","TM","Axiom Impressions, LLC",6.45,55.440000000000005,null,1039.5,0,null,600,null,null,null,null,null,null,null,null,null,null,null,null,null,null,null,null,null,null,null,null,null,null,null,null,null,null,null,null,null,null,null,null,null,null,null,null,null,1039.4999742507935]
["83-0470","TM","Murphy Oil USA, Inc. dba Murphy USA 7279",0,16.739999999999998,null,313.88,0,null,500,null,null,null,null,null,null,null,null,null,null,null,null,null,null,null,null,null,null,null,null,null,null,null,null,null,null,null,null,null,null,null,null,null,null,null,null,null,313.87499570846558]
["83-0476","TM","Kroger Limited Partership I dba Kroger Fuel Center U 619",0,20.74,null,388.88,0,null,500,null,null,null,null,null,null,null,null,null,null,null,null,null,null,null,null,null,null,null,null,null,null,null,null,null,null,null,null,null,null,null,null,null,null,null,null,null,388.87499570846558]
["83-0500","TM","Beretta U.S.A. Corp. dba Beretta U.S.A, Tennessee Campus",0,22.200000000000003,null,416.25,0,null,500,null,null,null,null,null,null,null,null,null,null,null,null,null,null,null,null,null,null,null,null,null,null,null,null,null,null,null,null,null,null,null,null,null,null,null,null,null,416.25001430511475]
["84-0012","TM","William (Willie) A. Glass, dba Hatchie Gin Company",0,9.9700000000000006,null,186.94,0,null,500,null,null,null,null,null,null,null,null,null,null,null,null,null,null,null,null,null,null,null,null,null,null,null,null,null,null,null,null,null,null,null,null,null,null,null,null,null,186.93750500679016]
["84-0020","TM","Burlison Gin Co.",0,40,null,750,0,null,550,null,null,null,null,null,null,null,null,null,null,null,null,null,null,null,null,null,null,null,null,null,null,null,null,null,null,null,null,null,null,null,null,null,null,null,null,null,750]
["84-0061","TM","Tennessee Gins & Warehouses",0,45,null,843.75,0,null,550,null,null,null,null,null,null,null,null,null,null,null,null,null,null,null,null,null,null,null,null,null,null,null,null,null,null,null,null,null,null,null,null,null,null,null,null,null,843.75]
["84-0078","CM","Frank Climer and Son Asphalt Materials, Inc.",61.6,53.4,1000,1001.25,0,2000,null,null,null,null,null,null,null,null,null,null,null,null,null,null,null,null,null,null,null,null,null,null,null,null,null,null,null,null,null,null,null,null,null,null,null,null,null,null,1001.2500286102295]
["84-0080","TM","LSC Communications, US LLC",0,33.56,null,629.25,0,null,550,null,null,null,null,null,null,null,null,null,null,null,null,null,null,null,null,null,null,null,null,null,null,null,null,null,null,null,null,null,null,null,null,null,null,null,null,null,629.25002574920654]
["84-0084","TM","Mississippi Limestone Corporation",0,12.6,null,236.25,0,null,500,null,null,null,null,null,null,null,null,null,null,null,null,null,null,null,null,null,null,null,null,null,null,null,null,null,null,null,null,null,null,null,null,null,null,null,null,null,236.25000715255737]
["84-0088","TM","Unilever Manufacturing (US), Inc.",44.6,86.6,null,1623.75,0,null,650,null,null,null,null,null,null,null,null,null,null,null,null,null,null,null,null,null,null,null,null,null,null,null,null,null,null,null,null,null,null,null,null,null,null,null,null,null,1623.7499713897705]
["84-0092","CM","Producers Mid-South Company",0,36,250,675,0,1250,null,null,null,null,null,null,null,null,null,null,null,null,null,null,null,null,null,null,null,null,null,null,null,null,null,null,null,null,null,null,null,null,null,null,null,null,null,null,675]
["84-0094","TM","Sustainable Fiber Solutions",0,21.39,null,401.06,0,null,500,null,null,null,null,null,null,null,null,null,null,null,null,null,null,null,null,null,null,null,null,null,null,null,null,null,null,null,null,null,null,null,null,null,null,null,null,null,401.0624885559082]
["84-0095","CM","Rose Fabricating & Industrial Solutions",0,87.320000000000007,500,1637.25,0,1750,null,null,null,null,null,null,null,null,null,null,null,null,null,null,null,null,null,null,null,null,null,null,null,null,null,null,null,null,null,null,null,null,null,null,null,null,null,null,1637.2499942779541]
["84-0124","TM","PHG Energy dba Covington Waste Water Treatment Plant",21.02,38.1,null,714.38,0,null,550,null,null,null,null,null,null,null,null,null,null,null,null,null,null,null,null,null,null,null,null,null,null,null,null,null,null,null,null,null,null,null,null,null,null,null,null,null,714.37497138977051]
["84-0126","TM","Mid South Construction Materials LLC",0,52.6,null,986.25,0,null,600,null,null,null,null,null,null,null,null,null,null,null,null,null,null,null,null,null,null,null,null,null,null,null,null,null,null,null,null,null,null,null,null,null,null,null,null,null,986.24997138977051]
["85-0024","TM","Tva - Hartsville D.C.",0,76.650000000000006,null,1437.19,0,null,650,null,null,null,null,null,null,null,null,null,null,null,null,null,null,null,null,null,null,null,null,null,null,null,null,null,null,null,null,null,null,null,null,null,null,null,null,null,1437.1875286102295]
["85-0031","TM","Hartsville Cabinet & Millwork, Inc.",0,35.700000000000003,null,669.38,0,null,550,null,null,null,null,null,null,null,null,null,null,null,null,null,null,null,null,null,null,null,null,null,null,null,null,null,null,null,null,null,null,null,null,null,null,null,null,null,669.37501430511475]
["86-0002","TM","Nuclear Fuel Services, Inc. (NFS)",9.6,132.274,null,2480.14,0,null,750,null,null,null,null,null,null,null,null,null,null,null,null,null,null,null,null,null,null,null,null,null,null,null,null,null,null,null,null,null,null,null,null,null,null,null,null,null,2480.1375389099121]
["86-0020","TM","Summers Taylor Materials",0,53,null,993.75,0,null,600,null,null,null,null,null,null,null,null,null,null,null,null,null,null,null,null,null,null,null,null,null,null,null,null,null,null,null,null,null,null,null,null,null,null,null,null,null,993.75]
["86-0040","TM","BWI ETN LLC dba Blue Water Industries BWI Unicoi LLC Quarry",0,103.5,null,1940.62,0,null,700,null,null,null,null,null,null,null,null,null,null,null,null,null,null,null,null,null,null,null,null,null,null,null,null,null,null,null,null,null,null,null,null,null,null,null,null,null,1940.625]
["86-0041","TM","N N Ball & Roller, Inc.",0,15,null,281.25,0,null,500,null,null,null,null,null,null,null,null,null,null,null,null,null,null,null,null,null,null,null,null,null,null,null,null,null,null,null,null,null,null,null,null,null,null,null,null,null,281.25]
["86-0042","CM","Construction Asphalt Paving Services, Inc..",38.4,28,500,525,0,1500,null,null,null,null,null,null,null,null,null,null,null,null,null,null,null,null,null,null,null,null,null,null,null,null,null,null,null,null,null,null,null,null,null,null,null,null,null,null,525]
["86-0049","TM","Impact Plastics, Inc.",0,87.3,null,1636.88,0,null,650,null,null,null,null,null,null,null,null,null,null,null,null,null,null,null,null,null,null,null,null,null,null,null,null,null,null,null,null,null,null,null,null,null,null,null,null,null,1636.875057220459]
["86-0052","TM","Specialty Tires of America",33.299999999999997,110.5,null,2071.88,0,null,700,null,null,null,null,null,null,null,null,null,null,null,null,null,null,null,null,null,null,null,null,null,null,null,null,null,null,null,null,null,null,null,null,null,null,null,null,null,2071.875]
["86-0054","TM","Erwin ResinSolutions, LLC",37.43,101.96000000000001,null,1911.75,0,null,700,null,null,null,null,null,null,null,null,null,null,null,null,null,null,null,null,null,null,null,null,null,null,null,null,null,null,null,null,null,null,null,null,null,null,null,null,null,1911.7499828338623]
["86-0082","TM","Foam Products Corporation",0,23.46,null,439.88,0,null,500,null,null,null,null,null,null,null,null,null,null,null,null,null,null,null,null,null,null,null,null,null,null,null,null,null,null,null,null,null,null,null,null,null,null,null,null,null,439.8749828338623]
["86-0091","TM","Regal-Beloit dba Riverview",0,15,null,281.25,0,null,500,null,null,null,null,null,null,null,null,null,null,null,null,null,null,null,null,null,null,null,null,null,null,null,null,null,null,null,null,null,null,null,null,null,null,null,null,null,281.25]
["87-0023","TM","O-N Minerals (Luttrell) Company dba Carmeuse Lime and Stone",1.75,153.94000000000003,null,2886.38,0,null,800,null,null,null,null,null,null,null,null,null,null,null,null,null,null,null,null,null,null,null,null,null,null,null,null,null,null,null,null,null,null,null,null,null,null,null,null,null,2886.3750457763672]
["87-0026","TM","Ready Mix USA",0,15.96,null,299.25,0,null,500,null,null,null,null,null,null,null,null,null,null,null,null,null,null,null,null,null,null,null,null,null,null,null,null,null,null,null,null,null,null,null,null,null,null,null,null,null,299.25000071525574]
["87-0032","TM","CMH Manufacturing, Inc. dba Clayton Homes - Maynardville",0,94.7,null,1775.62,0,null,650,null,null,null,null,null,null,null,null,null,null,null,null,null,null,null,null,null,null,null,null,null,null,null,null,null,null,null,null,null,null,null,null,null,null,null,null,null,1775.624942779541]
["87-0034","TM","Claiborne Hauling LLC dba Loyston Quarry",0,35.78,null,670.88,0,null,550,null,null,null,null,null,null,null,null,null,null,null,null,null,null,null,null,null,null,null,null,null,null,null,null,null,null,null,null,null,null,null,null,null,null,null,null,null,670.87497711181641]
["87-0035","TM","Vulcan Construction Materials, LLC dba Maynardville Quarry",0,118,null,2212.5,0,null,700,null,null,null,null,null,null,null,null,null,null,null,null,null,null,null,null,null,null,null,null,null,null,null,null,null,null,null,null,null,null,null,null,null,null,null,null,null,2212.5]
["87-0036","CM","APAC Atlantic, Inc. / Harrison Construction dba Maynardville",29.25,39.200000000000003,500,735,0,1500,null,null,null,null,null,null,null,null,null,null,null,null,null,null,null,null,null,null,null,null,null,null,null,null,null,null,null,null,null,null,null,null,null,null,null,null,null,null,735.00001430511475]
["87-0061","TM","Crush LLC dba Tri-County Stone",0,31.58,null,592.12,0,null,550,null,null,null,null,null,null,null,null,null,null,null,null,null,null,null,null,null,null,null,null,null,null,null,null,null,null,null,null,null,null,null,null,null,null,null,null,null,592.12499856948853]
["89-0007","TM","Jarden Consumer Solutions, dba for Sunbeam Products, Inc.",0,102.9,null,1929.38,0,null,700,null,null,null,null,null,null,null,null,null,null,null,null,null,null,null,null,null,null,null,null,null,null,null,null,null,null,null,null,null,null,null,null,null,null,null,null,null,1929.3750286102295]
["89-0009","CM","Cumberland Lumber & Manufacturing Company, Inc.",0,105.23,1000,1973.06,0,2000,null,null,null,null,null,null,null,null,null,null,null,null,null,null,null,null,null,null,null,null,null,null,null,null,null,null,null,null,null,null,null,null,null,null,null,null,null,null,1973.0625629425049]
["89-0014","TM","Rogers Group, Inc. McMinnville Quarry",0,99.1,null,1858.12,0,null,650,null,null,null,null,null,null,null,null,null,null,null,null,null,null,null,null,null,null,null,null,null,null,null,null,null,null,null,null,null,null,null,null,null,null,null,null,null,1858.1249713897705]
["89-0016","TM","Presco Industries, LLC dba Mcminnville Manufacturing Company",38.049999999999997,85.2,null,1597.5,0,null,650,null,null,null,null,null,null,null,null,null,null,null,null,null,null,null,null,null,null,null,null,null,null,null,null,null,null,null,null,null,null,null,null,null,null,null,null,null,1597.499942779541]
["89-0018","TM","Ames Companies, Inc.",0,10.9,null,204.38,0,null,500,null,null,null,null,null,null,null,null,null,null,null,null,null,null,null,null,null,null,null,null,null,null,null,null,null,null,null,null,null,null,null,null,null,null,null,null,null,204.37499284744263]
["89-0075","TM","Yorozu Automotive Tennessee",0,25.5,null,478.12,0,null,550,null,null,null,null,null,null,null,null,null,null,null,null,null,null,null,null,null,null,null,null,null,null,null,null,null,null,null,null,null,null,null,null,null,null,null,null,null,478.125]
["89-0092","TM","Bouldin & Lawson, LLC",0,62.9,null,1179.3800000000001,0,null,600,null,null,null,null,null,null,null,null,null,null,null,null,null,null,null,null,null,null,null,null,null,null,null,null,null,null,null,null,null,null,null,null,null,null,null,null,null,1179.3750286102295]
["89-0094","TM","Mayfield Lumber Company",0,157.60000000000002,null,2955,0,null,800,null,null,null,null,null,null,null,null,null,null,null,null,null,null,null,null,null,null,null,null,null,null,null,null,null,null,null,null,null,null,null,null,null,null,null,null,null,2955.000114440918]
["89-0101","TM","Tennessee Metal Fabricating Corporation",0,34.28,null,642.75,0,null,550,null,null,null,null,null,null,null,null,null,null,null,null,null,null,null,null,null,null,null,null,null,null,null,null,null,null,null,null,null,null,null,null,null,null,null,null,null,642.74997711181641]
["89-0104","CM","McMinnville Electric System",14,109.8,1000,2058.75,0,2000,null,null,null,null,null,null,null,null,null,null,null,null,null,null,null,null,null,null,null,null,null,null,null,null,null,null,null,null,null,null,null,null,null,null,null,null,null,null,2058.750057220459]
["89-0110","TM","WastAway Services, LLC",32.96,126.14,null,2365.12,0,null,750,null,null,null,null,null,null,null,null,null,null,null,null,null,null,null,null,null,null,null,null,null,null,null,null,null,null,null,null,null,null,null,null,null,null,null,null,null,2365.1249885559082]
["89-0111","TM","Morrison Tool & Fab, Inc.",0,19.369999999999997,null,363.19,0,null,500,null,null,null,null,null,null,null,null,null,null,null,null,null,null,null,null,null,null,null,null,null,null,null,null,null,null,null,null,null,null,null,null,null,null,null,null,null,363.18751573562622]
["89-0113","TM","City Of McMinnville (WWTP)",2.61,12.64,null,237,0,null,500,null,null,null,null,null,null,null,null,null,null,null,null,null,null,null,null,null,null,null,null,null,null,null,null,null,null,null,null,null,null,null,null,null,null,null,null,null,237.00000643730164]
["89-0115","TM","Metal Products Company",0,37.700000000000003,null,706.88,0,null,550,null,null,null,null,null,null,null,null,null,null,null,null,null,null,null,null,null,null,null,null,null,null,null,null,null,null,null,null,null,null,null,null,null,null,null,null,null,706.87501430511475]
["89-0154","TM","Jarden Consumer Solutions",0,10,null,187.5,0,null,500,null,null,null,null,null,null,null,null,null,null,null,null,null,null,null,null,null,null,null,null,null,null,null,null,null,null,null,null,null,null,null,null,null,null,null,null,null,187.5]
["89-0156","TM","Yorozu Automotive Tennessee, Inc.",0,22.5,null,421.88,0,null,500,null,null,null,null,null,null,null,null,null,null,null,null,null,null,null,null,null,null,null,null,null,null,null,null,null,null,null,null,null,null,null,null,null,null,null,null,null,421.875]
["89-0162","CM","Tinsley Asphalt, LLC dba McMinnville Plant",29.87,23.36,500,438,0,1500,null,null,null,null,null,null,null,null,null,null,null,null,null,null,null,null,null,null,null,null,null,null,null,null,null,null,null,null,null,null,null,null,null,null,null,null,null,null,438.0000114440918]
["89-0178","CM","Rogers Group Inc-McMinnville Asphalt Plant",19.5,27,250,506.25,0,1250,null,null,null,null,null,null,null,null,null,null,null,null,null,null,null,null,null,null,null,null,null,null,null,null,null,null,null,null,null,null,null,null,null,null,null,null,null,null,506.25]
["89-0179","TM","Sansin Manufacturing of Teneessee",0,22.5,null,421.88,0,null,500,null,null,null,null,null,null,null,null,null,null,null,null,null,null,null,null,null,null,null,null,null,null,null,null,null,null,null,null,null,null,null,null,null,null,null,null,null,421.875]
["89-0189","TM","Sullivan Lumber & Logging",0,34.799999999999997,null,652.5,0,null,550,null,null,null,null,null,null,null,null,null,null,null,null,null,null,null,null,null,null,null,null,null,null,null,null,null,null,null,null,null,null,null,null,null,null,null,null,null,652.49998569488525]
["90-0047","TM","Aerojet Ordnance Tennessee",0,40.299999999999997,null,755.62,0,null,550,null,null,null,null,null,null,null,null,null,null,null,null,null,null,null,null,null,null,null,null,null,null,null,null,null,null,null,null,null,null,null,null,null,null,null,null,null,755.62498569488525]
["90-0123","TM","BWI ETN LLC dba Blue Water Industries BWI Locust Mount LLC Quarry",0,27.8,null,521.25,0,null,550,null,null,null,null,null,null,null,null,null,null,null,null,null,null,null,null,null,null,null,null,null,null,null,null,null,null,null,null,null,null,null,null,null,null,null,null,null,521.24998569488525]
["90-0156","TM","Great Neck Saw Manufacturers Company dba Mayes Brothers Tool Manufacturing Company\t",0,18.259999999999998,null,342.38,0,null,500,null,null,null,null,null,null,null,null,null,null,null,null,null,null,null,null,null,null,null,null,null,null,null,null,null,null,null,null,null,null,null,null,null,null,null,null,null,342.37500429153442]
["90-0179","TM","A.O. Smith Corporation dba American Water Heater Company",0,109.53,null,2053.69,0,null,700,null,null,null,null,null,null,null,null,null,null,null,null,null,null,null,null,null,null,null,null,null,null,null,null,null,null,null,null,null,null,null,null,null,null,null,null,null,2053.6874771118164]
["90-0182","CM","Washington County Highway Department",16,12,250,225,0,1250,null,null,null,null,null,null,null,null,null,null,null,null,null,null,null,null,null,null,null,null,null,null,null,null,null,null,null,null,null,null,null,null,null,null,null,null,null,null,225]
["90-0188","TM","Hexpol Compounding Inc.",5.78,46.76,null,876.75,0,null,550,null,null,null,null,null,null,null,null,null,null,null,null,null,null,null,null,null,null,null,null,null,null,null,null,null,null,null,null,null,null,null,null,null,null,null,null,null,876.74996852874756]
["90-0207","CM","Perma R Products of Tennessee, Inc.",0,85,500,1593.75,0,1750,null,null,null,null,null,null,null,null,null,null,null,null,null,null,null,null,null,null,null,null,null,null,null,null,null,null,null,null,null,null,null,null,null,null,null,null,null,null,1593.75]
["90-0211","CM","Hampton Textile Printing, Inc.",0,84,500,1575,0,1750,null,null,null,null,null,null,null,null,null,null,null,null,null,null,null,null,null,null,null,null,null,null,null,null,null,null,null,null,null,null,null,null,null,null,null,null,null,null,1575]
["90-0213","TM","Quint-C Pallet And Manufacturing Company",0,34.200000000000003,null,641.25,0,null,550,null,null,null,null,null,null,null,null,null,null,null,null,null,null,null,null,null,null,null,null,null,null,null,null,null,null,null,null,null,null,null,null,null,null,null,null,null,641.25001430511475]
["90-0216","CM","Johnson City Medical Center",71,214.22,2000,4016.62,0,3500,null,null,null,null,null,null,null,null,null,null,null,null,null,null,null,null,null,null,null,null,null,null,null,null,null,null,null,null,null,null,null,null,null,null,null,null,null,null,4016.6250228881836]
["90-0218","TM","Gardner Paint Services, Inc.",0,78.680000000000007,null,1475.25,0,null,650,null,null,null,null,null,null,null,null,null,null,null,null,null,null,null,null,null,null,null,null,null,null,null,null,null,null,null,null,null,null,null,null,null,null,null,null,null,1475.2500057220459]
["90-0226","CM","Q.E.P. Co Delaware, Inc.",89.79,267.51,2000,5015.8100000000004,0,3500,null,null,null,null,null,null,null,null,null,null,null,null,null,null,null,null,null,null,null,null,null,null,null,null,null,null,null,null,null,null,null,null,null,null,null,null,null,null,5015.8126831054687]
["90-0235","CM","OmniSource SE, LLC",0,88.5,500,1659.38,0,1750,null,null,null,null,null,null,null,null,null,null,null,null,null,null,null,null,null,null,null,null,null,null,null,null,null,null,null,null,null,null,null,null,null,null,null,null,null,null,1659.375]
["90-0239","TM","Hometech Industries Inc.",0,10,null,187.5,0,null,500,null,null,null,null,null,null,null,null,null,null,null,null,null,null,null,null,null,null,null,null,null,null,null,null,null,null,null,null,null,null,null,null,null,null,null,null,null,187.5]
["90-0243","TM","Ready Mix USA, LLC dba Boones Creek Concrete Plant",0,31,null,581.25,0,null,550,null,null,null,null,null,null,null,null,null,null,null,null,null,null,null,null,null,null,null,null,null,null,null,null,null,null,null,null,null,null,null,null,null,null,null,null,null,581.25]
["90-0247","TM","Fiber Innovation Technology",4.16,48.843000000000004,null,915.81,0,null,550,null,null,null,null,null,null,null,null,null,null,null,null,null,null,null,null,null,null,null,null,null,null,null,null,null,null,null,null,null,null,null,null,null,null,null,null,null,915.8062219619751]
["90-0259","TM","Crown Laboratories",26.12,101.41,null,1901.44,0,null,700,null,null,null,null,null,null,null,null,null,null,null,null,null,null,null,null,null,null,null,null,null,null,null,null,null,null,null,null,null,null,null,null,null,null,null,null,null,1901.4375686645508]
["90-0267","TM","Minifibers, Inc.",2.7,29.910000000000004,null,560.80999999999995,0,null,550,null,null,null,null,null,null,null,null,null,null,null,null,null,null,null,null,null,null,null,null,null,null,null,null,null,null,null,null,null,null,null,null,null,null,null,null,null,560.81249713897705]
["90-0268","TM","FLSmidth USA Inc., Charleston Operations",0,36.900000000000006,null,691.88,0,null,550,null,null,null,null,null,null,null,null,null,null,null,null,null,null,null,null,null,null,null,null,null,null,null,null,null,null,null,null,null,null,null,null,null,null,null,null,null,691.87502861022949]
["90-0282","CM","Bio Energy (Tennessee II), LLC",93.76,126.81,1000,2377.69,0,3000,null,null,null,null,null,null,null,null,null,null,null,null,null,null,null,null,null,null,null,null,null,null,null,null,null,null,null,null,null,null,null,null,null,null,null,null,null,null,2377.6874542236328]
["90-0372","TM","Town Of Jonesborough Wwtp",0,43.8,null,821.25,0,null,550,null,null,null,null,null,null,null,null,null,null,null,null,null,null,null,null,null,null,null,null,null,null,null,null,null,null,null,null,null,null,null,null,null,null,null,null,null,821.24998569488525]
["90-0382","TM","East Tennessee State University",7.9,11.3,null,211.88,0,null,500,null,null,null,null,null,null,null,null,null,null,null,null,null,null,null,null,null,null,null,null,null,null,null,null,null,null,null,null,null,null,null,null,null,null,null,null,null,211.87500357627869]
["90-0384","CM","Mullican Flooring",45.6,289.32000000000005,2000,5424.75,0,3500,null,null,null,null,null,null,null,null,null,null,null,null,null,null,null,null,null,null,null,null,null,null,null,null,null,null,null,null,null,null,null,null,null,null,null,null,null,null,5424.7501373291016]
["90-0422","TM","Wal-Mart Stores East LP dba Walmart Neighborhood Market 5757",0,12.28,null,230.25,0,null,500,null,null,null,null,null,null,null,null,null,null,null,null,null,null,null,null,null,null,null,null,null,null,null,null,null,null,null,null,null,null,null,null,null,null,null,null,null,230.24999499320984]
["90-0423","TM","Summers Taylor Materials",0,23.45,null,439.69,0,null,500,null,null,null,null,null,null,null,null,null,null,null,null,null,null,null,null,null,null,null,null,null,null,null,null,null,null,null,null,null,null,null,null,null,null,null,null,null,439.68751430511475]
["90-0426","TM","Summers Taylor Inc.",0,10.8,null,202.5,0,null,500,null,null,null,null,null,null,null,null,null,null,null,null,null,null,null,null,null,null,null,null,null,null,null,null,null,null,null,null,null,null,null,null,null,null,null,null,null,202.50000357627869]
["90-0427","TM","Summers-Taylor Inc. dba Old General Mills Crushing Operation",0,93.2,null,1747.5,0,null,650,null,null,null,null,null,null,null,null,null,null,null,null,null,null,null,null,null,null,null,null,null,null,null,null,null,null,null,null,null,null,null,null,null,null,null,null,null,1747.499942779541]
["91-0011","CM","Hassell and Hughes Lumber Company Inc.",76.2,107.39999999999999,1000,2013.75,0,2750,null,null,null,null,null,null,null,null,null,null,null,null,null,null,null,null,null,null,null,null,null,null,null,null,null,null,null,null,null,null,null,null,null,null,null,null,null,null,2013.7500286102295]
["91-0046","TM","C-Wood Lumber Company  Inc.",45.2,71.350000000000009,null,1337.81,0,null,600,null,null,null,null,null,null,null,null,null,null,null,null,null,null,null,null,null,null,null,null,null,null,null,null,null,null,null,null,null,null,null,null,null,null,null,null,null,1337.8124713897705]
["91-0062","CM","Hughes Hardwood International Inc.",79,146.10000000000002,1000,2739.38,0,3250,null,null,null,null,null,null,null,null,null,null,null,null,null,null,null,null,null,null,null,null,null,null,null,null,null,null,null,null,null,null,null,null,null,null,null,null,null,null,2739.375114440918]
["91-0067","TM","Wayne County Rock",0,70,null,1312.5,0,null,600,null,null,null,null,null,null,null,null,null,null,null,null,null,null,null,null,null,null,null,null,null,null,null,null,null,null,null,null,null,null,null,null,null,null,null,null,null,1312.5]
["91-0068","TM","Frontier Forge, Inc. dba Morgan Lumber Co.",0,16.899999999999999,null,316.88,0,null,500,null,null,null,null,null,null,null,null,null,null,null,null,null,null,null,null,null,null,null,null,null,null,null,null,null,null,null,null,null,null,null,null,null,null,null,null,null,316.87499284744263]
["91-0069","CM","Brown-Forman Cooperage - Clifton Mill",0,63.4,500,1188.75,0,1500,null,null,null,null,null,null,null,null,null,null,null,null,null,null,null,null,null,null,null,null,null,null,null,null,null,null,null,null,null,null,null,null,null,null,null,null,null,null,1188.7500286102295]
["91-0076","TM","Tennessee Container Services, Inc.",0,39.6,null,742.5,0,null,550,null,null,null,null,null,null,null,null,null,null,null,null,null,null,null,null,null,null,null,null,null,null,null,null,null,null,null,null,null,null,null,null,null,null,null,null,null,742.49997138977051]
["91-0092","TM","TN Department of Correction Turney Center Industrial Complex Annex",7.48,10.120000000000001,null,189.75,0,null,500,null,null,null,null,null,null,null,null,null,null,null,null,null,null,null,null,null,null,null,null,null,null,null,null,null,null,null,null,null,null,null,null,null,null,null,null,null,189.74999785423279]
["92-0014","CM","University Of Tenn Of Martin/Maint Div",25,118.8,1000,2227.5,0,2250,null,null,null,null,null,null,null,null,null,null,null,null,null,null,null,null,null,null,null,null,null,null,null,null,null,null,null,null,null,null,null,null,null,null,null,null,null,null,2227.500057220459]
["92-0051","CM","Spinks Clay Company - Lhoist North America",16.2,85.58,1000,1604.62,0,2000,null,null,null,null,null,null,null,null,null,null,null,null,null,null,null,null,null,null,null,null,null,null,null,null,null,null,null,null,null,null,null,null,null,null,null,null,null,null,1604.6250343322754]
["92-0054","CM","Old Hickory Clay Company",0.2,66.989999999999995,500,1256.06,0,1500,null,null,null,null,null,null,null,null,null,null,null,null,null,null,null,null,null,null,null,null,null,null,null,null,null,null,null,null,null,null,null,null,null,null,null,null,null,null,1256.0624599456787]
["92-0095","TM","Robinson-Belew Inc",0,23,null,431.25,0,null,500,null,null,null,null,null,null,null,null,null,null,null,null,null,null,null,null,null,null,null,null,null,null,null,null,null,null,null,null,null,null,null,null,null,null,null,null,null,431.25]
["92-0096","CM","Ford Construction Company dba Dresden Asphalt Plant",33.5,31.3,500,586.88,0,1500,null,null,null,null,null,null,null,null,null,null,null,null,null,null,null,null,null,null,null,null,null,null,null,null,null,null,null,null,null,null,null,null,null,null,null,null,null,null,586.87498569488525]
["92-0101","CM","MTD Consumer Group Inc dba Martin Facility",69.830000000000013,298.63,2000,5599.31,0,3500,null,null,null,null,null,null,null,null,null,null,null,null,null,null,null,null,null,null,null,null,null,null,null,null,null,null,null,null,null,null,null,null,null,null,null,null,null,null,5599.3125915527344]
["92-0103","TM","K T & L Timber Company",0,17.3,null,324.38,0,null,500,null,null,null,null,null,null,null,null,null,null,null,null,null,null,null,null,null,null,null,null,null,null,null,null,null,null,null,null,null,null,null,null,null,null,null,null,null,324.37498569488525]
["92-0109","TM","North American Container Corporation",17.2,89.25,null,1673.44,0,null,650,null,null,null,null,null,null,null,null,null,null,null,null,null,null,null,null,null,null,null,null,null,null,null,null,null,null,null,null,null,null,null,null,null,null,null,null,null,1673.4375]
["92-0170","TM","Spain Brothers Milling Company LLC",0.03,11.55,null,216.56,0,null,500,null,null,null,null,null,null,null,null,null,null,null,null,null,null,null,null,null,null,null,null,null,null,null,null,null,null,null,null,null,null,null,null,null,null,null,null,null,216.56250357627869]
["93-0003","TM","Sparta WoodWorks",0,57.14,null,1071.3800000000001,0,null,600,null,null,null,null,null,null,null,null,null,null,null,null,null,null,null,null,null,null,null,null,null,null,null,null,null,null,null,null,null,null,null,null,null,null,null,null,null,1071.3749885559082]
["93-0007","TM","Rogers Group, Inc. - Sparta Quarry",0,49.9,null,935.62,0,null,550,null,null,null,null,null,null,null,null,null,null,null,null,null,null,null,null,null,null,null,null,null,null,null,null,null,null,null,null,null,null,null,null,null,null,null,null,null,935.62502861022949]
["93-0010","CM","Rogers Group, Inc. dba Sparta Asphalt",19.5,19.649999999999999,250,368.44,0,1250,null,null,null,null,null,null,null,null,null,null,null,null,null,null,null,null,null,null,null,null,null,null,null,null,null,null,null,null,null,null,null,null,null,null,null,null,null,null,368.43749284744263]
["93-0027","TM","Imi Tennessee, Inc.",0,14.1,null,264.38,0,null,500,null,null,null,null,null,null,null,null,null,null,null,null,null,null,null,null,null,null,null,null,null,null,null,null,null,null,null,null,null,null,null,null,null,null,null,null,null,264.37500715255737]
["93-0028","TM","White County Lumber Company, Inc.",15.77,119.79,null,2246.06,0,null,700,null,null,null,null,null,null,null,null,null,null,null,null,null,null,null,null,null,null,null,null,null,null,null,null,null,null,null,null,null,null,null,null,null,null,null,null,null,2246.0625171661377]
["93-0048","TM","Savage Lumber Company, Inc.",22,52.32,null,981,0,null,600,null,null,null,null,null,null,null,null,null,null,null,null,null,null,null,null,null,null,null,null,null,null,null,null,null,null,null,null,null,null,null,null,null,null,null,null,null,980.9999942779541]
["93-0054","CM","Endura Products Tennessee LLC",46,150.34,1000,2818.88,0,2750,null,null,null,null,null,null,null,null,null,null,null,null,null,null,null,null,null,null,null,null,null,null,null,null,null,null,null,null,null,null,null,null,null,null,null,null,null,null,2818.8749313354492]
["93-0059","TM","ITNOLAP Pallet of Sparta, LLC",0,28,null,525,0,null,550,null,null,null,null,null,null,null,null,null,null,null,null,null,null,null,null,null,null,null,null,null,null,null,null,null,null,null,null,null,null,null,null,null,null,null,null,null,525]
["93-0060","TM","BASF Corporation",15.36,164.39000000000001,null,3082.31,0,null,800,null,null,null,null,null,null,null,null,null,null,null,null,null,null,null,null,null,null,null,null,null,null,null,null,null,null,null,null,null,null,null,null,null,null,null,null,null,3082.3124885559082]
["93-0063","TM","BBB Industries dba LTD Parts",0,18.600000000000001,null,348.75,0,null,500,null,null,null,null,null,null,null,null,null,null,null,null,null,null,null,null,null,null,null,null,null,null,null,null,null,null,null,null,null,null,null,null,null,null,null,null,null,348.75000715255737]
["93-0065","TM","Inca Products Acquisition Corporation",0,22.05,null,413.44,0,null,500,null,null,null,null,null,null,null,null,null,null,null,null,null,null,null,null,null,null,null,null,null,null,null,null,null,null,null,null,null,null,null,null,null,null,null,null,null,413.43748569488525]
["93-0073","TM","Middle Tennessee Limestone, Inc.",0,165.89999999999998,null,3110.62,0,null,800,null,null,null,null,null,null,null,null,null,null,null,null,null,null,null,null,null,null,null,null,null,null,null,null,null,null,null,null,null,null,null,null,null,null,null,null,null,3110.624885559082]
["93-0078","TM","The Lord's Table, Inc.",0,49.72,null,932.25,0,null,550,null,null,null,null,null,null,null,null,null,null,null,null,null,null,null,null,null,null,null,null,null,null,null,null,null,null,null,null,null,null,null,null,null,null,null,null,null,932.25002288818359]
["93-0107","TM","Tri State Distribution, Inc.",0,25,null,468.75,0,null,550,null,null,null,null,null,null,null,null,null,null,null,null,null,null,null,null,null,null,null,null,null,null,null,null,null,null,null,null,null,null,null,null,null,null,null,null,null,468.75]
["94-0005","CM","Lasko Metal Products Inc.",0,126.2,1000,2366.25,0,2250,null,null,null,null,null,null,null,null,null,null,null,null,null,null,null,null,null,null,null,null,null,null,null,null,null,null,null,null,null,null,null,null,null,null,null,null,null,null,2366.249942779541]
["94-0009","TM","Vulcan Construction Materials, LLC dba Franklin Quarry",0,97.7,null,1831.88,0,null,650,null,null,null,null,null,null,null,null,null,null,null,null,null,null,null,null,null,null,null,null,null,null,null,null,null,null,null,null,null,null,null,null,null,null,null,null,null,1831.874942779541]
["94-0019","CM","Vulcan Construction Materials LLC dba Franklin Portable Asphalt Plant",22.75,78.3,1000,1468.12,0,2000,null,null,null,null,null,null,null,null,null,null,null,null,null,null,null,null,null,null,null,null,null,null,null,null,null,null,null,null,null,null,null,null,null,null,null,null,null,null,1468.125057220459]
["94-0030","TM","Williamson Co. Hwy Dept/ Globe",0,200.78,null,3764.62,0,null,900,null,null,null,null,null,null,null,null,null,null,null,null,null,null,null,null,null,null,null,null,null,null,null,null,null,null,null,null,null,null,null,null,null,null,null,null,null,3764.6249771118164]
["94-0060","CM","Oldcastle APG South, Inc.",0,24.46,250,458.62,0,1000,null,null,null,null,null,null,null,null,null,null,null,null,null,null,null,null,null,null,null,null,null,null,null,null,null,null,null,null,null,null,null,null,null,null,null,null,null,null,458.6249828338623]
["94-0095","CM","Franklin Asphalt",65,95.5,1000,1790.62,0,2500,null,null,null,null,null,null,null,null,null,null,null,null,null,null,null,null,null,null,null,null,null,null,null,null,null,null,null,null,null,null,null,null,null,null,null,null,null,null,1790.625]
["94-0115","TM","Egyptian Lacquer Manufacturing Co.",0,48.580000000000005,null,910.88,0,null,550,null,null,null,null,null,null,null,null,null,null,null,null,null,null,null,null,null,null,null,null,null,null,null,null,null,null,null,null,null,null,null,null,null,null,null,null,null,910.87503433227539]
["94-0118","TM","A. Schulman, Inc.",0,9.9,null,185.62,0,null,500,null,null,null,null,null,null,null,null,null,null,null,null,null,null,null,null,null,null,null,null,null,null,null,null,null,null,null,null,null,null,null,null,null,null,null,null,null,185.62499284744263]
["94-0125","CM","Vulcan Construction Materials LLC dba Franklin Asphalt Plant",29.3,36.5,500,684.38,0,1500,null,null,null,null,null,null,null,null,null,null,null,null,null,null,null,null,null,null,null,null,null,null,null,null,null,null,null,null,null,null,null,null,null,null,null,null,null,null,684.375]
["94-0250","CM","Fairview Asphalt Products, Inc.",28.12,49.679999999999993,500,931.5,0,1750,null,null,null,null,null,null,null,null,null,null,null,null,null,null,null,null,null,null,null,null,null,null,null,null,null,null,null,null,null,null,null,null,null,null,null,null,null,null,931.5000057220459]
["94-0263","TM","Horel Enterprises, Inc. dba American Marble  Inc.",0,14.5,null,271.88,0,null,500,null,null,null,null,null,null,null,null,null,null,null,null,null,null,null,null,null,null,null,null,null,null,null,null,null,null,null,null,null,null,null,null,null,null,null,null,null,271.875]
["94-0318","TM","New Cingular Wireless PCS, LLC dba AT&T Mobility",11.2,51.269999999999996,null,961.31,0,null,600,null,null,null,null,null,null,null,null,null,null,null,null,null,null,null,null,null,null,null,null,null,null,null,null,null,null,null,null,null,null,null,null,null,null,null,null,null,961.31250858306885]
["94-0319","CM","Cellco Partnership Dba Verizon Wireless",14.1,14,250,262.5,0,1250,null,null,null,null,null,null,null,null,null,null,null,null,null,null,null,null,null,null,null,null,null,null,null,null,null,null,null,null,null,null,null,null,null,null,null,null,null,null,262.5]
["94-0336","TM","Peak 10, Inc. dba Peak 10 - NAS2",24.5,32.1,null,601.88,0,null,550,null,null,null,null,null,null,null,null,null,null,null,null,null,null,null,null,null,null,null,null,null,null,null,null,null,null,null,null,null,null,null,null,null,null,null,null,null,601.87497138977051]
["94-0378","TM","Southern Land Company LLC dba Westhaven Development",0,31.65,null,593.44000000000005,0,null,550,null,null,null,null,null,null,null,null,null,null,null,null,null,null,null,null,null,null,null,null,null,null,null,null,null,null,null,null,null,null,null,null,null,null,null,null,null,593.43749284744263]
["94-0379","TM","Smyrna Ready Mix, LLC",0,14.62,null,274.12,0,null,500,null,null,null,null,null,null,null,null,null,null,null,null,null,null,null,null,null,null,null,null,null,null,null,null,null,null,null,null,null,null,null,null,null,null,null,null,null,274.12499785423279]
["94-0411","TM","Fox Hardwood LLC",21.99,34.42,null,645.38,0,null,550,null,null,null,null,null,null,null,null,null,null,null,null,null,null,null,null,null,null,null,null,null,null,null,null,null,null,null,null,null,null,null,null,null,null,null,null,null,645.37496566772461]
["94-0413","TM","City of Franklin dba Franklin Water Reclamation Facility",71.400000000000006,70.240000000000009,null,1317,0,null,600,null,null,null,null,null,null,null,null,null,null,null,null,null,null,null,null,null,null,null,null,null,null,null,null,null,null,null,null,null,null,null,null,null,null,null,null,null,1316.9999599456787]
["94-0417","TM","Kelchner Inc.",0,10.77,null,201.94,0,null,500,null,null,null,null,null,null,null,null,null,null,null,null,null,null,null,null,null,null,null,null,null,null,null,null,null,null,null,null,null,null,null,null,null,null,null,null,null,201.93750858306885]
["95-0002","CM","Universal Rack Co",0,44.3,250,830.62,0,1250,null,null,null,null,null,null,null,null,null,null,null,null,null,null,null,null,null,null,null,null,null,null,null,null,null,null,null,null,null,null,null,null,null,null,null,null,null,null,830.62498569488525]
["95-0012","CM","Vulcan Construction Materials LLC dba Lebanon Asphalt Plant",26,44.3,500,830.62,0,1500,null,null,null,null,null,null,null,null,null,null,null,null,null,null,null,null,null,null,null,null,null,null,null,null,null,null,null,null,null,null,null,null,null,null,null,null,null,null,830.62498569488525]
["95-0017","CM","Perma Pipe, A Subsidiary of MFRI, Inc.",1.1000000000000001,84.67,500,1587.56,0,1750,null,null,null,null,null,null,null,null,null,null,null,null,null,null,null,null,null,null,null,null,null,null,null,null,null,null,null,null,null,null,null,null,null,null,null,null,null,null,1587.5624656677246]
["95-0037","TM","Parker Hannifin Corporation - Seal Group, O-Ring Division",0.2,53.490000000000009,null,1002.94,0,null,600,null,null,null,null,null,null,null,null,null,null,null,null,null,null,null,null,null,null,null,null,null,null,null,null,null,null,null,null,null,null,null,null,null,null,null,null,null,1002.9375314712524]
["95-0070","TM","Custom Packaging, LP",0,60.3,null,1130.6199999999999,0,null,600,null,null,null,null,null,null,null,null,null,null,null,null,null,null,null,null,null,null,null,null,null,null,null,null,null,null,null,null,null,null,null,null,null,null,null,null,null,1130.6249856948853]
["95-0097","TM","Vulcan Construction Materials, LLC dba Wilson County Quarry",0,134.6,null,2523.75,0,null,750,null,null,null,null,null,null,null,null,null,null,null,null,null,null,null,null,null,null,null,null,null,null,null,null,null,null,null,null,null,null,null,null,null,null,null,null,null,2523.750114440918]
["95-0104","TM","Smyrna Ready Mix",0,23.5,null,440.62,0,null,500,null,null,null,null,null,null,null,null,null,null,null,null,null,null,null,null,null,null,null,null,null,null,null,null,null,null,null,null,null,null,null,null,null,null,null,null,null,440.625]
["95-0105","TM","Block Works, LLC dba LoJac Lebanon Block Plant",0,102.8,null,1927.5,0,null,700,null,null,null,null,null,null,null,null,null,null,null,null,null,null,null,null,null,null,null,null,null,null,null,null,null,null,null,null,null,null,null,null,null,null,null,null,null,1927.500057220459]
["95-0106","CM","Hoover, Inc. dba Lebanon Rock Quarry Plant 640",0,204.9,1000,3841.88,0,3000,null,null,null,null,null,null,null,null,null,null,null,null,null,null,null,null,null,null,null,null,null,null,null,null,null,null,null,null,null,null,null,null,null,null,null,null,null,null,3841.874885559082]
["95-0107","TM","Nashville Ready Mix Of Mt. Juliet",0,33.6,null,630,0,null,550,null,null,null,null,null,null,null,null,null,null,null,null,null,null,null,null,null,null,null,null,null,null,null,null,null,null,null,null,null,null,null,null,null,null,null,null,null,629.99997138977051]
["95-0109","CM","JDC Coatings",0,123.9,1000,2323.12,0,2000,null,null,null,null,null,null,null,null,null,null,null,null,null,null,null,null,null,null,null,null,null,null,null,null,null,null,null,null,null,null,null,null,null,null,null,null,null,null,2323.1250286102295]
["95-0110","TM","WestRock Converting Company dba WestRock Lebanon Folding Carton Plant",0,123.36000000000001,null,2313,0,null,700,null,null,null,null,null,null,null,null,null,null,null,null,null,null,null,null,null,null,null,null,null,null,null,null,null,null,null,null,null,null,null,null,null,null,null,null,null,2313.0000114440918]
["95-0114","TM","Metokote Corporation Plant #12",0,20.6,null,386.25,0,null,500,null,null,null,null,null,null,null,null,null,null,null,null,null,null,null,null,null,null,null,null,null,null,null,null,null,null,null,null,null,null,null,null,null,null,null,null,null,386.25000715255737]
["95-0118","TM","Nutro Products, Inc.",6.7,65.8,null,1233.75,0,null,600,null,null,null,null,null,null,null,null,null,null,null,null,null,null,null,null,null,null,null,null,null,null,null,null,null,null,null,null,null,null,null,null,null,null,null,null,null,1233.750057220459]
["95-0138","TM","Georgia Pacific Corrugated LLC",3.8,41.6,null,780,0,null,550,null,null,null,null,null,null,null,null,null,null,null,null,null,null,null,null,null,null,null,null,null,null,null,null,null,null,null,null,null,null,null,null,null,null,null,null,null,779.99997138977051]
["95-0218","TM","AO Smith Corporation dba Lochinvar, LLC",0,79.5,null,1490.62,0,null,650,null,null,null,null,null,null,null,null,null,null,null,null,null,null,null,null,null,null,null,null,null,null,null,null,null,null,null,null,null,null,null,null,null,null,null,null,null,1490.625]
["95-0222","TM","Vulcan Construction Materials, LLC dba 109 Quarry",0,67.7,null,1269.3800000000001,0,null,600,null,null,null,null,null,null,null,null,null,null,null,null,null,null,null,null,null,null,null,null,null,null,null,null,null,null,null,null,null,null,null,null,null,null,null,null,null,1269.374942779541]
["95-0224","TM","Smyrna Ready Mix",0,15,null,281.25,0,null,500,null,null,null,null,null,null,null,null,null,null,null,null,null,null,null,null,null,null,null,null,null,null,null,null,null,null,null,null,null,null,null,null,null,null,null,null,null,281.25]
["95-0260","TM","imi-TN, Inc. - Lebanon",0,10.57,null,198.19,0,null,500,null,null,null,null,null,null,null,null,null,null,null,null,null,null,null,null,null,null,null,null,null,null,null,null,null,null,null,null,null,null,null,null,null,null,null,null,null,198.1874942779541]
["95-0266","TM","Manheim Nashville",0,83.3,null,1561.88,0,null,650,null,null,null,null,null,null,null,null,null,null,null,null,null,null,null,null,null,null,null,null,null,null,null,null,null,null,null,null,null,null,null,null,null,null,null,null,null,1561.875057220459]
["95-0278","CM","American Colors, Inc.",0,45.1,250,845.62,0,1250,null,null,null,null,null,null,null,null,null,null,null,null,null,null,null,null,null,null,null,null,null,null,null,null,null,null,null,null,null,null,null,null,null,null,null,null,null,null,845.62497138977051]
["95-0282","CM","Ritchie Bros. Auctioneers Inc.",0,146.89999999999998,1000,2754.38,0,2250,null,null,null,null,null,null,null,null,null,null,null,null,null,null,null,null,null,null,null,null,null,null,null,null,null,null,null,null,null,null,null,null,null,null,null,null,null,null,2754.374885559082]
["95-0285","TM","West Wilson Utility District - Lester Property",0,10.83,null,203.06,0,null,500,null,null,null,null,null,null,null,null,null,null,null,null,null,null,null,null,null,null,null,null,null,null,null,null,null,null,null,null,null,null,null,null,null,null,null,null,null,203.06249856948853]
["95-0290","TM","Jones Brothers, LLC",0,19.899999999999999,null,373.12,0,null,500,null,null,null,null,null,null,null,null,null,null,null,null,null,null,null,null,null,null,null,null,null,null,null,null,null,null,null,null,null,null,null,null,null,null,null,null,null,373.12499284744263]
["95-0318","TM","Mayekawa USA, Inc.",0,14,null,262.5,0,null,500,null,null,null,null,null,null,null,null,null,null,null,null,null,null,null,null,null,null,null,null,null,null,null,null,null,null,null,null,null,null,null,null,null,null,null,null,null,262.5]
["95-0326","TM","Elite Welding Inc",0,21.78,null,408.38,0,null,500,null,null,null,null,null,null,null,null,null,null,null,null,null,null,null,null,null,null,null,null,null,null,null,null,null,null,null,null,null,null,null,null,null,null,null,null,null,408.37501287460327]
["95-0332","TM","Permobil, Inc.",0.28000000000000003,14.71,null,275.81,0,null,500,null,null,null,null,null,null,null,null,null,null,null,null,null,null,null,null,null,null,null,null,null,null,null,null,null,null,null,null,null,null,null,null,null,null,null,null,null,275.81250071525574]
["95-0335","TM","Novamet Specialty Products",0,10.29,null,192.94,0,null,500,null,null,null,null,null,null,null,null,null,null,null,null,null,null,null,null,null,null,null,null,null,null,null,null,null,null,null,null,null,null,null,null,null,null,null,null,null,192.93749928474426]
["95-0339","CM","SO.F.TER. US",0,59.9,500,1123.1199999999999,0,1500,null,null,null,null,null,null,null,null,null,null,null,null,null,null,null,null,null,null,null,null,null,null,null,null,null,null,null,null,null,null,null,null,null,null,null,null,null,null,1123.1250286102295]
["95-0355","TM","City of Lebanon Gasification Plan dba City of Lebanon Waste Water Treatment Plant",10,187.14,null,3508.88,0,null,850,null,null,null,null,null,null,null,null,null,null,null,null,null,null,null,null,null,null,null,null,null,null,null,null,null,null,null,null,null,null,null,null,null,null,null,null,null,3508.8749885559082]
["95-0359","CM","Maplehurst Bakeries, LLC",3.61,321.43600000000004,2000,6026.92,0,3500,null,null,null,null,null,null,null,null,null,null,null,null,null,null,null,null,null,null,null,null,null,null,null,null,null,null,null,null,null,null,null,null,null,null,null,null,null,null,6026.9250869750977]
["95-0404","TM","West Wilson Utility District - Water Treatment Plant",2.79,12.8,null,240,0,null,500,null,null,null,null,null,null,null,null,null,null,null,null,null,null,null,null,null,null,null,null,null,null,null,null,null,null,null,null,null,null,null,null,null,null,null,null,null,240.00000357627869]
["95-0410","TM","Wonder Porcelain Group LLC",89.740000000000009,187.93,null,3523.69,0,null,850,null,null,null,null,null,null,null,null,null,null,null,null,null,null,null,null,null,null,null,null,null,null,null,null,null,null,null,null,null,null,null,null,null,null,null,null,null,3523.6873626708984]
["95-0428","TM","PFP, LLC",0,16.22,null,304.12,0,null,500,null,null,null,null,null,null,null,null,null,null,null,null,null,null,null,null,null,null,null,null,null,null,null,null,null,null,null,null,null,null,null,null,null,null,null,null,null,304.12498712539673]
["95-0443","TM","Wood",0,33.86,null,634.88,0,null,550,null,null,null,null,null,null,null,null,null,null,null,null,null,null,null,null,null,null,null,null,null,null,null,null,null,null,null,null,null,null,null,null,null,null,null,null,null,634.8750114440918]

{"sheet":"GS facility","index":3,"n_rows":41,"n_cols":11,"rows_kept":41,"cut":false,"hidden":true,"merged":[]}
["Facility Id","Category","Primary Name","Total_CO","Facility_Tons","Current_Rev_Fee","Current_Annual_Fee","Current_Base_Fee","Explore_Rev_Fee","Explore_Annual_Fee","Explore_Base_Fee"]
["01-0197","GS","Pilot Travel Centers LLC dba Pilot Travel Center 314",0,16.559999999999999,null,310.5,0,null,496.79999999999995]
["01-0260","GS","Weigel's #79",0,27.9,null,523.12,0,null,837]
["05-0327","GS","K-VA-T Food Stores, Inc. 651",0,11.2,null,210,0,null,336]
["07-0175","GS","Food City Gas N Go  #661",0,10.32,null,193.5,0,null,309.60000000000002]
["07-0176","GS","Rocket Oil Company dba Weigel's 83",0,27.9,null,523.12,0,null,837]
["07-0179","GS","Speedway LLC dba Speedway LLC #1577",0,13.95,null,261.56,0,null,418.5]
["11-0059","GS","Murphy Usa #7062 Murphy Oil Usa",0,12.9,null,241.88,0,null,387]
["13-0104","GS","K-VA-T Food Stores, Inc.",0,11.2,null,210,0,null,336]
["15-0136","GS","Rocket Oil Company dba Weigel's 80",0,33.5,null,628.12,0,null,1005]
["18-0200","GS","Food City Gas N Go #656",0,10.32,null,193.5,0,null,309.60000000000002]
["22-0181","GS","Huck's #392",0,11.16,null,209.25,0,null,334.8]
["32-0307","GS","K-Vat Food Stores Inc dba Food City Gas N Go 3607",0,11.2,null,210,0,null,336]
["32-0313","GS","Food City Gas N Go 646",0,13.95,null,261.56,0,null,418.5]
["32-0318","GS","KVAT Food Store Inc dba Food City Gas N Go  602",0,16.739999999999998,null,313.88,0,null,502.19999999999993]
["53-0190","GS","Love's Travel Stop #480",0,27.9,null,523.12,0,null,837]
["54-0248","GS","Speedway LLC dba Speedway  7147",0,19.53,null,366.19,0,null,585.90000000000009]
["58-0130","GS","Love's Travel Stop 490",0,27.9,null,523.12,0,null,837]
["62-0151","GS","Rocket Oil Company dba Weigel's #86",0,27.9,null,523.12,0,null,837]
["63-0193","GS","Murphy Usa #5367 Murphy Oil Usa Inc.",0,13.4,null,251.25,0,null,402]
["63-0194","GS","Murphy Usa #5596 Murphy Oil Usa Inc.",0,11.9,null,223.12,0,null,357]
["63-0195","GS","Murphy Usa #6776",0,18.7,null,350.62,0,null,561]
["63-0199","GS","Sam's Club # 6512",0,12.89,null,241.69,0,null,386.70000000000005]
["63-0249","GS","Mapco Express #7414",0,20.93,null,392.44,0,null,627.9]
["63-0321","GS","Mapco Express Inc. dba Mapco Mart 7523",0,16.739999999999998,null,313.88,0,null,502.19999999999993]
["63-0324","GS","Wal-Mart Stores East, LP dba Walmart Neighborhood Market 4591",0,14.5,null,271.88,0,null,435]
["74-0448","GS","Murphy USA #7518",0,13.95,null,261.56,0,null,418.5]
["75-0330","GS","Mapco Express #3305",0,11.27,null,211.31,0,null,338.09999999999997]
["76-0094","GS","Murphy Express #8539",0,13.95,null,261.56,0,null,418.5]
["78-0215","GS","Murphy Express #8562",0,13.95,null,261.56,0,null,418.5]
["78-0218","GS","Weigel's 69",0,30.7,null,575.62,0,null,921]
["80-0075","GS","WilcoHess Station 42202",0,12.95,null,242.81,0,null,388.5]
["82-0442","GS","Murphy Express #8651 Murphy Oil USA, Inc.",0,14,null,262.5,0,null,420]
["83-0255","GS","Mapco Express, Inc. dba Mapco Express #7525",0,16.739999999999998,null,313.88,0,null,502.19999999999993]
["90-0410","GS","Quality Oil Company LLC dba Boones Creek Quality Plus",0,13.95,null,261.56,0,null,418.5]
["90-0416","GS","Kroger Limited Partnership 1 dba Kroger Fuel Center R-261",0,13.27,null,248.81,0,null,398.09999999999997]
["94-0343","GS","Mapco Express #7507",0,20.93,null,392.44,0,null,627.9]
["94-0355","GS","Murphy Oil USA Inc. dba Murphy Express 8700",0,24.65,null,462.19,0,null,739.5]
["95-0180","GS","Mapco Express, Inc. dba Mapco Express #3064",0,20.330000000000002,null,381.19,0,null,609.90000000000009]
["95-0217","GS","Mapco Express #3341",0,20.93,null,392.44,0,null,627.9]
["95-0331","GS","Murphy Oil USA, Inc. dba Murphy Express 8708",0,24.65,null,462.19,0,null,739.5]

{"sheet":"FeeOptions","index":4,"n_rows":118,"n_cols":39,"rows_kept":118,"cut":false,"hidden":true,"merged":[]}
[null,null,null,null,null,"from #CPs",null,"Currrent","Explore"]
["Construction Permit Emission Rate Fee","Emission Rate ","tons ","$ rate ","$ rate ","AVG#/Yr ",null,"Fees ","Fees "]
[null,"0 <= tons < 10",10,100,1000,172,null,{"$f":"IF(F3<>\"\",D3*F3,\"\")","v":17200},{"$f":"IF(F3<>\"\",E3*F3,\"\")","v":172000}]
[null,"10 <= tons < 100",100,500,1500,97,null,{"$f":"IF(F4<>\"\",D4*F4,\"\")","v":48500},{"$f":"IF(F4<>\"\",E4*F4,\"\")","v":145500}]
[null,"100 <= tons < 250",250,1000,2000,10,null,10000,20000]
[null,"250 <= tons < 500",500,2000,2500,1,null,2000,2500]
[null,"500 <= tons < 1000",1000,3000,3000,0,null,0,0]
[null,"1000 <= tons < 5000",5000,4000,4000,0,null,0,0]
[null,"tons >= 5000",null,5000,5000,0,null,0,0]
[null,null,null,null,null,null,null,"",""]
[null,null,null,null,null,null,null,"",""]
[null,null,null,null,null,null,null,"",""]
[null,null,null,null,null,null,null,"",""]
[null,null,null,null,null,null,null,"",""]
[null,null,null,null,null,null,null,"",""]
[null,null,null,null,null,null,null,"",""]
[null,null,null,null,null,null,null,"",""]
[null,null,null,null,null,null,null,"",""]
[null,null,null,null,null,null,null,"",""]
[null,null,null,null,null,null,null,"",""]
[null,null,null,null,null,null,null,"",""]
[null,null,null,null,null,null,null,"",""]
[null,null,null,null,null,null,null,"",""]
[null,null,null,null,null,null,null,"",""]
[null,null,null,null,null,null,null,"",""]
[null,null,null,null,null,null,null,"",""]
[null,null,null,null,null,null,null,"",""]
[null,"Totals-->",null,null,null,{"$f":"SUM(F3:F27)","v":280},null,{"$f":"SUM(H3:H27)","v":77700},{"$f":"SUM(I3:I27)","v":340000}]
[]
[]
[null,null,null,"Current","Exploratory",null,null,"Currrent","Explore",null,null,null,null,"Current","Exploratory",null,null,"Currrent","Explore",null,null,null,null,"Current","Exploratory",null,null,"Currrent","Explore",null,null,null,null,"Current","Exploratory",null,null,"Currrent","Explore"]
["Annual Emission Fees $/ton rates","Emission Rate ","tons","$/Ton ","$/Ton ","#Fac's ","Total Tons ","Fees ","Fees ",null,"Annual Emission Fees $/ton rates","Emission Rate ","tons","$/Ton ","$/Ton ","#Fac's ","Total Tons ","Fees ","Fees ",null,"Annual Emission Fees $/ton rates","Emission Rate ","tons","$/Ton ","$/Ton ","#Fac's ","Total Tons ","Fees ","Fees ",null,"Annual Emission Fees $/ton rates","Emission Rate ","tons","$/Ton ","$/Ton ","#Fac's ","Total Tons ","Fees ","Fees "]
[null,"0 <= tons < 25",25,18.75,18.75,278,4626.63671875,{"$f":"IF(G33<>\"\",D33*G33,\"\")","v":86749.4384765625},{"$f":"IF(G33<>\"\",E33*G33,\"\")","v":86749.4384765625},null,null,"0 <= tons < 25",25,18.75,18.75,278,4626.63671875,{"$f":"IF(Q33<>\"\",N33*Q33,\"\")","v":86749.4384765625},{"$f":"IF(Q33<>\"\",O33*Q33,\"\")","v":86749.4384765625},null,null,"0 <= tons < 50",50,18.75,18.75,541,14440.2626953125,{"$f":"IF(AA33<>\"\",X33*AA33,\"\")","v":270754.92553710938},{"$f":"IF(AA33<>\"\",Y33*AA33,\"\")","v":270754.92553710938},null,null,"0 <= tons < 10",10,18.75,18.75,6,59.540000915527344,{"$f":"IF(AK33<>\"\",AH33*AK33,\"\")","v":1116.3750171661377},{"$f":"IF(AK33<>\"\",AI33*AK33,\"\")","v":1116.3750171661377}]
[null,"25 <= tons < 50",50,18.75,18.75,263,9813.62890625,184005.5419921875,184005.5419921875,null,null,"25 <= tons < 50",50,18.75,18.75,263,9813.62890625,184005.5419921875,184005.5419921875,null,null,"50 <= tons < 100",100,18.75,18.75,341,24855.767578125,466045.64208984375,466045.64208984375,null,null,"10 <= tons < 100",100,18.75,18.75,876,39236.49609375,{"$f":"IF(AK34<>\"\",AH34*AK34,\"\")","v":735684.3017578125},{"$f":"IF(AK34<>\"\",AI34*AK34,\"\")","v":735684.3017578125}]
[null,"50 <= tons < 75",75,18.75,18.75,187,11388.4296875,213533.056640625,213533.056640625,null,null,"50 <= tons < 75",75,18.75,18.75,187,11388.4296875,213533.056640625,213533.056640625,null,null,"100 <= tons < 150",150,18.75,18.75,161,19433.662109375,364381.16455078125,364381.16455078125,null,null,"100 <= tons < 250",250,18.75,18.75,263,38353.2421875,719123.291015625,719123.291015625]
[null,"75 <= tons < 100",100,18.75,18.75,154,13467.328125,252512.40234375,252512.40234375,null,null,"75 <= tons < 100",100,18.75,18.75,154,13467.328125,252512.40234375,252512.40234375,null,null,"150 <= tons < 200",200,18.75,18.75,69,11695.7041015625,219294.45190429687,219294.45190429687,null,null,"250 <= tons < 500",500,18.75,18.75,30,9413.591796875,176504.84619140625,176504.84619140625]
[null,"100 <= tons < 125",125,18.75,18.75,102,11411.1875,213959.765625,213959.765625,null,null,"100 <= tons < 125",125,18.75,18.75,102,11411.1875,213959.765625,213959.765625,null,null,"200 <= tons < 250",250,18.75,18.75,33,7223.87744140625,135447.70202636719,135447.70202636719,null,null,"500 <= tons < 1000",1000,18.75,18.75,1,511.54998779296875,9591.5622711181641,9591.5622711181641]
[null,"125 <= tons < 150",150,18.75,18.75,59,8022.47314453125,150421.37145996094,150421.37145996094,null,null,"125 <= tons < 150",150,18.75,18.75,59,8022.47314453125,150421.37145996094,150421.37145996094,null,null,"tons >= 250",null,18.75,18.75,32,11106.9912109375,208256.08520507813,208256.08520507813,null,null,"1000 <= tons < 5000",5000,18.75,18.75,1,1181.8499755859375,22159.687042236328,22159.687042236328]
[null,"150 <= tons < 175",175,18.75,18.75,48,7757.62939453125,145455.55114746094,145455.55114746094,null,null,"150 <= tons < 175",175,18.75,18.75,48,7757.62939453125,145455.55114746094,145455.55114746094,null,null,null,null,null,null,null,null,"","",null,null,"tons >= 5000",null,18.75,18.75,0,0,0,0]
[null,"175 <= tons < 200",200,18.75,18.75,21,3938.074462890625,73838.896179199219,73838.896179199219,null,null,"175 <= tons < 200",200,18.75,18.75,21,3938.074462890625,73838.896179199219,73838.896179199219,null,null,null,null,null,null,null,null,"","",null,null,null,null,null,null,null,null,"",""]
[null,"200 <= tons < 225",225,18.75,18.75,24,5062.60400390625,94923.825073242188,94923.825073242188,null,null,"200 <= tons < 225",225,18.75,18.75,24,5062.60400390625,94923.825073242188,94923.825073242188,null,null,null,null,null,null,null,null,"","",null,null,null,null,null,null,null,null,"",""]
[null,"225 <= tons < 250",250,18.75,18.75,9,2161.27294921875,40523.867797851563,40523.867797851563,null,null,"225 <= tons < 250",250,18.75,18.75,9,2161.27294921875,40523.867797851563,40523.867797851563,null,null,null,null,null,null,null,null,"","",null,null,null,null,null,null,null,null,"",""]
[null,"250 <= tons < 500",500,18.75,18.75,30,9413.591796875,176504.84619140625,176504.84619140625,null,null,"tons >= 250",null,18.75,18.75,32,11106.9912109375,208256.08520507813,208256.08520507813,null,null,null,null,null,null,null,null,"","",null,null,null,null,null,null,null,null,"",""]
[null,"500 <= tons < 1000",1000,18.75,18.75,1,511.54998779296875,9591.5622711181641,9591.5622711181641,null,null,null,null,null,null,null,null,"","",null,null,null,null,null,null,null,null,"","",null,null,null,null,null,null,null,null,"",""]
[null,"1000 <= tons < 2500",2500,18.75,18.75,1,1181.8499755859375,22159.687042236328,22159.687042236328,null,null,null,null,null,null,null,null,"","",null,null,null,null,null,null,null,null,"","",null,null,null,null,null,null,null,null,"",""]
[null,"2500 <= tons < 5000",5000,18.75,18.75,0,0,0,0,null,null,null,null,null,null,null,null,"","",null,null,null,null,null,null,null,null,"","",null,null,null,null,null,null,null,null,"",""]
[null,"tons >= 5000",null,18.75,18.75,0,0,0,0,null,null,null,null,null,null,null,null,"","",null,null,null,null,null,null,null,null,"","",null,null,null,null,null,null,null,null,"",""]
[null,null,null,null,null,null,null,"","",null,null,null,null,null,null,null,null,"","",null,null,null,null,null,null,null,null,"","",null,null,null,null,null,null,null,null,"",""]
[null,null,null,null,null,null,null,"","",null,null,null,null,null,null,null,null,"","",null,null,null,null,null,null,null,null,"","",null,null,null,null,null,null,null,null,"",""]
[null,null,null,null,null,null,null,"","",null,null,null,null,null,null,null,null,"","",null,null,null,null,null,null,null,null,"","",null,null,null,null,null,null,null,null,"",""]
[null,null,null,null,null,null,null,"","",null,null,null,null,null,null,null,null,"","",null,null,null,null,null,null,null,null,"","",null,null,null,null,null,null,null,null,"",""]
[null,null,null,null,null,null,null,"","",null,null,null,null,null,null,null,null,"","",null,null,null,null,null,null,null,null,"","",null,null,null,null,null,null,null,null,"",""]
[null,null,null,null,null,null,null,"","",null,null,null,null,null,null,null,null,"","",null,null,null,null,null,null,null,null,"","",null,null,null,null,null,null,null,null,"",""]
[null,null,null,null,null,null,null,"","",null,null,null,null,null,null,null,null,"","",null,null,null,null,null,null,null,null,"","",null,null,null,null,null,null,null,null,"",""]
[null,null,null,null,null,null,null,"","",null,null,null,null,null,null,null,null,"","",null,null,null,null,null,null,null,null,"","",null,null,null,null,null,null,null,null,"",""]
[null,null,null,null,null,null,null,"","",null,null,null,null,null,null,null,null,"","",null,null,null,null,null,null,null,null,"","",null,null,null,null,null,null,null,null,"",""]
[null,null,null,null,null,null,null,"","",null,null,null,null,null,null,null,null,"","",null,null,null,null,null,null,null,null,"","",null,null,null,null,null,null,null,null,"",""]
[null,"Totals-->",null,null,null,{"$f":"SUM(F33:F57)","v":1177},{"$f":"SUM(G33:G57)","v":88756.256652832031},{"$f":"SUM(H33:H57)","v":1664179.8122406006},{"$f":"SUM(I33:I57)","v":1664179.8122406006},null,null,"Totals-->",null,null,null,{"$f":"SUM(P33:P57)","v":1177},{"$f":"SUM(Q33:Q57)","v":88756.256103515625},{"$f":"SUM(R33:R57)","v":1664179.801940918},{"$f":"SUM(S33:S57)","v":1664179.801940918},null,null,"Totals-->",null,null,null,{"$f":"SUM(Z33:Z57)","v":1177},{"$f":"SUM(AA33:AA57)","v":88756.26513671875},{"$f":"SUM(AB33:AB57)","v":1664179.9713134766},{"$f":"SUM(AC33:AC57)","v":1664179.9713134766},null,null,"Totals-->",null,null,null,{"$f":"SUM(AJ33:AJ57)","v":1177},{"$f":"SUM(AK33:AK57)","v":88756.270042419434},{"$f":"SUM(AL33:AL57)","v":1664180.0632953644},{"$f":"SUM(AM33:AM57)","v":1664180.0632953644}]
[]
[]
[null,null,null,"Current","Exploratory",null,null,"Current","Exploratory",null,null,null,null,"Current","Exploratory",null,null,"Current","Exploratory",null,null,null,null,"Current","Exploratory",null,null,"Currrent","Explore"]
["Annual True Minor (TM) Base Fee","Emission Rate ","tons","$ rate ","$ rate ","#Fac's ",null,"Fees ","Fees ",null,"Annual True Minor (TM) Base Fee","Emission Rate ","tons","$ rate ","$ rate ","#Fac's ",null,"Fees ","Fees ",null,"Annual True Minor (TM) Base Fee","Emission Rate","tons","$/Ton","$/Ton","#Fac's ",null,"Fees","Fees"]
[null,"0 <= tons < 25",25,0,500,256,null,{"$f":"IF(F63<>\"\",D63*F63,\"\")","v":0},{"$f":"IF(F63<>\"\",E63*F63,\"\")","v":128000},null,null,"0 <= tons < 25",25,0,500,256,null,{"$f":"IF(P63<>\"\",N63*P63,\"\")","v":0},{"$f":"IF(P63<>\"\",O63*P63,\"\")","v":128000},null,null,"0 <= tons < 50",50,0,500,480,null,{"$f":"IF(Z63<>\"\",X63*Z63,\"\")","v":0},{"$f":"IF(Z63<>\"\",Y63*Z63,\"\")","v":240000}]
[null,"25 <= tons < 50",50,0,550,224,null,0,123200,null,null,"25 <= tons < 50",50,0,550,224,null,0,123200,null,null,"50 <= tons < 100",100,0,700,253,null,0,177100]
[null,"50 <= tons < 75",75,0,600,148,null,0,88800,null,null,"50 <= tons < 75",75,0,600,148,null,0,88800,null,null,"100 <= tons < 150",150,0,900,83,null,0,74700]
[null,"75 <= tons < 100",100,0,650,105,null,0,68250,null,null,"75 <= tons < 100",100,0,650,105,null,0,68250,null,null,"150 <= tons < 200",200,0,1100,29,null,0,31900]
[null,"100 <= tons < 125",125,0,700,57,null,0,39900,null,null,"100 <= tons < 125",125,0,700,57,null,0,39900,null,null,"200 <= tons < 250",250,0,1300,11,null,0,14300]
[null,"125 <= tons < 150",150,0,750,26,null,0,19500,null,null,"125 <= tons < 150",150,0,750,26,null,0,19500,null,null,"tons >= 250",null,0,1500,6,null,0,9000]
[null,"150 <= tons < 175",175,0,800,20,null,0,16000,null,null,"150 <= tons < 175",175,0,800,20,null,0,16000,null,null,null,null,null,null,null,null,"",""]
[null,"175 <= tons < 200",200,0,850,9,null,0,7650,null,null,"175 <= tons < 200",200,0,850,9,null,0,7650,null,null,null,null,null,null,null,null,"",""]
[null,"200 <= tons < 225",225,0,900,8,null,0,7200,null,null,"200 <= tons < 225",225,0,900,8,null,0,7200,null,null,null,null,null,null,null,null,"",""]
[null,"225 <= tons < 250",250,0,950,3,null,0,2850,null,null,"225 <= tons < 250",250,0,950,3,null,0,2850,null,null,null,null,null,null,null,null,"",""]
[null,"250 <= tons < 500",500,0,1000,5,null,0,5000,null,null,"tons >= 250",null,0,1000,6,null,0,6000,null,null,null,null,null,null,null,null,"",""]
[null,"500 <= tons < 1000",1000,0,1500,0,null,0,0,null,null,null,null,null,null,null,null,"","",null,null,null,null,null,null,null,null,"",""]
[null,"1000 <= tons < 2500",2500,0,2000,1,null,0,2000,null,null,null,null,null,null,null,null,"","",null,null,null,null,null,null,null,null,"",""]
[null,"2500 <= tons < 5000",5000,0,2500,0,null,0,0,null,null,null,null,null,null,null,null,"","",null,null,null,null,null,null,null,null,"",""]
[null,"tons >= 5000",null,0,3000,0,null,0,0,null,null,null,null,null,null,null,null,"","",null,null,null,null,null,null,null,null,"",""]
[null,null,null,null,null,null,null,"","",null,null,null,null,null,null,null,null,"","",null,null,null,null,null,null,null,null,"",""]
[null,null,null,null,null,null,null,"","",null,null,null,null,null,null,null,null,"","",null,null,null,null,null,null,null,null,"",""]
[null,null,null,null,null,null,null,"","",null,null,null,null,null,null,null,null,"","",null,null,null,null,null,null,null,null,"",""]
[null,null,null,null,null,null,null,"","",null,null,null,null,null,null,null,null,"","",null,null,null,null,null,null,null,null,"",""]
[null,null,null,null,null,null,null,"","",null,null,null,null,null,null,null,null,"","",null,null,null,null,null,null,null,null,"",""]
[null,null,null,null,null,null,null,"","",null,null,null,null,null,null,null,null,"","",null,null,null,null,null,null,null,null,"",""]
[null,null,null,null,null,null,null,"","",null,null,null,null,null,null,null,null,"","",null,null,null,null,null,null,null,null,"",""]
[null,null,null,null,null,null,null,"","",null,null,null,null,null,null,null,null,"","",null,null,null,null,null,null,null,null,"",""]
[null,null,null,null,null,null,null,"","",null,null,null,null,null,null,null,null,"","",null,null,null,null,null,null,null,null,"",""]
[null,null,null,null,null,null,null,"","",null,null,null,null,null,null,null,null,"","",null,null,null,null,null,null,null,null,"",""]
[null,"Totals-->",null,null,null,{"$f":"SUM(F63:F87)","v":862},null,{"$f":"SUM(H63:H87)","v":0},{"$f":"SUM(I63:I87)","v":508350},null,null,"Totals-->",null,null,null,{"$f":"SUM(P63:P87)","v":862},null,{"$f":"SUM(R63:R87)","v":0},{"$f":"SUM(S63:S87)","v":507350},null,null,"Totals-->",null,null,null,{"$f":"SUM(Z63:Z87)","v":862},null,{"$f":"SUM(AB63:AB87)","v":0},{"$f":"SUM(AC63:AC87)","v":547000}]
[]
[]
[null,null,null,"Current","Exploratory",null,null,"Currrent","Explore",null,null,null,null,"Current","Exploratory",null,null,"Currrent","Explore",null,null,null,null,"Current","Exploratory",null,null,"Currrent","Explore",null,null,null,null,"Current","Exploratory",null,null,"Current","Exploratory"]
["Annual Conditional Major (CM) Review Fee","Emission Rate","tons","$/Ton","$/Ton","#Fac's ",null,"Fees","Fees",null,"Annual Conditional Major (CM) Review Fee","Emission Rate","tons","$/Ton","$/Ton","#Fac's ",null,"Fees","Fees",null,"Annual Conditional Major (CM) Review Fee","Emission Rate","tons","$/Ton","$/Ton","#Fac's ",null,"Fees","Fees",null,"Annual Conditional Major (CM) Review Fee","Emission Rate ","tons","$ rate ","$ rate ","# Fac's ",null,"Fees ","Fees "]
[null,"0 <= tons < 25",25,250,1000,10,null,{"$f":"IF(F93<>\"\",D93*F93,\"\")","v":2500},{"$f":"IF(F93<>\"\",E93*F93,\"\")","v":10000},null,null,"0 <= tons < 50",50,250,500,37,null,{"$f":"IF(P93<>\"\",N93*P93,\"\")","v":9250},{"$f":"IF(P93<>\"\",O93*P93,\"\")","v":18500},null,null,"0 <= tons < 50",50,250,500,37,null,{"$f":"IF(Z93<>\"\",X93*Z93,\"\")","v":9250},{"$f":"IF(Z93<>\"\",Y93*Z93,\"\")","v":18500},null,null,"0 <= tons < 50.1",50.1,250,1000,38,null,{"$f":"IF(AJ93<>\"\",AH93*AJ93,\"\")","v":9500},{"$f":"IF(AJ93<>\"\",AI93*AJ93,\"\")","v":38000}]
[null,"25 <= tons < 50",50,250,1250,27,null,6750,33750,null,null,"50 <= tons < 75",75,250,1000,35,null,8750,35000,null,null,"50 <= tons < 100",100,500,1000,78,null,39000,78000,null,null,"50.1 <= tons < 100.1",100.1,500,2000,77,null,38500,154000]
[null,"50 <= tons < 75",75,500,1500,35,null,17500,52500,null,null,"75 <= tons < 100",100,500,1500,43,null,21500,64500,null,null,"100 <= tons < 150",150,500,2000,81,null,40500,162000,null,null,"100.1 <= tons < 250.1",250.1,1000,2500,152,null,152000,380000]
[null,"75 <= tons < 100",100,500,1750,43,null,21500,75250,null,null,"100 <= tons < 125",125,500,2000,47,null,23500,94000,null,null,"150 <= tons < 200",200,500,3000,44,null,22000,132000,null,null,"tons >= 250.1",null,2000,3000,48,null,96000,144000]
[null,"100 <= tons < 125",125,500,2000,47,null,23500,94000,null,null,"125 <= tons < 150",150,500,2500,34,null,17000,85000,null,null,"200 <= tons < 250",250,1000,4000,27,null,27000,108000,null,null,null,null,null,null,null,null,"",""]
[null,"125 <= tons < 150",150,500,2250,34,null,17000,76500,null,null,"150 <= tons < 200",200,500,3000,44,null,22000,132000,null,null,"tons >= 250",null,2000,4500,48,null,96000,216000,null,null,null,null,null,null,null,null,"",""]
[null,"150 <= tons < 175",175,500,2500,27,null,13500,67500,null,null,"200 <= tons < 250",250,500,3500,27,null,13500,94500,null,null,null,null,null,null,null,null,"","",null,null,null,null,null,null,null,null,"",""]
[null,"175 <= tons < 200",200,2000,2750,17,null,34000,46750,null,null,"250 <= tons < 500",500,2000,4000,45,null,90000,180000,null,null,null,null,null,null,null,null,"","",null,null,null,null,null,null,null,null,"",""]
[null,"200 <= tons < 225",225,2000,3000,19,null,38000,57000,null,null,"500 <= tons < 1000",1000,2000,4500,3,null,6000,13500,null,null,null,null,null,null,null,null,"","",null,null,null,null,null,null,null,null,"",""]
[null,"225 <= tons < 250",250,2000,3250,8,null,16000,26000,null,null,"tons >= 1000",5000,2000,5000,0,null,0,0,null,null,null,null,null,null,null,null,"","",null,null,null,null,null,null,null,null,"",""]
[null,"250 <= tons < 500",500,2000,3500,45,null,90000,157500,null,null,null,null,null,null,null,null,"","",null,null,null,null,null,null,null,null,"","",null,null,null,null,null,null,null,null,"",""]
[null,"500 <= tons < 1000",1000,2000,3750,3,null,6000,11250,null,null,null,null,null,null,null,null,"","",null,null,null,null,null,null,null,null,"","",null,null,null,null,null,null,null,null,"",""]
[null,"1000 <= tons < 2500",2500,2000,4000,0,null,0,0,null,null,null,null,null,null,null,null,"","",null,null,null,null,null,null,null,null,"","",null,null,null,null,null,null,null,null,"",""]
[null,"2500 <= tons < 5000",5000,2000,4500,0,null,0,0,null,null,null,null,null,null,null,null,"","",null,null,null,null,null,null,null,null,"","",null,null,null,null,null,null,null,null,"",""]
[null,"tons >= 5000",null,2000,5000,0,null,0,0,null,null,null,null,null,null,null,null,"","",null,null,null,null,null,null,null,null,"","",null,null,null,null,null,null,null,null,"",""]
[null,null,null,null,null,null,null,"","",null,null,null,null,null,null,null,null,"","",null,null,null,null,null,null,null,null,"","",null,null,null,null,null,null,null,null,"",""]
[null,null,null,null,null,null,null,"","",null,null,null,null,null,null,null,null,"","",null,null,null,null,null,null,null,null,"","",null,null,null,null,null,null,null,null,"",""]
[null,null,null,null,null,null,null,"","",null,null,null,null,null,null,null,null,"","",null,null,null,null,null,null,null,null,"","",null,null,null,null,null,null,null,null,"",""]
[null,null,null,null,null,null,null,"","",null,null,null,null,null,null,null,null,"","",null,null,null,null,null,null,null,null,"","",null,null,null,null,null,null,null,null,"",""]
[null,null,null,null,null,null,null,"","",null,null,null,null,null,null,null,null,"","",null,null,null,null,null,null,null,null,"","",null,null,null,null,null,null,null,null,"",""]
[null,null,null,null,null,null,null,"","",null,null,null,null,null,null,null,null,"","",null,null,null,null,null,null,null,null,"","",null,null,null,null,null,null,null,null,"",""]
[null,null,null,null,null,null,null,"","",null,null,null,null,null,null,null,null,"","",null,null,null,null,null,null,null,null,"","",null,null,null,null,null,null,null,null,"",""]
[null,null,null,null,null,null,null,"","",null,null,null,null,null,null,null,null,"","",null,null,null,null,null,null,null,null,"","",null,null,null,null,null,null,null,null,"",""]
[null,null,null,null,null,null,null,"","",null,null,null,null,null,null,null,null,"","",null,null,null,null,null,null,null,null,"","",null,null,null,null,null,null,null,null,"",""]
[null,null,null,null,null,null,null,"","",null,null,null,null,null,null,null,null,"","",null,null,null,null,null,null,null,null,"","",null,null,null,null,null,null,null,null,"",""]
[null,"Totals-->",null,null,null,{"$f":"SUM(F93:F117)","v":315},null,{"$f":"SUM(H93:H117)","v":286250},{"$f":"SUM(I93:I117)","v":708000},null,null,"Totals-->",null,null,null,{"$f":"SUM(P93:P117)","v":315},null,{"$f":"SUM(R93:R117)","v":211500},{"$f":"SUM(S93:S117)","v":717000},null,null,"Totals-->",null,null,null,{"$f":"SUM(Z93:Z117)","v":315},null,{"$f":"SUM(AB93:AB117)","v":233750},{"$f":"SUM(AC93:AC117)","v":714500},null,null,"Totals-->",null,null,null,{"$f":"SUM(AJ93:AJ117)","v":315},null,{"$f":"SUM(AL93:AL117)","v":296000},{"$f":"SUM(AM93:AM117)","v":716000}]

{"sheet":"copyFeeOptions","index":5,"n_rows":118,"n_cols":39,"rows_kept":118,"cut":false,"hidden":true,"merged":[]}
[null,null,null,null,null,"from #CPs",null,"Currrent","Explore"]
["Construction Permit Emission Rate Fee","Emission Rate ","tons ","$ rate ","$ rate ","AVG#/Yr ",null,"Fees ","Fees "]
[null,"0 <= tons < 10",10,100,1000,172,null,{"$f":"IF(F3<>\"\",D3*F3,\"\")","v":17200},{"$f":"IF(F3<>\"\",E3*F3,\"\")","v":172000}]
[null,"10 <= tons < 100",100,500,1500,97,null,{"$f":"IF(F4<>\"\",D4*F4,\"\")","v":48500},{"$f":"IF(F4<>\"\",E4*F4,\"\")","v":145500}]
[null,"100 <= tons < 250",250,1000,2000,10,null,10000,20000]
[null,"250 <= tons < 500",500,2000,2500,1,null,2000,2500]
[null,"500 <= tons < 1000",1000,3000,3000,0,null,0,0]
[null,"1000 <= tons < 5000",5000,4000,4000,0,null,0,0]
[null,"tons >= 5000",null,5000,5000,0,null,0,0]
[null,null,null,null,null,null,null,"",""]
[null,null,null,null,null,null,null,"",""]
[null,null,null,null,null,null,null,"",""]
[null,null,null,null,null,null,null,"",""]
[null,null,null,null,null,null,null,"",""]
[null,null,null,null,null,null,null,"",""]
[null,null,null,null,null,null,null,"",""]
[null,null,null,null,null,null,null,"",""]
[null,null,null,null,null,null,null,"",""]
[null,null,null,null,null,null,null,"",""]
[null,null,null,null,null,null,null,"",""]
[null,null,null,null,null,null,null,"",""]
[null,null,null,null,null,null,null,"",""]
[null,null,null,null,null,null,null,"",""]
[null,null,null,null,null,null,null,"",""]
[null,null,null,null,null,null,null,"",""]
[null,null,null,null,null,null,null,"",""]
[null,null,null,null,null,null,null,"",""]
[null,"Totals-->",null,null,null,{"$f":"SUM(F3:F27)","v":280},null,{"$f":"SUM(H3:H27)","v":77700},{"$f":"SUM(I3:I27)","v":340000}]
[]
[]
[null,null,null,"Current","Exploratory",null,null,"Currrent","Explore",null,null,null,null,"Current","Exploratory",null,null,"Currrent","Explore",null,null,null,null,"Current","Exploratory",null,null,"Currrent","Explore",null,null,null,null,"Current","Exploratory",null,null,"Currrent","Explore"]
["Annual Emission Fees $/ton rates","Emission Rate ","tons","$/Ton ","$/Ton ","#Fac's ","Total Tons ","Fees ","Fees ",null,"Annual Emission Fees $/ton rates","Emission Rate ","tons","$/Ton ","$/Ton ","#Fac's ","Total Tons ","Fees ","Fees ",null,"Annual Emission Fees $/ton rates","Emission Rate ","tons","$/Ton ","$/Ton ","#Fac's ","Total Tons ","Fees ","Fees ",null,"Annual Emission Fees $/ton rates","Emission Rate ","tons","$/Ton ","$/Ton ","#Fac's ","Total Tons ","Fees ","Fees "]
[null,"0 <= tons < 25",25,18.75,18.75,278,4626.63671875,{"$f":"IF(G33<>\"\",D33*G33,\"\")","v":86749.4384765625},{"$f":"IF(G33<>\"\",E33*G33,\"\")","v":86749.4384765625},null,null,"0 <= tons < 25",25,18.75,18.75,278,4626.63671875,{"$f":"IF(Q33<>\"\",N33*Q33,\"\")","v":86749.4384765625},{"$f":"IF(Q33<>\"\",O33*Q33,\"\")","v":86749.4384765625},null,null,"0 <= tons < 50",50,18.75,18.75,541,14440.2626953125,{"$f":"IF(AA33<>\"\",X33*AA33,\"\")","v":270754.92553710938},{"$f":"IF(AA33<>\"\",Y33*AA33,\"\")","v":270754.92553710938},null,null,"0 <= tons < 10",10,18.75,18.75,6,59.540000915527344,{"$f":"IF(AK33<>\"\",AH33*AK33,\"\")","v":1116.3750171661377},{"$f":"IF(AK33<>\"\",AI33*AK33,\"\")","v":1116.3750171661377}]
[null,"25 <= tons < 50",50,18.75,18.75,263,9813.62890625,184005.5419921875,184005.5419921875,null,null,"25 <= tons < 50",50,18.75,18.75,263,9813.62890625,184005.5419921875,184005.5419921875,null,null,"50 <= tons < 100",100,18.75,18.75,341,24855.767578125,466045.64208984375,466045.64208984375,null,null,"10 <= tons < 100",100,18.75,18.75,876,39236.49609375,{"$f":"IF(AK34<>\"\",AH34*AK34,\"\")","v":735684.3017578125},{"$f":"IF(AK34<>\"\",AI34*AK34,\"\")","v":735684.3017578125}]
[null,"50 <= tons < 75",75,18.75,18.75,187,11388.4296875,213533.056640625,213533.056640625,null,null,"50 <= tons < 75",75,18.75,18.75,187,11388.4296875,213533.056640625,213533.056640625,null,null,"100 <= tons < 150",150,18.75,18.75,161,19433.662109375,364381.16455078125,364381.16455078125,null,null,"100 <= tons < 250",250,18.75,18.75,263,38353.2421875,719123.291015625,719123.291015625]
[null,"75 <= tons < 100",100,18.75,18.75,154,13467.328125,252512.40234375,252512.40234375,null,null,"75 <= tons < 100",100,18.75,18.75,154,13467.328125,252512.40234375,252512.40234375,null,null,"150 <= tons < 200",200,18.75,18.75,69,11695.7041015625,219294.45190429687,219294.45190429687,null,null,"250 <= tons < 500",500,18.75,18.75,30,9413.591796875,176504.84619140625,176504.84619140625]
[null,"100 <= tons < 125",125,18.75,18.75,102,11411.1875,213959.765625,213959.765625,null,null,"100 <= tons < 125",125,18.75,18.75,102,11411.1875,213959.765625,213959.765625,null,null,"200 <= tons < 250",250,18.75,18.75,33,7223.87744140625,135447.70202636719,135447.70202636719,null,null,"500 <= tons < 1000",1000,18.75,18.75,1,511.54998779296875,9591.5622711181641,9591.5622711181641]
[null,"125 <= tons < 150",150,18.75,18.75,59,8022.47314453125,150421.37145996094,150421.37145996094,null,null,"125 <= tons < 150",150,18.75,18.75,59,8022.47314453125,150421.37145996094,150421.37145996094,null,null,"tons >= 250",null,18.75,18.75,32,11106.9912109375,208256.08520507813,208256.08520507813,null,null,"1000 <= tons < 5000",5000,18.75,18.75,1,1181.8499755859375,22159.687042236328,22159.687042236328]
[null,"150 <= tons < 175",175,18.75,18.75,48,7757.62939453125,145455.55114746094,145455.55114746094,null,null,"150 <= tons < 175",175,18.75,18.75,48,7757.62939453125,145455.55114746094,145455.55114746094,null,null,null,null,null,null,null,null,"","",null,null,"tons >= 5000",null,18.75,18.75,0,0,0,0]
[null,"175 <= tons < 200",200,18.75,18.75,21,3938.074462890625,73838.896179199219,73838.896179199219,null,null,"175 <= tons < 200",200,18.75,18.75,21,3938.074462890625,73838.896179199219,73838.896179199219,null,null,null,null,null,null,null,null,"","",null,null,null,null,null,null,null,null,"",""]
[null,"200 <= tons < 225",225,18.75,18.75,24,5062.60400390625,94923.825073242188,94923.825073242188,null,null,"200 <= tons < 225",225,18.75,18.75,24,5062.60400390625,94923.825073242188,94923.825073242188,null,null,null,null,null,null,null,null,"","",null,null,null,null,null,null,null,null,"",""]
[null,"225 <= tons < 250",250,18.75,18.75,9,2161.27294921875,40523.867797851563,40523.867797851563,null,null,"225 <= tons < 250",250,18.75,18.75,9,2161.27294921875,40523.867797851563,40523.867797851563,null,null,null,null,null,null,null,null,"","",null,null,null,null,null,null,null,null,"",""]
[null,"250 <= tons < 500",500,18.75,18.75,30,9413.591796875,176504.84619140625,176504.84619140625,null,null,"tons >= 250",null,18.75,18.75,32,11106.9912109375,208256.08520507813,208256.08520507813,null,null,null,null,null,null,null,null,"","",null,null,null,null,null,null,null,null,"",""]
[null,"500 <= tons < 1000",1000,18.75,18.75,1,511.54998779296875,9591.5622711181641,9591.5622711181641,null,null,null,null,null,null,null,null,"","",null,null,null,null,null,null,null,null,"","",null,null,null,null,null,null,null,null,"",""]
[null,"1000 <= tons < 2500",2500,18.75,18.75,1,1181.8499755859375,22159.687042236328,22159.687042236328,null,null,null,null,null,null,null,null,"","",null,null,null,null,null,null,null,null,"","",null,null,null,null,null,null,null,null,"",""]
[null,"2500 <= tons < 5000",5000,18.75,18.75,0,0,0,0,null,null,null,null,null,null,null,null,"","",null,null,null,null,null,null,null,null,"","",null,null,null,null,null,null,null,null,"",""]
[null,"tons >= 5000",null,18.75,18.75,0,0,0,0,null,null,null,null,null,null,null,null,"","",null,null,null,null,null,null,null,null,"","",null,null,null,null,null,null,null,null,"",""]
[null,null,null,null,null,null,null,"","",null,null,null,null,null,null,null,null,"","",null,null,null,null,null,null,null,null,"","",null,null,null,null,null,null,null,null,"",""]
[null,null,null,null,null,null,null,"","",null,null,null,null,null,null,null,null,"","",null,null,null,null,null,null,null,null,"","",null,null,null,null,null,null,null,null,"",""]
[null,null,null,null,null,null,null,"","",null,null,null,null,null,null,null,null,"","",null,null,null,null,null,null,null,null,"","",null,null,null,null,null,null,null,null,"",""]
[null,null,null,null,null,null,null,"","",null,null,null,null,null,null,null,null,"","",null,null,null,null,null,null,null,null,"","",null,null,null,null,null,null,null,null,"",""]
[null,null,null,null,null,null,null,"","",null,null,null,null,null,null,null,null,"","",null,null,null,null,null,null,null,null,"","",null,null,null,null,null,null,null,null,"",""]
[null,null,null,null,null,null,null,"","",null,null,null,null,null,null,null,null,"","",null,null,null,null,null,null,null,null,"","",null,null,null,null,null,null,null,null,"",""]
[null,null,null,null,null,null,null,"","",null,null,null,null,null,null,null,null,"","",null,null,null,null,null,null,null,null,"","",null,null,null,null,null,null,null,null,"",""]
[null,null,null,null,null,null,null,"","",null,null,null,null,null,null,null,null,"","",null,null,null,null,null,null,null,null,"","",null,null,null,null,null,null,null,null,"",""]
[null,null,null,null,null,null,null,"","",null,null,null,null,null,null,null,null,"","",null,null,null,null,null,null,null,null,"","",null,null,null,null,null,null,null,null,"",""]
[null,null,null,null,null,null,null,"","",null,null,null,null,null,null,null,null,"","",null,null,null,null,null,null,null,null,"","",null,null,null,null,null,null,null,null,"",""]
[null,"Totals-->",null,null,null,{"$f":"SUM(F33:F57)","v":1177},{"$f":"SUM(G33:G57)","v":88756.256652832031},{"$f":"SUM(H33:H57)","v":1664179.8122406006},{"$f":"SUM(I33:I57)","v":1664179.8122406006},null,null,"Totals-->",null,null,null,{"$f":"SUM(P33:P57)","v":1177},{"$f":"SUM(Q33:Q57)","v":88756.256103515625},{"$f":"SUM(R33:R57)","v":1664179.801940918},{"$f":"SUM(S33:S57)","v":1664179.801940918},null,null,"Totals-->",null,null,null,{"$f":"SUM(Z33:Z57)","v":1177},{"$f":"SUM(AA33:AA57)","v":88756.26513671875},{"$f":"SUM(AB33:AB57)","v":1664179.9713134766},{"$f":"SUM(AC33:AC57)","v":1664179.9713134766},null,null,"Totals-->",null,null,null,{"$f":"SUM(AJ33:AJ57)","v":1177},{"$f":"SUM(AK33:AK57)","v":88756.270042419434},{"$f":"SUM(AL33:AL57)","v":1664180.0632953644},{"$f":"SUM(AM33:AM57)","v":1664180.0632953644}]
[]
[]
[null,null,null,"Current","Exploratory",null,null,"Current","Exploratory",null,null,null,null,"Current","Exploratory",null,null,"Current","Exploratory",null,null,null,null,"Current","Exploratory",null,null,"Currrent","Explore"]
["Annual True Minor (TM) Base Fee","Emission Rate ","tons","$ rate ","$ rate ","#Fac's ",null,"Fees ","Fees ",null,"Annual True Minor (TM) Base Fee","Emission Rate ","tons","$ rate ","$ rate ","#Fac's ",null,"Fees ","Fees ",null,"Annual True Minor (TM) Base Fee","Emission Rate","tons","$/Ton","$/Ton","#Fac's ",null,"Fees","Fees"]
[null,"0 <= tons < 25",25,0,500,256,null,{"$f":"IF(F63<>\"\",D63*F63,\"\")","v":0},{"$f":"IF(F63<>\"\",E63*F63,\"\")","v":128000},null,null,"0 <= tons < 25",25,0,500,256,null,{"$f":"IF(P63<>\"\",N63*P63,\"\")","v":0},{"$f":"IF(P63<>\"\",O63*P63,\"\")","v":128000},null,null,"0 <= tons < 50",50,0,500,480,null,{"$f":"IF(Z63<>\"\",X63*Z63,\"\")","v":0},{"$f":"IF(Z63<>\"\",Y63*Z63,\"\")","v":240000}]
[null,"25 <= tons < 50",50,0,550,224,null,0,123200,null,null,"25 <= tons < 50",50,0,550,224,null,0,123200,null,null,"50 <= tons < 100",100,0,700,253,null,0,177100]
[null,"50 <= tons < 75",75,0,600,148,null,0,88800,null,null,"50 <= tons < 75",75,0,600,148,null,0,88800,null,null,"100 <= tons < 150",150,0,900,83,null,0,74700]
[null,"75 <= tons < 100",100,0,650,105,null,0,68250,null,null,"75 <= tons < 100",100,0,650,105,null,0,68250,null,null,"150 <= tons < 200",200,0,1100,29,null,0,31900]
[null,"100 <= tons < 125",125,0,700,57,null,0,39900,null,null,"100 <= tons < 125",125,0,700,57,null,0,39900,null,null,"200 <= tons < 250",250,0,1300,11,null,0,14300]
[null,"125 <= tons < 150",150,0,750,26,null,0,19500,null,null,"125 <= tons < 150",150,0,750,26,null,0,19500,null,null,"tons >= 250",null,0,1500,6,null,0,9000]
[null,"150 <= tons < 175",175,0,800,20,null,0,16000,null,null,"150 <= tons < 175",175,0,800,20,null,0,16000,null,null,null,null,null,null,null,null,"",""]
[null,"175 <= tons < 200",200,0,850,9,null,0,7650,null,null,"175 <= tons < 200",200,0,850,9,null,0,7650,null,null,null,null,null,null,null,null,"",""]
[null,"200 <= tons < 225",225,0,900,8,null,0,7200,null,null,"200 <= tons < 225",225,0,900,8,null,0,7200,null,null,null,null,null,null,null,null,"",""]
[null,"225 <= tons < 250",250,0,950,3,null,0,2850,null,null,"225 <= tons < 250",250,0,950,3,null,0,2850,null,null,null,null,null,null,null,null,"",""]
[null,"250 <= tons < 500",500,0,1000,5,null,0,5000,null,null,"tons >= 250",null,0,1000,6,null,0,6000,null,null,null,null,null,null,null,null,"",""]
[null,"500 <= tons < 1000",1000,0,1500,0,null,0,0,null,null,null,null,null,null,null,null,"","",null,null,null,null,null,null,null,null,"",""]
[null,"1000 <= tons < 2500",2500,0,2000,1,null,0,2000,null,null,null,null,null,null,null,null,"","",null,null,null,null,null,null,null,null,"",""]
[null,"2500 <= tons < 5000",5000,0,2500,0,null,0,0,null,null,null,null,null,null,null,null,"","",null,null,null,null,null,null,null,null,"",""]
[null,"tons >= 5000",null,0,3000,0,null,0,0,null,null,null,null,null,null,null,null,"","",null,null,null,null,null,null,null,null,"",""]
[null,null,null,null,null,null,null,"","",null,null,null,null,null,null,null,null,"","",null,null,null,null,null,null,null,null,"",""]
[null,null,null,null,null,null,null,"","",null,null,null,null,null,null,null,null,"","",null,null,null,null,null,null,null,null,"",""]
[null,null,null,null,null,null,null,"","",null,null,null,null,null,null,null,null,"","",null,null,null,null,null,null,null,null,"",""]
[null,null,null,null,null,null,null,"","",null,null,null,null,null,null,null,null,"","",null,null,null,null,null,null,null,null,"",""]
[null,null,null,null,null,null,null,"","",null,null,null,null,null,null,null,null,"","",null,null,null,null,null,null,null,null,"",""]
[null,null,null,null,null,null,null,"","",null,null,null,null,null,null,null,null,"","",null,null,null,null,null,null,null,null,"",""]
[null,null,null,null,null,null,null,"","",null,null,null,null,null,null,null,null,"","",null,null,null,null,null,null,null,null,"",""]
[null,null,null,null,null,null,null,"","",null,null,null,null,null,null,null,null,"","",null,null,null,null,null,null,null,null,"",""]
[null,null,null,null,null,null,null,"","",null,null,null,null,null,null,null,null,"","",null,null,null,null,null,null,null,null,"",""]
[null,null,null,null,null,null,null,"","",null,null,null,null,null,null,null,null,"","",null,null,null,null,null,null,null,null,"",""]
[null,"Totals-->",null,null,null,{"$f":"SUM(F63:F87)","v":862},null,{"$f":"SUM(H63:H87)","v":0},{"$f":"SUM(I63:I87)","v":508350},null,null,"Totals-->",null,null,null,{"$f":"SUM(P63:P87)","v":862},null,{"$f":"SUM(R63:R87)","v":0},{"$f":"SUM(S63:S87)","v":507350},null,null,"Totals-->",null,null,null,{"$f":"SUM(Z63:Z87)","v":862},null,{"$f":"SUM(AB63:AB87)","v":0},{"$f":"SUM(AC63:AC87)","v":547000}]
[]
[]
[null,null,null,"Current","Exploratory",null,null,"Currrent","Explore",null,null,null,null,"Current","Exploratory",null,null,"Currrent","Explore",null,null,null,null,"Current","Exploratory",null,null,"Currrent","Explore",null,null,null,null,"Current","Exploratory",null,null,"Current","Exploratory"]
["Annual Conditional Major (CM) Review Fee","Emission Rate","tons","$/Ton","$/Ton","#Fac's ",null,"Fees","Fees",null,"Annual Conditional Major (CM) Review Fee","Emission Rate","tons","$/Ton","$/Ton","#Fac's ",null,"Fees","Fees",null,"Annual Conditional Major (CM) Review Fee","Emission Rate","tons","$/Ton","$/Ton","#Fac's ",null,"Fees","Fees",null,"Annual Conditional Major (CM) Review Fee","Emission Rate ","tons","$ rate ","$ rate ","# Fac's ",null,"Fees ","Fees "]
[null,"0 <= tons < 25",25,250,1000,10,null,{"$f":"IF(F93<>\"\",D93*F93,\"\")","v":2500},{"$f":"IF(F93<>\"\",E93*F93,\"\")","v":10000},null,null,"0 <= tons < 50",50,250,500,37,null,{"$f":"IF(P93<>\"\",N93*P93,\"\")","v":9250},{"$f":"IF(P93<>\"\",O93*P93,\"\")","v":18500},null,null,"0 <= tons < 50",50,250,500,37,null,{"$f":"IF(Z93<>\"\",X93*Z93,\"\")","v":9250},{"$f":"IF(Z93<>\"\",Y93*Z93,\"\")","v":18500},null,null,"0 <= tons < 50.1",50.1,250,1000,38,null,{"$f":"IF(AJ93<>\"\",AH93*AJ93,\"\")","v":9500},{"$f":"IF(AJ93<>\"\",AI93*AJ93,\"\")","v":38000}]
[null,"25 <= tons < 50",50,250,1250,27,null,6750,33750,null,null,"50 <= tons < 75",75,250,1000,35,null,8750,35000,null,null,"50 <= tons < 100",100,500,1000,78,null,39000,78000,null,null,"50.1 <= tons < 100.1",100.1,500,2000,77,null,38500,154000]
[null,"50 <= tons < 75",75,500,1500,35,null,17500,52500,null,null,"75 <= tons < 100",100,500,1500,43,null,21500,64500,null,null,"100 <= tons < 150",150,500,2000,81,null,40500,162000,null,null,"100.1 <= tons < 250.1",250.1,1000,2500,152,null,152000,380000]
[null,"75 <= tons < 100",100,500,1750,43,null,21500,75250,null,null,"100 <= tons < 125",125,500,2000,47,null,23500,94000,null,null,"150 <= tons < 200",200,500,3000,44,null,22000,132000,null,null,"tons >= 250.1",null,2000,3000,48,null,96000,144000]
[null,"100 <= tons < 125",125,500,2000,47,null,23500,94000,null,null,"125 <= tons < 150",150,500,2500,34,null,17000,85000,null,null,"200 <= tons < 250",250,1000,4000,27,null,27000,108000,null,null,null,null,null,null,null,null,"",""]
[null,"125 <= tons < 150",150,500,2250,34,null,17000,76500,null,null,"150 <= tons < 200",200,500,3000,44,null,22000,132000,null,null,"tons >= 250",null,2000,4500,48,null,96000,216000,null,null,null,null,null,null,null,null,"",""]
[null,"150 <= tons < 175",175,500,2500,27,null,13500,67500,null,null,"200 <= tons < 250",250,500,3500,27,null,13500,94500,null,null,null,null,null,null,null,null,"","",null,null,null,null,null,null,null,null,"",""]
[null,"175 <= tons < 200",200,2000,2750,17,null,34000,46750,null,null,"250 <= tons < 500",500,2000,4000,45,null,90000,180000,null,null,null,null,null,null,null,null,"","",null,null,null,null,null,null,null,null,"",""]
[null,"200 <= tons < 225",225,2000,3000,19,null,38000,57000,null,null,"500 <= tons < 1000",1000,2000,4500,3,null,6000,13500,null,null,null,null,null,null,null,null,"","",null,null,null,null,null,null,null,null,"",""]
[null,"225 <= tons < 250",250,2000,3250,8,null,16000,26000,null,null,"tons >= 1000",5000,2000,5000,0,null,0,0,null,null,null,null,null,null,null,null,"","",null,null,null,null,null,null,null,null,"",""]
[null,"250 <= tons < 500",500,2000,3500,45,null,90000,157500,null,null,null,null,null,null,null,null,"","",null,null,null,null,null,null,null,null,"","",null,null,null,null,null,null,null,null,"",""]
[null,"500 <= tons < 1000",1000,2000,3750,3,null,6000,11250,null,null,null,null,null,null,null,null,"","",null,null,null,null,null,null,null,null,"","",null,null,null,null,null,null,null,null,"",""]
[null,"1000 <= tons < 2500",2500,2000,4000,0,null,0,0,null,null,null,null,null,null,null,null,"","",null,null,null,null,null,null,null,null,"","",null,null,null,null,null,null,null,null,"",""]
[null,"2500 <= tons < 5000",5000,2000,4500,0,null,0,0,null,null,null,null,null,null,null,null,"","",null,null,null,null,null,null,null,null,"","",null,null,null,null,null,null,null,null,"",""]
[null,"tons >= 5000",null,2000,5000,0,null,0,0,null,null,null,null,null,null,null,null,"","",null,null,null,null,null,null,null,null,"","",null,null,null,null,null,null,null,null,"",""]
[null,null,null,null,null,null,null,"","",null,null,null,null,null,null,null,null,"","",null,null,null,null,null,null,null,null,"","",null,null,null,null,null,null,null,null,"",""]
[null,null,null,null,null,null,null,"","",null,null,null,null,null,null,null,null,"","",null,null,null,null,null,null,null,null,"","",null,null,null,null,null,null,null,null,"",""]
[null,null,null,null,null,null,null,"","",null,null,null,null,null,null,null,null,"","",null,null,null,null,null,null,null,null,"","",null,null,null,null,null,null,null,null,"",""]
[null,null,null,null,null,null,null,"","",null,null,null,null,null,null,null,null,"","",null,null,null,null,null,null,null,null,"","",null,null,null,null,null,null,null,null,"",""]
[null,null,null,null,null,null,null,"","",null,null,null,null,null,null,null,null,"","",null,null,null,null,null,null,null,null,"","",null,null,null,null,null,null,null,null,"",""]
[null,null,null,null,null,null,null,"","",null,null,null,null,null,null,null,null,"","",null,null,null,null,null,null,null,null,"","",null,null,null,null,null,null,null,null,"",""]
[null,null,null,null,null,null,null,"","",null,null,null,null,null,null,null,null,"","",null,null,null,null,null,null,null,null,"","",null,null,null,null,null,null,null,null,"",""]
[null,null,null,null,null,null,null,"","",null,null,null,null,null,null,null,null,"","",null,null,null,null,null,null,null,null,"","",null,null,null,null,null,null,null,null,"",""]
[null,null,null,null,null,null,null,"","",null,null,null,null,null,null,null,null,"","",null,null,null,null,null,null,null,null,"","",null,null,null,null,null,null,null,null,"",""]
[null,null,null,null,null,null,null,"","",null,null,null,null,null,null,null,null,"","",null,null,null,null,null,null,null,null,"","",null,null,null,null,null,null,null,null,"",""]
[null,"Totals-->",null,null,null,{"$f":"SUM(F93:F117)","v":315},null,{"$f":"SUM(H93:H117)","v":286250},{"$f":"SUM(I93:I117)","v":708000},null,null,"Totals-->",null,null,null,{"$f":"SUM(P93:P117)","v":315},null,{"$f":"SUM(R93:R117)","v":211500},{"$f":"SUM(S93:S117)","v":717000},null,null,"Totals-->",null,null,null,{"$f":"SUM(Z93:Z117)","v":315},null,{"$f":"SUM(AB93:AB117)","v":233750},{"$f":"SUM(AC93:AC117)","v":714500},null,null,"Totals-->",null,null,null,{"$f":"SUM(AJ93:AJ117)","v":315},null,{"$f":"SUM(AL93:AL117)","v":296000},{"$f":"SUM(AM93:AM117)","v":716000}]

{"sheet":"SmokeSchool","index":6,"n_rows":13,"n_cols":7,"rows_kept":13,"cut":false,"hidden":true,"merged":[[0,1,0,3],[0,4,0,6]]}
[null,"Industry",null,null,"State"]
["FiscalYear","Initial Certs","Re-Certs","$ collected","Initial Certs","Re-Certs","$ Value"]
[2014,25,99,12750,2,96,9370]
[2015,45,131,18070,8,87,9265]
[2016,30,135,16575,8,88,9360]
[2017,20,113,13235,4,84,8480]
[]
["Average # attendees",{"$f":"ROUND(AVERAGE(B3:B6),0)","v":30},{"$f":"ROUND(AVERAGE(C3:C6),0)","v":120},null,{"$f":"ROUND(AVERAGE(E3:E6),0)","v":6},89]
["cost/attendee",125,95,null,125,95]
["Annual Average",{"$f":"B8*B9","v":3750},{"$f":"C8*C9","v":11400},{"$f":"SUM(B10:C10)","v":15150},{"$f":"E8*E9","v":750},8455,{"$f":"SUM(E10:F10)","v":9205}]
[]
["New cost/attendee",180,150,null,180,150]
["Annual Average",{"$f":"B8*B12","v":5400},{"$f":"C8*C12","v":18000},{"$f":"SUM(B13:C13)","v":23400},{"$f":"E8*E12","v":1080},{"$f":"F8*F12","v":13350},{"$f":"SUM(E13:F13)","v":14430}]